Workbook

Sheet Abaques mu
B1: elu | D1: els
A2: alpha | B2: mux | C2: muy | D2: mux | E2: my
A3: 0.5 | B3: 0.0966 | C3: 0.2 | D3: 0.1 | E3: 0.3671
A4: 0.51 | B4: 0.0951 | C4: 0.2 | D4: 0.0987 | E4: 0.3758
A5: 0.52 | B5: 0.0937 | C5: 0.2 | D5: 0.0974 | E5: 0.3853
A6: 0.53 | B6: 0.0922 | C6: 0.2 | D6: 0.0961 | E6: 0.3949
A7: 0.54 | B7: 0.0908 | C7: 0.2 | D7: 0.0948 | E7: 0.505
A8: 0.55 | B8: 0.0894 | C8: 0.2 | D8: 0.0936 | E8: 0.415
A9: 0.56 | B9: 0.088 | C9: 0.2347 | D9: 0.0923 | E9: 0.5254
A10: 0.57 | B10: 0.0865 | C10: 0.2582 | D10: 0.091 | E10: 0.5357
A11: 0.58 | B11: 0.0851 | C11: 0.2703 | D11: 0.0897 | E11: 0.4462
A12: 0.59 | B12: 0.0836 | C12: 0.2822 | D12: 0.0884 | E12: 0.4565
A13: 0.6 | B13: 0.0822 | C13: 0.2948 | D13: 0.087 | E13: 0.4672
A14: 0.61 | B14: 0.0808 | C14: 0.3075 | D14: 0.0857 | E14: 0.4781
A15: 0.62 | B15: 0.0794 | C15: 0.3205 | D15: 0.0844 | E15: 0.4892
A16: 0.63 | B16: 0.0779 | C16: 0.3338 | D16: 0.0831 | E16: 0.5004
A17: 0.64 | B17: 0.0765 | C17: 0.3472 | D17: 0.0819 | E17: 0.5117
A18: 0.65 | B18: 0.0751 | C18: 0.3613 | D18: 0.0805 | E18: 0.5235
A19: 0.66 | B19: 0.737 | C19: 0.3753 | D19: 0.0792 | E19: 0.5351
A20: 0.67 | B20: 0.723 | C20: 0.3895 | D20: 0.078 | E20: 0.5469
A21: 0.68 | B21: 0.071 | C21: 0.4034 | D21: 0.0767 | E21: 0.5584
A22: 0.69 | B22: 0.0697 | C22: 0.4181 | D22: 0.0755 | E22: 0.5704
A23: 0.7 | B23: 0.0684 | C23: 0.432 | D23: 0.0743 | E23: 0.5817
A24: 0.71 | B24: 0.0671 | C24: 0.4471 | D24: 0.0731 | E24: 0.594
A25: 0.72 | B25: 0.0658 | C25: 0.4624 | D25: 0.0719 | E25: 0.6063
A26: 0.73 | B26: 0.0646 | C26: 0.478 | D26: 0.0708 | E26: 0.6188
A27: 0.74 | B27: 0.0633 | C27: 0.4938 | D27: 0.0696 | E27: 0.6315
A28: 0.75 | B28: 0.0621 | C28: 0.5105 | D28: 0.0684 | E28: 0.6447
A29: 0.76 | B29: 0.0608 | C29: 0.5274 | D29: 0.0672 | E29: 0.658
A30: 0.77 | B30: 0.0596 | C30: 0.0544 | D30: 0.0661 | E30: 0.671
A31: 0.78 | B31: 0.0584 | C31: 0.5608 | D31: 0.065 | E31: 0.6841
A32: 0.79 | B32: 0.0573 | C32: 0.5786 | D32: 0.0639 | E32: 0.5978
A33: 0.8 | B33: 0.0561 | C33: 0.5959 | D33: 0.0628 | E33: 0.7111
A34: 0.81 | B34: 0.055 | C34: 0.6135 | D34: 0.0617 | E34: 0.7246
A35: 0.82 | B35: 0.0539 | C35: 0.6313 | D35: 0.0607 | E35: 0.7381
A36: 0.83 | B36: 0.0528 | C36: 0.6494 | D36: 0.0596 | E36: 0.7518
A37: 0.84 | B37: 0.0517 | C37: 0.6678 | D37: 0.0586 | E37: 0.7655
A38: 0.85 | B38: 0.0506 | C38: 0.6864 | D38: 0.0576 | E38: 0.7794
A39: 0.86 | B39: 0.0496 | C39: 0.7052 | D39: 0.0566 | E39: 0.7933
A40: 0.87 | B40: 0.0486 | C40: 0.7244 | D40: 0.0556 | E40: 0.8074
A41: 0.88 | B41: 0.0476 | C41: 0.7438 | D41: 0.0546 | E41: 0.8216
A42: 0.89 | B42: 0.0466 | C42: 0.7635 | D42: 0.0537 | E42: 0.8358
A43: 0.9 | B43: 0.0456 | C43: 0.7834 | D43: 0.0528 | E43: 0.8502
A44: 0.91 | B44: 0.0447 | C44: 0.8036 | D44: 0.0518 | E44: 0.8646
A45: 0.92 | B45: 0.0437 | C45: 0.8251 | D45: 0.0509 | E45: 0.8799
A46: 0.93 | B46: 0.0428 | C46: 0.0845 | D46: 0.05 | E46: 0.8939
A47: 0.94 | B47: 0.0419 | C47: 0.8661 | D47: 0.0491 | E47: 0.9087
A48: 0.95 | B48: 0.041 | C48: 0.8875 | D48: 0.0483 | E48: 0.9236
A49: 0.96 | B49: 0.0401 | C49: 0.9092 | D49: 0.0474 | E49: 0.9385
A50: 0.97 | B50: 0.0392 | C50: 0.9322 | D50: 0.0465 | E50: 0.9543
A51: 0.98 | B51: 0.0384 | C51: 0.9545 | D51: 0.0457 | E51: 0.9694
A52: 0.99 | B52: 0.0376 | C52: 0.9771 | D52: 0.0449 | E52: 0.9847
A53: 1 | B53: 0.0368 | C53: 1 | D53: 0.0441 | E53: 1

Sheet Résultats
A1: Longueurs d'ancrage
A6: fck | B6: 30 | C6: MPa | E6: fcd | F6: =B6/1.5 -> 20 | G6: MPa
A7: fyk | B7: 500 | C7: MPa | E7: fyd | F7: =B7/1.15 -> 434.7826087 | G7: MPa
A8: ftk | B8: =Calcul!B5 -> 2.896468154 | C8: MPa | E8: fbd | F8: =IF(Calcul!A11=1,0.36/1.5*B6^0.5,2.25/1.5*B9) -> 3.041291562 | G8: MPa | H8: fbd : valeur de calcul de la contrainte ultime d'adhérence
A9: ftk0,05 | B9: =Calcul!B6 -> 2.027527708 | C9: MPa
A10: ftk0,95 | B10: =Calcul!B7 -> 3.7654086 | C10: MPa
A13: Type de barre | F13: Type d'ancrage
A15: Diamètre des barres | C15: 20 | D15: mm
A17: Section d'acier requise par le calcul | D17: 20 | E17: cm2
A18: Section d'acier prévue | D18: 22 | E18: cm2
A21: Longueur d'ancrage lb,net requise : | D21: =Calcul!D21 -> 200 | E21: mm
A23: Types d'ancrage possibles :
F25: 90° < a < 150°
B32: Ancrage droit | E32: Crochet | H32: Coude | K32: Boucle

Sheet Calcul
A1: Feuille de calcul pour les longueurs d'ancrage
A4: fck | B4: =Résultats!B6 -> 30 | C4: MPa | E4: fcd | F4: =B4/1.5 -> 20 | G4: MPa | H4: Section d'acier requise par le calcul | K4: =Résultats!D17 -> 20 | L4: cm2
A5: ftk | B5: =0.3*B4^(2/3) -> 2.896468154 | C5: MPa | E5: fyk | F5: =Résultats!B7 -> 500 | G5: MPa | H5: Section d'acier prévue | K5: =Résultats!D18 -> 22 | L5: cm2
A6: ftk0,05 | B6: =0.7*B5 -> 2.027527708 | C6: MPa | E6: fyd | F6: =F5/1.15 -> 434.7826087 | G6: MPa
A7: ftk0,95 | B7: =1.3*B5 -> 3.7654086 | C7: MPa | E7: fbd | F7: =Résultats!F8 -> 3.041291562 | G7: MPa
A9: Barres lisses | D9: Ancrage droit | I9: Ancrage en traction
A10: Barres à haute adhérence | D10: Crochet | F10: alpha | G10: =Résultats!H15 -> 0 | H10: ° | I10: Ancrage en compression
A11: 2 | D11: Coude | I11: 1
D12: Boucle
D13: 4
A15: Diamètre des barres | C15: =Résultats!C15 -> 20 | D15: mm
A16: lb | C16: =Résultats!D19 -> 0 | D16: mm
A17: aa | C17: =IF(D13=1,1,IF(D13=3,0.7,IF(D13=4,0.25,IF(AND(G10<>0,G10>=90,G10<=150),0.45+(150-G10)/(150-90)*(0.7-0.45),"Erreur")))) -> 0.25
A18: Longueur d'ancrage de référence | D18: =C15/4*F6/F7 -> 714.7992882 | E18: mm
A19: Longueur d'ancrage requise calculée | D19: =IF(C17="Erreur","Erreur",C17*D18*K4/K5) -> 162.4543837 | E19: mm
A20: Longueur d'ancrage minimale | D20: =IF(I11,MAX(10*C15,100),MAX(0.6*C16,MAX(10*C15,100))) -> 200 | E20: mm
A21: Longueur d'ancrage requise lb,net | D21: =IF(D19>D20,D19,D20) -> 200 | E21: mm

Sheet Main

Sheet Ossatures Defaults
A1: Critere de fleche | E1: Poteaux | I1: Poutre | L1: Poutre | O1: Chargement
A2: Console | B2: 8 | E2: Adjacent | F2: 1.1 | I2: En T | J2: 0.65 | L2: Adjacantee | M2: 1.1 | O2: Entraxe
A3: Corps Creux | B3: 25 | E3: Centrale | F3: 1.15 | I3: Rectangle | J3: 0.85 | L3: Milieu | M3: 1.15 | O3: Trapeze
A4: Normal | B4: 17.5 | E4: Console | F4: 1 | I4: Sur Appuis | J4: 0.65 | L4: Normale | M4: 1 | O4: Triangle | P4: =1/3 -> 0.3333333333
A5: Poutre et nervures noye | B5: 25 | E5: Normale | F5: 1
A6: Poutrelle | B6: 22.5
A7: Poutres Isole | B7: 10
A8: Retombe | B8: 16
A17: Critere de feu | L17: Appuis | M17: st
A18: nbr heure | B18: 0.5 | C18: 1 | D18: 1.5 | E18: 2 | F18: 3 | G18: 4 | L18: Console | M18: 2
A19: H0 planche | B19: 6 | C19: 7 | D19: 9 | E19: 11 | F19: 15 | G19: 17.5 | L19: Encastrement | M19: 0
A20: bw poutre | B20: 8 | C20: 11 | D20: 14 | E20: 17 | F20: 23 | G20: 29 | L20: Simple | M20: 1
A21: a poteaux | B21: 15 | C21: 20 | D21: 25 | E21: 30 | F21: 36 | G21: 45
A29: Isolation Phonique
A30: Habitation | B30: 14
A31: Magasins | B31: 23

Sheet Classes exposition
A1: X0 | B1: 10 | C1: 30 | D1: 0.4 | F1: -- | G1: 0
A2: XC1 | B2: 15 | C2: 30 | D2: 0.4 | F2: Duree de Projet +100 | G2: -10
A3: XC2 | B3: 25 | C3: 35 | D3: 0.3 | F3: Element presque dalle | G3: -5
A4: XC3 | B4: 25 | C4: 35 | D4: 0.3 | F4: Maitrise du beton | G4: -5
A5: XC4 | B5: 30 | C5: 40 | D5: 0.3
A6: XD1 | B6: 35 | C6: 40 | D6: 0.3
A7: XD2 | B7: 40 | C7: 40 | D7: 0.3
A8: XD3 | B8: 45 | C8: 45 | D8: 0.3
A9: XS1 | B9: 35 | C9: 40 | D9: 0.3
A10: XS2 | B10: 40 | C10: 40 | D10: 0.3
A11: XS3 | B11: 45 | C11: 45 | D11: 0.3
A22: Abrasion | E22: Contact Avec Surface | H22: Type D'appuis | I22: ='Flexion Compose'!I41 -> l0=
A23: Pas D'abrasion | B23: 0 | E23: -- | F23: 0 | H23: Encastrement | I23: Encastrement-Encastrement | J23: 0.5
A24: XM1 | B24: 5 | E24: Non Prepare | F24: 75 | H24: Libre | I24: Encastrement-Libre
A25: XM2 | B25: 10 | E25: Prepare | F25: 40 | H25: Rotule | I25: =CONCATENATE(H23,"-",H25) -> Encastrement-Rotule
A26: XM3 | B26: 15 | I26: =CONCATENATE(H24,"-",H24) -> Libre-Libre
I27: =CONCATENATE(H24,"-",H25) -> Libre-Rotule
A31: qualite | E31: aderance | F31: eta 1
A32: Excellent | B32: 0 | E32: Bonnes | F32: 1 | H32: type de batiment | K32: type du poteau
A33: Moyen | B33: 5 | E33: Mediocres | F33: 0.7 | K33: Isoles | L33: 1
A34: Pas de controle | B34: 10 | H34: Batiment Courant | I34: 0.738 | K34: Portique a 2 poteaux | L34: 2
H35: Console | I35: 2 | K35: Portique a 3 poteaux | L35: 3
K36: Portique a 4 poteaux | L36: 4
A37: type du ciment | E37: Type d'encrage | K37: Portique a 5 poteaux | L37: 5
A38: N | E38: Boucle | F38: =Fissuration!F26 -> 35 | K38: Portique a 6 poteaux | L38: 6
A39: R | E39: Crochet | F39: =Fissuration!E26 -> 33 | K39: Portique a 7 poteaux | L39: 7
A40: S | E40: Droit | F40: =F39 -> 33 | K40: Portique a 8 poteaux | L40: 8
A42: Distribution | B42: =IF('Flexion Compose'!B23='Flexion Compose'!B24,1,3) -> 3
A43: Constante | B43: 8
A44: Parabolique | B44: 9.6
A45: Triangulaire | B45: 12

Sheet Classes Beton
A1: Fck | B1: 12 | C1: 16 | D1: 20 | E1: 25 | F1: 30 | G1: 35 | H1: 40 | I1: 45 | J1: 50 | K1: 55 | L1: 60 | M1: 70 | N1: 80 | O1: 90
A2: Fck,cube | B2: 15 | C2: 20 | D2: 25 | E2: 30 | F2: 37 | G2: 45 | H2: 50 | I2: 55 | J2: 60 | K2: 67 | L2: 75 | M2: 85 | N2: 95 | O2: 105
A3: Fcm | B3: 20 | C3: 24 | D3: 28 | E3: 33 | F3: 38 | G3: 43 | H3: 48 | I3: 53 | J3: 58 | K3: 63 | L3: 68 | M3: 78 | N3: 88 | O3: 98
A4: Fctm | B4: 1.6 | C4: 1.9 | D4: 2.2 | E4: 2.6 | F4: 2.9 | G4: 3.2 | H4: 3.5 | I4: 3.8 | J4: 4.1 | K4: 4.2 | L4: 4.4 | M4: 4.6 | N4: 4.8 | O4: 5
A5: Fctk,0.05 | B5: 1.1 | C5: 1.3 | D5: 1.5 | E5: 1.8 | F5: 2 | G5: 2.2 | H5: 2.5 | I5: 2.7 | J5: 2.9 | K5: 3 | L5: 3 | M5: 3.2 | N5: 3.4 | O5: 3.5
A6: Fctk,0.95 | B6: 2 | C6: 2.5 | D6: 2.9 | E6: 3.3 | F6: 3.8 | G6: 4.2 | H6: 4.6 | I6: 4.9 | J6: 5.3 | K6: 5.5 | L6: 5.7 | M6: 6 | N6: 6.3 | O6: 6.6
A7: Ecm | B7: 27 | C7: 29 | D7: 30 | E7: 31 | F7: 33 | G7: 34 | H7: 35 | I7: 36 | J7: 37 | K7: 38 | L7: 39 | M7: 41 | N7: 42 | O7: 44
A8: ec1 | B8: 1.8 | C8: 1.9 | D8: 2 | E8: 2.1 | F8: 2.2 | G8: 2.2 | H8: 2.3 | I8: 2.4 | J8: 2.5 | K8: 2.5 | L8: 2.6 | M8: 2.7 | N8: 2.8 | O8: 2.8
A9: ecu1 | B9: 3.5 | C9: 3.5 | D9: 3.5 | E9: 3.5 | F9: 3.5 | G9: 3.5 | H9: 3.5 | I9: 3.5 | J9: 3.5 | K9: 3.2 | L9: 3 | M9: 2.8 | N9: 2.8 | O9: 2.8
A10: ex2 | B10: 2 | C10: 2 | D10: 2 | E10: 2 | F10: 2 | G10: 2 | H10: 2 | I10: 2 | J10: 2 | K10: 2.2 | L10: 2.3 | M10: 2.4 | N10: 2.5 | O10: 2.6
A11: ecu2 | B11: 3.5 | C11: 3.5 | D11: 3.5 | E11: 3.5 | F11: 3.5 | G11: 3.5 | H11: 3.5 | I11: 3.5 | J11: 3.5 | K11: 3.1 | L11: 2.9 | M11: 2.7 | N11: 2.6 | O11: 2.6
A12: ec3 | B12: 3.5 | C12: 3.5 | D12: 3.5 | E12: 3.5 | F12: 3.5 | G12: 3.5 | H12: 3.5 | I12: 3.5 | J12: 3.5 | K12: 1.8 | L12: 1.9 | M12: 2 | N12: 2.2 | O12: 2.3
A13: ecu3 | B13: 1.75 | C13: 1.75 | D13: 1.75 | E13: 1.75 | F13: 1.75 | G13: 1.75 | H13: 1.75 | I13: 1.75 | J13: 1.75 | K13: 3.1 | L13: 2.9 | M13: 2.7 | N13: 2.6 | O13: 2.6
A14: n | B14: 2 | C14: 2 | D14: 2 | E14: 2 | F14: 2 | G14: 2 | H14: 2 | I14: 2 | J14: 2 | K14: 1.8 | L14: 1.6 | M14: 1.5 | N14: 1.4 | O14: 1.4

Sheet Section HA
B1: Diametre Et Sections d'armature en Acier (7850 Kg/m3) | N1: Nbr de section a utiliser | O1: 2 | Q1: Nbr lit minimum d | S1: 1
N2: Nbr armature/lit | O2: 6
A3: Diametre | B3: 6 | C3: 8 | D3: 10 | E3: 12 | F3: 14 | G3: 16 | H3: 20 | I3: 25 | J3: 32 | K3: 40 | N3: As (cm2) | O3: 0
A4: Poids(Kg/ml) | B4: =7850*PI()*(B3*10^-3)^2/4 -> 0.221953521 | C4: =7850*PI()*(C3*10^-3)^2/4 -> 0.3945840373 | D4: 0.6165375583 | E4: 0.8878140839 | F4: 1.208413614 | G4: 1.578336149 | H4: 2.466150233 | I4: 3.853359739 | J4: 6.313344597 | K4: 9.864600932 | N4: Possibilite | O4: Nbr | P4: Ha | Q4: Nbr | R4: Ha | S4: Total
A5: 1 | B5: =$A5*PI()*(B$3*10^-1)^2/4 -> 0.2827433388 | C5: =$A5*PI()*(C$3*10^-1)^2/4 -> 0.5026548246 | D5: 0.7853981634 | E5: 1.130973355 | F5: 1.5393804 | G5: 2.010619298 | H5: 3.141592654 | I5: 4.908738521 | J5: 8.042477193 | K5: 12.56637061 | O5: 1 | P5: eme Lit | Q5: 6 | R5: 10 | S5: 4.71238898
A6: 2 | B6: 0.5654866776 | C6: 1.005309649 | D6: 1.570796327 | E6: 2.261946711 | F6: 3.078760801 | G6: 4.021238597 | H6: 6.283185307 | I6: 9.817477042 | J6: 16.08495439 | K6: 25.13274123 | R6: Total | S6: 4.71238898
A7: 3 | B7: 0.8482300165 | C7: 1.507964474 | D7: 2.35619449 | E7: 3.392920066 | F7: 4.618141201 | G7: 6.031857895 | H7: 9.424777961 | I7: 14.72621556 | J7: 24.12743158 | K7: 37.69911184
A8: 4 | B8: 1.130973355 | C8: 2.010619298 | D8: 3.141592654 | E8: 4.523893421 | F8: 6.157521601 | G8: 8.042477193 | H8: 12.56637061 | I8: 19.63495408 | J8: 32.16990877 | K8: 50.26548246 | Q8: le minimum:
A9: 5 | B9: 1.413716694 | C9: 2.513274123 | D9: 3.926990817 | E9: 5.654866776 | F9: 7.696902001 | G9: 10.05309649 | H9: 15.70796327 | I9: 24.54369261 | J9: 40.21238597 | K9: 62.83185307 | O9: 6 | P9: 10 | Q9: 0 | R9: 0 | S9: 4.71238898
A10: 6 | B10: 1.696460033 | C10: 3.015928947 | D10: 4.71238898 | E10: 6.785840132 | F10: 9.236282402 | G10: 12.06371579 | H10: 18.84955592 | I10: 29.45243113 | J10: 48.25486316 | K10: 75.39822369
A11: 7 | B11: 1.979203372 | C11: 3.518583772 | D11: 5.497787144 | E11: 7.916813487 | F11: 10.7756628 | G11: 14.07433509 | H11: 21.99114858 | I11: 34.36116965 | J11: 56.29734035 | K11: 87.9645943 | M11: =0.000302/0.000428 -> 0.7056074766 | Q11: les combinaison du dernier lit:
A12: 8 | B12: 2.261946711 | C12: 4.021238597 | D12: 6.283185307 | E12: 9.047786842 | F12: 12.3150432 | G12: 16.08495439 | H12: 25.13274123 | I12: 39.26990817 | J12: 64.33981755 | K12: 100.5309649
A13: 9 | B13: 2.544690049 | C13: 4.523893421 | D13: 7.068583471 | E13: 10.1787602 | F13: 13.8544236 | G13: 18.09557368 | H13: 28.27433388 | I13: 44.17864669 | J13: 72.38229474 | K13: 113.0973355
A14: 10 | B14: 2.827433388 | C14: 5.026548246 | D14: 7.853981634 | E14: 11.30973355 | F14: 15.393804 | G14: 20.10619298 | H14: 31.41592654 | I14: 49.08738521 | J14: 80.42477193 | K14: 125.6637061
A15: 11 | B15: 3.110176727 | C15: 5.52920307 | D15: 8.639379797 | E15: 12.44070691 | F15: 16.9331844 | G15: 22.11681228 | H15: 34.55751919 | I15: 53.99612373 | J15: 88.46724913 | K15: 138.2300768
A16: 12 | B16: 3.392920066 | C16: 6.031857895 | D16: 9.424777961 | E16: 13.57168026 | F16: 18.4725648 | G16: 24.12743158 | H16: 37.69911184 | I16: 58.90486225 | J16: 96.50972632 | K16: 150.7964474
A17: 13 | B17: 3.675663405 | C17: 6.534512719 | D17: 10.21017612 | E17: 14.70265362 | F17: 20.0119452 | G17: 26.13805088 | H17: 40.8407045 | I17: 63.81360078 | J17: 104.5522035 | K17: 163.362818
A18: 14 | B18: 3.958406744 | C18: 7.037167544 | D18: 10.99557429 | E18: 15.83362697 | F18: 21.5513256 | G18: 28.14867018 | H18: 43.98229715 | I18: 68.7223393 | J18: 112.5946807 | K18: 175.9291886
A19: 15 | B19: 4.241150082 | C19: 7.539822369 | D19: 11.78097245 | E19: 16.96460033 | F19: 23.090706 | G19: 30.15928947 | H19: 47.1238898 | I19: 73.63107782 | J19: 120.6371579 | K19: 188.4955592
A20: 16 | B20: 4.523893421 | C20: 8.042477193 | D20: 12.56637061 | E20: 18.09557368 | F20: 24.6300864 | G20: 32.16990877 | H20: 50.26548246 | I20: 78.53981634 | J20: 128.6796351 | K20: 201.0619298
A21: 17 | B21: 4.80663676 | C21: =$A21*PI()*(C$3*10^-1)^2/4 -> 8.545132018 | D21: 13.35176878 | E21: 19.22654704 | F21: 26.1694668 | G21: 34.18052807 | H21: 53.40707511 | I21: 83.44855486 | J21: 136.7221123 | K21: 213.6283004
A22: 18 | B22: 5.089380099 | C22: 9.047786842 | D22: 14.13716694 | E22: 20.3575204 | F22: 27.7088472 | G22: 36.19114737 | H22: 56.54866776 | I22: 88.35729338 | J22: 144.7645895 | K22: 226.1946711
A23: 19 | B23: 5.372123438 | C23: 9.550441667 | D23: 14.9225651 | E23: 21.48849375 | F23: 29.2482276 | G23: 38.20176667 | H23: 59.69026042 | I23: 93.2660319 | J23: 152.8070667 | K23: 238.7610417
A24: 20 | B24: 5.654866776 | C24: 10.05309649 | D24: 15.70796327 | E24: 22.61946711 | F24: 30.78760801 | G24: 40.21238597 | H24: 62.83185307 | I24: 98.17477042 | J24: 160.8495439 | K24: 251.3274123
A25: 21 | B25: 5.937610115 | C25: 10.55575132 | D25: 16.49336143 | E25: 23.75044046 | F25: 32.32698841 | G25: 42.22300526 | H25: 65.97344573 | I25: 103.0835089 | J25: 168.8920211 | K25: 263.8937829
A26: 22 | B26: 6.220353454 | C26: 11.05840614 | D26: 17.27875959 | E26: 24.88141382 | F26: 33.86636881 | G26: 44.23362456 | H26: 69.11503838 | I26: 107.9922475 | J26: 176.9344983 | K26: 276.4601535
A27: 23 | B27: 6.503096793 | C27: 11.56106097 | D27: 18.06415776 | E27: 26.01238717 | F27: 35.40574921 | G27: 46.24424386 | H27: 72.25663103 | I27: 112.900986 | J27: 184.9769754 | K27: 289.0265241
A28: 24 | B28: 6.785840132 | C28: 12.06371579 | D28: 18.84955592 | E28: 27.14336053 | F28: 36.94512961 | G28: 48.25486316 | H28: 75.39822369 | I28: 117.8097245 | J28: 193.0194526 | K28: 301.5928947
A29: 25 | B29: 7.068583471 | C29: 12.56637061 | D29: 19.63495408 | E29: 28.27433388 | F29: 38.48451001 | G29: 50.26548246 | H29: 78.53981634 | I29: 122.718463 | J29: 201.0619298 | K29: 314.1592654

Sheet Section
B1: Diametre Et Sections d'armature en Acier (7850 Kg/m3)
C2: =CONCATENATE("HA ",Section!$C$3) -> HA 8 | D2: =CONCATENATE("HA ",Section!$D$3) -> HA 10 | E2: =CONCATENATE("HA ",Section!$E$3) -> HA 12 | F2: =CONCATENATE("HA ",Section!$F$3) -> HA 14 | G2: =CONCATENATE("HA ",Section!$G$3) -> HA 16 | H2: =CONCATENATE("HA ",Section!$H$3) -> HA 20 | I2: =CONCATENATE("HA ",Section!$I$3) -> HA 25 | J2: =CONCATENATE("HA ",Section!$J$3) -> HA 32 | K2: =CONCATENATE("HA ",Section!$K$3) -> HA 40
A3: Diametre | B3: 6 | C3: 8 | D3: 10 | E3: 12 | F3: 14 | G3: 16 | H3: 20 | I3: 25 | J3: 32 | K3: 40
A4: Poids(Kg/ml) | B4: =7850*PI()*(B3*10^-3)^2/4 -> 0.221953521 | C4: =7850*PI()*(C3*10^-3)^2/4 -> 0.3945840373 | D4: 0.6165375583 | E4: 0.8878140839 | F4: 1.208413614 | G4: 1.578336149 | H4: 2.466150233 | I4: 3.853359739 | J4: 6.313344597 | K4: 9.864600932
A5: 1 | B5: =$A5*PI()*(B$3*10^-1)^2/4 -> 0.2827433388 | C5: =$A5*PI()*(C$3*10^-1)^2/4 -> 0.5026548246 | D5: 0.7853981634 | E5: 1.130973355 | F5: 1.5393804 | G5: 2.010619298 | H5: 3.141592654 | I5: 4.908738521 | J5: 8.042477193 | K5: 12.56637061 | R5: 11
A6: 2 | B6: 0.5654866776 | C6: 1.005309649 | D6: 1.570796327 | E6: 2.261946711 | F6: 3.078760801 | G6: 4.021238597 | H6: 6.283185307 | I6: 9.817477042 | J6: 16.08495439 | K6: 25.13274123 | O6: 6 | P6: 6 | R6: =LOOKUP(R5,O6:O15,P6:P15) -> 10
A7: 3 | B7: 0.8482300165 | C7: 1.507964474 | D7: 2.35619449 | E7: 3.392920066 | F7: 4.618141201 | G7: 6.031857895 | H7: 9.424777961 | I7: 14.72621556 | J7: 24.12743158 | K7: 37.69911184 | O7: 8 | P7: 8
A8: 4 | B8: 1.130973355 | C8: 2.010619298 | D8: 3.141592654 | E8: 4.523893421 | F8: 6.157521601 | G8: 8.042477193 | H8: 12.56637061 | I8: 19.63495408 | J8: 32.16990877 | K8: 50.26548246 | O8: 10 | P8: 10
A9: 5 | B9: 1.413716694 | C9: 2.513274123 | D9: 3.926990817 | E9: 5.654866776 | F9: 7.696902001 | G9: 10.05309649 | H9: 15.70796327 | I9: 24.54369261 | J9: 40.21238597 | K9: 62.83185307 | O9: 12 | P9: 12
A10: 6 | B10: 1.696460033 | C10: 3.015928947 | D10: 4.71238898 | E10: 6.785840132 | F10: 9.236282402 | G10: 12.06371579 | H10: 18.84955592 | I10: 29.45243113 | J10: 48.25486316 | K10: 75.39822369 | O10: 14 | P10: 14
A11: 7 | B11: 1.979203372 | C11: 3.518583772 | D11: 5.497787144 | E11: 7.916813487 | F11: 10.7756628 | G11: 14.07433509 | H11: 21.99114858 | I11: 34.36116965 | J11: 56.29734035 | K11: 87.9645943 | O11: 16 | P11: 16
A12: 8 | B12: 2.261946711 | C12: 4.021238597 | D12: 6.283185307 | E12: 9.047786842 | F12: 12.3150432 | G12: 16.08495439 | H12: 25.13274123 | I12: 39.26990817 | J12: 64.33981755 | K12: 100.5309649 | O12: 20 | P12: 20
A13: 9 | B13: 2.544690049 | C13: 4.523893421 | D13: 7.068583471 | E13: 10.1787602 | F13: 13.8544236 | G13: 18.09557368 | H13: 28.27433388 | I13: 44.17864669 | J13: 72.38229474 | K13: 113.0973355 | O13: 25 | P13: 25
A14: 10 | B14: 2.827433388 | C14: 5.026548246 | D14: 7.853981634 | E14: 11.30973355 | F14: 15.393804 | G14: 20.10619298 | H14: 31.41592654 | I14: 49.08738521 | J14: 80.42477193 | K14: 125.6637061 | O14: 32 | P14: 32
A15: 11 | B15: 3.110176727 | C15: 5.52920307 | D15: 8.639379797 | E15: 12.44070691 | F15: 16.9331844 | G15: 22.11681228 | H15: 34.55751919 | I15: 53.99612373 | J15: 88.46724913 | K15: 138.2300768 | O15: 40 | P15: 40
A16: 12 | B16: 3.392920066 | C16: 6.031857895 | D16: 9.424777961 | E16: 13.57168026 | F16: 18.4725648 | G16: 24.12743158 | H16: 37.69911184 | I16: 58.90486225 | J16: 96.50972632 | K16: 150.7964474
A17: 13 | B17: 3.675663405 | C17: 6.534512719 | D17: 10.21017612 | E17: 14.70265362 | F17: 20.0119452 | G17: 26.13805088 | H17: 40.8407045 | I17: 63.81360078 | J17: 104.5522035 | K17: 163.362818
A18: 14 | B18: 3.958406744 | C18: 7.037167544 | D18: 10.99557429 | E18: 15.83362697 | F18: 21.5513256 | G18: 28.14867018 | H18: 43.98229715 | I18: 68.7223393 | J18: 112.5946807 | K18: 175.9291886
A19: 15 | B19: 4.241150082 | C19: 7.539822369 | D19: 11.78097245 | E19: 16.96460033 | F19: 23.090706 | G19: 30.15928947 | H19: 47.1238898 | I19: 73.63107782 | J19: 120.6371579 | K19: 188.4955592
A20: 16 | B20: 4.523893421 | C20: 8.042477193 | D20: 12.56637061 | E20: 18.09557368 | F20: 24.6300864 | G20: 32.16990877 | H20: 50.26548246 | I20: 78.53981634 | J20: 128.6796351 | K20: 201.0619298
A21: 17 | B21: 4.80663676 | C21: =$A21*PI()*(C$3*10^-1)^2/4 -> 8.545132018 | D21: 13.35176878 | E21: 19.22654704 | F21: 26.1694668 | G21: 34.18052807 | H21: 53.40707511 | I21: 83.44855486 | J21: 136.7221123 | K21: 213.6283004
A22: 18 | B22: 5.089380099 | C22: 9.047786842 | D22: 14.13716694 | E22: 20.3575204 | F22: 27.7088472 | G22: 36.19114737 | H22: 56.54866776 | I22: 88.35729338 | J22: 144.7645895 | K22: 226.1946711
A23: 19 | B23: 5.372123438 | C23: 9.550441667 | D23: 14.9225651 | E23: 21.48849375 | F23: 29.2482276 | G23: 38.20176667 | H23: 59.69026042 | I23: 93.2660319 | J23: 152.8070667 | K23: 238.7610417
A24: 20 | B24: 5.654866776 | C24: 10.05309649 | D24: 15.70796327 | E24: 22.61946711 | F24: 30.78760801 | G24: 40.21238597 | H24: 62.83185307 | I24: 98.17477042 | J24: 160.8495439 | K24: 251.3274123
A25: 21 | B25: 5.937610115 | C25: 10.55575132 | D25: 16.49336143 | E25: 23.75044046 | F25: 32.32698841 | G25: 42.22300526 | H25: 65.97344573 | I25: 103.0835089 | J25: 168.8920211 | K25: 263.8937829
A26: 22 | B26: 6.220353454 | C26: 11.05840614 | D26: 17.27875959 | E26: 24.88141382 | F26: 33.86636881 | G26: 44.23362456 | H26: 69.11503838 | I26: 107.9922475 | J26: 176.9344983 | K26: 276.4601535
A27: 23 | B27: 6.503096793 | C27: 11.56106097 | D27: 18.06415776 | E27: 26.01238717 | F27: 35.40574921 | G27: 46.24424386 | H27: 72.25663103 | I27: 112.900986 | J27: 184.9769754 | K27: 289.0265241
A28: 24 | B28: 6.785840132 | C28: 12.06371579 | D28: 18.84955592 | E28: 27.14336053 | F28: 36.94512961 | G28: 48.25486316 | H28: 75.39822369 | I28: 117.8097245 | J28: 193.0194526 | K28: 301.5928947
A29: 25 | B29: 7.068583471 | C29: 12.56637061 | D29: 19.63495408 | E29: 28.27433388 | F29: 38.48451001 | G29: 50.26548246 | H29: 78.53981634 | I29: 122.718463 | J29: 201.0619298 | K29: 314.1592654

Sheet DeltaS (hidden)
A1: fyk | B1: fyd | C1: eud | D1: k | E1: es
A2: 500 | B2: =A2/1.15 -> 434.7826087 | C2: =0.9*5/100 -> 0.045 | D2: 1.071639 | E2: 200000
A5: es | B5: delta sigma | C5: sigma
A6: 0.2175 | B6: =$B$2*($D$2-1)*((A6/100-$B$2/$E$2)/($C$2-$B$2/$E$2)) -> 0.0007905429265 | C6: =$B$2+B6 -> 434.7833992
A7: 0.3 | B7: =$B$2*($D$2-1)*((A7/100-$B$2/$E$2)/($C$2-$B$2/$E$2)) -> 0.6008126241 | C7: =$B$2+B7 -> 435.3834213
A8: 0.4 | B8: 1.328112117 | C8: 436.1107208
A9: 0.5 | B9: 2.055411609 | C9: 436.8380203
A10: 0.6 | B10: 2.782711101 | C10: 437.5653198
A11: 0.7 | B11: 3.510010594 | C11: 438.2926193
A12: 0.8 | B12: 4.237310086 | C12: 439.0199188
A13: 0.9 | B13: 4.964609578 | C13: 439.7472183
A14: 1 | B14: 5.691909071 | C14: 440.4745178
A15: 1.1 | B15: 6.419208563 | C15: 441.2018173
A16: 1.2 | B16: 7.146508056 | C16: 441.9291168
A17: 1.3 | B17: 7.873807548 | C17: 442.6564162
A18: 1.4 | B18: 8.60110704 | C18: 443.3837157
A19: 1.5 | B19: 9.328406533 | C19: 444.1110152
A20: 1.6 | B20: 10.05570603 | C20: 444.8383147
A21: 1.7 | B21: 10.78300552 | C21: 445.5656142
A22: 1.8 | B22: 11.51030501 | C22: 446.2929137
A23: 1.9 | B23: 12.2376045 | C23: 447.0202132
A24: 2 | B24: 12.96490399 | C24: 447.7475127
A25: 2.1 | B25: 13.69220349 | C25: 448.4748122
A26: 2.2 | B26: 14.41950298 | C26: 449.2021117
A27: 2.3 | B27: 15.14680247 | C27: 449.9294112
A28: 2.4 | B28: 15.87410196 | C28: 450.6567107
A29: 2.5 | B29: 16.60140146 | C29: 451.3840102
A30: 2.6 | B30: 17.32870095 | C30: 452.1113096
A31: 2.7 | B31: 18.05600044 | C31: 452.8386091
A32: 2.8 | B32: 18.78329993 | C32: 453.5659086
A33: 2.9 | B33: 19.51059943 | C33: 454.2932081
A34: 3 | B34: 20.23789892 | C34: 455.0205076
A35: 3.1 | B35: 20.96519841 | C35: 455.7478071
A36: 3.2 | B36: 21.6924979 | C36: 456.4751066
A37: 3.3 | B37: 22.4197974 | C37: 457.2024061
A38: 3.4 | B38: 23.14709689 | C38: 457.9297056
A39: 3.5 | B39: 23.87439638 | C39: 458.6570051
A40: 3.6 | B40: 24.60169587 | C40: 459.3843046
A41: 3.7 | B41: 25.32899537 | C41: 460.1116041
A42: 3.8 | B42: 26.05629486 | C42: 460.8389036
A43: 3.9 | B43: 26.78359435 | C43: 461.566203
A44: 4 | B44: 27.51089384 | C44: 462.2935025
A45: 4.1 | B45: 28.23819333 | C45: 463.020802
A46: 4.2 | B46: 28.96549283 | C46: 463.7481015
A47: 4.3 | B47: 29.69279232 | C47: 464.475401
A48: 4.4 | B48: 30.42009181 | C48: 465.2027005
A49: 4.5 | B49: 31.1473913 | C49: 465.93

Sheet Fissuration
A1: Donne
A2: Dimension
A3: h (Cm) | B3: 20 | J3: 0 | K3: 1 | L3: 2 | M3: 3 | N3: 4 | O3: 5 | P3: 6
A4: b (Cm) | B4: 25 | J4: 0 | K4: =IF($J$4+K3<=$J$17,$J$4+K3,-1) -> 1 | L4: 2 | M4: -1 | N4: -1 | O4: -1 | P4: -1
A7: Classe Du Beton | B7: 25 | C7: =CONCATENATE("/",LOOKUP(B7,'Classes Beton'!B1:O1,'Classes Beton'!B2:O2)) -> /30 | D7: =IF(B7>E8,-5,0) -> 0 | E7: =LOOKUP(B7,'Classes Beton'!B1:O1,'Classes Beton'!B4:O4) -> 2.6 | F7: =LOOKUP(B7,'Classes Beton'!B1:O1,'Classes Beton'!B5:O5)/1.5 -> 1.2 | G7: x | H7: y | J7: x | K7: y1 | L7: y2 | M7: y3 | N7: y4 | O7: y5 | P7: y6
A8: Classe D'exposition | B8: XC2 | D8: =LOOKUP(B8,'Classes exposition'!A1:A11,'Classes exposition'!B1:B11) -> 25 | E8: =LOOKUP(B8,'Classes exposition'!A1:A11,'Classes exposition'!C1:C11) -> 35
A9: Abrasion | B9: Pas D'abrasion | D9: =LOOKUP(B9,'Classes exposition'!A23:A26,'Classes exposition'!B23:B26) -> 0 | G9: 0 | H9: 0 | I9: =K9 -> 3.5 | J9: =B25 -> 3.5 | K9: =$B$25 -> 3.5 | L9: =K9+$J$20 -> 16.5 | M9: =L9+$J$20 -> 29.5 | N9: =M9+$J$20 -> 42.5 | O9: =N9+$J$20 -> 55.5 | P9: =O9+$J$20 -> 68.5
A10: Surface | B10: -- | D10: =LOOKUP(B10,'Classes exposition'!E23:E25,'Classes exposition'!F23:F25) -> 0 | G10: 0 | H10: =B3 -> 20 | I10: =K10 -> 3.5 | J10: =$J$19+J9 -> 12.5 | K10: =$B$25 -> 3.5 | L10: =K10+$J$20 -> 16.5 | M10: 29.5 | N10: 42.5 | O10: 55.5 | P10: 68.5
A11: Controle De qualite | B11: Pas de controle | D11: =LOOKUP(B11,'Classes exposition'!A32:A34,'Classes exposition'!B32:B34) -> 10 | G11: =B4 -> 25 | H11: =B3 -> 20 | I11: 3.5 | J11: =$J$19+J10 -> 21.5 | K11: 3.5 | L11: 16.5 | M11: 29.5 | N11: 42.5 | O11: 55.5 | P11: 68.5
A12: Critere de l'element | B12: -- | D12: =LOOKUP(B12,'Classes exposition'!F1:F4,'Classes exposition'!G1:G4) -> 0 | G12: =B4 -> 25 | H12: 0 | I12: 3.5 | J12: 30.5 | K12: 3.5 | L12: 16.5 | M12: 29.5 | N12: 42.5 | O12: 55.5 | P12: 68.5
G13: 0 | H13: 0 | I13: 3.5 | J13: 39.5 | K13: 3.5 | L13: 16.5 | M13: 29.5 | N13: 42.5 | O13: 55.5 | P13: 68.5
A14: Type de Barre | B14: HA 16 | D14: =RIGHT(B14,2) -> 16 | E14: =(D14*0.1)^2*B16*PI()/4 -> 12.06371579 | I14: 3.5 | J14: 48.5 | K14: 3.5 | L14: 16.5 | M14: 29.5 | N14: 42.5 | O14: 55.5 | P14: 68.5
A15: Nbr de Barre/paquet | B15: 1 | D15: =IF(D14*SQRT(B15)>=55,55,D14*SQRT(B15)) -> 16 | E15: cminb | I15: 3.5 | J15: =$J$19+J14 -> 57.5 | K15: 3.5 | L15: 16.5 | M15: 29.5 | N15: 42.5 | O15: 55.5 | P15: 68.5
A16: Nbr de barre/section | B16: 6 | D16: =D8+D12+D7 -> 25 | E16: cmindur | I16: 3.5 | J16: 66.5 | K16: 3.5 | L16: 16.5 | M16: 29.5 | N16: 42.5 | O16: 55.5 | P16: 68.5
A17: Nbr de barre/lit | B17: 3 | D17: =D11 -> 10 | E17: c dev | G17: a | H17: =(B4-B25*2-B17*D14*0.1)/(B17-1)/2 -> 3.3 | I17: nbr de lit | J17: =B16/B17 -> 2
A19: Condition D'aderence | B19: Mediocres | D19: eta 1 | E19: =LOOKUP(B19,'Classes exposition'!E32:E33,'Classes exposition'!F32:F33) -> 0.7 | I19: esp h | J19: =(B4-2*B25)/(B17-1) -> 9
A20: Armature en | B20: Traction | D20: eta 2 | E20: =IF(D15<=32,1,(132-D15)/100) -> 1 | I20: esp v | J20: =(B3-2*B25)/(J17-1) -> 13
A21: Type d'encrage | B21: Crochet | C21: 150 | D21: =C21*PI()/180 -> 2.617993878
A22: Appuis:
A25: L'enrobage Cnom (Cm) | B25: =MAX(MAX(D15,D16)+D17+D9,D10)*0.1 -> 3.5
D26: cd | E26: =MIN(H17,B25)*10 -> 33 | F26: =B25*10 -> 35 | G26: =LOOKUP(B21,'Classes exposition'!E38:E40,'Classes exposition'!F38:F40) -> 33
E27: Traction | F27: Compression | I27: alpha1*2 | J27: D | L27: traction | M27: compression
A28: Lb.rqd (cm) | B28: =ROUND(D15*0.1*B40/4/(2.25*E20*E19*F7),0) -> 51 | D28: alpha1 d | E28: 1 | F28: 1 | I28: =IF(B20="Traction",IF(B21='Classes exposition'!E40,E28*E30,E29*E31),1) -> 1 | J28: =IF(D15<=16,4*D15,7*D15)*0.1 -> 6.4 | K28: droit | L28: =E28*E30 -> 0.840625 | M28: 1 | N28: =IF(B20="Traction",L28,M28) -> 0.840625
A29: Lbd | B29: =I28*B28 -> 51 | D29: alpha1 cour | E29: =IF(G26>7*D15,0.7,1) -> 1 | F29: 1
D30: alpha2 d | E30: =1-0.15*(G26-D15)/D15 -> 0.840625 | F30: 1
A31: longueur:A | B31: =ROUND(IF(5*D15<(B29-B32-B33),5*D15,(B29-B32-B33)),0) -> 49 | D31: alpha2 cour | E31: =IF(G31<=0.7,0.7,IF(G31>=1,1,G31)) -> 1 | F31: 1 | G31: =1-0.15*(G26-3*D15)/D15 -> 1.140625
A32: longueur:B | B32: =ROUND(D21*(J28+D15*0.1)/2,0) -> 10
A33: longueur:C | B33: =B22-B25-D15*0.1-J28/2 -> -8.3
A35: Si recouvrement:
A36: Ro | B36: 0.33 | D36: =IF(B36<=0.25,1,IF(B36=0.33,1.15,IF(B36>=0.5,1.4,1.5))) -> 1.15
A37: L0d | B37: =ROUNDUP(B28*N28*D36,0) -> 50
A40: Sigma | B40: 240
A42: Effort de Traction (MN) | B42: 0.36 | D42: kt | E42: 0.4 | F42: ro | G42: =E14/E44 -> 0.02412743158
D43: hc | E43: =MIN(B25+D15/2,B3/2) -> 10 | H43: k1 | I43: 0.8
A44: Sigma s (Mpa) | B44: =B42*10^4/E14 -> 298.4155183 | D44: Aceff | E44: =E43*B4*2 -> 500 | H44: k2 | I44: =IF(B20="Traction",1,0.5) -> 1
A45: Asmin (Cm2) | B45: =E7*B4*B3/B44 -> 4.356341813 | C45: Wmax | D45: alphae | E45: =200/LOOKUP(B7,'Classes Beton'!B1:O1,'Classes Beton'!B7:O7) -> 6.451612903 | H45: phi | I45: =D14 -> 16
A46: Wk | B46: =IFERROR(ROUND(E47*E46,3),0) -> 0.428 | C46: =E48 -> 0.3 | D46: ws-wk | E46: =(B44-E42*E7*(1+E45*G42)/G42)/200000 -> 0.001243006886
B47: =IF(B46<E48,"Ca passe","Recalcul") -> Recalcul | D47: sr | E47: =3.4*B25*10+0.425*I43*I44*I45/G42 -> 344.4695027
D48: wk max | E48: =LOOKUP(B8,'Classes exposition'!A1:A11,'Classes exposition'!D1:D11) -> 0.3

Sheet Poteaux
A1: Donne
A2: Dimension | W2: Feuille de calcul pour le fluage
A3: B (Cm) | B3: 80 | E3: ac(m2 | F3: =B3*B4*10^-4 -> 0.32
A4: H (Cm) | B4: 40 | E4: ic | F4: =B3*10^-2*(B4*10^-2)^3/12 -> 0.004266666667
A5: Hauteur (m) | B5: 3 | W5: Aire de la section transversale | Z5: =B3*B4*1000000 -> 3200000000 | AA5: mm2
E6: fctm | F6: fctk.05 | G6: ecm | W6: Périmètre en contact avec l'atmosphère | Z6: =(B3+B4)*2*100 -> 24000 | AA6: mm
A7: Classe Du Beton | B7: 25 | C7: =CONCATENATE("/",LOOKUP(B7,'[2]Classes Beton'!B1:O1,'[2]Classes Beton'!B2:O2)) -> /30 | D7: =IF(B7>E8,-5,0) -> 0 | E7: =LOOKUP(B7,'[2]Classes Beton'!B1:O1,'[2]Classes Beton'!B4:O4) -> 2.6 | F7: =LOOKUP(B7,'[2]Classes Beton'!B1:O1,'[2]Classes Beton'!B5:O5)/1.5 -> 1.2 | G7: =LOOKUP(B7,'[2]Classes Beton'!B1:O1,'[2]Classes Beton'!B7:O7) -> 31 | M7: =B38+1 -> 4 | Q7: =G23+1 -> 9
A8: Classe D'exposition | B8: XC2 | D8: =LOOKUP(B8,'[2]Classes exposition'!A1:A11,'[2]Classes exposition'!B1:B11) -> 25 | E8: =LOOKUP(B8,'[2]Classes exposition'!A1:A11,'[2]Classes exposition'!C1:C11) -> 35 | H8: x | I8: y | J8: x | K8: y | M8: x | N8: y1 | O8: y2 | Q8: x1 | R8: x2 | S8: y | W8: fc28 | Z8: =B7 -> 25 | AA8: MPa
A9: Abrasion | B9: Pas D'abrasion | D9: =LOOKUP(B9,'[2]Classes exposition'!A23:A26,'[2]Classes exposition'!B23:B26) -> 0 | H9: 0 | I9: 0 | J9: =-B4/10 -> -4 | K9: =B3/2 -> 40 | W9: Age du béton à l'instant considéré | Z9: =B23 -> 28 | AA9: jours
A10: Surface | B10: -- | D10: =LOOKUP(B10,'[2]Classes exposition'!E23:E25,'[2]Classes exposition'!F23:F25) -> 0 | H10: 0 | I10: =B3 -> 80 | J10: =-B4/2+J9 -> -24 | K10: =K9 -> 40 | M10: =B26 -> 0 | N10: =$M$10 -> 0 | O10: =$B$3-$N$10 -> 80 | Q10: =$M$10 -> 0 | R10: =$B$4-$Q$10 -> 40 | S10: =Q10 -> 0 | W10: Age du béton à la mise en charge | Z10: =B16 -> 5 | AA10: jours
A11: Controle De qualite | B11: Pas de controle | D11: =LOOKUP(B11,'[2]Classes exposition'!A32:A34,'[2]Classes exposition'!B32:B34) -> 10 | H11: =B4 -> 40 | I11: =B3 -> 80 | M11: =M10+$L$22 -> 20 | N11: 0 | O11: 80 | Q11: 0 | R11: =$B$4-$Q$10 -> 40 | S11: =$L$20+S10 -> 16
A12: Critere de l'element | B12: -- | D12: =LOOKUP(B12,'[2]Classes exposition'!F1:F4,'[2]Classes exposition'!G1:G4) -> 0 | H12: =B4 -> 40 | I12: 0 | M12: =M11+$L$22 -> 40 | N12: 0 | O12: 80 | Q12: 0 | R12: 40 | S12: =$L$20+S11 -> 32 | W12: Humidité relative du milieu ambiant | Z12: =B15*100 -> 50 | AA12: %
H13: 0 | I13: 0 | M13: 60 | N13: 0 | O13: 80 | Q13: 0 | R13: 40 | S13: 48
A14: Type Du Ciment | B14: N | M14: 80 | N14: 0 | O14: 80 | Q14: 0 | R14: 40 | S14: 64 | W14: bH | Y14: =IF(1.5*(1+(0.012*Z12)^18)*2*Z5/Z6+250<=1500,1.5*(1+(0.012*Z12)^18)*2*Z5/Z6+250,1500) -> 1500
A15: Hygrometrie | B15: 0.5 | M15: 100 | N15: 0 | O15: 80 | Q15: 0 | R15: 40 | S15: 80 | W15: bc(t-t0) | Y15: =((Z9-Z11)/(Y14+Z9-Z10))^0.3 -> 0.3015347981
A16: Age du Chargement (t0) | B16: 5 | M16: 120 | N16: 0 | O16: 80 | Q16: 0 | R16: 40 | S16: 96 | W16: fRH | Y16: =1+(1-Z12/100)/(0.1*(2*Z5/Z6)^(1/3)) -> 1.077680813
A17: Fluage infini | B17: =Y21 -> 0.7378778727 | G17: a | H17: =(B4-B26*2-B38*F19*0.1)/(B38-1)/2 -> 8.5 | M17: 140 | N17: 0 | O17: 80 | Q17: 0 | R17: 40 | S17: 112 | W17: b(fcm) | Y17: =16.8/(Z8)^0.5 -> 3.36
M18: 160 | N18: 0 | O18: 80 | Q18: 0 | R18: 40 | S18: 128 | W18: b(to) | Y18: =1/(0.1+Z10^0.2) -> 0.6757991179
A19: Ned (Mn) | B19: 6 | F19: =RIGHT(B35,2) -> 20 | G19: =(F19*0.1)^2*B37*PI()/4 -> 43.98229715 | I19: As effective | J19: =(F19*0.1)^2*PI()/4 -> 3.141592654 | K19: entraxe | L19: =ROUNDDOWN(IF((B4-2*B26)/(B38-1)<0,0,(B4-2*B26)/(B38-1)),0) -> 20 | M19: 180 | N19: 0 | O19: 80 | Q19: 0 | R19: 40 | S19: =$L$20+S18 -> 144 | W19: f0 | Y19: =Y16*Y17*Y18 -> 2.447073695
F20: =IF(F19*SQRT(B36)>=55,55,F19*SQRT(B36)) -> 20 | G20: cminb | K20: entre y | L20: =IF((B3-2*B26)/(G23/2+1)<0,0,(B3-2*B26)/(G23/2+1)) -> 16
A21: Type du Poteau | B21: Isoles | F21: =D8+D12+D7 -> 25 | G21: cmindur | W21: f(t,t0) | Y21: =Y19*Y15 -> 0.7378778727
A22: Type de Batiment | B22: Batiment Courant | F22: =D11 -> 10 | G22: c dev | I22: nbr de section | J22: =ROUNDDOWN(B38/2,0) -> 1 | L22: =IF((B4-2*B26)/(B38-1)<0,0,(B4-2*B26)/(B38-1)) -> 20
A23: Charges Applique a (jours) | B23: 28 | F23: restant | G23: =B37-B38*2 -> 8 | I23: 1ere | J23: =2+G23/2 -> 6
B24: 3.65
A25: λ | B25: 1 | C25: =1-0.1583*B25/100-1.1875*(B25/100)^2+0.91146*(B25/100)^3-0.1953*(B25/100)^4 -> 0.9982991595
A26: L'enrobage Cnom (Cm) | B26: 0
B27: Constante
A28: As min | B28: 0 | C28: AsMax | D28: %
A29: =ROUND(MAX(0.1*B19*10000/435,0.2/100*F3*10000),2) -> 13.79 | B29: =IFERROR(IF((B19/C25-B3*B4*B7/10000)/435*10000>0,IF((B19/C25-B3*B4*B7/10000)/435*10000<B3*B4/100,B3*B4/100,(B19/C25-B3*B4*B7/10000)/435*10000),B3*B4/100),0) -> 32 | C29: =ROUND(0.04*F3*10000,2) -> 128 | D29: =IFERROR(B29/B3/B4,0) -> 0.01
A30: On Recommende / section | D30: Test
A31: =IF(ROUNDUP(B3/15,0)*2+ROUNDUP(B4/15,0)*2-4<=0,0,ROUNDUP(B3/15,0)*2+ROUNDUP(B4/15,0)*2-4) -> 14 | B31: Ha | C31: =IFERROR(ha(B29,A31),0) -> 20 | D31: =IF(D29>0.04,"Agrandir la Section du beton",IF(D29<0.01,"Diminuer la Section Du Beton","OK")) -> OK
A35: Type de Barre | B35: HA 20 | C35: As Choisie | D35: % | I35: m02 | J35: =MAX(ABS(L44),ABS(L45)) -> 0 | K35: m01 | L35: =MIN(ABS(L44),ABS(L45)) -> 0
A36: Nbr de Barre/paquet | B36: 1 | C36: =ROUND(G19,2) -> 43.98 | D36: =IFERROR(C36/B3/B4,0) -> 0.01374375 | E36: =IF(D36<=D29,"Section Non Correcte","Ok") -> Ok | I36: c0 | J36: =LOOKUP(L46,'[2]Classes exposition'!A43:A45,'[2]Classes exposition'!B43:B45) ->  | K36: signe | L36: =IFERROR(L45*L44/ABS(L44*L45),1) -> 1
A37: Nbr de barre/section | B37: =A31 -> 14 | C37: On Recommende
A38: Barre sivant h | B38: =C38 -> 3 | C38: =ROUNDUP(B4/15,0) -> 3
I39: n= | J39: =LOOKUP(B21,'[2]Classes exposition'!K33:K40,'[2]Classes exposition'!L33:L40) -> 1
I40: l0= | J40: =IFERROR(LOOKUP(B22,'[2]Classes exposition'!H34:H40,'[2]Classes exposition'!I34:I40),0) -> 0.738
A41: Ferraillage Transversale
A42: Ø (mm) | B42: =ROUNDUP(MAX(6,F19/4),0) -> 6 | I42: =IFERROR(#REF!,0) -> 0
A43: Zone Critique (Cm) | B43: =MAX(B3:B4) -> 80
A44: St max (Cm) | B44: =MIN(20*F19,MIN(B3:B4)*10,400)*0.1 -> 40
A45: St min (Cm) | B45: =0.6*B44 -> 24
A47: Sigma Sd | B47: 360
A48: Longeur de Recouvrement (Cm) | B48: =F19*B47/4/2.25/F7*1.5*0.1 -> 100

Sheet Poteaux Ossature
A2: Hauteur Libre | B2: 3
A3: Beton | B3: 25 | D3: a | E3: =MAX(LOOKUP(B4,'Ossatures Defaults'!$B$18:$G$18,'Ossatures Defaults'!$B$21:$G$21),B5/14.43*100) -> 25
A4: Feu | B4: 1.5 | D4: Lambda | E4: =B5*SQRT(12)/E3*100 -> 29.09845357
A5: l0 | B5: =0.7*B2 -> 2.1 | D5: alpha | E5: =1-0.1583*E4/100-1.1875*(E4/100)^2+0.91146*(E4/100)^3-0.1953*(E4/100)^4 -> 0.874445747
A8: Surface D'influence (m2) | B8: 1 | F8: Minimum
A9: Pu (Kn/m2) | B9: 2500 | D9: a (cm) | F9: =E3 -> 25
A10: Ned (Kn) | B10: =B9*B8 -> 2500 | D10: b (cm) | F10: =ROUNDUP(MAX(B10/1000/$E$5/($B$3/1.5+500/1.15/100)/($E$3/100)*100,$E$3),0) -> 55
A15: Sigma Sol (Kpa)
A16: a | B16: =E9/100 -> 0
A17: b | B17: =E10/100 -> 0 | C17: =IFERROR(B17/B16,1) -> 1
A18: Ned | B18: =1.05*B10 -> 2625 | C18: =B10 -> 2500
A19: Semelle Surface | B19: =IFERROR(B18/B15,1) -> 1 | D19: x
A20: Type | B20: =IF(C17<=2,"Semelle Homotetique","Debort Constant") -> Semelle Homotetique | D20: =(-(B16+B17)+SQRT((B16+B17)^2-4*(B16*B17-B19)))/4 -> 0.5
A21: A | B21: =IF(B20="Debort Constant",ROUNDUP(B16+2*D20,2),ROUNDUP(SQRT(B19/C17),2)) -> 1
A22: B | B22: =IF(B20="Debort Constant",ROUNDUP(B17+2*D20,2),ROUNDUP(SQRT(B19/C17),2)) -> 1 | G22: delta ced | H22: =C18/1000/B21/B22 -> 2.5
A23: H | B23: =ROUNDUP(MAX((B21-B16)/4,(B22-B17)/4)+0.05,2) -> 0.3
A24: Ro | B24: =SQRT(B27/(B23-0.05)/B21/10000*B28/B22/(B23-0.05)/10000) -> 0.009578544061
C26: on recommande
A27: A suivant A | B27: =C18*(B21-B16)/8/B23/435*10 -> 23.94636015 | C27: =ROUNDUP(B21/0.15,0) -> 7 | D27: Ha | E27: =MAX(ROUNDUP(SQRT(4*B27/C27/PI()),1)*10,10) -> 21
A28: A suivant B | B28: =C18/1000*(B22-B17)/8/B23/435*10000 -> 23.94636015 | C28: =ROUNDUP(B22/0.15,0) -> 7 | D28: Ha | E28: =MAX(ROUNDUP(SQRT(4*B28/C28/PI()),1)*10,10) -> 21
A31: a | B31: u | C31: A | D31: Delta ved | E31: Ved,red | F31: ved | G31: vrd | H31: Test
A32: 0 | B32: =2*$B$16+2*$B$17+2*PI()*A32 -> 0 | C32: =($B$16+2*A32)*$B$17+($B$16+2*A32)*$B$17-$B$16*$B$17+PI()*A32^2 -> 0 | D32: =$H$22*C32 -> 0 | E32: =$C$18/1000-D32 -> 2.5 | F32: =IFERROR(E32/B32/($B$23-0.05),0) -> 0 | G32: =IFERROR(0.12*(MIN(1+SQRT(200/$B$23/1000),2)*(100*$B$24*$B$3)^(1/3)*2*$B$23/A32),0) -> 0 | H32: -
A33: 0.1 | B33: =2*$B$16+2*$B$17+2*PI()*A33 -> 0.6283185307 | C33: =($B$16+2*A33)*$B$17+($B$16+2*A33)*$B$17-$B$16*$B$17+PI()*A33^2 -> 0.03141592654 | D33: =$H$22*C33 -> 0.07853981634 | E33: 2.421460184 | F33: =E33/B33/($B$23-0.05) -> 15.41549431 | G33: =IFERROR(0.12*(MIN(1+SQRT(200/$B$23/1000),2)*(100*$B$24*$B$3)^(1/3)*2*$B$23/A33),0) -> 3.769758981 | H33: =IF(G33>=F33,"O.K.","No") -> No
A34: =A33+0.1 -> 0.2 | B34: =2*$B$16+2*$B$17+2*PI()*A34 -> 1.256637061 | C34: =($B$16+2*A34)*$B$17+($B$16+2*A34)*$B$17-$B$16*$B$17+PI()*A34^2 -> 0.1256637061 | D34: =$H$22*C34 -> 0.3141592654 | E34: 2.185840735 | F34: =E34/B34/$B$23 -> 5.798122629 | G34: =IFERROR(0.12*(MIN(1+SQRT(200/$B$23/1000),2)*(100*$B$24*$B$3)^(1/3)*2*$B$23/A34),0) -> 1.88487949 | H34: No
A35: 0.3 | B35: 1.884955592 | C35: 0.2827433388 | D35: 0.7068583471 | E35: 1.793141653 | F35: 3.170970641 | G35: 1.256586327 | H35: No
A36: 0.4 | B36: 2.513274123 | C36: 0.5026548246 | D36: 1.256637061 | E36: 1.243362939 | F36: 1.649061314 | G36: 0.9424397452 | H36: No
A37: 0.5 | B37: 3.141592654 | C37: 0.7853981634 | D37: 1.963495408 | E37: 0.5365045915 | F37: 0.5692490515 | G37: 0.7539517962 | H37: O.K.
A38: 0.6 | B38: 3.769911184 | C38: 1.130973355 | D38: 2.827433388 | E38: -0.3274333882 | F38: -0.2895146793 | G38: 0.6282931635 | H38: O.K.
A39: 0.7 | B39: 4.398229715 | C39: 1.5393804 | D39: 3.848451001 | E39: -1.348451001 | F39: -1.021964963 | G39: 0.5385369973 | H39: O.K.
A40: 0.8 | B40: 5.026548246 | C40: 2.010619298 | D40: 5.026548246 | E40: -2.526548246 | F40: -1.675469343 | G40: 0.4712198726 | H40: O.K.
A41: 0.9 | B41: 5.654866776 | C41: 2.544690049 | D41: 6.361725124 | E41: -3.861725124 | F41: -2.27634312 | G41: 0.418862109 | H41: O.K.

Sheet Flexion Compose Forfaitaire
A1: Donne | J1: -0.6404347826 | K1: 0.1537043478
A2: Dimension | J2: -393.7955681 | K2: -3730.053768
A3: a (Cm) | B3: 60 | C3: Petit | D3: =MIN(B3:B4) -> 60 | J3: -199.1337014 | K3: -921.2997197
A4: b (Cm) | B4: 60 | C4: Grand | D4: =MAX(B3:B4) -> 60 | J4: -134.0718348 | K4: -404.9104717
A5: Hauteur (m) | B5: 4.5 | J5: -101.4099681 | K5: -225.4164237
A6: Force perpendiculaire au cote: | B6: Petit | J6: -81.70810145 | K6: -142.8890957
A7: B (Cm) | B7: =IF(B6=C3,D3,D4) -> 60 | J7: -68.48623478 | K7: -98.34752765
A8: H (cm) | B8: =IF(B6=C3,D4,D3) -> 60 | J8: -58.96722526 | K8: -71.655847
J9: -51.76250145 | K9: -54.43323165
A10: Classe Du Beton | B10: 50 | C10: =CONCATENATE("/",LOOKUP(B10,'Classes Beton'!B1:O1,'Classes Beton'!B2:O2)) -> /60 | J10: -46.10063478 | K10: -42.69018365
J11: -41.51876812 | K11: -34.33293565
A12: Ned (Mn) | B12: 3.2 | J12: -37.72235599 | K12: -28.17781658
A13: Med (Mn.m) | B13: 1 | J13: -34.51503478 | K13: -23.51523965
J14: -31.76086042 | K14: -19.89912775
J15: -29.36273002 | K15: -17.0378212
A16: Sollicitations | B16: Ned | C16: =B12 -> 3.2 | J16: -27.24943478 | K16: -14.73421565
B17: Med/A | C17: =B13+0.4*B12*B8/100 -> 1.768 | J17: -25.36756812 | K17: -12.85129765
C18: On recommande | J18: -23.67628968 | K18: -11.29147716
A19: A tendu | B19: 18.89002974 | C19: 4 x 1 Lit | D19: Ha | E19: 25 | J19: -22.14383478 | K19: -9.983751652
A20: A Comprime | B20: 0 | C20: 4 x 1 Lit | D20: Ha | E20: 8 | J20: -20.74512601 | K20: -8.875487586
A21: Enrobage Recommende | J21: -19.46010145 | K21: -7.927015652
J22: -18.2725205 | K22: -7.107991326
J23: -17.16909539 | K23: -6.394891884
A24: A tendu | B24: 14.73 | J24: -16.13884928 | K24: -5.769262125
A25: A Comprime | B25: =B24 -> 14.73 | J25: -15.17263478 | K25: -5.216463652
A26: Enrobage Recommende | B26: 6 | J26: -14.26276812 | K26: -4.724769252
A27: epsst | B27: =45/1000 -> 0.045 | J27: -13.4027476 | K27: -4.28469783
A28: epsb | B28: 0.0035 | J28: -12.58703478 | K28: -3.888519652
A29: alpha | B29: 0.53 | J29: -11.8108824 | K29: -3.529883897
J30: -11.070198 | K30: -3.203535186
J31: -10.36143478 | K31: -2.905095652
J32: -9.6815036 | K32: -2.63089581
J33: -9.027701449 | K33: -2.377842152
J34: -8.397652964 | K34: -2.143312644
J35: -7.789262234 | K35: -1.925073618
J36: -7.200672878 | K36: -1.721213203
J37: -6.630234783 | K37: -1.530087652
J38: -6.076476224 | K38: -1.350277782
J39: -5.538080397 | K39: -1.180553425
J40: -5.013865552 | K40: -1.019844244
J41: -4.502768116 | K41: -0.8672156522
J42: -4.003828279 | K42: -0.7218488419
J43: -3.51617764 | K43: -0.583024142
J44: -3.039028581 | K44: -0.4501070875
J45: -2.571665086 | K45: -0.32253671
J46: -2.113434783 | K46: -0.1998156522
J47: -1.663742029 | K47: -0.08150179206
J48: -1.222041875 | K48: 0.0327988811
J49: -0.7878347826 | K49: 0.1434383478
J50: 1.020423852 | K50: 0.4953157678
J51: 0.9696985507 | K51: 0.48139857
J52: 0.9180622638 | K52: 0.4671570407
J53: 0.8654440053 | K53: 0.4525645131
J54: 0.8117652174 | K54: 0.4375913238
J55: 0.7569387334 | K55: 0.4222043801
J56: 0.7008675648 | K56: 0.4063666513
J57: 0.6434434783 | K57: 0.3900365671
J58: 0.5845453169 | K58: 0.3731673017
J59: 0.5240370123 | K59: 0.3557059194
J60: 0.4617652174 | K60: 0.3375923478
J61: 0.3975564742 | K61: 0.3187581377
J62: 0.331213805 | K62: 0.2991249557
J63: 0.2625125858 | K63: 0.2786027412
J64: 0.1911955204 | K64: 0.2570874354
J65: 0.1169664753 | K65: 0.2344581648
J66: 0.03948286445 | K66: 0.2105737181
J67: -0.04165383023 | K67: 0.1852681029
J68: -0.1269099599 | K68: 0.1583448911
J69: -0.2168347826 | K69: 0.1295699478
J70: -0.3120797438 | K70: 0.09866198547
J71: -0.4134234005 | K71: 0.06528014319
J72: -0.5218040134 | K72: 0.02900744842
J73: -0.6383627105 | K73: -0.01067151777
J74: -0.7645014493 | K74: -0.05440125217
J75: -0.9019620553 | K75: -0.1029980654
J76: -1.052935858 | K76: -0.157510853
J77: -1.220218691 | K77: -0.2193093787
J78: -1.407434783 | K78: -0.2902156522
J79: -1.619368116 | K79: -0.3727048682
J80: -1.862466667 | K80: -0.4702225482
J81: -2.145634783 | K81: -0.5877036522
J82: -2.481526011 | K82: -0.7324593752
J83: -2.888748508 | K83: -0.9157710847
J84: -3.395834783 | K84: -1.155937252
J85: -4.048875808 | K85: -1.484559131
J86: -4.927483267 | K86: -1.96082828
J87: -6.182034783 | K87: -2.708439652
J88: -8.134768116 | K88: -4.029575652
J89: -11.62350145 | K89: -6.865822052
J90: -19.72023478 | K90: -15.79568765
J91: -60.07296812 | K91: -109.1846637
J92: 60.85429855 | K92: -72.90451965
J93: 20.50156522 | K93: -3.723255652
J94: 12.40483188 | K94: 0.3524979478

Sheet Flexion Compose
A1: Donne
A2: Dimension | W2: Feuille de calcul pour le fluage
A3: a (Cm) | B3: 80 | C3: Petit | D3: =MIN(B3:B4) -> 60 | E3: ac(m2 | F3: =B7*B8*10^-4 -> 0.48
A4: b (Cm) | B4: 60 | C4: Grand | D4: =MAX(B3:B4) -> 80 | E4: ic | F4: =B7*10^-2*(B8*10^-2)^3/12 -> 0.0256
A5: Hauteur (m) | B5: 12
A6: Force perpendiculaire au cote: | B6: Petit
A7: B (Cm) | B7: =IF(B6=C3,D3,D4) -> 60
A8: H (cm) | B8: =IF(B6=C3,D4,D3) -> 80 | W8: Aire de la section transversale | Z8: =B7*B8*1000000 -> 4800000000 | AA8: mm2
E9: fctm | F9: fctk.05 | G9: ecm | W9: Périmètre en contact avec l'atmosphère | Z9: =(B7+B8)*2*100 -> 28000 | AA9: mm
A10: Classe Du Beton | B10: 50 | C10: =CONCATENATE("/",LOOKUP(B10,'Classes Beton'!B1:O1,'Classes Beton'!B2:O2)) -> /60 | D10: =IF(B10>E11,-5,0) -> -5 | E10: =LOOKUP(B10,'Classes Beton'!B1:O1,'Classes Beton'!B4:O4) -> 4.1 | F10: =LOOKUP(B10,'Classes Beton'!B1:O1,'Classes Beton'!B5:O5)/1.5 -> 1.933333333 | G10: =LOOKUP(B10,'Classes Beton'!B1:O1,'Classes Beton'!B7:O7) -> 37 | M10: =B39+1 -> 7 | Q10: =G26+1 -> 1
A11: Classe D'exposition | B11: XC2 | D11: =LOOKUP(B11,'Classes exposition'!A1:A11,'Classes exposition'!B1:B11) -> 25 | E11: =LOOKUP(B11,'Classes exposition'!A1:A11,'Classes exposition'!C1:C11) -> 35 | H11: x | I11: y | J11: x | K11: y | M11: x | N11: y1 | O11: y2 | Q11: x1 | R11: x2 | S11: y | W11: fc28 | Z11: =B10 -> 50 | AA11: MPa
A12: Abrasion | B12: Pas D'abrasion | D12: =LOOKUP(B12,'Classes exposition'!A23:A26,'Classes exposition'!B23:B26) -> 0 | H12: 0 | I12: 0 | J12: =-B8/10 -> -8 | K12: =B7/2 -> 30 | W12: Age du béton à l'instant considéré | Z12: =B29 -> 28 | AA12: jours
A13: Surface | B13: -- | D13: =LOOKUP(B13,'Classes exposition'!E23:E25,'Classes exposition'!F23:F25) -> 0 | H13: 0 | I13: =B7 -> 60 | J13: =-B8/2+J12 -> -48 | K13: =K12 -> 30 | M13: =B41 -> 4.2 | N13: =$M$13 -> 4.2 | O13: =$B$7-$N$13 -> 55.8 | Q13: =$M$13 -> 4.2 | R13: =$B$8-$Q$13 -> 75.8 | S13: =Q13 -> 4.2 | W13: Age du béton à la mise en charge | Z13: =B19 -> 5 | AA13: jours
A14: Controle De qualite | B14: Pas de controle | D14: =LOOKUP(B14,'Classes exposition'!A32:A34,'Classes exposition'!B32:B34) -> 10 | H14: =B8 -> 80 | I14: =B7 -> 60 | M14: =M13+$L$25 -> 18.52 | N14: 4.2 | O14: 55.8 | Q14: 4.2 | R14: 75.8 | S14: =$L$23+S13 -> 55.8
A15: Critere de l'element | B15: -- | D15: =LOOKUP(B15,'Classes exposition'!F1:F4,'Classes exposition'!G1:G4) -> 0 | H15: =B8 -> 80 | I15: 0 | M15: =M14+$L$25 -> 32.84 | N15: 4.2 | O15: 55.8 | Q15: 4.2 | R15: 75.8 | S15: =$L$23+S14 -> 107.4 | W15: Humidité relative du milieu ambiant | Z15: =B18*100 -> 50 | AA15: %
H16: 0 | I16: 0 | M16: 47.16 | N16: 4.2 | O16: 55.8 | Q16: 4.2 | R16: 75.8 | S16: 159
A17: Type Du Ciment | B17: N | M17: 61.48 | N17: 4.2 | O17: 55.8 | Q17: 4.2 | R17: 75.8 | S17: 210.6 | W17: bH | Y17: =IF(1.5*(1+(0.012*Z15)^18)*2*Z8/Z9+250<=1500,1.5*(1+(0.012*Z15)^18)*2*Z8/Z9+250,1500) -> 1500
A18: Hygrometrie | B18: 0.5 | M18: 75.8 | N18: 4.2 | O18: 55.8 | Q18: 4.2 | R18: 75.8 | S18: 262.2 | W18: bc(t-t0) | Y18: =((Z12-Z14)/(Y17+Z12-Z13))^0.3 -> 0.3015347981
A19: Age du Chargement (t0) | B19: 5 | M19: 90.12 | N19: 4.2 | O19: 55.8 | Q19: 4.2 | R19: 75.8 | S19: 313.8 | W19: fRH | Y19: =1+(1-Z15/100)/(0.1*(2*Z8/Z9)^(1/3)) -> 1.071438491
A20: Fluage infini | B20: =Y24 -> 0.5187362314 | G20: a | H20: =(B8-B41*2-B39*F22*0.1)/(B39-1)/2 -> 5.24 | M20: 104.44 | N20: 4.2 | O20: 55.8 | Q20: 4.2 | R20: 75.8 | S20: 365.4 | W20: b(fcm) | Y20: =16.8/(Z11)^0.5 -> 2.375878785
M21: 118.76 | N21: 4.2 | O21: 55.8 | Q21: 4.2 | R21: 75.8 | S21: 417 | W21: b(to) | Y21: =1/(0.1+Z13^0.2) -> 0.6757991179
A22: Ned (Mn) | B22: 1.46 | F22: =RIGHT(B36,2) -> 32 | G22: =(F22*0.1)^2*B38*PI()/4 -> 96.50972632 | I22: As effective | J22: =(F22*0.1)^2*PI()/4 -> 8.042477193 | K22: entraxe | L22: =ROUNDDOWN(IF((B8-2*B41)/(B39-1)<0,0,(B8-2*B41)/(B39-1)),0) -> 14 | M22: 133.08 | N22: 4.2 | O22: 55.8 | Q22: 4.2 | R22: 75.8 | S22: =$L$23+S21 -> 468.6 | W22: f0 | Y22: =Y19*Y20*Y21 -> 1.720319627
A23: M01 | B23: 1.72 | F23: =IF(F22*SQRT(B37)>=55,55,F22*SQRT(B37)) -> 32 | G23: cminb | K23: entre y | L23: =IF((B7-2*B41)/(G26/2+1)<0,0,(B7-2*B41)/(G26/2+1)) -> 51.6
A24: M02 | B24: 0 | F24: =D11+D15+D10 -> 20 | G24: cmindur | W24: f(t,t0) | Y24: =Y22*Y18 -> 0.5187362314
A25: Distribution | B25: Constante | F25: =D14 -> 10 | G25: c dev | I25: nbr de section | J25: =ROUNDDOWN(B39/2,0) -> 3 | L25: =IF((B8-2*B41)/(B39-1)<0,0,(B8-2*B41)/(B39-1)) -> 14.32
A26: Meqd | B26: =B23*0.72 -> 1.2384 | F26: restant | G26: =B38-B39*2 -> 0 | I26: 1ere | J26: =2+G26/2 -> 2
A27: Type du Poteau | B27: Isoles
A28: Type de Batiment | B28: Batiment Courant
A29: Charges Applique a (jours) | B29: 28
B31: =B29 -> 28 | C31: As min | D31: As Requise | E31: AsMax | F31: %
C32: =ROUND(MAX(0.1*B22*10000/435,0.2/100*F3*10000),2) -> 9.6 | D32: =IFERROR(IF((B22/C43-B7/100*B8/100*B10/1.5)/435*10000<0,B7*B8/100,(B22/C43-B7/100*B8/100*B10/1.5)/435*100000),0) -> 48 | E32: =ROUND(0.04*F3*10000,2) -> 192 | F32: =IFERROR(D32/B7/B8,0) -> 0.01
C33: On Recommende / section | F33: Test
C34: =IF(ROUNDUP(B7/15,0)*2+ROUNDUP(B8/15,0)*2-4<=0,0,ROUNDUP(B7/15,0)*2+ROUNDUP(B8/15,0)*2-4) -> 16 | D34: Ha | E34: =IFERROR(ha(D32,C34),0) -> 20 | F34: =IF(F32>0.04,"Agrandir la Section du beton",IF(F32<0.01,"Diminuer la Section Du Beton","OK")) -> OK
A36: Type de Barre | B36: HA 32 | C36: As Choisie | D36: % | I36: m02 | J36: =MAX(ABS(B23),ABS(B24)) -> 1.72 | K36: m01 | L36: =MIN(ABS(B23),ABS(B24)) -> 0
A37: Nbr de Barre/paquet | B37: 1 | C37: =ROUND(G22,2) -> 96.51 | D37: =IFERROR(C37/B7/B8,0) -> 0.02010625 | E37: =IF(D37<=F32,"Section Non Correcte","Ok") -> Ok | I37: c0 | J37: =LOOKUP(B25,'Classes exposition'!A43:A45,'Classes exposition'!B43:B45) -> 8 | K37: signe | L37: =IFERROR(B24*B23/ABS(B23*B24),1) -> 1
A38: Nbr de barre/section | B38: 12 | C38: On Recommende
A39: Barre sivant h | B39: 6 | C39: =ROUNDUP(B8/15,0) -> 6
I40: n= | J40: =LOOKUP(B27,'Classes exposition'!K33:K40,'Classes exposition'!L33:L40) -> 1
A41: L'enrobage Cnom (Cm) | B41: =MAX(MAX(F23,F24)+F25+D12,D13)*0.1 -> 4.2 | I41: l0= | J41: =IFERROR(LOOKUP(B28,'Classes exposition'!H34:H40,'Classes exposition'!I34:I40),0) -> 0.738
A43: λ | B43: =IFERROR(J41*B5/SQRT(F4/F3),0) -> 38.34760488 | C43: =1-0.1583*B43/100-1.1875*(B43/100)^2+0.91146*(B43/100)^3-0.1953*(B43/100)^4 -> 0.811844652 | I43: =IFERROR(B46,0) -> 0.3734900866
A45: ei | B45: =IFERROR(2/SQRT(B5)*SQRT(0.5*(1+1/J40))/200*J41*B5/2,0) -> 0.01278253496
A46: Fluage Effectif Φ eff | B46: =IFERROR(B20*B26/J36,0) -> 0.3734900866
A48: M imp. Geo | B48: =B22*B45 -> 0.01866250104
A49: M 2 ordre | B49: =B54-B53 -> 0.2240304571 | F49: kc | G49: ecd | H49: ic | I49: ks | J49: es | K49: is
F50: =G52*G53/(1+B46) -> 0.0236955433 | G50: =G10*1000/1.2 -> 30833.33333 | H50: =F4 -> 0.0256 | I50: 1 | J50: 200000 | K50: =N60 -> 0.0005199043297 | R50: lamba lim | S50: A | T50: =1/(1+0.2*B46) -> 0.930493947
A51: λ lim | B51: =IFERROR(T53,0) -> 129.3237934 | L51: =7-COUNTIFS(L52:L58,0) -> 3 | S51: B | T51: =SQRT(1+2*(G22*435/F3/B10*1.5*0.0001)) -> 1.234816439
F52: k1 | G52: =SQRT(B10/20) -> 1.58113883 | H52: ei | I52: =F50*G50*H50+I50*J50*K50 -> 122.6845481 | K52: d1 | L52: =IF(B8/2-B41-F22/10/2<0,0,B8/2-B41-F22/10/2) -> 34.2 | M52: =J26 -> 2 | N52: =M52*L52^2*$L$60*0.00000001 -> 0.000376272121 | S52: C | T52: =IFERROR(1.7-L36/J36*L37,0.7) -> 1.7
A53: M0 + M imp. Geo | B53: =B48+J36 -> 1.738662501 | C53: =IFERROR(IF(OR(B43<B51,B49<0.1*B53),"Valeur a Neglige","On ne peut pas negliger le 2 nd ordre"),0) -> Valeur a Neglige | F53: k2 | G53: =IF(G54*B43/170<=0.2,G54*B43/170,0.2) -> 0.02058364085 | H53: beta | I53: =PI()^2/J37 -> 1.23370055 | K53: d2 | L53: =IF(L52-$L$22<0,0,L52-$L$22) -> 20.2 | M53: 2 | N53: =M53*L53^2*$L$60*0.00000001 -> 0.0001312660958 | R53: lamba lim | T53: =20*T50*T51*T52/SQRT(G54) -> 129.3237934
A54: Med + M 2 ordre | B54: =IFERROR(B53*(1+I53/(I54/B22-1)),0) -> 1.962692958 | F54: n | G54: =B22/F3/B10*1.5 -> 0.09125 | H54: nb | I54: =PI()^2*I52/(J41*B5)^2 -> 15.43883043 | K54: d3 | L54: 6.2 | M54: 2 | N54: 1.236611293e-05
K55: d4 | L55: 0 | M55: 2 | N55: 0
A56: Ferraillage: | K56: d5 | L56: 0 | M56: 2 | N56: 0
A57: Ø (mm) | B57: =ROUNDUP(MAX(6,F22/4),0) -> 8 | K57: d6 | L57: 0 | M57: 2 | N57: 0
A58: Zone Critique (Cm) | B58: =MAX(B7:B8) -> 80 | K58: d7 | L58: 0 | M58: 2 | N58: 0
A59: St max (Cm) | B59: =MIN(20*F22,MIN(B7:B8)*10,400)*0.1 -> 40
A60: St min (Cm) | B60: =0.6*B59 -> 24 | K60: As efective | L60: =J22*2 -> 16.08495439 | N60: =SUM(N52:N58) -> 0.0005199043297
A62: Sigma Sd | B62: 360
A63: Longeur de Recouvrement (Cm) | B63: =F22*B62/4/2.25/F10*1.5*0.1 -> 99.31034483 | K63: dmoyenn | L63: =SUM(L52:L58)/L51 -> 20.2
A68: Calcul Sur | B68: Med + M 2 ordre
A69: Med | B69: =LOOKUP(B68,A53:A54,B53:B54) -> 1.962692958
A71: Sollicitations | B71: Ned | C71: =B22 -> 1.46
B72: Med/A | C72: =B69+0.4*C71*B8/100 -> 2.429892958
C73: On recommande | F73: Test
A74: A tendu | B74: 13.97280755 | C74: 3 x 1 Lit | D74: Ha | E74: 25 | F74: =IF(B74<C37/2,"O.K.","Section D'acier Insufisente") -> O.K.
A75: A Comprime | B75: 0 | C75: 3 x 1 Lit | D75: Ha | E75: 8 | F75: =IF(B75<C37/2,"O.K.","Section D'acier Insufisente") -> O.K.

Sheet Poutre
A1: Donne
A2: Dimension
A3: B (m) | B3: 0.6
A4: H (m) | B4: 0.6
A5: Longueur de L'element (m) | B5: 6.4
A7: Classe Du Beton | B7: 50 | C7: =CONCATENATE("/",LOOKUP(B7,'Classes Beton'!B1:O1,'Classes Beton'!B2:O2)) -> /60
A8: Classe D'exposition | B8: XC4
A9: Abrasion | B9: Pas D'abrasion
A10: Surface | B10: --
A11: Controle De qualite | B11: Pas de controle
A12: Critere de l'element | B12: --
A16: Med ELU (MN.m) | B16: 1.768 | D16: Armature Transversale
A17: Med ELS (Q.P.) (MN.m) | B17: 0.271 | D17: Type D'armature | E17: HA | F17: =IF(E17="HA",500,235*1.15) -> 500
A18: Vmax (MN) | B18: 0.152 | D18: Inclinaisons | E18: 90
A21: Ultiliser la droite: | B21: Incline B1 | C21: =RIGHT(B21,1) -> 1
D23: As min | F23: As Max
A24: A theorique | B24: 22.2763383 | D24: 5.01185923 | E24: =IF(B24<D24,"Agrandir Section du beton","OK") -> OK | F24: =0.04*B3*B4*10000 -> 144 | G24: =IF(B24>F24,"Agrandir Section du beton/diminuer la section d'acier","OK") -> OK
A25: A' theorique | B25: 0 | D25: theorique | E25: Reelle | F25: =LEFT(B26,1) -> 2
A26: A Relle | B26: 22.38384766 | C26: d | D26: 0.3 | E26: 0.3539035088
A27: A'Relle | B27: 4.71238898 | C27: d' | D27: 0.04 | E27: 0.04
A29: Choix De A
A30: lit 1 | B30: 2 HA25 + 4 HA20 | C30: 22.38384766 | E30: As total
E31: =SUM(C30:C33) -> 22.38384766
A37: Choix de A'
A38: lit 1 | B38: 6 HA10 | C38: 4.71238898 | E38: As total
E39: =SUM(C38:C41) -> 4.71238898
A46: L'enrobage Cnom (Cm) | B46: 3.5
A48: Inertie Fissure (cm4) | B48: 161977.9502
A49: Contrainte du beton (Mpa) | B49: 19.31361458
A50: Contrainte de l'acier (Mpa) | B50: 463.1760333
A51: Fissuration (mm) | B51: 0.02367538876
B52: pas de fissuration
A53: Fleche (mm) | B53: 26.31413465
A55: Armature Transversale
A56: Diametre des Armature | B56: 8 | D56: As/s | E56: 0.0008045868505
A57: Nbr / section Transversale | B57: 6 | D57: S0 (cm) | E57: 20
A58: Teta | B58: 21.8
A60: Barre Transversale | B60: Espacement | C60: Total | E60: Nbr | F60: 1 | G60: 16
A61: 1 | B61: 10 | C61: 0.1 | E61: Espacement | F61: 10 | G61: 20
A62: 2 | B62: 20 | C62: 0.3
A63: 3 | B63: 20 | C63: 0.5
A64: 4 | B64: 20 | C64: 0.7
A65: 5 | B65: 20 | C65: 0.9
A66: 6 | B66: 20 | C66: 1.1
A67: 7 | B67: 20 | C67: 1.3
A68: 8 | B68: 20 | C68: 1.5
A69: 9 | B69: 20 | C69: 1.7
A70: 10 | B70: 20 | C70: 1.9
A71: 11 | B71: 20 | C71: 2.1
A72: 12 | B72: 20 | C72: 2.3
A73: 13 | B73: 20 | C73: 2.5
A74: 14 | B74: 20 | C74: 2.7
A75: 15 | B75: 20 | C75: 2.9
A76: 16 | B76: 20 | C76: 3.1
A77: 17 | B77: 20 | C77: 3.3

Sheet Poutre T
A1: Donne
A2: Dimension
A3: B (m) | B3: 1.2 | I3: x | J3: 0 | K3: =B4 -> 0.4 | L3: =K3 -> 0.4 | M3: =(B3-B4)/2+L3 -> 0.8 | N3: =M3 -> 0.8 | O3: =-(B3-B4)/2 -> -0.4 | P3: =O3 -> -0.4 | Q3: 0 | R3: 0
A4: B0 (m) | B4: 0.4 | I4: y | J4: 0 | K4: 0 | L4: =B6 -> 0.6 | M4: =L4 -> 0.6 | N4: =B5 -> 0.75 | O4: =N4 -> 0.75 | P4: =B6 -> 0.6 | Q4: =P4 -> 0.6 | R4: 0
A5: H (m) | B5: 0.75
A6: H0 (m) | B6: 0.6
A7: Longueur De La Poutre (m) | B7: 10
A9: Classe Du Beton | B9: 25 | C9: =CONCATENATE("/",LOOKUP(B9,'Classes Beton'!B1:O1,'Classes Beton'!B2:O2)) -> /30
A10: Classe D'exposition | B10: XC2
A11: Abrasion | B11: Pas D'abrasion
A12: Surface | B12: --
A13: Controle De qualite | B13: Pas de controle
A14: Critere de l'element | B14: --
A18: Med ELU (MN) | B18: 1.65
A19: Med ELS (MN) | B19: 1.2
A20: Vmax (MN) | B20: 0.65
A23: Armature Transversale
A24: Type D'armature | B24: HA | C24: =IF(B24="HA",500,235*1.15) -> 500
A25: Inclinaisons | B25: 90
A28: Ultiliser la droite: | B28: Incline B1 | C28: =RIGHT(B28,1) -> 1
D30: As min
A31: A | B31: 61.75446682 | D31: 10.80362803 | F31: nbr | G31: lit
A32: A' | B32: 1.507964474 | D32: =IF(B31<D31,"Agrandir Section du beton","OK") -> OK | E32: As relle | F32: =LEFT(B33,1) -> 3 | G32: =MID(B33,5,1) -> 3
A33: on recommande A/lit | B33: 3 x 3 Lit | C33: Ha | D33: 32 | E33: =IFERROR((D33/10)^2*PI()/4*F32*G32,0) -> 72.38229474 | F33: =LEFT(B34,1) -> 3 | G33: =MID(B34,5,1) -> 1
A34: on recommande A'/lit | B34: 3 x 1 Lit | C34: Ha | D34: 8 | E34: =IFERROR((D34/10)^2*PI()/4*F33*G33,0) -> 1.507964474
A36: Choix De A
A37: Type de Barre | B37: HA 32 | D37: As reele | E37: As Max
A38: Nbr de Barre/paquet | B38: 1 | D38: =PI()*(RIGHT(B37,2)/10)^2/4*B39 -> 72.38229474 | E38: 360
A39: Nbr de barre/section | B39: 9 | D39: =IF(D38>=E38,"Surdimensionnement",IF(D38<=B31,"Sous Dimensionement","Ok")) -> Ok
A40: Nbr de barre/lit | B40: 3 | D40: optimum | E40: =ROUNDUP((B4)/0.15,0) -> 3
A42: Choix De A2
A43: Type de Barre | B43: HA 8
A44: Nbr de Barre/paquet | B44: 1
A45: Nbr de barre/section
A46: Nbr de barre/lit
A48: Choix de A'
A49: Type de Barre | B49: HA 8 | D49: As reele
A50: Nbr de Barre/paquet | B50: 1 | D50: =PI()*(RIGHT(B49,2)/10)^2/4*B51 -> 1.507964474
A51: Nbr de barre/section | B51: 3 | D51: =IF(D50>=E38,"Surdimensionnement",IF(D50<=B32,"Sous Dimensionement","Ok")) -> Sous Dimensionement
A52: Nbr de barre/lit | B52: 1 | D52: optimum | E52: =E40 -> 3
A57: L'enrobage Cnom (Cm) | B57: 3.7
A59: Inertie Fissure (cm4) | B59: 3076355.155
A60: Contrainte du beton (Mpa) | B60: 12.60705876
A61: Contrainte de l'acier (Mpa) | B61: 205.8420159
A62: Fissuration (mm) | B62: 0.1319661155
B63: pas de fissuration
A64: Fleche (mm)
A66: Armature Transversale
A67: Diametre des Armature | B67: 8 | D67: As/s | E67: 0.0009942703006
A68: Nbr / section Transversale | B68: 3 | D68: S0 | E68: 13
A69: Teta | B69: 22
A71: Barre | B71: Espacement | C71: Total | E71: Nbr | F71: 1 | G71: 9 | H71: 6 | I71: 6 | J71: 6 | K71: 1
A72: 1 | B72: 6.5 | C72: 0.065 | E72: Espacement | F72: 6.5 | G72: 13 | H72: 16 | I72: 20 | J72: 25 | K72: 35
A73: 2 | B73: 13 | C73: 0.195
A74: 3 | B74: 13 | C74: 0.325
A75: 4 | B75: 13 | C75: 0.455
A76: 5 | B76: 13 | C76: 0.585
A77: 6 | B77: 13 | C77: 0.715
A78: 7 | B78: 13 | C78: 0.845
A79: 8 | B79: 13 | C79: 0.975
A80: 9 | B80: 13 | C80: 1.105
A81: 10 | B81: 13 | C81: 1.235
A82: 11 | B82: 16 | C82: 1.395
A83: 12 | B83: 16 | C83: 1.555
A84: 13 | B84: 16 | C84: 1.715
A85: 14 | B85: 16 | C85: 1.875
A86: 15 | B86: 16 | C86: 2.035
A87: 16 | B87: 16 | C87: 2.195
A88: 17 | B88: 20 | C88: 2.395
A89: 18 | B89: 20 | C89: 2.595
A90: 19 | B90: 20 | C90: 2.795
A91: 20 | B91: 20 | C91: 2.995
A92: 21 | B92: 20 | C92: 3.195
A93: 22 | B93: 20 | C93: 3.395
A94: 23 | B94: 25 | C94: 3.645
A95: 24 | B95: 25 | C95: 3.895
A96: 25 | B96: 25 | C96: 4.145
A97: 26 | B97: 25 | C97: 4.395
A98: 27 | B98: 25 | C98: 4.645
A99: 28 | B99: 25 | C99: 4.895
A100: 29 | B100: 35 | C100: 5.245

Sheet Ossatures
A2: Beton | B2: 25 | D2: E | E2: 200000
A3: Feu | B3: 1.5
A4: Pu | B4: 16
A5: Isolations Phonique | B5: Habitation
A7: Lx | C7: Alpha | D7: =IFERROR(MIN(B7:B8)/MAX(B7:B8),0) -> 0
A8: Ly | C8: Sens | D8: =IF(D7<0.5,"2 sens","1 seul sens") -> 2 sens
A12: Dalle
A13: Critere De Feu | B13: =LOOKUP(B3,'Ossatures Defaults'!B18:G18,'Ossatures Defaults'!B19:G19) -> 9
A14: Critere De Fleche | B14: =ROUNDUP(IF(D7<0.5,MIN(B7:B8)/30,MIN(B7:B8)/40)*100,0) -> 0
A15: Critere De Resistance | B15: =ROUNDUP((SQRT($B$4/1000*B7^2/10/(1+2*D7^3)/(0.372*1*$B$2/1.5))+0.03)*100,0) -> 3
A16: Critere D'isolation | B16: =LOOKUP(B5,'Ossatures Defaults'!A30:A31,'Ossatures Defaults'!B30:B31) -> 14
A18: Hauteur de La dalle | B18: =ROUNDUP(MAX(B13:B16),0) -> 14
P19: Impose h(Cm)
A20: Critere de Fleche | B20: Poutre et nervures noye | E20: =LOOKUP(B20,'Ossatures Defaults'!A2:A8,'Ossatures Defaults'!B2:B8) -> 25 | O20: H min | R20: Tu Limite
O21: =ROUNDUP(MAX(M23:M24),0) -> 16 | P21: 12 | R21: =0.5*0.6*(1-$B$2/250)*$B$2/1.5 -> 4.5
A22: Poutre | B22: Nbr Trave | C22: Type | D22: Majoration | E22: Charge | F22: Lx | G22: Ly | H22: Alpha | I22: Peq/diretion | J22: Peq (kn/m) | K22: Miso (kn.m) | M22: h Fleche | O22: Mu (kn.m) | P22: bw (cm) | R22: Tu (mn/m2)
A23: Rectangulaire | B23: 5 | C23: Rectangle | D23: Normale | E23: Entraxe | F23: 1 | G23: 4 | H23: =IFERROR(MIN(F23,G23)/MAX(F23,G23),0) -> 0.25 | I23: =F23*$B$4/2 -> 8 | J23: =IF(E23="Triangle",(I24+I23)*LOOKUP(D23,'Ossatures Defaults'!$L$2:$L$4,'Ossatures Defaults'!$M$2:$M$4)*1/3,IF(E23="Trapeze",(I24+I23)*LOOKUP(D23,'Ossatures Defaults'!$L$2:$L$4,'Ossatures Defaults'!$M$2:$M$4),(I24+I23)*LOOKUP(D23,'Ossatures Defaults'!$L$2:$L$4,'Ossatures Defaults'!$M$2:$M$4))) -> 16 | K23: =J23*G23^2/8 -> 32 | M23: =G23/$E$20*100 -> 16 | O23: =IF(B23=1,K23,K23*LOOKUP(C23,'Ossatures Defaults'!$I$2:$I$4,'Ossatures Defaults'!$J$2:$J$4)) -> 27.2 | P23: =ROUNDUP((O23/1000/0.372/(0.9*$P$21/100)^2/$B$2*1.5)*100,0) -> 38 | R23: =IFERROR(J23*10*G23/2/P23/$P$21/0.9,0) -> 0.7797270955 | S23: =IF(R23<$R$21,"ok","non") -> ok
F24: 1 | G24: 4 | H24: =IFERROR(MIN(F24,G24)/MAX(F24,G24),0) -> 0.25 | I24: =F24*$B$4/2 -> 8 | M24: =G24/$E$20*100 -> 16
P27: Impose bw (cm)
A28: Critere de Fleche | B28: Retombe | O28: Bw min | R28: Tu Limite
J29: =LOOKUP(B28,'Ossatures Defaults'!$A$3:$A$8,'Ossatures Defaults'!$B$3:$B$8) -> 16 | O29: =LOOKUP(B3,'Ossatures Defaults'!B18:G18,'Ossatures Defaults'!B20:G20) -> 14 | P29: 25 | R29: =0.5*0.6*(1-$B$2/250)*$B$2/1.5 -> 4.5
A30: Poutre | B30: Trave | C30: Type | D30: Majoration | E30: Charge | F30: Lx | G30: Ly | H30: Alpha | I30: Peq/diretion | J30: Peq (kn) | K30: Miso (kn.m) | M30: h Fleche | O30: Mu (kn.m) | P30: Hw | Q30: B0 | R30: Tu (mn/m2)
A31: En T | C31: En T | D31: Normale | E31: Trapeze | H31: =IFERROR(MIN(F31,G31)/MAX(F31,G31),0) -> 0 | I31: =F31*$B$4/2 -> 0 | J31: =IF(E31="Triangle",(I32+I31)*LOOKUP(D31,'Ossatures Defaults'!$L$2:$L$4,'Ossatures Defaults'!$M$2:$M$4)*1/3,IF(E31="Trapeze",(I32+I31)*LOOKUP(D31,'Ossatures Defaults'!$L$2:$L$4,'Ossatures Defaults'!$M$2:$M$4),(I32+I31)*LOOKUP(D31,'Ossatures Defaults'!$L$2:$L$4,'Ossatures Defaults'!$M$2:$M$4))) -> 0 | K31: =J31*G31^2/8 -> 0 | M31: =G31/$J$29*100 -> 0 | O31: =IF(B31=1,K31,K31*0.65) -> 0 | P31: =ROUNDUP(SQRT((O31/1000/0.372/($P$29/100)/$B$2*1.5))/0.9*100,0) -> 0 | Q31: =2*MIN(F31/2,G31/10)*100+P29 -> 25 | R31: =IFERROR(J31*10*G31/2/P31/$P$29/0.9,0) -> 0 | S31: =IF(R31<$R$29,"ok","non") -> ok
H32: =IFERROR(MIN(F32,G32)/MAX(F32,G32),0) -> 0 | I32: =F32*$B$4/2 -> 0 | M32: =G32/$J$29*100 -> 0 | Q32: =2*MIN(F32/2,G32/10)*100+P29 -> 25
A34: Calcule sur la Poutre | B34: Rectangulaire | D34: b0 | E34: =IF(B34=A23,P23,P29) -> 38 | F34: p | G34: =IF(B34=A23,J23,J31) -> 16 | H34: b | I34: =IF(B34=A23,P23,MIN(Q31:Q32)) -> 38
D35: h | E35: =IF(B34=A23,P21,P31) -> 12 | F35: tr | G35: =IF(B34=A23,B23,B31) -> 5 | H35: H0 | I35: =IF(B34=A23,P21,B18) -> 12
A36: Appuis Debut | B36: Simple | C36: =LOOKUP(B36,'Ossatures Defaults'!L18:L20,'Ossatures Defaults'!M18:M20) -> 1 | E36: Nbr Trave | F36: =COUNT(A40:A143) -> 5
A37: Appuis Fin | B37: Simple | C37: =F36-D37 -> 4 | D37: =LOOKUP(B37,'Ossatures Defaults'!L18:L20,'Ossatures Defaults'!M18:M20) -> 1
A39: Travee # | B39: Longueur | C39: G (Kn/m) | D39: Q (Kn/m)
A40: =IF(E40<=$G$35,E40,"") -> 1 | B40: 5 | C40: 20 | D40: 10 | E40: 1
A41: =IF(E41<=$G$35,E41,"") -> 2 | B41: 5 | C41: 20 | D41: 10 | E41: 2
A42: 3 | B42: 5 | C42: 20 | D42: 10 | E42: 3
A43: 4 | B43: 5 | C43: 20 | D43: 10 | E43: 4
A44: 5 | B44: 5 | C44: 20 | D44: 10 | E44: 5
E45: 6
E46: 7
E47: 8
E48: 9
E49: 10
E50: 11
E51: 12
E52: 13
E53: 14
E54: 15
E55: 16
E56: 17
E57: 18
E58: 19
E59: 20

Sheet Resultat
A1: Courbe Envellope
B3: Charge Pair | D3: Charge impaire | F3: Adjacentes 1 + 2 | H3: Adjacentes 2 + 3 | J3: Adjacentes 3 + 4 | L3: Adjacentes 4 + 5
B4: M (Kn.m) | C4: V (Kn) | D4: M (Kn.m) | E4: V (Kn) | F4: M (Kn.m) | G4: V (Kn) | H4: M (Kn.m) | I4: V (Kn) | J4: M (Kn.m) | K4: V (Kn) | L4: M (Kn.m) | M4: V (Kn)
A5: Min | B5: -65.78947368 | C5: -13.15789474 | D5: -65.78947368 | E5: -13.15789474 | F5: -81.63875598 | G5: -16.3277512 | H5: -66.08851675 | I5: -12.32057416 | J5: -66.08851675 | K5: -10.04784689 | L5: -81.63875598 | M5: -10.64593301
A6: X | B6: 5.1 | C6: 5 | D6: 5.1 | E6: 5 | F6: 5.1 | G6: 5 | H6: 10.2 | I6: 5 | J6: 15.3 | K6: 5 | L6: 20.4 | M6: 5
A7: Max | B7: 36.36315789 | C7: 78.28947368 | D7: 63.71842105 | E7: 88.15789474 | F7: 57.34449761 | G7: 81.63875598 | H7: 39.90430622 | I7: 78.40909091 | J7: 39.90430622 | K7: 75.89712919 | L7: 57.34449761 | M7: 91.3277512
A8: X | B8: 17.7 | C8: 5.1 | D8: 23.3 | E8: 20.4 | F8: 2 | G8: 5.1 | H8: 23.4 | I8: 10.2 | J8: 2 | K8: 15.3 | L8: 23.4 | M8: 20.4
A10: X | B10: Charge Pair | D10: Charge impaire | F10: Adjacentes 1 + 2 | H10: Adjacentes 2 + 3 | J10: Adjacentes 3 + 4 | L10: Adjacentes 4 + 5
A11: 255 | B11: M (Kn.m) | C11: V (Kn) | D11: M (Kn.m) | E11: V (Kn) | F11: M (Kn.m) | G11: V (Kn) | H11: M (Kn.m) | I11: V (Kn) | J11: M (Kn.m) | K11: V (Kn) | L11: M (Kn.m) | M11: V (Kn)
A12: 0 | B12: 0 | C12: 36.84210526 | D12: 0 | E12: 61.84210526 | F12: 0 | G12: 58.6722488 | H12: 0 | I12: 37.67942584 | J12: 0 | K12: 39.95215311 | L12: 0 | M12: 39.35406699
A13: 0.1 | B13: 3.584210526 | C13: 35.84210526 | D13: 6.034210526 | E13: 60.34210526 | F13: 5.71722488 | G13: 57.1722488 | H13: 3.667942584 | I13: 36.67942584 | J13: 3.895215311 | K13: 38.95215311 | L13: 3.835406699 | M13: 38.35406699
A14: 0.2 | B14: 6.968421053 | C14: 34.84210526 | D14: 11.76842105 | E14: 58.84210526 | F14: 11.13444976 | G14: 55.6722488 | H14: 7.135885167 | I14: 35.67942584 | J14: 7.590430622 | K14: 37.95215311 | L14: 7.470813397 | M14: 37.35406699
A15: 0.3 | B15: 10.15263158 | C15: 33.84210526 | D15: 17.20263158 | E15: 57.34210526 | F15: 16.25167464 | G15: 54.1722488 | H15: 10.40382775 | I15: 34.67942584 | J15: 11.08564593 | K15: 36.95215311 | L15: 10.9062201 | M15: 36.35406699
A16: 0.4 | B16: 13.13684211 | C16: 32.84210526 | D16: 22.33684211 | E16: 55.84210526 | F16: 21.06889952 | G16: 52.6722488 | H16: 13.47177033 | I16: 33.67942584 | J16: 14.38086124 | K16: 35.95215311 | L16: 14.14162679 | M16: 35.35406699
A17: 0.5 | B17: 15.92105263 | C17: 31.84210526 | D17: 27.17105263 | E17: 54.34210526 | F17: 25.5861244 | G17: 51.1722488 | H17: 16.33971292 | I17: 32.67942584 | J17: 17.47607656 | K17: 34.95215311 | L17: 17.17703349 | M17: 34.35406699
A18: 0.6 | B18: 18.50526316 | C18: 30.84210526 | D18: 31.70526316 | E18: 52.84210526 | F18: 29.80334928 | G18: 49.6722488 | H18: 19.0076555 | I18: 31.67942584 | J18: 20.37129187 | K18: 33.95215311 | L18: 20.01244019 | M18: 33.35406699
A19: 0.7 | B19: 20.88947368 | C19: 29.84210526 | D19: 35.93947368 | E19: 51.34210526 | F19: 33.72057416 | G19: 48.1722488 | H19: 21.47559809 | I19: 30.67942584 | J19: 23.06650718 | K19: 32.95215311 | L19: 22.64784689 | M19: 32.35406699
A20: 0.8 | B20: 23.07368421 | C20: 28.84210526 | D20: 39.87368421 | E20: 49.84210526 | F20: 37.33779904 | G20: 46.6722488 | H20: 23.74354067 | I20: 29.67942584 | J20: 25.56172249 | K20: 31.95215311 | L20: 25.08325359 | M20: 31.35406699
A21: 0.9 | B21: 25.05789474 | C21: 27.84210526 | D21: 43.50789474 | E21: 48.34210526 | F21: 40.65502392 | G21: 45.1722488 | H21: 25.81148325 | I21: 28.67942584 | J21: 27.8569378 | K21: 30.95215311 | L21: 27.31866029 | M21: 30.35406699
A22: 1 | B22: 26.84210526 | C22: 26.84210526 | D22: 46.84210526 | E22: 46.84210526 | F22: 43.6722488 | G22: 43.6722488 | H22: 27.67942584 | I22: 27.67942584 | J22: 29.95215311 | K22: 29.95215311 | L22: 29.35406699 | M22: 29.35406699
A23: 1.1 | B23: 28.42631579 | C23: 25.84210526 | D23: 49.87631579 | E23: 45.34210526 | F23: 46.38947368 | G23: 42.1722488 | H23: 29.34736842 | I23: 26.67942584 | J23: 31.84736842 | K23: 28.95215311 | L23: 31.18947368 | M23: 28.35406699
A24: 1.2 | B24: 29.81052632 | C24: 24.84210526 | D24: 52.61052632 | E24: 43.84210526 | F24: 48.80669856 | G24: 40.6722488 | H24: 30.815311 | I24: 25.67942584 | J24: 33.54258373 | K24: 27.95215311 | L24: 32.82488038 | M24: 27.35406699
A25: 1.3 | B25: 30.99473684 | C25: 23.84210526 | D25: 55.04473684 | E25: 42.34210526 | F25: 50.92392344 | G25: 39.1722488 | H25: 32.08325359 | I25: 24.67942584 | J25: 35.03779904 | K25: 26.95215311 | L25: 34.26028708 | M25: 26.35406699
A26: 1.4 | B26: 31.97894737 | C26: 22.84210526 | D26: 57.17894737 | E26: 40.84210526 | F26: 52.74114833 | G26: 37.6722488 | H26: 33.15119617 | I26: 23.67942584 | J26: 36.33301435 | K26: 25.95215311 | L26: 35.49569378 | M26: 25.35406699
A27: 1.5 | B27: 32.76315789 | C27: 21.84210526 | D27: 59.01315789 | E27: 39.34210526 | F27: 54.25837321 | G27: 36.1722488 | H27: 34.01913876 | I27: 22.67942584 | J27: 37.42822967 | K27: 24.95215311 | L27: 36.53110048 | M27: 24.35406699
A28: 1.6 | B28: 33.34736842 | C28: 20.84210526 | D28: 60.54736842 | E28: 37.84210526 | F28: 55.47559809 | G28: 34.6722488 | H28: 34.68708134 | I28: 21.67942584 | J28: 38.32344498 | K28: 23.95215311 | L28: 37.36650718 | M28: 23.35406699
A29: 1.7 | B29: 33.73157895 | C29: 19.84210526 | D29: 61.78157895 | E29: 36.34210526 | F29: 56.39282297 | G29: 33.1722488 | H29: 35.15502392 | I29: 20.67942584 | J29: 39.01866029 | K29: 22.95215311 | L29: 38.00191388 | M29: 22.35406699
A30: 1.8 | B30: 33.91578947 | C30: 18.84210526 | D30: 62.71578947 | E30: 34.84210526 | F30: 57.01004785 | G30: 31.6722488 | H30: 35.42296651 | I30: 19.67942584 | J30: 39.5138756 | K30: 21.95215311 | L30: 38.43732057 | M30: 21.35406699
A31: 1.9 | B31: 33.9 | C31: 17.84210526 | D31: 63.35 | E31: 33.34210526 | F31: 57.32727273 | G31: 30.1722488 | H31: 35.49090909 | I31: 18.67942584 | J31: 39.80909091 | K31: 20.95215311 | L31: 38.67272727 | M31: 20.35406699
A32: 2 | B32: 33.68421053 | C32: 16.84210526 | D32: 63.68421053 | E32: 31.84210526 | F32: 57.34449761 | G32: 28.6722488 | H32: 35.35885167 | I32: 17.67942584 | J32: 39.90430622 | K32: 19.95215311 | L32: 38.70813397 | M32: 19.35406699
A33: 2.1 | B33: 33.26842105 | C33: 15.84210526 | D33: 63.71842105 | E33: 30.34210526 | F33: 57.06172249 | G33: 27.1722488 | H33: 35.02679426 | I33: 16.67942584 | J33: 39.79952153 | K33: 18.95215311 | L33: 38.54354067 | M33: 18.35406699
A34: 2.2 | B34: 32.65263158 | C34: 14.84210526 | D34: 63.45263158 | E34: 28.84210526 | F34: 56.47894737 | G34: 25.6722488 | H34: 34.49473684 | I34: 15.67942584 | J34: 39.49473684 | K34: 17.95215311 | L34: 38.17894737 | M34: 17.35406699
A35: 2.3 | B35: 31.83684211 | C35: 13.84210526 | D35: 62.88684211 | E35: 27.34210526 | F35: 55.59617225 | G35: 24.1722488 | H35: 33.76267943 | I35: 14.67942584 | J35: 38.98995215 | K35: 16.95215311 | L35: 37.61435407 | M35: 16.35406699
A36: 2.4 | B36: 30.82105263 | C36: 12.84210526 | D36: 62.02105263 | E36: 25.84210526 | F36: 54.41339713 | G36: 22.6722488 | H36: 32.83062201 | I36: 13.67942584 | J36: 38.28516746 | K36: 15.95215311 | L36: 36.84976077 | M36: 15.35406699
A37: 2.5 | B37: 29.60526316 | C37: 11.84210526 | D37: 60.85526316 | E37: 24.34210526 | F37: 52.93062201 | G37: 21.1722488 | H37: 31.69856459 | I37: 12.67942584 | J37: 37.38038278 | K37: 14.95215311 | L37: 35.88516746 | M37: 14.35406699
A38: 2.6 | B38: 28.18947368 | C38: 10.84210526 | D38: 59.38947368 | E38: 22.84210526 | F38: 51.14784689 | G38: 19.6722488 | H38: 30.36650718 | I38: 11.67942584 | J38: 36.27559809 | K38: 13.95215311 | L38: 34.72057416 | M38: 13.35406699
A39: 2.7 | B39: 26.57368421 | C39: 9.842105263 | D39: 57.62368421 | E39: 21.34210526 | F39: 49.06507177 | G39: 18.1722488 | H39: 28.83444976 | I39: 10.67942584 | J39: 34.9708134 | K39: 12.95215311 | L39: 33.35598086 | M39: 12.35406699
A40: 2.8 | B40: 24.75789474 | C40: 8.842105263 | D40: 55.55789474 | E40: 19.84210526 | F40: 46.68229665 | G40: 16.6722488 | H40: 27.10239234 | I40: 9.679425837 | J40: 33.46602871 | K40: 11.95215311 | L40: 31.79138756 | M40: 11.35406699
A41: 2.9 | B41: 22.74210526 | C41: 7.842105263 | D41: 53.19210526 | E41: 18.34210526 | F41: 43.99952153 | G41: 15.1722488 | H41: 25.17033493 | I41: 8.679425837 | J41: 31.76124402 | K41: 10.95215311 | L41: 30.02679426 | M41: 10.35406699
A42: 3 | B42: 20.52631579 | C42: 6.842105263 | D42: 50.52631579 | E42: 16.84210526 | F42: 41.01674641 | G42: 13.6722488 | H42: 23.03827751 | I42: 7.679425837 | J42: 29.85645933 | K42: 9.95215311 | L42: 28.06220096 | M42: 9.354066986
A43: 3.1 | B43: 18.11052632 | C43: 5.842105263 | D43: 47.56052632 | E43: 15.34210526 | F43: 37.73397129 | G43: 12.1722488 | H43: 20.7062201 | I43: 6.679425837 | J43: 27.75167464 | K43: 8.95215311 | L43: 25.89760766 | M43: 8.354066986
A44: 3.2 | B44: 15.49473684 | C44: 4.842105263 | D44: 44.29473684 | E44: 13.84210526 | F44: 34.15119617 | G44: 10.6722488 | H44: 18.17416268 | I44: 5.679425837 | J44: 25.44688995 | K44: 7.95215311 | L44: 23.53301435 | M44: 7.354066986
A45: 3.3 | B45: 12.67894737 | C45: 3.842105263 | D45: 40.72894737 | E45: 12.34210526 | F45: 30.26842105 | G45: 9.172248804 | H45: 15.44210526 | I45: 4.679425837 | J45: 22.94210526 | K45: 6.95215311 | L45: 20.96842105 | M45: 6.354066986
A46: 3.4 | B46: 9.663157895 | C46: 2.842105263 | D46: 36.86315789 | E46: 10.84210526 | F46: 26.08564593 | G46: 7.672248804 | H46: 12.51004785 | I46: 3.679425837 | J46: 20.23732057 | K46: 5.95215311 | L46: 18.20382775 | M46: 5.354066986
A47: 3.5 | B47: 6.447368421 | C47: 1.842105263 | D47: 32.69736842 | E47: 9.342105263 | F47: 21.60287081 | G47: 6.172248804 | H47: 9.377990431 | I47: 2.679425837 | J47: 17.33253589 | K47: 4.95215311 | L47: 15.23923445 | M47: 4.354066986
A48: 3.6 | B48: 3.031578947 | C48: 0.8421052632 | D48: 28.23157895 | E48: 7.842105263 | F48: 16.82009569 | G48: 4.672248804 | H48: 6.045933014 | I48: 1.679425837 | J48: 14.2277512 | K48: 3.95215311 | L48: 12.07464115 | M48: 3.354066986
A49: 3.7 | B49: -0.5842105263 | C49: -0.1578947368 | D49: 23.46578947 | E49: 6.342105263 | F49: 11.73732057 | G49: 3.172248804 | H49: 2.513875598 | I49: 0.6794258373 | J49: 10.92296651 | K49: 2.95215311 | L49: 8.710047847 | M49: 2.354066986
A50: 3.8 | B50: -4.4 | C50: -1.157894737 | D50: 18.4 | E50: 4.842105263 | F50: 6.354545455 | G50: 1.672248804 | H50: -1.218181818 | I50: -0.3205741627 | J50: 7.418181818 | K50: 1.95215311 | L50: 5.145454545 | M50: 1.354066986
A51: 3.9 | B51: -8.415789474 | C51: -2.157894737 | D51: 13.03421053 | E51: 3.342105263 | F51: 0.6717703349 | G51: 0.1722488038 | H51: -5.150239234 | I51: -1.320574163 | J51: 3.713397129 | K51: 0.95215311 | L51: 1.380861244 | M51: 0.3540669856
A52: 4 | B52: -12.63157895 | C52: -3.157894737 | D52: 7.368421053 | E52: 1.842105263 | F52: -5.311004785 | G52: -1.327751196 | H52: -9.282296651 | I52: -2.320574163 | J52: -0.1913875598 | K52: -0.04784688995 | L52: -2.583732057 | M52: -0.6459330144
A53: 4.1 | B53: -17.04736842 | C53: -4.157894737 | D53: 1.402631579 | E53: 0.3421052632 | F53: -11.5937799 | G53: -2.827751196 | H53: -13.61435407 | I53: -3.320574163 | J53: -4.296172249 | K53: -1.04784689 | L53: -6.748325359 | M53: -1.645933014
A54: 4.2 | B54: -21.66315789 | C54: -5.157894737 | D54: -4.863157895 | E54: -1.157894737 | F54: -18.17655502 | G54: -4.327751196 | H54: -18.14641148 | I54: -4.320574163 | J54: -8.600956938 | K54: -2.04784689 | L54: -11.11291866 | M54: -2.645933014
A55: 4.3 | B55: -26.47894737 | C55: -6.157894737 | D55: -11.42894737 | E55: -2.657894737 | F55: -25.05933014 | G55: -5.827751196 | H55: -22.8784689 | I55: -5.320574163 | J55: -13.10574163 | K55: -3.04784689 | L55: -15.67751196 | M55: -3.645933014
A56: 4.4 | B56: -31.49473684 | C56: -7.157894737 | D56: -18.29473684 | E56: -4.157894737 | F56: -32.24210526 | G56: -7.327751196 | H56: -27.81052632 | I56: -6.320574163 | J56: -17.81052632 | K56: -4.04784689 | L56: -20.44210526 | M56: -4.645933014
A57: 4.5 | B57: -36.71052632 | C57: -8.157894737 | D57: -25.46052632 | E57: -5.657894737 | F57: -39.72488038 | G57: -8.827751196 | H57: -32.94258373 | I57: -7.320574163 | J57: -22.715311 | K57: -5.04784689 | L57: -25.40669856 | M57: -5.645933014
A58: 4.6 | B58: -42.12631579 | C58: -9.157894737 | D58: -32.92631579 | E58: -7.157894737 | F58: -47.5076555 | G58: -10.3277512 | H58: -38.27464115 | I58: -8.320574163 | J58: -27.82009569 | K58: -6.04784689 | L58: -30.57129187 | M58: -6.645933014
A59: 4.7 | B59: -47.74210526 | C59: -10.15789474 | D59: -40.69210526 | E59: -8.657894737 | F59: -55.59043062 | G59: -11.8277512 | H59: -43.80669856 | I59: -9.320574163 | J59: -33.12488038 | K59: -7.04784689 | L59: -35.93588517 | M59: -7.645933014
A60: 4.8 | B60: -53.55789474 | C60: -11.15789474 | D60: -48.75789474 | E60: -10.15789474 | F60: -63.97320574 | G60: -13.3277512 | H60: -49.53875598 | I60: -10.32057416 | J60: -38.62966507 | K60: -8.04784689 | L60: -41.50047847 | M60: -8.645933014
A61: 4.9 | B61: -59.57368421 | C61: -12.15789474 | D61: -57.12368421 | E61: -11.65789474 | F61: -72.65598086 | G61: -14.8277512 | H61: -55.4708134 | I61: -11.32057416 | J61: -44.33444976 | K61: -9.04784689 | L61: -47.26507177 | M61: -9.645933014
A62: 5 | B62: -65.78947368 | C62: -13.15789474 | D62: -65.78947368 | E62: -13.15789474 | F62: -81.63875598 | G62: -16.3277512 | H62: -61.60287081 | I62: -12.32057416 | J62: -50.23923445 | K62: -10.04784689 | L62: -53.22966507 | M62: -10.64593301
A63: 5.1 | B63: -65.78947368 | C63: 78.28947368 | D63: -65.78947368 | E63: 53.28947368 | F63: -81.63875598 | G63: 81.63875598 | H63: -61.60287081 | I63: 74.10287081 | J63: -50.23923445 | K63: 50.23923445 | L63: -53.22966507 | M63: 53.22966507
A64: 5.2 | B64: -58.11052632 | C64: 76.78947368 | D64: -60.56052632 | E64: 52.28947368 | F64: -73.62488038 | G64: 80.13875598 | H64: -54.34258373 | I64: 72.60287081 | J64: -45.315311 | K64: 49.23923445 | L64: -48.00669856 | M64: 52.22966507
A65: 5.3 | B65: -50.73157895 | C65: 75.28947368 | D65: -55.53157895 | E65: 51.28947368 | F65: -65.91100478 | G65: 78.63875598 | H65: -47.38229665 | I65: 71.10287081 | J65: -40.59138756 | K65: 48.23923445 | L65: -42.98373206 | M65: 51.22966507
A66: 5.4 | B66: -43.65263158 | C66: 73.78947368 | D66: -50.70263158 | E66: 50.28947368 | F66: -58.49712919 | G66: 77.13875598 | H66: -40.72200957 | I66: 69.60287081 | J66: -36.06746411 | K66: 47.23923445 | L66: -38.16076555 | M66: 50.22966507
A67: 5.5 | B67: -36.87368421 | C67: 72.28947368 | D67: -46.07368421 | E67: 49.28947368 | F67: -51.38325359 | G67: 75.63875598 | H67: -34.36172249 | I67: 68.10287081 | J67: -31.74354067 | K67: 46.23923445 | L67: -33.53779904 | M67: 49.22966507
A68: 5.6 | B68: -30.39473684 | C68: 70.78947368 | D68: -41.64473684 | E68: 48.28947368 | F68: -44.56937799 | G68: 74.13875598 | H68: -28.30143541 | I68: 66.60287081 | J68: -27.61961722 | K68: 45.23923445 | L68: -29.11483254 | M68: 48.22966507
A69: 5.7 | B69: -24.21578947 | C69: 69.28947368 | D69: -37.41578947 | E69: 47.28947368 | F69: -38.05550239 | G69: 72.63875598 | H69: -22.54114833 | I69: 65.10287081 | J69: -23.69569378 | K69: 44.23923445 | L69: -24.89186603 | M69: 47.22966507
A70: 5.8 | B70: -18.33684211 | C70: 67.78947368 | D70: -33.38684211 | E70: 46.28947368 | F70: -31.84162679 | G70: 71.13875598 | H70: -17.08086124 | I70: 63.60287081 | J70: -19.97177033 | K70: 43.23923445 | L70: -20.86889952 | M70: 46.22966507
A71: 5.9 | B71: -12.75789474 | C71: 66.28947368 | D71: -29.55789474 | E71: 45.28947368 | F71: -25.9277512 | G71: 69.63875598 | H71: -11.92057416 | I71: 62.10287081 | J71: -16.44784689 | K71: 42.23923445 | L71: -17.04593301 | M71: 45.22966507
A72: 6 | B72: -7.478947368 | C72: 64.78947368 | D72: -25.92894737 | E72: 44.28947368 | F72: -20.3138756 | G72: 68.13875598 | H72: -7.060287081 | I72: 60.60287081 | J72: -13.12392344 | K72: 41.23923445 | L72: -13.42296651 | M72: 44.22966507
A73: 6.1 | B73: -2.5 | C73: 63.28947368 | D73: -22.5 | E73: 43.28947368 | F73: -15 | G73: 66.63875598 | H73: -2.5 | I73: 59.10287081 | J73: -10 | K73: 40.23923445 | L73: -10 | M73: 43.22966507
A74: 6.2 | B74: 2.178947368 | C74: 61.78947368 | D74: -19.27105263 | E74: 42.28947368 | F74: -9.986124402 | G74: 65.13875598 | H74: 1.760287081 | I74: 57.60287081 | J74: -7.076076555 | K74: 39.23923445 | L74: -6.777033493 | M74: 42.22966507
A75: 6.3 | B75: 6.557894737 | C75: 60.28947368 | D75: -16.24210526 | E75: 41.28947368 | F75: -5.272248804 | G75: 63.63875598 | H75: 5.720574163 | I75: 56.10287081 | J75: -4.35215311 | K75: 38.23923445 | L75: -3.754066986 | M75: 41.22966507
A76: 6.4 | B76: 10.63684211 | C76: 58.78947368 | D76: -13.41315789 | E76: 40.28947368 | F76: -0.8583732057 | G76: 62.13875598 | H76: 9.380861244 | I76: 54.60287081 | J76: -1.828229665 | K76: 37.23923445 | L76: -0.9311004785 | M76: 40.22966507
A77: 6.5 | B77: 14.41578947 | C77: 57.28947368 | D77: -10.78421053 | E77: 39.28947368 | F77: 3.255502392 | G77: 60.63875598 | H77: 12.74114833 | I77: 53.10287081 | J77: 0.4956937799 | K77: 36.23923445 | L77: 1.691866029 | M77: 39.22966507
A78: 6.6 | B78: 17.89473684 | C78: 55.78947368 | D78: -8.355263158 | E78: 38.28947368 | F78: 7.06937799 | G78: 59.13875598 | H78: 15.80143541 | I78: 51.60287081 | J78: 2.619617225 | K78: 35.23923445 | L78: 4.114832536 | M78: 38.22966507
A79: 6.7 | B79: 21.07368421 | C79: 54.28947368 | D79: -6.126315789 | E79: 37.28947368 | F79: 10.58325359 | G79: 57.63875598 | H79: 18.56172249 | I79: 50.10287081 | J79: 4.54354067 | K79: 34.23923445 | L79: 6.337799043 | M79: 37.22966507
A80: 6.8 | B80: 23.95263158 | C80: 52.78947368 | D80: -4.097368421 | E80: 36.28947368 | F80: 13.79712919 | G80: 56.13875598 | H80: 21.02200957 | I80: 48.60287081 | J80: 6.267464115 | K80: 33.23923445 | L80: 8.36076555 | M80: 36.22966507
A81: 6.9 | B81: 26.53157895 | C81: 51.28947368 | D81: -2.268421053 | E81: 35.28947368 | F81: 16.71100478 | G81: 54.63875598 | H81: 23.18229665 | I81: 47.10287081 | J81: 7.79138756 | K81: 32.23923445 | L81: 10.18373206 | M81: 35.22966507
A82: 7 | B82: 28.81052632 | C82: 49.78947368 | D82: -0.6394736842 | E82: 34.28947368 | F82: 19.32488038 | G82: 53.13875598 | H82: 25.04258373 | I82: 45.60287081 | J82: 9.115311005 | K82: 31.23923445 | L82: 11.80669856 | M82: 34.22966507
A83: 7.1 | B83: 30.78947368 | C83: 48.28947368 | D83: 0.7894736842 | E83: 33.28947368 | F83: 21.63875598 | G83: 51.63875598 | H83: 26.60287081 | I83: 44.10287081 | J83: 10.23923445 | K83: 30.23923445 | L83: 13.22966507 | M83: 33.22966507
A84: 7.2 | B84: 32.46842105 | C84: 46.78947368 | D84: 2.018421053 | E84: 32.28947368 | F84: 23.65263158 | G84: 50.13875598 | H84: 27.86315789 | I84: 42.60287081 | J84: 11.16315789 | K84: 29.23923445 | L84: 14.45263158 | M84: 32.22966507
A85: 7.3 | B85: 33.84736842 | C85: 45.28947368 | D85: 3.047368421 | E85: 31.28947368 | F85: 25.36650718 | G85: 48.63875598 | H85: 28.82344498 | I85: 41.10287081 | J85: 11.88708134 | K85: 28.23923445 | L85: 15.47559809 | M85: 31.22966507
A86: 7.4 | B86: 34.92631579 | C86: 43.78947368 | D86: 3.876315789 | E86: 30.28947368 | F86: 26.78038278 | G86: 47.13875598 | H86: 29.48373206 | I86: 39.60287081 | J86: 12.41100478 | K86: 27.23923445 | L86: 16.29856459 | M86: 30.22966507
A87: 7.5 | B87: 35.70526316 | C87: 42.28947368 | D87: 4.505263158 | E87: 29.28947368 | F87: 27.89425837 | G87: 45.63875598 | H87: 29.84401914 | I87: 38.10287081 | J87: 12.73492823 | K87: 26.23923445 | L87: 16.9215311 | M87: 29.22966507
A88: 7.6 | B88: 36.18421053 | C88: 40.78947368 | D88: 4.934210526 | E88: 28.28947368 | F88: 28.70813397 | G88: 44.13875598 | H88: 29.90430622 | I88: 36.60287081 | J88: 12.85885167 | K88: 25.23923445 | L88: 17.34449761 | M88: 28.22966507
A89: 7.7 | B89: 36.36315789 | C89: 39.28947368 | D89: 5.163157895 | E89: 27.28947368 | F89: 29.22200957 | G89: 42.63875598 | H89: 29.6645933 | I89: 35.10287081 | J89: 12.78277512 | K89: 24.23923445 | L89: 17.56746411 | M89: 27.22966507
A90: 7.8 | B90: 36.24210526 | C90: 37.78947368 | D90: 5.192105263 | E90: 26.28947368 | F90: 29.43588517 | G90: 41.13875598 | H90: 29.12488038 | I90: 33.60287081 | J90: 12.50669856 | K90: 23.23923445 | L90: 17.59043062 | M90: 26.22966507
A91: 7.9 | B91: 35.82105263 | C91: 36.28947368 | D91: 5.021052632 | E91: 25.28947368 | F91: 29.34976077 | G91: 39.63875598 | H91: 28.28516746 | I91: 32.10287081 | J91: 12.03062201 | K91: 22.23923445 | L91: 17.41339713 | M91: 25.22966507
A92: 8 | B92: 35.1 | C92: 34.78947368 | D92: 4.65 | E92: 24.28947368 | F92: 28.96363636 | G92: 38.13875598 | H92: 27.14545455 | I92: 30.60287081 | J92: 11.35454545 | K92: 21.23923445 | L92: 17.03636364 | M92: 24.22966507
A93: 8.1 | B93: 34.07894737 | C93: 33.28947368 | D93: 4.078947368 | E93: 23.28947368 | F93: 28.27751196 | G93: 36.63875598 | H93: 25.70574163 | I93: 29.10287081 | J93: 10.4784689 | K93: 20.23923445 | L93: 16.45933014 | M93: 23.22966507
A94: 8.2 | B94: 32.75789474 | C94: 31.78947368 | D94: 3.307894737 | E94: 22.28947368 | F94: 27.29138756 | G94: 35.13875598 | H94: 23.96602871 | I94: 27.60287081 | J94: 9.402392344 | K94: 19.23923445 | L94: 15.68229665 | M94: 22.22966507
A95: 8.3 | B95: 31.13684211 | C95: 30.28947368 | D95: 2.336842105 | E95: 21.28947368 | F95: 26.00526316 | G95: 33.63875598 | H95: 21.92631579 | I95: 26.10287081 | J95: 8.126315789 | K95: 18.23923445 | L95: 14.70526316 | M95: 21.22966507
A96: 8.4 | B96: 29.21578947 | C96: 28.78947368 | D96: 1.165789474 | E96: 20.28947368 | F96: 24.41913876 | G96: 32.13875598 | H96: 19.58660287 | I96: 24.60287081 | J96: 6.650239234 | K96: 17.23923445 | L96: 13.52822967 | M96: 20.22966507
A97: 8.5 | B97: 26.99473684 | C97: 27.28947368 | D97: -0.2052631579 | E97: 19.28947368 | F97: 22.53301435 | G97: 30.63875598 | H97: 16.94688995 | I97: 23.10287081 | J97: 4.974162679 | K97: 16.23923445 | L97: 12.15119617 | M97: 19.22966507
A98: 8.6 | B98: 24.47368421 | C98: 25.78947368 | D98: -1.776315789 | E98: 18.28947368 | F98: 20.34688995 | G98: 29.13875598 | H98: 14.00717703 | I98: 21.60287081 | J98: 3.098086124 | K98: 15.23923445 | L98: 10.57416268 | M98: 18.22966507
A99: 8.7 | B99: 21.65263158 | C99: 24.28947368 | D99: -3.547368421 | E99: 17.28947368 | F99: 17.86076555 | G99: 27.63875598 | H99: 10.76746411 | I99: 20.10287081 | J99: 1.022009569 | K99: 14.23923445 | L99: 8.797129187 | M99: 17.22966507
A100: 8.8 | B100: 18.53157895 | C100: 22.78947368 | D100: -5.518421053 | E100: 16.28947368 | F100: 15.07464115 | G100: 26.13875598 | H100: 7.227751196 | I100: 18.60287081 | J100: -1.254066986 | K100: 13.23923445 | L100: 6.820095694 | M100: 16.22966507
A101: 8.9 | B101: 15.11052632 | C101: 21.28947368 | D101: -7.689473684 | E101: 15.28947368 | F101: 11.98851675 | G101: 24.63875598 | H101: 3.388038278 | I101: 17.10287081 | J101: -3.730143541 | K101: 12.23923445 | L101: 4.643062201 | M101: 15.22966507
A102: 9 | B102: 11.38947368 | C102: 19.78947368 | D102: -10.06052632 | E102: 14.28947368 | F102: 8.602392344 | G102: 23.13875598 | H102: -0.7516746411 | I102: 15.60287081 | J102: -6.406220096 | K102: 11.23923445 | L102: 2.266028708 | M102: 14.22966507
A103: 9.1 | B103: 7.368421053 | C103: 18.28947368 | D103: -12.63157895 | E103: 13.28947368 | F103: 4.916267943 | G103: 21.63875598 | H103: -5.19138756 | I103: 14.10287081 | J103: -9.282296651 | K103: 10.23923445 | L103: -0.3110047847 | M103: 13.22966507
A104: 9.2 | B104: 3.047368421 | C104: 16.78947368 | D104: -15.40263158 | E104: 12.28947368 | F104: 0.9301435407 | G104: 20.13875598 | H104: -9.931100478 | I104: 12.60287081 | J104: -12.35837321 | K104: 9.23923445 | L104: -3.088038278 | M104: 12.22966507
A105: 9.3 | B105: -1.573684211 | C105: 15.28947368 | D105: -18.37368421 | E105: 11.28947368 | F105: -3.355980861 | G105: 18.63875598 | H105: -14.9708134 | I105: 11.10287081 | J105: -15.63444976 | K105: 8.23923445 | L105: -6.06507177 | M105: 11.22966507
A106: 9.4 | B106: -6.494736842 | C106: 13.78947368 | D106: -21.54473684 | E106: 10.28947368 | F106: -7.942105263 | G106: 17.13875598 | H106: -20.31052632 | I106: 9.602870813 | J106: -19.11052632 | K106: 7.23923445 | L106: -9.242105263 | M106: 10.22966507
A107: 9.5 | B107: -11.71578947 | C107: 12.28947368 | D107: -24.91578947 | E107: 9.289473684 | F107: -12.82822967 | G107: 15.63875598 | H107: -25.95023923 | I107: 8.102870813 | J107: -22.78660287 | K107: 6.23923445 | L107: -12.61913876 | M107: 9.229665072
A108: 9.6 | B108: -17.23684211 | C108: 10.78947368 | D108: -28.48684211 | E108: 8.289473684 | F108: -18.01435407 | G108: 14.13875598 | H108: -31.88995215 | I108: 6.602870813 | J108: -26.66267943 | K108: 5.23923445 | L108: -16.19617225 | M108: 8.229665072
A109: 9.7 | B109: -23.05789474 | C109: 9.289473684 | D109: -32.25789474 | E109: 7.289473684 | F109: -23.50047847 | G109: 12.63875598 | H109: -38.12966507 | I109: 5.102870813 | J109: -30.73875598 | K109: 4.23923445 | L109: -19.97320574 | M109: 7.229665072
A110: 9.8 | B110: -29.17894737 | C110: 7.789473684 | D110: -36.22894737 | E110: 6.289473684 | F110: -29.28660287 | G110: 11.13875598 | H110: -44.66937799 | I110: 3.602870813 | J110: -35.01483254 | K110: 3.23923445 | L110: -23.95023923 | M110: 6.229665072
A111: 9.9 | B111: -35.6 | C111: 6.289473684 | D111: -40.4 | E111: 5.289473684 | F111: -35.37272727 | G111: 9.638755981 | H111: -51.50909091 | I111: 2.102870813 | J111: -39.49090909 | K111: 2.23923445 | L111: -28.12727273 | M111: 5.229665072
A112: 10 | B112: -42.32105263 | C112: 4.789473684 | D112: -44.77105263 | E112: 4.289473684 | F112: -41.75885167 | G112: 8.138755981 | H112: -58.64880383 | I112: 0.6028708134 | J112: -44.16698565 | K112: 1.23923445 | L112: -32.50430622 | M112: 4.229665072
A113: 10.1 | B113: -49.34210526 | C113: 3.289473684 | D113: -49.34210526 | E113: 3.289473684 | F113: -48.44497608 | G113: 6.638755981 | H113: -66.08851675 | I113: -0.8971291866 | J113: -49.0430622 | K113: 0.2392344498 | L113: -37.08133971 | M113: 3.229665072
A114: 10.2 | B114: -49.34210526 | C114: 50 | D114: -49.34210526 | E114: 75 | F114: -48.44497608 | G114: 52.27272727 | H114: -66.08851675 | I114: 78.40909091 | J114: -49.0430622 | K114: 71.59090909 | L114: -37.08133971 | M114: 47.72727273
A115: 10.3 | B115: -44.44210526 | C115: 49 | D115: -41.99210526 | E115: 73.5 | F115: -43.31770335 | G115: 51.27272727 | H115: -58.39760766 | I115: 76.90909091 | J115: -42.03397129 | K115: 70.09090909 | L115: -32.40861244 | M115: 46.72727273
A116: 10.4 | B116: -39.74210526 | C116: 48 | D116: -34.94210526 | E116: 72 | F116: -38.39043062 | G116: 50.27272727 | H116: -51.00669856 | I116: 75.40909091 | J116: -35.32488038 | K116: 68.59090909 | L116: -27.93588517 | M116: 45.72727273
A117: 10.5 | B117: -35.24210526 | C117: 47 | D117: -28.19210526 | E117: 70.5 | F117: -33.66315789 | G117: 49.27272727 | H117: -43.91578947 | I117: 73.90909091 | J117: -28.91578947 | K117: 67.09090909 | L117: -23.66315789 | M117: 44.72727273
A118: 10.6 | B118: -30.94210526 | C118: 46 | D118: -21.74210526 | E118: 69 | F118: -29.13588517 | G118: 48.27272727 | H118: -37.12488038 | I118: 72.40909091 | J118: -22.80669856 | K118: 65.59090909 | L118: -19.59043062 | M118: 43.72727273
A119: 10.7 | B119: -26.84210526 | C119: 45 | D119: -15.59210526 | E119: 67.5 | F119: -24.80861244 | G119: 47.27272727 | H119: -30.63397129 | I119: 70.90909091 | J119: -16.99760766 | K119: 64.09090909 | L119: -15.71770335 | M119: 42.72727273
A120: 10.8 | B120: -22.94210526 | C120: 44 | D120: -9.742105263 | E120: 66 | F120: -20.68133971 | G120: 46.27272727 | H120: -24.4430622 | I120: 69.40909091 | J120: -11.48851675 | K120: 62.59090909 | L120: -12.04497608 | M120: 41.72727273
A121: 10.9 | B121: -19.24210526 | C121: 43 | D121: -4.192105263 | E121: 64.5 | F121: -16.75406699 | G121: 45.27272727 | H121: -18.55215311 | I121: 67.90909091 | J121: -6.279425837 | K121: 61.09090909 | L121: -8.572248804 | M121: 40.72727273
A122: 11 | B122: -15.74210526 | C122: 42 | D122: 1.057894737 | E122: 63 | F122: -13.02679426 | G122: 44.27272727 | H122: -12.96124402 | I122: 66.40909091 | J122: -1.370334928 | K122: 59.59090909 | L122: -5.299521531 | M122: 39.72727273
A123: 11.1 | B123: -12.44210526 | C123: 41 | D123: 6.007894737 | E123: 61.5 | F123: -9.499521531 | G123: 43.27272727 | H123: -7.670334928 | I123: 64.90909091 | J123: 3.238755981 | K123: 58.09090909 | L123: -2.226794258 | M123: 38.72727273
A124: 11.2 | B124: -9.342105263 | C124: 40 | D124: 10.65789474 | E124: 60 | F124: -6.172248804 | G124: 42.27272727 | H124: -2.679425837 | I124: 63.40909091 | J124: 7.54784689 | K124: 56.59090909 | L124: 0.6459330144 | M124: 37.72727273
A125: 11.3 | B125: -6.442105263 | C125: 39 | D125: 15.00789474 | E125: 58.5 | F125: -3.044976077 | G125: 41.27272727 | H125: 2.011483254 | I125: 61.90909091 | J125: 11.5569378 | K125: 55.09090909 | L125: 3.318660287 | M125: 36.72727273
A126: 11.4 | B126: -3.742105263 | C126: 38 | D126: 19.05789474 | E126: 57 | F126: -0.1177033493 | G126: 40.27272727 | H126: 6.402392344 | I126: 60.40909091 | J126: 15.26602871 | K126: 53.59090909 | L126: 5.79138756 | M126: 35.72727273
A127: 11.5 | B127: -1.242105263 | C127: 37 | D127: 22.80789474 | E127: 55.5 | F127: 2.609569378 | G127: 39.27272727 | H127: 10.49330144 | I127: 58.90909091 | J127: 18.67511962 | K127: 52.09090909 | L127: 8.064114833 | M127: 34.72727273
A128: 11.6 | B128: 1.057894737 | C128: 36 | D128: 26.25789474 | E128: 54 | F128: 5.136842105 | G128: 38.27272727 | H128: 14.28421053 | I128: 57.40909091 | J128: 21.78421053 | K128: 50.59090909 | L128: 10.13684211 | M128: 33.72727273
A129: 11.7 | B129: 3.157894737 | C129: 35 | D129: 29.40789474 | E129: 52.5 | F129: 7.464114833 | G129: 37.27272727 | H129: 17.77511962 | I129: 55.90909091 | J129: 24.59330144 | K129: 49.09090909 | L129: 12.00956938 | M129: 32.72727273
A130: 11.8 | B130: 5.057894737 | C130: 34 | D130: 32.25789474 | E130: 51 | F130: 9.59138756 | G130: 36.27272727 | H130: 20.96602871 | I130: 54.40909091 | J130: 27.10239234 | K130: 47.59090909 | L130: 13.68229665 | M130: 31.72727273
A131: 11.9 | B131: 6.757894737 | C131: 33 | D131: 34.80789474 | E131: 49.5 | F131: 11.51866029 | G131: 35.27272727 | H131: 23.8569378 | I131: 52.90909091 | J131: 29.31148325 | K131: 46.09090909 | L131: 15.15502392 | M131: 30.72727273
A132: 12 | B132: 8.257894737 | C132: 32 | D132: 37.05789474 | E132: 48 | F132: 13.24593301 | G132: 34.27272727 | H132: 26.44784689 | I132: 51.40909091 | J132: 31.22057416 | K132: 44.59090909 | L132: 16.4277512 | M132: 29.72727273
A133: 12.1 | B133: 9.557894737 | C133: 31 | D133: 39.00789474 | E133: 46.5 | F133: 14.77320574 | G133: 33.27272727 | H133: 28.73875598 | I133: 49.90909091 | J133: 32.82966507 | K133: 43.09090909 | L133: 17.50047847 | M133: 28.72727273
A134: 12.2 | B134: 10.65789474 | C134: 30 | D134: 40.65789474 | E134: 45 | F134: 16.10047847 | G134: 32.27272727 | H134: 30.72966507 | I134: 48.40909091 | J134: 34.13875598 | K134: 41.59090909 | L134: 18.37320574 | M134: 27.72727273
A135: 12.3 | B135: 11.55789474 | C135: 29 | D135: 42.00789474 | E135: 43.5 | F135: 17.2277512 | G135: 31.27272727 | H135: 32.42057416 | I135: 46.90909091 | J135: 35.14784689 | K135: 40.09090909 | L135: 19.04593301 | M135: 26.72727273
A136: 12.4 | B136: 12.25789474 | C136: 28 | D136: 43.05789474 | E136: 42 | F136: 18.15502392 | G136: 30.27272727 | H136: 33.81148325 | I136: 45.40909091 | J136: 35.8569378 | K136: 38.59090909 | L136: 19.51866029 | M136: 25.72727273
A137: 12.5 | B137: 12.75789474 | C137: 27 | D137: 43.80789474 | E137: 40.5 | F137: 18.88229665 | G137: 29.27272727 | H137: 34.90239234 | I137: 43.90909091 | J137: 36.26602871 | K137: 37.09090909 | L137: 19.79138756 | M137: 24.72727273
A138: 12.6 | B138: 13.05789474 | C138: 26 | D138: 44.25789474 | E138: 39 | F138: 19.40956938 | G138: 28.27272727 | H138: 35.69330144 | I138: 42.40909091 | J138: 36.37511962 | K138: 35.59090909 | L138: 19.86411483 | M138: 23.72727273
A139: 12.7 | B139: 13.15789474 | C139: 25 | D139: 44.40789474 | E139: 37.5 | F139: 19.73684211 | G139: 27.27272727 | H139: 36.18421053 | I139: 40.90909091 | J139: 36.18421053 | K139: 34.09090909 | L139: 19.73684211 | M139: 22.72727273
A140: 12.8 | B140: 13.05789474 | C140: 24 | D140: 44.25789474 | E140: 36 | F140: 19.86411483 | G140: 26.27272727 | H140: 36.37511962 | I140: 39.40909091 | J140: 35.69330144 | K140: 32.59090909 | L140: 19.40956938 | M140: 21.72727273
A141: 12.9 | B141: 12.75789474 | C141: 23 | D141: 43.80789474 | E141: 34.5 | F141: 19.79138756 | G141: 25.27272727 | H141: 36.26602871 | I141: 37.90909091 | J141: 34.90239234 | K141: 31.09090909 | L141: 18.88229665 | M141: 20.72727273
A142: 13 | B142: 12.25789474 | C142: 22 | D142: 43.05789474 | E142: 33 | F142: 19.51866029 | G142: 24.27272727 | H142: 35.8569378 | I142: 36.40909091 | J142: 33.81148325 | K142: 29.59090909 | L142: 18.15502392 | M142: 19.72727273
A143: 13.1 | B143: 11.55789474 | C143: 21 | D143: 42.00789474 | E143: 31.5 | F143: 19.04593301 | G143: 23.27272727 | H143: 35.14784689 | I143: 34.90909091 | J143: 32.42057416 | K143: 28.09090909 | L143: 17.2277512 | M143: 18.72727273
A144: 13.2 | B144: 10.65789474 | C144: 20 | D144: 40.65789474 | E144: 30 | F144: 18.37320574 | G144: 22.27272727 | H144: 34.13875598 | I144: 33.40909091 | J144: 30.72966507 | K144: 26.59090909 | L144: 16.10047847 | M144: 17.72727273
A145: 13.3 | B145: 9.557894737 | C145: 19 | D145: 39.00789474 | E145: 28.5 | F145: 17.50047847 | G145: 21.27272727 | H145: 32.82966507 | I145: 31.90909091 | J145: 28.73875598 | K145: 25.09090909 | L145: 14.77320574 | M145: 16.72727273
A146: 13.4 | B146: 8.257894737 | C146: 18 | D146: 37.05789474 | E146: 27 | F146: 16.4277512 | G146: 20.27272727 | H146: 31.22057416 | I146: 30.40909091 | J146: 26.44784689 | K146: 23.59090909 | L146: 13.24593301 | M146: 15.72727273
A147: 13.5 | B147: 6.757894737 | C147: 17 | D147: 34.80789474 | E147: 25.5 | F147: 15.15502392 | G147: 19.27272727 | H147: 29.31148325 | I147: 28.90909091 | J147: 23.8569378 | K147: 22.09090909 | L147: 11.51866029 | M147: 14.72727273
A148: 13.6 | B148: 5.057894737 | C148: 16 | D148: 32.25789474 | E148: 24 | F148: 13.68229665 | G148: 18.27272727 | H148: 27.10239234 | I148: 27.40909091 | J148: 20.96602871 | K148: 20.59090909 | L148: 9.59138756 | M148: 13.72727273
A149: 13.7 | B149: 3.157894737 | C149: 15 | D149: 29.40789474 | E149: 22.5 | F149: 12.00956938 | G149: 17.27272727 | H149: 24.59330144 | I149: 25.90909091 | J149: 17.77511962 | K149: 19.09090909 | L149: 7.464114833 | M149: 12.72727273
A150: 13.8 | B150: 1.057894737 | C150: 14 | D150: 26.25789474 | E150: 21 | F150: 10.13684211 | G150: 16.27272727 | H150: 21.78421053 | I150: 24.40909091 | J150: 14.28421053 | K150: 17.59090909 | L150: 5.136842105 | M150: 11.72727273
A151: 13.9 | B151: -1.242105263 | C151: 13 | D151: 22.80789474 | E151: 19.5 | F151: 8.064114833 | G151: 15.27272727 | H151: 18.67511962 | I151: 22.90909091 | J151: 10.49330144 | K151: 16.09090909 | L151: 2.609569378 | M151: 10.72727273
A152: 14 | B152: -3.742105263 | C152: 12 | D152: 19.05789474 | E152: 18 | F152: 5.79138756 | G152: 14.27272727 | H152: 15.26602871 | I152: 21.40909091 | J152: 6.402392344 | K152: 14.59090909 | L152: -0.1177033493 | M152: 9.727272727
A153: 14.1 | B153: -6.442105263 | C153: 11 | D153: 15.00789474 | E153: 16.5 | F153: 3.318660287 | G153: 13.27272727 | H153: 11.5569378 | I153: 19.90909091 | J153: 2.011483254 | K153: 13.09090909 | L153: -3.044976077 | M153: 8.727272727
A154: 14.2 | B154: -9.342105263 | C154: 10 | D154: 10.65789474 | E154: 15 | F154: 0.6459330144 | G154: 12.27272727 | H154: 7.54784689 | I154: 18.40909091 | J154: -2.679425837 | K154: 11.59090909 | L154: -6.172248804 | M154: 7.727272727
A155: 14.3 | B155: -12.44210526 | C155: 9 | D155: 6.007894737 | E155: 13.5 | F155: -2.226794258 | G155: 11.27272727 | H155: 3.238755981 | I155: 16.90909091 | J155: -7.670334928 | K155: 10.09090909 | L155: -9.499521531 | M155: 6.727272727
A156: 14.4 | B156: -15.74210526 | C156: 8 | D156: 1.057894737 | E156: 12 | F156: -5.299521531 | G156: 10.27272727 | H156: -1.370334928 | I156: 15.40909091 | J156: -12.96124402 | K156: 8.590909091 | L156: -13.02679426 | M156: 5.727272727
A157: 14.5 | B157: -19.24210526 | C157: 7 | D157: -4.192105263 | E157: 10.5 | F157: -8.572248804 | G157: 9.272727273 | H157: -6.279425837 | I157: 13.90909091 | J157: -18.55215311 | K157: 7.090909091 | L157: -16.75406699 | M157: 4.727272727
A158: 14.6 | B158: -22.94210526 | C158: 6 | D158: -9.742105263 | E158: 9 | F158: -12.04497608 | G158: 8.272727273 | H158: -11.48851675 | I158: 12.40909091 | J158: -24.4430622 | K158: 5.590909091 | L158: -20.68133971 | M158: 3.727272727
A159: 14.7 | B159: -26.84210526 | C159: 5 | D159: -15.59210526 | E159: 7.5 | F159: -15.71770335 | G159: 7.272727273 | H159: -16.99760766 | I159: 10.90909091 | J159: -30.63397129 | K159: 4.090909091 | L159: -24.80861244 | M159: 2.727272727
A160: 14.8 | B160: -30.94210526 | C160: 4 | D160: -21.74210526 | E160: 6 | F160: -19.59043062 | G160: 6.272727273 | H160: -22.80669856 | I160: 9.409090909 | J160: -37.12488038 | K160: 2.590909091 | L160: -29.13588517 | M160: 1.727272727
A161: 14.9 | B161: -35.24210526 | C161: 3 | D161: -28.19210526 | E161: 4.5 | F161: -23.66315789 | G161: 5.272727273 | H161: -28.91578947 | I161: 7.909090909 | J161: -43.91578947 | K161: 1.090909091 | L161: -33.66315789 | M161: 0.7272727273
A162: 15 | B162: -39.74210526 | C162: 2 | D162: -34.94210526 | E162: 3 | F162: -27.93588517 | G162: 4.272727273 | H162: -35.32488038 | I162: 6.409090909 | J162: -51.00669856 | K162: -0.4090909091 | L162: -38.39043062 | M162: -0.2727272727
A163: 15.1 | B163: -44.44210526 | C163: 1 | D163: -41.99210526 | E163: 1.5 | F163: -32.40861244 | G163: 3.272727273 | H163: -42.03397129 | I163: 4.909090909 | J163: -58.39760766 | K163: -1.909090909 | L163: -43.31770335 | M163: -1.272727273
A164: 15.2 | B164: -49.34210526 | C164: 1.953992523e-14 | D164: -49.34210526 | E164: 2.842170943e-14 | F164: -37.08133971 | G164: 2.272727273 | H164: -49.0430622 | I164: 3.409090909 | J164: -66.08851675 | K164: -3.409090909 | L164: -48.44497608 | M164: -2.272727273
A165: 15.3 | B165: -49.34210526 | C165: 71.71052632 | D165: -49.34210526 | E165: 46.71052632 | F165: -37.08133971 | G165: 46.77033493 | H165: -49.0430622 | I165: 49.76076555 | J165: -66.08851675 | K165: 75.89712919 | L165: -48.44497608 | M165: 68.36124402
A166: 15.4 | B166: -42.32105263 | C166: 70.21052632 | D166: -44.77105263 | E166: 45.71052632 | F166: -32.50430622 | G166: 45.77033493 | H166: -44.16698565 | I166: 48.76076555 | J166: -58.64880383 | K166: 74.39712919 | L166: -41.75885167 | M166: 66.86124402
A167: 15.5 | B167: -35.6 | C167: 68.71052632 | D167: -40.4 | E167: 44.71052632 | F167: -28.12727273 | G167: 44.77033493 | H167: -39.49090909 | I167: 47.76076555 | J167: -51.50909091 | K167: 72.89712919 | L167: -35.37272727 | M167: 65.36124402
A168: 15.6 | B168: -29.17894737 | C168: 67.21052632 | D168: -36.22894737 | E168: 43.71052632 | F168: -23.95023923 | G168: 43.77033493 | H168: -35.01483254 | I168: 46.76076555 | J168: -44.66937799 | K168: 71.39712919 | L168: -29.28660287 | M168: 63.86124402
A169: 15.7 | B169: -23.05789474 | C169: 65.71052632 | D169: -32.25789474 | E169: 42.71052632 | F169: -19.97320574 | G169: 42.77033493 | H169: -30.73875598 | I169: 45.76076555 | J169: -38.12966507 | K169: 69.89712919 | L169: -23.50047847 | M169: 62.36124402
A170: 15.8 | B170: -17.23684211 | C170: 64.21052632 | D170: -28.48684211 | E170: 41.71052632 | F170: -16.19617225 | G170: 41.77033493 | H170: -26.66267943 | I170: 44.76076555 | J170: -31.88995215 | K170: 68.39712919 | L170: -18.01435407 | M170: 60.86124402
A171: 15.9 | B171: -11.71578947 | C171: 62.71052632 | D171: -24.91578947 | E171: 40.71052632 | F171: -12.61913876 | G171: 40.77033493 | H171: -22.78660287 | I171: 43.76076555 | J171: -25.95023923 | K171: 66.89712919 | L171: -12.82822967 | M171: 59.36124402
A172: 16 | B172: -6.494736842 | C172: 61.21052632 | D172: -21.54473684 | E172: 39.71052632 | F172: -9.242105263 | G172: 39.77033493 | H172: -19.11052632 | I172: 42.76076555 | J172: -20.31052632 | K172: 65.39712919 | L172: -7.942105263 | M172: 57.86124402
A173: 16.1 | B173: -1.573684211 | C173: 59.71052632 | D173: -18.37368421 | E173: 38.71052632 | F173: -6.06507177 | G173: 38.77033493 | H173: -15.63444976 | I173: 41.76076555 | J173: -14.9708134 | K173: 63.89712919 | L173: -3.355980861 | M173: 56.36124402
A174: 16.2 | B174: 3.047368421 | C174: 58.21052632 | D174: -15.40263158 | E174: 37.71052632 | F174: -3.088038278 | G174: 37.77033493 | H174: -12.35837321 | I174: 40.76076555 | J174: -9.931100478 | K174: 62.39712919 | L174: 0.9301435407 | M174: 54.86124402
A175: 16.3 | B175: 7.368421053 | C175: 56.71052632 | D175: -12.63157895 | E175: 36.71052632 | F175: -0.3110047847 | G175: 36.77033493 | H175: -9.282296651 | I175: 39.76076555 | J175: -5.19138756 | K175: 60.89712919 | L175: 4.916267943 | M175: 53.36124402
A176: 16.4 | B176: 11.38947368 | C176: 55.21052632 | D176: -10.06052632 | E176: 35.71052632 | F176: 2.266028708 | G176: 35.77033493 | H176: -6.406220096 | I176: 38.76076555 | J176: -0.7516746411 | K176: 59.39712919 | L176: 8.602392344 | M176: 51.86124402
A177: 16.5 | B177: 15.11052632 | C177: 53.71052632 | D177: -7.689473684 | E177: 34.71052632 | F177: 4.643062201 | G177: 34.77033493 | H177: -3.730143541 | I177: 37.76076555 | J177: 3.388038278 | K177: 57.89712919 | L177: 11.98851675 | M177: 50.36124402
A178: 16.6 | B178: 18.53157895 | C178: 52.21052632 | D178: -5.518421053 | E178: 33.71052632 | F178: 6.820095694 | G178: 33.77033493 | H178: -1.254066986 | I178: 36.76076555 | J178: 7.227751196 | K178: 56.39712919 | L178: 15.07464115 | M178: 48.86124402
A179: 16.7 | B179: 21.65263158 | C179: 50.71052632 | D179: -3.547368421 | E179: 32.71052632 | F179: 8.797129187 | G179: 32.77033493 | H179: 1.022009569 | I179: 35.76076555 | J179: 10.76746411 | K179: 54.89712919 | L179: 17.86076555 | M179: 47.36124402
A180: 16.8 | B180: 24.47368421 | C180: 49.21052632 | D180: -1.776315789 | E180: 31.71052632 | F180: 10.57416268 | G180: 31.77033493 | H180: 3.098086124 | I180: 34.76076555 | J180: 14.00717703 | K180: 53.39712919 | L180: 20.34688995 | M180: 45.86124402
A181: 16.9 | B181: 26.99473684 | C181: 47.71052632 | D181: -0.2052631579 | E181: 30.71052632 | F181: 12.15119617 | G181: 30.77033493 | H181: 4.974162679 | I181: 33.76076555 | J181: 16.94688995 | K181: 51.89712919 | L181: 22.53301435 | M181: 44.36124402
A182: 17 | B182: 29.21578947 | C182: 46.21052632 | D182: 1.165789474 | E182: 29.71052632 | F182: 13.52822967 | G182: 29.77033493 | H182: 6.650239234 | I182: 32.76076555 | J182: 19.58660287 | K182: 50.39712919 | L182: 24.41913876 | M182: 42.86124402
A183: 17.1 | B183: 31.13684211 | C183: 44.71052632 | D183: 2.336842105 | E183: 28.71052632 | F183: 14.70526316 | G183: 28.77033493 | H183: 8.126315789 | I183: 31.76076555 | J183: 21.92631579 | K183: 48.89712919 | L183: 26.00526316 | M183: 41.36124402
A184: 17.2 | B184: 32.75789474 | C184: 43.21052632 | D184: 3.307894737 | E184: 27.71052632 | F184: 15.68229665 | G184: 27.77033493 | H184: 9.402392344 | I184: 30.76076555 | J184: 23.96602871 | K184: 47.39712919 | L184: 27.29138756 | M184: 39.86124402
A185: 17.3 | B185: 34.07894737 | C185: 41.71052632 | D185: 4.078947368 | E185: 26.71052632 | F185: 16.45933014 | G185: 26.77033493 | H185: 10.4784689 | I185: 29.76076555 | J185: 25.70574163 | K185: 45.89712919 | L185: 28.27751196 | M185: 38.36124402
A186: 17.4 | B186: 35.1 | C186: 40.21052632 | D186: 4.65 | E186: 25.71052632 | F186: 17.03636364 | G186: 25.77033493 | H186: 11.35454545 | I186: 28.76076555 | J186: 27.14545455 | K186: 44.39712919 | L186: 28.96363636 | M186: 36.86124402
A187: 17.5 | B187: 35.82105263 | C187: 38.71052632 | D187: 5.021052632 | E187: 24.71052632 | F187: 17.41339713 | G187: 24.77033493 | H187: 12.03062201 | I187: 27.76076555 | J187: 28.28516746 | K187: 42.89712919 | L187: 29.34976077 | M187: 35.36124402
A188: 17.6 | B188: 36.24210526 | C188: 37.21052632 | D188: 5.192105263 | E188: 23.71052632 | F188: 17.59043062 | G188: 23.77033493 | H188: 12.50669856 | I188: 26.76076555 | J188: 29.12488038 | K188: 41.39712919 | L188: 29.43588517 | M188: 33.86124402
A189: 17.7 | B189: 36.36315789 | C189: 35.71052632 | D189: 5.163157895 | E189: 22.71052632 | F189: 17.56746411 | G189: 22.77033493 | H189: 12.78277512 | I189: 25.76076555 | J189: 29.6645933 | K189: 39.89712919 | L189: 29.22200957 | M189: 32.36124402
A190: 17.8 | B190: 36.18421053 | C190: 34.21052632 | D190: 4.934210526 | E190: 21.71052632 | F190: 17.34449761 | G190: 21.77033493 | H190: 12.85885167 | I190: 24.76076555 | J190: 29.90430622 | K190: 38.39712919 | L190: 28.70813397 | M190: 30.86124402
A191: 17.9 | B191: 35.70526316 | C191: 32.71052632 | D191: 4.505263158 | E191: 20.71052632 | F191: 16.9215311 | G191: 20.77033493 | H191: 12.73492823 | I191: 23.76076555 | J191: 29.84401914 | K191: 36.89712919 | L191: 27.89425837 | M191: 29.36124402
A192: 18 | B192: 34.92631579 | C192: 31.21052632 | D192: 3.876315789 | E192: 19.71052632 | F192: 16.29856459 | G192: 19.77033493 | H192: 12.41100478 | I192: 22.76076555 | J192: 29.48373206 | K192: 35.39712919 | L192: 26.78038278 | M192: 27.86124402
A193: 18.1 | B193: 33.84736842 | C193: 29.71052632 | D193: 3.047368421 | E193: 18.71052632 | F193: 15.47559809 | G193: 18.77033493 | H193: 11.88708134 | I193: 21.76076555 | J193: 28.82344498 | K193: 33.89712919 | L193: 25.36650718 | M193: 26.36124402
A194: 18.2 | B194: 32.46842105 | C194: 28.21052632 | D194: 2.018421053 | E194: 17.71052632 | F194: 14.45263158 | G194: 17.77033493 | H194: 11.16315789 | I194: 20.76076555 | J194: 27.86315789 | K194: 32.39712919 | L194: 23.65263158 | M194: 24.86124402
A195: 18.3 | B195: 30.78947368 | C195: 26.71052632 | D195: 0.7894736842 | E195: 16.71052632 | F195: 13.22966507 | G195: 16.77033493 | H195: 10.23923445 | I195: 19.76076555 | J195: 26.60287081 | K195: 30.89712919 | L195: 21.63875598 | M195: 23.36124402
A196: 18.4 | B196: 28.81052632 | C196: 25.21052632 | D196: -0.6394736842 | E196: 15.71052632 | F196: 11.80669856 | G196: 15.77033493 | H196: 9.115311005 | I196: 18.76076555 | J196: 25.04258373 | K196: 29.39712919 | L196: 19.32488038 | M196: 21.86124402
A197: 18.5 | B197: 26.53157895 | C197: 23.71052632 | D197: -2.268421053 | E197: 14.71052632 | F197: 10.18373206 | G197: 14.77033493 | H197: 7.79138756 | I197: 17.76076555 | J197: 23.18229665 | K197: 27.89712919 | L197: 16.71100478 | M197: 20.36124402
A198: 18.6 | B198: 23.95263158 | C198: 22.21052632 | D198: -4.097368421 | E198: 13.71052632 | F198: 8.36076555 | G198: 13.77033493 | H198: 6.267464115 | I198: 16.76076555 | J198: 21.02200957 | K198: 26.39712919 | L198: 13.79712919 | M198: 18.86124402
A199: 18.7 | B199: 21.07368421 | C199: 20.71052632 | D199: -6.126315789 | E199: 12.71052632 | F199: 6.337799043 | G199: 12.77033493 | H199: 4.54354067 | I199: 15.76076555 | J199: 18.56172249 | K199: 24.89712919 | L199: 10.58325359 | M199: 17.36124402
A200: 18.8 | B200: 17.89473684 | C200: 19.21052632 | D200: -8.355263158 | E200: 11.71052632 | F200: 4.114832536 | G200: 11.77033493 | H200: 2.619617225 | I200: 14.76076555 | J200: 15.80143541 | K200: 23.39712919 | L200: 7.06937799 | M200: 15.86124402
A201: 18.9 | B201: 14.41578947 | C201: 17.71052632 | D201: -10.78421053 | E201: 10.71052632 | F201: 1.691866029 | G201: 10.77033493 | H201: 0.4956937799 | I201: 13.76076555 | J201: 12.74114833 | K201: 21.89712919 | L201: 3.255502392 | M201: 14.36124402
A202: 19 | B202: 10.63684211 | C202: 16.21052632 | D202: -13.41315789 | E202: 9.710526316 | F202: -0.9311004785 | G202: 9.770334928 | H202: -1.828229665 | I202: 12.76076555 | J202: 9.380861244 | K202: 20.39712919 | L202: -0.8583732057 | M202: 12.86124402
... 65 more rows

Sheet hres
A1: 0 | B1: 0 | C1: 0 | D1: 0 | E1: 36.84210526 | F1: 0 | G1: 61.84210526 | H1: 0 | I1: 58.6722488 | J1: 0 | K1: 37.67942584 | L1: 0 | M1: 39.95215311 | N1: 0 | O1: 39.35406699
A2: 5 | B2: 0 | C2: 0.1 | D2: 3.584210526 | E2: 35.84210526 | F2: 6.034210526 | G2: 60.34210526 | H2: 5.71722488 | I2: 57.1722488 | J2: 3.667942584 | K2: 36.67942584 | L2: 3.895215311 | M2: 38.95215311 | N2: 3.835406699 | O2: 38.35406699
A3: 10 | B3: 0 | C3: 0.2 | D3: 6.968421053 | E3: 34.84210526 | F3: 11.76842105 | G3: 58.84210526 | H3: 11.13444976 | I3: 55.6722488 | J3: 7.135885167 | K3: 35.67942584 | L3: 7.590430622 | M3: 37.95215311 | N3: 7.470813397 | O3: 37.35406699
A4: 15 | B4: 0 | C4: 0.3 | D4: 10.15263158 | E4: 33.84210526 | F4: 17.20263158 | G4: 57.34210526 | H4: 16.25167464 | I4: 54.1722488 | J4: 10.40382775 | K4: 34.67942584 | L4: 11.08564593 | M4: 36.95215311 | N4: 10.9062201 | O4: 36.35406699
A5: 20 | B5: 0 | C5: 0.4 | D5: 13.13684211 | E5: 32.84210526 | F5: 22.33684211 | G5: 55.84210526 | H5: 21.06889952 | I5: 52.6722488 | J5: 13.47177033 | K5: 33.67942584 | L5: 14.38086124 | M5: 35.95215311 | N5: 14.14162679 | O5: 35.35406699
A6: 25 | B6: 0 | C6: 0.5 | D6: 15.92105263 | E6: 31.84210526 | F6: 27.17105263 | G6: 54.34210526 | H6: 25.5861244 | I6: 51.1722488 | J6: 16.33971292 | K6: 32.67942584 | L6: 17.47607656 | M6: 34.95215311 | N6: 17.17703349 | O6: 34.35406699
C7: 0.6 | D7: 18.50526316 | E7: 30.84210526 | F7: 31.70526316 | G7: 52.84210526 | H7: 29.80334928 | I7: 49.6722488 | J7: 19.0076555 | K7: 31.67942584 | L7: 20.37129187 | M7: 33.95215311 | N7: 20.01244019 | O7: 33.35406699
C8: 0.7 | D8: 20.88947368 | E8: 29.84210526 | F8: 35.93947368 | G8: 51.34210526 | H8: 33.72057416 | I8: 48.1722488 | J8: 21.47559809 | K8: 30.67942584 | L8: 23.06650718 | M8: 32.95215311 | N8: 22.64784689 | O8: 32.35406699
C9: 0.8 | D9: 23.07368421 | E9: 28.84210526 | F9: 39.87368421 | G9: 49.84210526 | H9: 37.33779904 | I9: 46.6722488 | J9: 23.74354067 | K9: 29.67942584 | L9: 25.56172249 | M9: 31.95215311 | N9: 25.08325359 | O9: 31.35406699
C10: 0.9 | D10: 25.05789474 | E10: 27.84210526 | F10: 43.50789474 | G10: 48.34210526 | H10: 40.65502392 | I10: 45.1722488 | J10: 25.81148325 | K10: 28.67942584 | L10: 27.8569378 | M10: 30.95215311 | N10: 27.31866029 | O10: 30.35406699
C11: 1 | D11: 26.84210526 | E11: 26.84210526 | F11: 46.84210526 | G11: 46.84210526 | H11: 43.6722488 | I11: 43.6722488 | J11: 27.67942584 | K11: 27.67942584 | L11: 29.95215311 | M11: 29.95215311 | N11: 29.35406699 | O11: 29.35406699
C12: 1.1 | D12: 28.42631579 | E12: 25.84210526 | F12: 49.87631579 | G12: 45.34210526 | H12: 46.38947368 | I12: 42.1722488 | J12: 29.34736842 | K12: 26.67942584 | L12: 31.84736842 | M12: 28.95215311 | N12: 31.18947368 | O12: 28.35406699
C13: 1.2 | D13: 29.81052632 | E13: 24.84210526 | F13: 52.61052632 | G13: 43.84210526 | H13: 48.80669856 | I13: 40.6722488 | J13: 30.815311 | K13: 25.67942584 | L13: 33.54258373 | M13: 27.95215311 | N13: 32.82488038 | O13: 27.35406699
C14: 1.3 | D14: 30.99473684 | E14: 23.84210526 | F14: 55.04473684 | G14: 42.34210526 | H14: 50.92392344 | I14: 39.1722488 | J14: 32.08325359 | K14: 24.67942584 | L14: 35.03779904 | M14: 26.95215311 | N14: 34.26028708 | O14: 26.35406699
C15: 1.4 | D15: 31.97894737 | E15: 22.84210526 | F15: 57.17894737 | G15: 40.84210526 | H15: 52.74114833 | I15: 37.6722488 | J15: 33.15119617 | K15: 23.67942584 | L15: 36.33301435 | M15: 25.95215311 | N15: 35.49569378 | O15: 25.35406699
C16: 1.5 | D16: 32.76315789 | E16: 21.84210526 | F16: 59.01315789 | G16: 39.34210526 | H16: 54.25837321 | I16: 36.1722488 | J16: 34.01913876 | K16: 22.67942584 | L16: 37.42822967 | M16: 24.95215311 | N16: 36.53110048 | O16: 24.35406699
C17: 1.6 | D17: 33.34736842 | E17: 20.84210526 | F17: 60.54736842 | G17: 37.84210526 | H17: 55.47559809 | I17: 34.6722488 | J17: 34.68708134 | K17: 21.67942584 | L17: 38.32344498 | M17: 23.95215311 | N17: 37.36650718 | O17: 23.35406699
C18: 1.7 | D18: 33.73157895 | E18: 19.84210526 | F18: 61.78157895 | G18: 36.34210526 | H18: 56.39282297 | I18: 33.1722488 | J18: 35.15502392 | K18: 20.67942584 | L18: 39.01866029 | M18: 22.95215311 | N18: 38.00191388 | O18: 22.35406699
C19: 1.8 | D19: 33.91578947 | E19: 18.84210526 | F19: 62.71578947 | G19: 34.84210526 | H19: 57.01004785 | I19: 31.6722488 | J19: 35.42296651 | K19: 19.67942584 | L19: 39.5138756 | M19: 21.95215311 | N19: 38.43732057 | O19: 21.35406699
C20: 1.9 | D20: 33.9 | E20: 17.84210526 | F20: 63.35 | G20: 33.34210526 | H20: 57.32727273 | I20: 30.1722488 | J20: 35.49090909 | K20: 18.67942584 | L20: 39.80909091 | M20: 20.95215311 | N20: 38.67272727 | O20: 20.35406699
C21: 2 | D21: 33.68421053 | E21: 16.84210526 | F21: 63.68421053 | G21: 31.84210526 | H21: 57.34449761 | I21: 28.6722488 | J21: 35.35885167 | K21: 17.67942584 | L21: 39.90430622 | M21: 19.95215311 | N21: 38.70813397 | O21: 19.35406699
C22: 2.1 | D22: 33.26842105 | E22: 15.84210526 | F22: 63.71842105 | G22: 30.34210526 | H22: 57.06172249 | I22: 27.1722488 | J22: 35.02679426 | K22: 16.67942584 | L22: 39.79952153 | M22: 18.95215311 | N22: 38.54354067 | O22: 18.35406699
C23: 2.2 | D23: 32.65263158 | E23: 14.84210526 | F23: 63.45263158 | G23: 28.84210526 | H23: 56.47894737 | I23: 25.6722488 | J23: 34.49473684 | K23: 15.67942584 | L23: 39.49473684 | M23: 17.95215311 | N23: 38.17894737 | O23: 17.35406699
C24: 2.3 | D24: 31.83684211 | E24: 13.84210526 | F24: 62.88684211 | G24: 27.34210526 | H24: 55.59617225 | I24: 24.1722488 | J24: 33.76267943 | K24: 14.67942584 | L24: 38.98995215 | M24: 16.95215311 | N24: 37.61435407 | O24: 16.35406699
C25: 2.4 | D25: 30.82105263 | E25: 12.84210526 | F25: 62.02105263 | G25: 25.84210526 | H25: 54.41339713 | I25: 22.6722488 | J25: 32.83062201 | K25: 13.67942584 | L25: 38.28516746 | M25: 15.95215311 | N25: 36.84976077 | O25: 15.35406699
C26: 2.5 | D26: 29.60526316 | E26: 11.84210526 | F26: 60.85526316 | G26: 24.34210526 | H26: 52.93062201 | I26: 21.1722488 | J26: 31.69856459 | K26: 12.67942584 | L26: 37.38038278 | M26: 14.95215311 | N26: 35.88516746 | O26: 14.35406699
C27: 2.6 | D27: 28.18947368 | E27: 10.84210526 | F27: 59.38947368 | G27: 22.84210526 | H27: 51.14784689 | I27: 19.6722488 | J27: 30.36650718 | K27: 11.67942584 | L27: 36.27559809 | M27: 13.95215311 | N27: 34.72057416 | O27: 13.35406699
C28: 2.7 | D28: 26.57368421 | E28: 9.842105263 | F28: 57.62368421 | G28: 21.34210526 | H28: 49.06507177 | I28: 18.1722488 | J28: 28.83444976 | K28: 10.67942584 | L28: 34.9708134 | M28: 12.95215311 | N28: 33.35598086 | O28: 12.35406699
C29: 2.8 | D29: 24.75789474 | E29: 8.842105263 | F29: 55.55789474 | G29: 19.84210526 | H29: 46.68229665 | I29: 16.6722488 | J29: 27.10239234 | K29: 9.679425837 | L29: 33.46602871 | M29: 11.95215311 | N29: 31.79138756 | O29: 11.35406699
C30: 2.9 | D30: 22.74210526 | E30: 7.842105263 | F30: 53.19210526 | G30: 18.34210526 | H30: 43.99952153 | I30: 15.1722488 | J30: 25.17033493 | K30: 8.679425837 | L30: 31.76124402 | M30: 10.95215311 | N30: 30.02679426 | O30: 10.35406699
C31: 3 | D31: 20.52631579 | E31: 6.842105263 | F31: 50.52631579 | G31: 16.84210526 | H31: 41.01674641 | I31: 13.6722488 | J31: 23.03827751 | K31: 7.679425837 | L31: 29.85645933 | M31: 9.95215311 | N31: 28.06220096 | O31: 9.354066986
C32: 3.1 | D32: 18.11052632 | E32: 5.842105263 | F32: 47.56052632 | G32: 15.34210526 | H32: 37.73397129 | I32: 12.1722488 | J32: 20.7062201 | K32: 6.679425837 | L32: 27.75167464 | M32: 8.95215311 | N32: 25.89760766 | O32: 8.354066986
C33: 3.2 | D33: 15.49473684 | E33: 4.842105263 | F33: 44.29473684 | G33: 13.84210526 | H33: 34.15119617 | I33: 10.6722488 | J33: 18.17416268 | K33: 5.679425837 | L33: 25.44688995 | M33: 7.95215311 | N33: 23.53301435 | O33: 7.354066986
C34: 3.3 | D34: 12.67894737 | E34: 3.842105263 | F34: 40.72894737 | G34: 12.34210526 | H34: 30.26842105 | I34: 9.172248804 | J34: 15.44210526 | K34: 4.679425837 | L34: 22.94210526 | M34: 6.95215311 | N34: 20.96842105 | O34: 6.354066986
C35: 3.4 | D35: 9.663157895 | E35: 2.842105263 | F35: 36.86315789 | G35: 10.84210526 | H35: 26.08564593 | I35: 7.672248804 | J35: 12.51004785 | K35: 3.679425837 | L35: 20.23732057 | M35: 5.95215311 | N35: 18.20382775 | O35: 5.354066986
C36: 3.5 | D36: 6.447368421 | E36: 1.842105263 | F36: 32.69736842 | G36: 9.342105263 | H36: 21.60287081 | I36: 6.172248804 | J36: 9.377990431 | K36: 2.679425837 | L36: 17.33253589 | M36: 4.95215311 | N36: 15.23923445 | O36: 4.354066986
C37: 3.6 | D37: 3.031578947 | E37: 0.8421052632 | F37: 28.23157895 | G37: 7.842105263 | H37: 16.82009569 | I37: 4.672248804 | J37: 6.045933014 | K37: 1.679425837 | L37: 14.2277512 | M37: 3.95215311 | N37: 12.07464115 | O37: 3.354066986
C38: 3.7 | D38: -0.5842105263 | E38: -0.1578947368 | F38: 23.46578947 | G38: 6.342105263 | H38: 11.73732057 | I38: 3.172248804 | J38: 2.513875598 | K38: 0.6794258373 | L38: 10.92296651 | M38: 2.95215311 | N38: 8.710047847 | O38: 2.354066986
C39: 3.8 | D39: -4.4 | E39: -1.157894737 | F39: 18.4 | G39: 4.842105263 | H39: 6.354545455 | I39: 1.672248804 | J39: -1.218181818 | K39: -0.3205741627 | L39: 7.418181818 | M39: 1.95215311 | N39: 5.145454545 | O39: 1.354066986
C40: 3.9 | D40: -8.415789474 | E40: -2.157894737 | F40: 13.03421053 | G40: 3.342105263 | H40: 0.6717703349 | I40: 0.1722488038 | J40: -5.150239234 | K40: -1.320574163 | L40: 3.713397129 | M40: 0.95215311 | N40: 1.380861244 | O40: 0.3540669856
C41: 4 | D41: -12.63157895 | E41: -3.157894737 | F41: 7.368421053 | G41: 1.842105263 | H41: -5.311004785 | I41: -1.327751196 | J41: -9.282296651 | K41: -2.320574163 | L41: -0.1913875598 | M41: -0.04784688995 | N41: -2.583732057 | O41: -0.6459330144
C42: 4.1 | D42: -17.04736842 | E42: -4.157894737 | F42: 1.402631579 | G42: 0.3421052632 | H42: -11.5937799 | I42: -2.827751196 | J42: -13.61435407 | K42: -3.320574163 | L42: -4.296172249 | M42: -1.04784689 | N42: -6.748325359 | O42: -1.645933014
C43: 4.2 | D43: -21.66315789 | E43: -5.157894737 | F43: -4.863157895 | G43: -1.157894737 | H43: -18.17655502 | I43: -4.327751196 | J43: -18.14641148 | K43: -4.320574163 | L43: -8.600956938 | M43: -2.04784689 | N43: -11.11291866 | O43: -2.645933014
C44: 4.3 | D44: -26.47894737 | E44: -6.157894737 | F44: -11.42894737 | G44: -2.657894737 | H44: -25.05933014 | I44: -5.827751196 | J44: -22.8784689 | K44: -5.320574163 | L44: -13.10574163 | M44: -3.04784689 | N44: -15.67751196 | O44: -3.645933014
C45: 4.4 | D45: -31.49473684 | E45: -7.157894737 | F45: -18.29473684 | G45: -4.157894737 | H45: -32.24210526 | I45: -7.327751196 | J45: -27.81052632 | K45: -6.320574163 | L45: -17.81052632 | M45: -4.04784689 | N45: -20.44210526 | O45: -4.645933014
C46: 4.5 | D46: -36.71052632 | E46: -8.157894737 | F46: -25.46052632 | G46: -5.657894737 | H46: -39.72488038 | I46: -8.827751196 | J46: -32.94258373 | K46: -7.320574163 | L46: -22.715311 | M46: -5.04784689 | N46: -25.40669856 | O46: -5.645933014
C47: 4.6 | D47: -42.12631579 | E47: -9.157894737 | F47: -32.92631579 | G47: -7.157894737 | H47: -47.5076555 | I47: -10.3277512 | J47: -38.27464115 | K47: -8.320574163 | L47: -27.82009569 | M47: -6.04784689 | N47: -30.57129187 | O47: -6.645933014
C48: 4.7 | D48: -47.74210526 | E48: -10.15789474 | F48: -40.69210526 | G48: -8.657894737 | H48: -55.59043062 | I48: -11.8277512 | J48: -43.80669856 | K48: -9.320574163 | L48: -33.12488038 | M48: -7.04784689 | N48: -35.93588517 | O48: -7.645933014
C49: 4.8 | D49: -53.55789474 | E49: -11.15789474 | F49: -48.75789474 | G49: -10.15789474 | H49: -63.97320574 | I49: -13.3277512 | J49: -49.53875598 | K49: -10.32057416 | L49: -38.62966507 | M49: -8.04784689 | N49: -41.50047847 | O49: -8.645933014
C50: 4.9 | D50: -59.57368421 | E50: -12.15789474 | F50: -57.12368421 | G50: -11.65789474 | H50: -72.65598086 | I50: -14.8277512 | J50: -55.4708134 | K50: -11.32057416 | L50: -44.33444976 | M50: -9.04784689 | N50: -47.26507177 | O50: -9.645933014
C51: 5 | D51: -65.78947368 | E51: -13.15789474 | F51: -65.78947368 | G51: -13.15789474 | H51: -81.63875598 | I51: -16.3277512 | J51: -61.60287081 | K51: -12.32057416 | L51: -50.23923445 | M51: -10.04784689 | N51: -53.22966507 | O51: -10.64593301
C52: 5.1 | D52: -65.78947368 | E52: 78.28947368 | F52: -65.78947368 | G52: 53.28947368 | H52: -81.63875598 | I52: 81.63875598 | J52: -61.60287081 | K52: 74.10287081 | L52: -50.23923445 | M52: 50.23923445 | N52: -53.22966507 | O52: 53.22966507
C53: 5.2 | D53: -58.11052632 | E53: 76.78947368 | F53: -60.56052632 | G53: 52.28947368 | H53: -73.62488038 | I53: 80.13875598 | J53: -54.34258373 | K53: 72.60287081 | L53: -45.315311 | M53: 49.23923445 | N53: -48.00669856 | O53: 52.22966507
C54: 5.3 | D54: -50.73157895 | E54: 75.28947368 | F54: -55.53157895 | G54: 51.28947368 | H54: -65.91100478 | I54: 78.63875598 | J54: -47.38229665 | K54: 71.10287081 | L54: -40.59138756 | M54: 48.23923445 | N54: -42.98373206 | O54: 51.22966507
C55: 5.4 | D55: -43.65263158 | E55: 73.78947368 | F55: -50.70263158 | G55: 50.28947368 | H55: -58.49712919 | I55: 77.13875598 | J55: -40.72200957 | K55: 69.60287081 | L55: -36.06746411 | M55: 47.23923445 | N55: -38.16076555 | O55: 50.22966507
C56: 5.5 | D56: -36.87368421 | E56: 72.28947368 | F56: -46.07368421 | G56: 49.28947368 | H56: -51.38325359 | I56: 75.63875598 | J56: -34.36172249 | K56: 68.10287081 | L56: -31.74354067 | M56: 46.23923445 | N56: -33.53779904 | O56: 49.22966507
C57: 5.6 | D57: -30.39473684 | E57: 70.78947368 | F57: -41.64473684 | G57: 48.28947368 | H57: -44.56937799 | I57: 74.13875598 | J57: -28.30143541 | K57: 66.60287081 | L57: -27.61961722 | M57: 45.23923445 | N57: -29.11483254 | O57: 48.22966507
C58: 5.7 | D58: -24.21578947 | E58: 69.28947368 | F58: -37.41578947 | G58: 47.28947368 | H58: -38.05550239 | I58: 72.63875598 | J58: -22.54114833 | K58: 65.10287081 | L58: -23.69569378 | M58: 44.23923445 | N58: -24.89186603 | O58: 47.22966507
C59: 5.8 | D59: -18.33684211 | E59: 67.78947368 | F59: -33.38684211 | G59: 46.28947368 | H59: -31.84162679 | I59: 71.13875598 | J59: -17.08086124 | K59: 63.60287081 | L59: -19.97177033 | M59: 43.23923445 | N59: -20.86889952 | O59: 46.22966507
C60: 5.9 | D60: -12.75789474 | E60: 66.28947368 | F60: -29.55789474 | G60: 45.28947368 | H60: -25.9277512 | I60: 69.63875598 | J60: -11.92057416 | K60: 62.10287081 | L60: -16.44784689 | M60: 42.23923445 | N60: -17.04593301 | O60: 45.22966507
C61: 6 | D61: -7.478947368 | E61: 64.78947368 | F61: -25.92894737 | G61: 44.28947368 | H61: -20.3138756 | I61: 68.13875598 | J61: -7.060287081 | K61: 60.60287081 | L61: -13.12392344 | M61: 41.23923445 | N61: -13.42296651 | O61: 44.22966507
C62: 6.1 | D62: -2.5 | E62: 63.28947368 | F62: -22.5 | G62: 43.28947368 | H62: -15 | I62: 66.63875598 | J62: -2.5 | K62: 59.10287081 | L62: -10 | M62: 40.23923445 | N62: -10 | O62: 43.22966507
C63: 6.2 | D63: 2.178947368 | E63: 61.78947368 | F63: -19.27105263 | G63: 42.28947368 | H63: -9.986124402 | I63: 65.13875598 | J63: 1.760287081 | K63: 57.60287081 | L63: -7.076076555 | M63: 39.23923445 | N63: -6.777033493 | O63: 42.22966507
C64: 6.3 | D64: 6.557894737 | E64: 60.28947368 | F64: -16.24210526 | G64: 41.28947368 | H64: -5.272248804 | I64: 63.63875598 | J64: 5.720574163 | K64: 56.10287081 | L64: -4.35215311 | M64: 38.23923445 | N64: -3.754066986 | O64: 41.22966507
C65: 6.4 | D65: 10.63684211 | E65: 58.78947368 | F65: -13.41315789 | G65: 40.28947368 | H65: -0.8583732057 | I65: 62.13875598 | J65: 9.380861244 | K65: 54.60287081 | L65: -1.828229665 | M65: 37.23923445 | N65: -0.9311004785 | O65: 40.22966507
C66: 6.5 | D66: 14.41578947 | E66: 57.28947368 | F66: -10.78421053 | G66: 39.28947368 | H66: 3.255502392 | I66: 60.63875598 | J66: 12.74114833 | K66: 53.10287081 | L66: 0.4956937799 | M66: 36.23923445 | N66: 1.691866029 | O66: 39.22966507
C67: 6.6 | D67: 17.89473684 | E67: 55.78947368 | F67: -8.355263158 | G67: 38.28947368 | H67: 7.06937799 | I67: 59.13875598 | J67: 15.80143541 | K67: 51.60287081 | L67: 2.619617225 | M67: 35.23923445 | N67: 4.114832536 | O67: 38.22966507
C68: 6.7 | D68: 21.07368421 | E68: 54.28947368 | F68: -6.126315789 | G68: 37.28947368 | H68: 10.58325359 | I68: 57.63875598 | J68: 18.56172249 | K68: 50.10287081 | L68: 4.54354067 | M68: 34.23923445 | N68: 6.337799043 | O68: 37.22966507
C69: 6.8 | D69: 23.95263158 | E69: 52.78947368 | F69: -4.097368421 | G69: 36.28947368 | H69: 13.79712919 | I69: 56.13875598 | J69: 21.02200957 | K69: 48.60287081 | L69: 6.267464115 | M69: 33.23923445 | N69: 8.36076555 | O69: 36.22966507
C70: 6.9 | D70: 26.53157895 | E70: 51.28947368 | F70: -2.268421053 | G70: 35.28947368 | H70: 16.71100478 | I70: 54.63875598 | J70: 23.18229665 | K70: 47.10287081 | L70: 7.79138756 | M70: 32.23923445 | N70: 10.18373206 | O70: 35.22966507
C71: 7 | D71: 28.81052632 | E71: 49.78947368 | F71: -0.6394736842 | G71: 34.28947368 | H71: 19.32488038 | I71: 53.13875598 | J71: 25.04258373 | K71: 45.60287081 | L71: 9.115311005 | M71: 31.23923445 | N71: 11.80669856 | O71: 34.22966507
C72: 7.1 | D72: 30.78947368 | E72: 48.28947368 | F72: 0.7894736842 | G72: 33.28947368 | H72: 21.63875598 | I72: 51.63875598 | J72: 26.60287081 | K72: 44.10287081 | L72: 10.23923445 | M72: 30.23923445 | N72: 13.22966507 | O72: 33.22966507
C73: 7.2 | D73: 32.46842105 | E73: 46.78947368 | F73: 2.018421053 | G73: 32.28947368 | H73: 23.65263158 | I73: 50.13875598 | J73: 27.86315789 | K73: 42.60287081 | L73: 11.16315789 | M73: 29.23923445 | N73: 14.45263158 | O73: 32.22966507
C74: 7.3 | D74: 33.84736842 | E74: 45.28947368 | F74: 3.047368421 | G74: 31.28947368 | H74: 25.36650718 | I74: 48.63875598 | J74: 28.82344498 | K74: 41.10287081 | L74: 11.88708134 | M74: 28.23923445 | N74: 15.47559809 | O74: 31.22966507
C75: 7.4 | D75: 34.92631579 | E75: 43.78947368 | F75: 3.876315789 | G75: 30.28947368 | H75: 26.78038278 | I75: 47.13875598 | J75: 29.48373206 | K75: 39.60287081 | L75: 12.41100478 | M75: 27.23923445 | N75: 16.29856459 | O75: 30.22966507
C76: 7.5 | D76: 35.70526316 | E76: 42.28947368 | F76: 4.505263158 | G76: 29.28947368 | H76: 27.89425837 | I76: 45.63875598 | J76: 29.84401914 | K76: 38.10287081 | L76: 12.73492823 | M76: 26.23923445 | N76: 16.9215311 | O76: 29.22966507
C77: 7.6 | D77: 36.18421053 | E77: 40.78947368 | F77: 4.934210526 | G77: 28.28947368 | H77: 28.70813397 | I77: 44.13875598 | J77: 29.90430622 | K77: 36.60287081 | L77: 12.85885167 | M77: 25.23923445 | N77: 17.34449761 | O77: 28.22966507
C78: 7.7 | D78: 36.36315789 | E78: 39.28947368 | F78: 5.163157895 | G78: 27.28947368 | H78: 29.22200957 | I78: 42.63875598 | J78: 29.6645933 | K78: 35.10287081 | L78: 12.78277512 | M78: 24.23923445 | N78: 17.56746411 | O78: 27.22966507
C79: 7.8 | D79: 36.24210526 | E79: 37.78947368 | F79: 5.192105263 | G79: 26.28947368 | H79: 29.43588517 | I79: 41.13875598 | J79: 29.12488038 | K79: 33.60287081 | L79: 12.50669856 | M79: 23.23923445 | N79: 17.59043062 | O79: 26.22966507
C80: 7.9 | D80: 35.82105263 | E80: 36.28947368 | F80: 5.021052632 | G80: 25.28947368 | H80: 29.34976077 | I80: 39.63875598 | J80: 28.28516746 | K80: 32.10287081 | L80: 12.03062201 | M80: 22.23923445 | N80: 17.41339713 | O80: 25.22966507
C81: 8 | D81: 35.1 | E81: 34.78947368 | F81: 4.65 | G81: 24.28947368 | H81: 28.96363636 | I81: 38.13875598 | J81: 27.14545455 | K81: 30.60287081 | L81: 11.35454545 | M81: 21.23923445 | N81: 17.03636364 | O81: 24.22966507
C82: 8.1 | D82: 34.07894737 | E82: 33.28947368 | F82: 4.078947368 | G82: 23.28947368 | H82: 28.27751196 | I82: 36.63875598 | J82: 25.70574163 | K82: 29.10287081 | L82: 10.4784689 | M82: 20.23923445 | N82: 16.45933014 | O82: 23.22966507
C83: 8.2 | D83: 32.75789474 | E83: 31.78947368 | F83: 3.307894737 | G83: 22.28947368 | H83: 27.29138756 | I83: 35.13875598 | J83: 23.96602871 | K83: 27.60287081 | L83: 9.402392344 | M83: 19.23923445 | N83: 15.68229665 | O83: 22.22966507
C84: 8.3 | D84: 31.13684211 | E84: 30.28947368 | F84: 2.336842105 | G84: 21.28947368 | H84: 26.00526316 | I84: 33.63875598 | J84: 21.92631579 | K84: 26.10287081 | L84: 8.126315789 | M84: 18.23923445 | N84: 14.70526316 | O84: 21.22966507
C85: 8.4 | D85: 29.21578947 | E85: 28.78947368 | F85: 1.165789474 | G85: 20.28947368 | H85: 24.41913876 | I85: 32.13875598 | J85: 19.58660287 | K85: 24.60287081 | L85: 6.650239234 | M85: 17.23923445 | N85: 13.52822967 | O85: 20.22966507
C86: 8.5 | D86: 26.99473684 | E86: 27.28947368 | F86: -0.2052631579 | G86: 19.28947368 | H86: 22.53301435 | I86: 30.63875598 | J86: 16.94688995 | K86: 23.10287081 | L86: 4.974162679 | M86: 16.23923445 | N86: 12.15119617 | O86: 19.22966507
C87: 8.6 | D87: 24.47368421 | E87: 25.78947368 | F87: -1.776315789 | G87: 18.28947368 | H87: 20.34688995 | I87: 29.13875598 | J87: 14.00717703 | K87: 21.60287081 | L87: 3.098086124 | M87: 15.23923445 | N87: 10.57416268 | O87: 18.22966507
C88: 8.7 | D88: 21.65263158 | E88: 24.28947368 | F88: -3.547368421 | G88: 17.28947368 | H88: 17.86076555 | I88: 27.63875598 | J88: 10.76746411 | K88: 20.10287081 | L88: 1.022009569 | M88: 14.23923445 | N88: 8.797129187 | O88: 17.22966507
C89: 8.8 | D89: 18.53157895 | E89: 22.78947368 | F89: -5.518421053 | G89: 16.28947368 | H89: 15.07464115 | I89: 26.13875598 | J89: 7.227751196 | K89: 18.60287081 | L89: -1.254066986 | M89: 13.23923445 | N89: 6.820095694 | O89: 16.22966507
C90: 8.9 | D90: 15.11052632 | E90: 21.28947368 | F90: -7.689473684 | G90: 15.28947368 | H90: 11.98851675 | I90: 24.63875598 | J90: 3.388038278 | K90: 17.10287081 | L90: -3.730143541 | M90: 12.23923445 | N90: 4.643062201 | O90: 15.22966507
C91: 9 | D91: 11.38947368 | E91: 19.78947368 | F91: -10.06052632 | G91: 14.28947368 | H91: 8.602392344 | I91: 23.13875598 | J91: -0.7516746411 | K91: 15.60287081 | L91: -6.406220096 | M91: 11.23923445 | N91: 2.266028708 | O91: 14.22966507
C92: 9.1 | D92: 7.368421053 | E92: 18.28947368 | F92: -12.63157895 | G92: 13.28947368 | H92: 4.916267943 | I92: 21.63875598 | J92: -5.19138756 | K92: 14.10287081 | L92: -9.282296651 | M92: 10.23923445 | N92: -0.3110047847 | O92: 13.22966507
C93: 9.2 | D93: 3.047368421 | E93: 16.78947368 | F93: -15.40263158 | G93: 12.28947368 | H93: 0.9301435407 | I93: 20.13875598 | J93: -9.931100478 | K93: 12.60287081 | L93: -12.35837321 | M93: 9.23923445 | N93: -3.088038278 | O93: 12.22966507
C94: 9.3 | D94: -1.573684211 | E94: 15.28947368 | F94: -18.37368421 | G94: 11.28947368 | H94: -3.355980861 | I94: 18.63875598 | J94: -14.9708134 | K94: 11.10287081 | L94: -15.63444976 | M94: 8.23923445 | N94: -6.06507177 | O94: 11.22966507
C95: 9.4 | D95: -6.494736842 | E95: 13.78947368 | F95: -21.54473684 | G95: 10.28947368 | H95: -7.942105263 | I95: 17.13875598 | J95: -20.31052632 | K95: 9.602870813 | L95: -19.11052632 | M95: 7.23923445 | N95: -9.242105263 | O95: 10.22966507
C96: 9.5 | D96: -11.71578947 | E96: 12.28947368 | F96: -24.91578947 | G96: 9.289473684 | H96: -12.82822967 | I96: 15.63875598 | J96: -25.95023923 | K96: 8.102870813 | L96: -22.78660287 | M96: 6.23923445 | N96: -12.61913876 | O96: 9.229665072
C97: 9.6 | D97: -17.23684211 | E97: 10.78947368 | F97: -28.48684211 | G97: 8.289473684 | H97: -18.01435407 | I97: 14.13875598 | J97: -31.88995215 | K97: 6.602870813 | L97: -26.66267943 | M97: 5.23923445 | N97: -16.19617225 | O97: 8.229665072
C98: 9.7 | D98: -23.05789474 | E98: 9.289473684 | F98: -32.25789474 | G98: 7.289473684 | H98: -23.50047847 | I98: 12.63875598 | J98: -38.12966507 | K98: 5.102870813 | L98: -30.73875598 | M98: 4.23923445 | N98: -19.97320574 | O98: 7.229665072
C99: 9.8 | D99: -29.17894737 | E99: 7.789473684 | F99: -36.22894737 | G99: 6.289473684 | H99: -29.28660287 | I99: 11.13875598 | J99: -44.66937799 | K99: 3.602870813 | L99: -35.01483254 | M99: 3.23923445 | N99: -23.95023923 | O99: 6.229665072
C100: 9.9 | D100: -35.6 | E100: 6.289473684 | F100: -40.4 | G100: 5.289473684 | H100: -35.37272727 | I100: 9.638755981 | J100: -51.50909091 | K100: 2.102870813 | L100: -39.49090909 | M100: 2.23923445 | N100: -28.12727273 | O100: 5.229665072
C101: 10 | D101: -42.32105263 | E101: 4.789473684 | F101: -44.77105263 | G101: 4.289473684 | H101: -41.75885167 | I101: 8.138755981 | J101: -58.64880383 | K101: 0.6028708134 | L101: -44.16698565 | M101: 1.23923445 | N101: -32.50430622 | O101: 4.229665072
C102: 10.1 | D102: -49.34210526 | E102: 3.289473684 | F102: -49.34210526 | G102: 3.289473684 | H102: -48.44497608 | I102: 6.638755981 | J102: -66.08851675 | K102: -0.8971291866 | L102: -49.0430622 | M102: 0.2392344498 | N102: -37.08133971 | O102: 3.229665072
C103: 10.2 | D103: -49.34210526 | E103: 50 | F103: -49.34210526 | G103: 75 | H103: -48.44497608 | I103: 52.27272727 | J103: -66.08851675 | K103: 78.40909091 | L103: -49.0430622 | M103: 71.59090909 | N103: -37.08133971 | O103: 47.72727273
C104: 10.3 | D104: -44.44210526 | E104: 49 | F104: -41.99210526 | G104: 73.5 | H104: -43.31770335 | I104: 51.27272727 | J104: -58.39760766 | K104: 76.90909091 | L104: -42.03397129 | M104: 70.09090909 | N104: -32.40861244 | O104: 46.72727273
C105: 10.4 | D105: -39.74210526 | E105: 48 | F105: -34.94210526 | G105: 72 | H105: -38.39043062 | I105: 50.27272727 | J105: -51.00669856 | K105: 75.40909091 | L105: -35.32488038 | M105: 68.59090909 | N105: -27.93588517 | O105: 45.72727273
C106: 10.5 | D106: -35.24210526 | E106: 47 | F106: -28.19210526 | G106: 70.5 | H106: -33.66315789 | I106: 49.27272727 | J106: -43.91578947 | K106: 73.90909091 | L106: -28.91578947 | M106: 67.09090909 | N106: -23.66315789 | O106: 44.72727273
C107: 10.6 | D107: -30.94210526 | E107: 46 | F107: -21.74210526 | G107: 69 | H107: -29.13588517 | I107: 48.27272727 | J107: -37.12488038 | K107: 72.40909091 | L107: -22.80669856 | M107: 65.59090909 | N107: -19.59043062 | O107: 43.72727273
C108: 10.7 | D108: -26.84210526 | E108: 45 | F108: -15.59210526 | G108: 67.5 | H108: -24.80861244 | I108: 47.27272727 | J108: -30.63397129 | K108: 70.90909091 | L108: -16.99760766 | M108: 64.09090909 | N108: -15.71770335 | O108: 42.72727273
C109: 10.8 | D109: -22.94210526 | E109: 44 | F109: -9.742105263 | G109: 66 | H109: -20.68133971 | I109: 46.27272727 | J109: -24.4430622 | K109: 69.40909091 | L109: -11.48851675 | M109: 62.59090909 | N109: -12.04497608 | O109: 41.72727273
C110: 10.9 | D110: -19.24210526 | E110: 43 | F110: -4.192105263 | G110: 64.5 | H110: -16.75406699 | I110: 45.27272727 | J110: -18.55215311 | K110: 67.90909091 | L110: -6.279425837 | M110: 61.09090909 | N110: -8.572248804 | O110: 40.72727273
C111: 11 | D111: -15.74210526 | E111: 42 | F111: 1.057894737 | G111: 63 | H111: -13.02679426 | I111: 44.27272727 | J111: -12.96124402 | K111: 66.40909091 | L111: -1.370334928 | M111: 59.59090909 | N111: -5.299521531 | O111: 39.72727273
C112: 11.1 | D112: -12.44210526 | E112: 41 | F112: 6.007894737 | G112: 61.5 | H112: -9.499521531 | I112: 43.27272727 | J112: -7.670334928 | K112: 64.90909091 | L112: 3.238755981 | M112: 58.09090909 | N112: -2.226794258 | O112: 38.72727273
C113: 11.2 | D113: -9.342105263 | E113: 40 | F113: 10.65789474 | G113: 60 | H113: -6.172248804 | I113: 42.27272727 | J113: -2.679425837 | K113: 63.40909091 | L113: 7.54784689 | M113: 56.59090909 | N113: 0.6459330144 | O113: 37.72727273
C114: 11.3 | D114: -6.442105263 | E114: 39 | F114: 15.00789474 | G114: 58.5 | H114: -3.044976077 | I114: 41.27272727 | J114: 2.011483254 | K114: 61.90909091 | L114: 11.5569378 | M114: 55.09090909 | N114: 3.318660287 | O114: 36.72727273
C115: 11.4 | D115: -3.742105263 | E115: 38 | F115: 19.05789474 | G115: 57 | H115: -0.1177033493 | I115: 40.27272727 | J115: 6.402392344 | K115: 60.40909091 | L115: 15.26602871 | M115: 53.59090909 | N115: 5.79138756 | O115: 35.72727273
C116: 11.5 | D116: -1.242105263 | E116: 37 | F116: 22.80789474 | G116: 55.5 | H116: 2.609569378 | I116: 39.27272727 | J116: 10.49330144 | K116: 58.90909091 | L116: 18.67511962 | M116: 52.09090909 | N116: 8.064114833 | O116: 34.72727273
C117: 11.6 | D117: 1.057894737 | E117: 36 | F117: 26.25789474 | G117: 54 | H117: 5.136842105 | I117: 38.27272727 | J117: 14.28421053 | K117: 57.40909091 | L117: 21.78421053 | M117: 50.59090909 | N117: 10.13684211 | O117: 33.72727273
C118: 11.7 | D118: 3.157894737 | E118: 35 | F118: 29.40789474 | G118: 52.5 | H118: 7.464114833 | I118: 37.27272727 | J118: 17.77511962 | K118: 55.90909091 | L118: 24.59330144 | M118: 49.09090909 | N118: 12.00956938 | O118: 32.72727273
C119: 11.8 | D119: 5.057894737 | E119: 34 | F119: 32.25789474 | G119: 51 | H119: 9.59138756 | I119: 36.27272727 | J119: 20.96602871 | K119: 54.40909091 | L119: 27.10239234 | M119: 47.59090909 | N119: 13.68229665 | O119: 31.72727273
C120: 11.9 | D120: 6.757894737 | E120: 33 | F120: 34.80789474 | G120: 49.5 | H120: 11.51866029 | I120: 35.27272727 | J120: 23.8569378 | K120: 52.90909091 | L120: 29.31148325 | M120: 46.09090909 | N120: 15.15502392 | O120: 30.72727273
C121: 12 | D121: 8.257894737 | E121: 32 | F121: 37.05789474 | G121: 48 | H121: 13.24593301 | I121: 34.27272727 | J121: 26.44784689 | K121: 51.40909091 | L121: 31.22057416 | M121: 44.59090909 | N121: 16.4277512 | O121: 29.72727273
C122: 12.1 | D122: 9.557894737 | E122: 31 | F122: 39.00789474 | G122: 46.5 | H122: 14.77320574 | I122: 33.27272727 | J122: 28.73875598 | K122: 49.90909091 | L122: 32.82966507 | M122: 43.09090909 | N122: 17.50047847 | O122: 28.72727273
C123: 12.2 | D123: 10.65789474 | E123: 30 | F123: 40.65789474 | G123: 45 | H123: 16.10047847 | I123: 32.27272727 | J123: 30.72966507 | K123: 48.40909091 | L123: 34.13875598 | M123: 41.59090909 | N123: 18.37320574 | O123: 27.72727273
C124: 12.3 | D124: 11.55789474 | E124: 29 | F124: 42.00789474 | G124: 43.5 | H124: 17.2277512 | I124: 31.27272727 | J124: 32.42057416 | K124: 46.90909091 | L124: 35.14784689 | M124: 40.09090909 | N124: 19.04593301 | O124: 26.72727273
C125: 12.4 | D125: 12.25789474 | E125: 28 | F125: 43.05789474 | G125: 42 | H125: 18.15502392 | I125: 30.27272727 | J125: 33.81148325 | K125: 45.40909091 | L125: 35.8569378 | M125: 38.59090909 | N125: 19.51866029 | O125: 25.72727273
C126: 12.5 | D126: 12.75789474 | E126: 27 | F126: 43.80789474 | G126: 40.5 | H126: 18.88229665 | I126: 29.27272727 | J126: 34.90239234 | K126: 43.90909091 | L126: 36.26602871 | M126: 37.09090909 | N126: 19.79138756 | O126: 24.72727273
C127: 12.6 | D127: 13.05789474 | E127: 26 | F127: 44.25789474 | G127: 39 | H127: 19.40956938 | I127: 28.27272727 | J127: 35.69330144 | K127: 42.40909091 | L127: 36.37511962 | M127: 35.59090909 | N127: 19.86411483 | O127: 23.72727273
C128: 12.7 | D128: 13.15789474 | E128: 25 | F128: 44.40789474 | G128: 37.5 | H128: 19.73684211 | I128: 27.27272727 | J128: 36.18421053 | K128: 40.90909091 | L128: 36.18421053 | M128: 34.09090909 | N128: 19.73684211 | O128: 22.72727273
C129: 12.8 | D129: 13.05789474 | E129: 24 | F129: 44.25789474 | G129: 36 | H129: 19.86411483 | I129: 26.27272727 | J129: 36.37511962 | K129: 39.40909091 | L129: 35.69330144 | M129: 32.59090909 | N129: 19.40956938 | O129: 21.72727273
C130: 12.9 | D130: 12.75789474 | E130: 23 | F130: 43.80789474 | G130: 34.5 | H130: 19.79138756 | I130: 25.27272727 | J130: 36.26602871 | K130: 37.90909091 | L130: 34.90239234 | M130: 31.09090909 | N130: 18.88229665 | O130: 20.72727273
C131: 13 | D131: 12.25789474 | E131: 22 | F131: 43.05789474 | G131: 33 | H131: 19.51866029 | I131: 24.27272727 | J131: 35.8569378 | K131: 36.40909091 | L131: 33.81148325 | M131: 29.59090909 | N131: 18.15502392 | O131: 19.72727273
C132: 13.1 | D132: 11.55789474 | E132: 21 | F132: 42.00789474 | G132: 31.5 | H132: 19.04593301 | I132: 23.27272727 | J132: 35.14784689 | K132: 34.90909091 | L132: 32.42057416 | M132: 28.09090909 | N132: 17.2277512 | O132: 18.72727273
C133: 13.2 | D133: 10.65789474 | E133: 20 | F133: 40.65789474 | G133: 30 | H133: 18.37320574 | I133: 22.27272727 | J133: 34.13875598 | K133: 33.40909091 | L133: 30.72966507 | M133: 26.59090909 | N133: 16.10047847 | O133: 17.72727273
C134: 13.3 | D134: 9.557894737 | E134: 19 | F134: 39.00789474 | G134: 28.5 | H134: 17.50047847 | I134: 21.27272727 | J134: 32.82966507 | K134: 31.90909091 | L134: 28.73875598 | M134: 25.09090909 | N134: 14.77320574 | O134: 16.72727273
C135: 13.4 | D135: 8.257894737 | E135: 18 | F135: 37.05789474 | G135: 27 | H135: 16.4277512 | I135: 20.27272727 | J135: 31.22057416 | K135: 30.40909091 | L135: 26.44784689 | M135: 23.59090909 | N135: 13.24593301 | O135: 15.72727273
C136: 13.5 | D136: 6.757894737 | E136: 17 | F136: 34.80789474 | G136: 25.5 | H136: 15.15502392 | I136: 19.27272727 | J136: 29.31148325 | K136: 28.90909091 | L136: 23.8569378 | M136: 22.09090909 | N136: 11.51866029 | O136: 14.72727273
C137: 13.6 | D137: 5.057894737 | E137: 16 | F137: 32.25789474 | G137: 24 | H137: 13.68229665 | I137: 18.27272727 | J137: 27.10239234 | K137: 27.40909091 | L137: 20.96602871 | M137: 20.59090909 | N137: 9.59138756 | O137: 13.72727273
C138: 13.7 | D138: 3.157894737 | E138: 15 | F138: 29.40789474 | G138: 22.5 | H138: 12.00956938 | I138: 17.27272727 | J138: 24.59330144 | K138: 25.90909091 | L138: 17.77511962 | M138: 19.09090909 | N138: 7.464114833 | O138: 12.72727273
C139: 13.8 | D139: 1.057894737 | E139: 14 | F139: 26.25789474 | G139: 21 | H139: 10.13684211 | I139: 16.27272727 | J139: 21.78421053 | K139: 24.40909091 | L139: 14.28421053 | M139: 17.59090909 | N139: 5.136842105 | O139: 11.72727273
C140: 13.9 | D140: -1.242105263 | E140: 13 | F140: 22.80789474 | G140: 19.5 | H140: 8.064114833 | I140: 15.27272727 | J140: 18.67511962 | K140: 22.90909091 | L140: 10.49330144 | M140: 16.09090909 | N140: 2.609569378 | O140: 10.72727273
C141: 14 | D141: -3.742105263 | E141: 12 | F141: 19.05789474 | G141: 18 | H141: 5.79138756 | I141: 14.27272727 | J141: 15.26602871 | K141: 21.40909091 | L141: 6.402392344 | M141: 14.59090909 | N141: -0.1177033493 | O141: 9.727272727
C142: 14.1 | D142: -6.442105263 | E142: 11 | F142: 15.00789474 | G142: 16.5 | H142: 3.318660287 | I142: 13.27272727 | J142: 11.5569378 | K142: 19.90909091 | L142: 2.011483254 | M142: 13.09090909 | N142: -3.044976077 | O142: 8.727272727
C143: 14.2 | D143: -9.342105263 | E143: 10 | F143: 10.65789474 | G143: 15 | H143: 0.6459330144 | I143: 12.27272727 | J143: 7.54784689 | K143: 18.40909091 | L143: -2.679425837 | M143: 11.59090909 | N143: -6.172248804 | O143: 7.727272727
C144: 14.3 | D144: -12.44210526 | E144: 9 | F144: 6.007894737 | G144: 13.5 | H144: -2.226794258 | I144: 11.27272727 | J144: 3.238755981 | K144: 16.90909091 | L144: -7.670334928 | M144: 10.09090909 | N144: -9.499521531 | O144: 6.727272727
C145: 14.4 | D145: -15.74210526 | E145: 8 | F145: 1.057894737 | G145: 12 | H145: -5.299521531 | I145: 10.27272727 | J145: -1.370334928 | K145: 15.40909091 | L145: -12.96124402 | M145: 8.590909091 | N145: -13.02679426 | O145: 5.727272727
C146: 14.5 | D146: -19.24210526 | E146: 7 | F146: -4.192105263 | G146: 10.5 | H146: -8.572248804 | I146: 9.272727273 | J146: -6.279425837 | K146: 13.90909091 | L146: -18.55215311 | M146: 7.090909091 | N146: -16.75406699 | O146: 4.727272727
C147: 14.6 | D147: -22.94210526 | E147: 6 | F147: -9.742105263 | G147: 9 | H147: -12.04497608 | I147: 8.272727273 | J147: -11.48851675 | K147: 12.40909091 | L147: -24.4430622 | M147: 5.590909091 | N147: -20.68133971 | O147: 3.727272727
C148: 14.7 | D148: -26.84210526 | E148: 5 | F148: -15.59210526 | G148: 7.5 | H148: -15.71770335 | I148: 7.272727273 | J148: -16.99760766 | K148: 10.90909091 | L148: -30.63397129 | M148: 4.090909091 | N148: -24.80861244 | O148: 2.727272727
C149: 14.8 | D149: -30.94210526 | E149: 4 | F149: -21.74210526 | G149: 6 | H149: -19.59043062 | I149: 6.272727273 | J149: -22.80669856 | K149: 9.409090909 | L149: -37.12488038 | M149: 2.590909091 | N149: -29.13588517 | O149: 1.727272727
C150: 14.9 | D150: -35.24210526 | E150: 3 | F150: -28.19210526 | G150: 4.5 | H150: -23.66315789 | I150: 5.272727273 | J150: -28.91578947 | K150: 7.909090909 | L150: -43.91578947 | M150: 1.090909091 | N150: -33.66315789 | O150: 0.7272727273
C151: 15 | D151: -39.74210526 | E151: 2 | F151: -34.94210526 | G151: 3 | H151: -27.93588517 | I151: 4.272727273 | J151: -35.32488038 | K151: 6.409090909 | L151: -51.00669856 | M151: -0.4090909091 | N151: -38.39043062 | O151: -0.2727272727
C152: 15.1 | D152: -44.44210526 | E152: 1 | F152: -41.99210526 | G152: 1.5 | H152: -32.40861244 | I152: 3.272727273 | J152: -42.03397129 | K152: 4.909090909 | L152: -58.39760766 | M152: -1.909090909 | N152: -43.31770335 | O152: -1.272727273
C153: 15.2 | D153: -49.34210526 | E153: 1.953992523e-14 | F153: -49.34210526 | G153: 2.842170943e-14 | H153: -37.08133971 | I153: 2.272727273 | J153: -49.0430622 | K153: 3.409090909 | L153: -66.08851675 | M153: -3.409090909 | N153: -48.44497608 | O153: -2.272727273
C154: 15.3 | D154: -49.34210526 | E154: 71.71052632 | F154: -49.34210526 | G154: 46.71052632 | H154: -37.08133971 | I154: 46.77033493 | J154: -49.0430622 | K154: 49.76076555 | L154: -66.08851675 | M154: 75.89712919 | N154: -48.44497608 | O154: 68.36124402
C155: 15.4 | D155: -42.32105263 | E155: 70.21052632 | F155: -44.77105263 | G155: 45.71052632 | H155: -32.50430622 | I155: 45.77033493 | J155: -44.16698565 | K155: 48.76076555 | L155: -58.64880383 | M155: 74.39712919 | N155: -41.75885167 | O155: 66.86124402
C156: 15.5 | D156: -35.6 | E156: 68.71052632 | F156: -40.4 | G156: 44.71052632 | H156: -28.12727273 | I156: 44.77033493 | J156: -39.49090909 | K156: 47.76076555 | L156: -51.50909091 | M156: 72.89712919 | N156: -35.37272727 | O156: 65.36124402
C157: 15.6 | D157: -29.17894737 | E157: 67.21052632 | F157: -36.22894737 | G157: 43.71052632 | H157: -23.95023923 | I157: 43.77033493 | J157: -35.01483254 | K157: 46.76076555 | L157: -44.66937799 | M157: 71.39712919 | N157: -29.28660287 | O157: 63.86124402
C158: 15.7 | D158: -23.05789474 | E158: 65.71052632 | F158: -32.25789474 | G158: 42.71052632 | H158: -19.97320574 | I158: 42.77033493 | J158: -30.73875598 | K158: 45.76076555 | L158: -38.12966507 | M158: 69.89712919 | N158: -23.50047847 | O158: 62.36124402
C159: 15.8 | D159: -17.23684211 | E159: 64.21052632 | F159: -28.48684211 | G159: 41.71052632 | H159: -16.19617225 | I159: 41.77033493 | J159: -26.66267943 | K159: 44.76076555 | L159: -31.88995215 | M159: 68.39712919 | N159: -18.01435407 | O159: 60.86124402
C160: 15.9 | D160: -11.71578947 | E160: 62.71052632 | F160: -24.91578947 | G160: 40.71052632 | H160: -12.61913876 | I160: 40.77033493 | J160: -22.78660287 | K160: 43.76076555 | L160: -25.95023923 | M160: 66.89712919 | N160: -12.82822967 | O160: 59.36124402
C161: 16 | D161: -6.494736842 | E161: 61.21052632 | F161: -21.54473684 | G161: 39.71052632 | H161: -9.242105263 | I161: 39.77033493 | J161: -19.11052632 | K161: 42.76076555 | L161: -20.31052632 | M161: 65.39712919 | N161: -7.942105263 | O161: 57.86124402
C162: 16.1 | D162: -1.573684211 | E162: 59.71052632 | F162: -18.37368421 | G162: 38.71052632 | H162: -6.06507177 | I162: 38.77033493 | J162: -15.63444976 | K162: 41.76076555 | L162: -14.9708134 | M162: 63.89712919 | N162: -3.355980861 | O162: 56.36124402
C163: 16.2 | D163: 3.047368421 | E163: 58.21052632 | F163: -15.40263158 | G163: 37.71052632 | H163: -3.088038278 | I163: 37.77033493 | J163: -12.35837321 | K163: 40.76076555 | L163: -9.931100478 | M163: 62.39712919 | N163: 0.9301435407 | O163: 54.86124402
C164: 16.3 | D164: 7.368421053 | E164: 56.71052632 | F164: -12.63157895 | G164: 36.71052632 | H164: -0.3110047847 | I164: 36.77033493 | J164: -9.282296651 | K164: 39.76076555 | L164: -5.19138756 | M164: 60.89712919 | N164: 4.916267943 | O164: 53.36124402
C165: 16.4 | D165: 11.38947368 | E165: 55.21052632 | F165: -10.06052632 | G165: 35.71052632 | H165: 2.266028708 | I165: 35.77033493 | J165: -6.406220096 | K165: 38.76076555 | L165: -0.7516746411 | M165: 59.39712919 | N165: 8.602392344 | O165: 51.86124402
C166: 16.5 | D166: 15.11052632 | E166: 53.71052632 | F166: -7.689473684 | G166: 34.71052632 | H166: 4.643062201 | I166: 34.77033493 | J166: -3.730143541 | K166: 37.76076555 | L166: 3.388038278 | M166: 57.89712919 | N166: 11.98851675 | O166: 50.36124402
C167: 16.6 | D167: 18.53157895 | E167: 52.21052632 | F167: -5.518421053 | G167: 33.71052632 | H167: 6.820095694 | I167: 33.77033493 | J167: -1.254066986 | K167: 36.76076555 | L167: 7.227751196 | M167: 56.39712919 | N167: 15.07464115 | O167: 48.86124402
C168: 16.7 | D168: 21.65263158 | E168: 50.71052632 | F168: -3.547368421 | G168: 32.71052632 | H168: 8.797129187 | I168: 32.77033493 | J168: 1.022009569 | K168: 35.76076555 | L168: 10.76746411 | M168: 54.89712919 | N168: 17.86076555 | O168: 47.36124402
C169: 16.8 | D169: 24.47368421 | E169: 49.21052632 | F169: -1.776315789 | G169: 31.71052632 | H169: 10.57416268 | I169: 31.77033493 | J169: 3.098086124 | K169: 34.76076555 | L169: 14.00717703 | M169: 53.39712919 | N169: 20.34688995 | O169: 45.86124402
C170: 16.9 | D170: 26.99473684 | E170: 47.71052632 | F170: -0.2052631579 | G170: 30.71052632 | H170: 12.15119617 | I170: 30.77033493 | J170: 4.974162679 | K170: 33.76076555 | L170: 16.94688995 | M170: 51.89712919 | N170: 22.53301435 | O170: 44.36124402
C171: 17 | D171: 29.21578947 | E171: 46.21052632 | F171: 1.165789474 | G171: 29.71052632 | H171: 13.52822967 | I171: 29.77033493 | J171: 6.650239234 | K171: 32.76076555 | L171: 19.58660287 | M171: 50.39712919 | N171: 24.41913876 | O171: 42.86124402
C172: 17.1 | D172: 31.13684211 | E172: 44.71052632 | F172: 2.336842105 | G172: 28.71052632 | H172: 14.70526316 | I172: 28.77033493 | J172: 8.126315789 | K172: 31.76076555 | L172: 21.92631579 | M172: 48.89712919 | N172: 26.00526316 | O172: 41.36124402
C173: 17.2 | D173: 32.75789474 | E173: 43.21052632 | F173: 3.307894737 | G173: 27.71052632 | H173: 15.68229665 | I173: 27.77033493 | J173: 9.402392344 | K173: 30.76076555 | L173: 23.96602871 | M173: 47.39712919 | N173: 27.29138756 | O173: 39.86124402
C174: 17.3 | D174: 34.07894737 | E174: 41.71052632 | F174: 4.078947368 | G174: 26.71052632 | H174: 16.45933014 | I174: 26.77033493 | J174: 10.4784689 | K174: 29.76076555 | L174: 25.70574163 | M174: 45.89712919 | N174: 28.27751196 | O174: 38.36124402
C175: 17.4 | D175: 35.1 | E175: 40.21052632 | F175: 4.65 | G175: 25.71052632 | H175: 17.03636364 | I175: 25.77033493 | J175: 11.35454545 | K175: 28.76076555 | L175: 27.14545455 | M175: 44.39712919 | N175: 28.96363636 | O175: 36.86124402
C176: 17.5 | D176: 35.82105263 | E176: 38.71052632 | F176: 5.021052632 | G176: 24.71052632 | H176: 17.41339713 | I176: 24.77033493 | J176: 12.03062201 | K176: 27.76076555 | L176: 28.28516746 | M176: 42.89712919 | N176: 29.34976077 | O176: 35.36124402
C177: 17.6 | D177: 36.24210526 | E177: 37.21052632 | F177: 5.192105263 | G177: 23.71052632 | H177: 17.59043062 | I177: 23.77033493 | J177: 12.50669856 | K177: 26.76076555 | L177: 29.12488038 | M177: 41.39712919 | N177: 29.43588517 | O177: 33.86124402
C178: 17.7 | D178: 36.36315789 | E178: 35.71052632 | F178: 5.163157895 | G178: 22.71052632 | H178: 17.56746411 | I178: 22.77033493 | J178: 12.78277512 | K178: 25.76076555 | L178: 29.6645933 | M178: 39.89712919 | N178: 29.22200957 | O178: 32.36124402
C179: 17.8 | D179: 36.18421053 | E179: 34.21052632 | F179: 4.934210526 | G179: 21.71052632 | H179: 17.34449761 | I179: 21.77033493 | J179: 12.85885167 | K179: 24.76076555 | L179: 29.90430622 | M179: 38.39712919 | N179: 28.70813397 | O179: 30.86124402
C180: 17.9 | D180: 35.70526316 | E180: 32.71052632 | F180: 4.505263158 | G180: 20.71052632 | H180: 16.9215311 | I180: 20.77033493 | J180: 12.73492823 | K180: 23.76076555 | L180: 29.84401914 | M180: 36.89712919 | N180: 27.89425837 | O180: 29.36124402
C181: 18 | D181: 34.92631579 | E181: 31.21052632 | F181: 3.876315789 | G181: 19.71052632 | H181: 16.29856459 | I181: 19.77033493 | J181: 12.41100478 | K181: 22.76076555 | L181: 29.48373206 | M181: 35.39712919 | N181: 26.78038278 | O181: 27.86124402
C182: 18.1 | D182: 33.84736842 | E182: 29.71052632 | F182: 3.047368421 | G182: 18.71052632 | H182: 15.47559809 | I182: 18.77033493 | J182: 11.88708134 | K182: 21.76076555 | L182: 28.82344498 | M182: 33.89712919 | N182: 25.36650718 | O182: 26.36124402
C183: 18.2 | D183: 32.46842105 | E183: 28.21052632 | F183: 2.018421053 | G183: 17.71052632 | H183: 14.45263158 | I183: 17.77033493 | J183: 11.16315789 | K183: 20.76076555 | L183: 27.86315789 | M183: 32.39712919 | N183: 23.65263158 | O183: 24.86124402
C184: 18.3 | D184: 30.78947368 | E184: 26.71052632 | F184: 0.7894736842 | G184: 16.71052632 | H184: 13.22966507 | I184: 16.77033493 | J184: 10.23923445 | K184: 19.76076555 | L184: 26.60287081 | M184: 30.89712919 | N184: 21.63875598 | O184: 23.36124402
C185: 18.4 | D185: 28.81052632 | E185: 25.21052632 | F185: -0.6394736842 | G185: 15.71052632 | H185: 11.80669856 | I185: 15.77033493 | J185: 9.115311005 | K185: 18.76076555 | L185: 25.04258373 | M185: 29.39712919 | N185: 19.32488038 | O185: 21.86124402
C186: 18.5 | D186: 26.53157895 | E186: 23.71052632 | F186: -2.268421053 | G186: 14.71052632 | H186: 10.18373206 | I186: 14.77033493 | J186: 7.79138756 | K186: 17.76076555 | L186: 23.18229665 | M186: 27.89712919 | N186: 16.71100478 | O186: 20.36124402
C187: 18.6 | D187: 23.95263158 | E187: 22.21052632 | F187: -4.097368421 | G187: 13.71052632 | H187: 8.36076555 | I187: 13.77033493 | J187: 6.267464115 | K187: 16.76076555 | L187: 21.02200957 | M187: 26.39712919 | N187: 13.79712919 | O187: 18.86124402
C188: 18.7 | D188: 21.07368421 | E188: 20.71052632 | F188: -6.126315789 | G188: 12.71052632 | H188: 6.337799043 | I188: 12.77033493 | J188: 4.54354067 | K188: 15.76076555 | L188: 18.56172249 | M188: 24.89712919 | N188: 10.58325359 | O188: 17.36124402
C189: 18.8 | D189: 17.89473684 | E189: 19.21052632 | F189: -8.355263158 | G189: 11.71052632 | H189: 4.114832536 | I189: 11.77033493 | J189: 2.619617225 | K189: 14.76076555 | L189: 15.80143541 | M189: 23.39712919 | N189: 7.06937799 | O189: 15.86124402
C190: 18.9 | D190: 14.41578947 | E190: 17.71052632 | F190: -10.78421053 | G190: 10.71052632 | H190: 1.691866029 | I190: 10.77033493 | J190: 0.4956937799 | K190: 13.76076555 | L190: 12.74114833 | M190: 21.89712919 | N190: 3.255502392 | O190: 14.36124402
C191: 19 | D191: 10.63684211 | E191: 16.21052632 | F191: -13.41315789 | G191: 9.710526316 | H191: -0.9311004785 | I191: 9.770334928 | J191: -1.828229665 | K191: 12.76076555 | L191: 9.380861244 | M191: 20.39712919 | N191: -0.8583732057 | O191: 12.86124402
C192: 19.1 | D192: 6.557894737 | E192: 14.71052632 | F192: -16.24210526 | G192: 8.710526316 | H192: -3.754066986 | I192: 8.770334928 | J192: -4.35215311 | K192: 11.76076555 | L192: 5.720574163 | M192: 18.89712919 | N192: -5.272248804 | O192: 11.36124402
C193: 19.2 | D193: 2.178947368 | E193: 13.21052632 | F193: -19.27105263 | G193: 7.710526316 | H193: -6.777033493 | I193: 7.770334928 | J193: -7.076076555 | K193: 10.76076555 | L193: 1.760287081 | M193: 17.39712919 | N193: -9.986124402 | O193: 9.861244019
C194: 19.3 | D194: -2.5 | E194: 11.71052632 | F194: -22.5 | G194: 6.710526316 | H194: -10 | I194: 6.770334928 | J194: -10 | K194: 9.76076555 | L194: -2.5 | M194: 15.89712919 | N194: -15 | O194: 8.361244019
C195: 19.4 | D195: -7.478947368 | E195: 10.21052632 | F195: -25.92894737 | G195: 5.710526316 | H195: -13.42296651 | I195: 5.770334928 | J195: -13.12392344 | K195: 8.76076555 | L195: -7.060287081 | M195: 14.39712919 | N195: -20.3138756 | O195: 6.861244019
C196: 19.5 | D196: -12.75789474 | E196: 8.710526316 | F196: -29.55789474 | G196: 4.710526316 | H196: -17.04593301 | I196: 4.770334928 | J196: -16.44784689 | K196: 7.76076555 | L196: -11.92057416 | M196: 12.89712919 | N196: -25.9277512 | O196: 5.361244019
C197: 19.6 | D197: -18.33684211 | E197: 7.210526316 | F197: -33.38684211 | G197: 3.710526316 | H197: -20.86889952 | I197: 3.770334928 | J197: -19.97177033 | K197: 6.76076555 | L197: -17.08086124 | M197: 11.39712919 | N197: -31.84162679 | O197: 3.861244019
C198: 19.7 | D198: -24.21578947 | E198: 5.710526316 | F198: -37.41578947 | G198: 2.710526316 | H198: -24.89186603 | I198: 2.770334928 | J198: -23.69569378 | K198: 5.76076555 | L198: -22.54114833 | M198: 9.897129187 | N198: -38.05550239 | O198: 2.361244019
C199: 19.8 | D199: -30.39473684 | E199: 4.210526316 | F199: -41.64473684 | G199: 1.710526316 | H199: -29.11483254 | I199: 1.770334928 | J199: -27.61961722 | K199: 4.76076555 | L199: -28.30143541 | M199: 8.397129187 | N199: -44.56937799 | O199: 0.8612440191
C200: 19.9 | D200: -36.87368421 | E200: 2.710526316 | F200: -46.07368421 | G200: 0.7105263158 | H200: -33.53779904 | I200: 0.7703349282 | J200: -31.74354067 | K200: 3.76076555 | L200: -34.36172249 | M200: 6.897129187 | N200: -51.38325359 | O200: -0.6387559809
... 56 more rows

Sheet Resume
A1: Recapitulatif
B3: Charge Pair | D3: Charge impaire | F3: Adjacentes 1 + 2 | H3: Adjacentes 2 + 3 | J3: Adjacentes 3 + 4 | L3: Adjacentes 4 + 5
B4: M (Kn.m) | C4: V (Kn) | D4: M (Kn.m) | E4: V (Kn) | F4: M (Kn.m) | G4: V (Kn) | H4: M (Kn.m) | I4: V (Kn) | J4: M (Kn.m) | K4: V (Kn) | L4: M (Kn.m) | M4: V (Kn)
A5: Min | B5: -65.78947368 | C5: -13.15789474 | D5: -65.78947368 | E5: -13.15789474 | F5: -81.63875598 | G5: -16.3277512 | H5: -66.08851675 | I5: -12.32057416 | J5: -66.08851675 | K5: -10.04784689 | L5: -81.63875598 | M5: -10.64593301
A6: X (Min) | B6: 5.1 | C6: 5 | D6: 5.1 | E6: 5 | F6: 5.1 | G6: 5 | H6: 10.2 | I6: 5 | J6: 15.3 | K6: 5 | L6: 20.4 | M6: 5
A7: Max | B7: 36.36315789 | C7: 78.28947368 | D7: 63.71842105 | E7: 88.15789474 | F7: 57.34449761 | G7: 81.63875598 | H7: 39.90430622 | I7: 78.40909091 | J7: 39.90430622 | K7: 75.89712919 | L7: 57.34449761 | M7: 91.3277512
A8: X | B8: 17.7 | C8: 5.1 | D8: 23.3 | E8: 20.4 | F8: 2 | G8: 5.1 | H8: 23.4 | I8: 10.2 | J8: 2 | K8: 15.3 | L8: 23.4 | M8: 20.4
A11: Moment Max | B11: 63.71842105 | D11: Pu | E11: 30
A12: Moment Min | B12: -81.63875598
A13: V Max | B13: 91.3277512 | C13: =MAX(ABS(B13),ABS(B14)) -> 91.3277512 | D13: Rectangulaire | F13: =IF(B11<=0,"Rectangulaire",D13) -> Rectangulaire
A14: V Min | B14: -16.3277512 | F14: =IF(B12<=0,"Rectangulaire",D13) -> Rectangulaire
A16: Poutre de Dimensions
A17: B0 | B17: H | C17: B | D17: H0
A18: 38 | B18: 12
A21: Calcul En Travee
A22: A | B22: 71.93393418
A23: A' | B23: 0
A24: on recomende A/lit | B24: 53.65840252 | C24: Ha | D24: 0.3 | F24: =LEFT(B24,1) -> 5
A25: on recomende A'/lit | B25: 4.71238898 | C25: Ha | D25: 0.04 | F25: =MID(B24,4,3) -> 658
A28: Calcul Sur Appuis
A29: A | B29: 71.93393418
A30: A' | B30: 0
A31: on recomende A/lit | B31: 53.65840252 | C31: Ha | D31: 0.3 | F31: =LEFT(B31,1) -> 5
A32: on recomende A'/lit | B32: 4.71238898 | C32: Ha | D32: 0.04 | F32: =MID(B31,4,3) -> 658

Sheet Sheet1
A1: 0.218 | B1: 0.7001
A2: 0.219 | B2: 0.7024
A3: 0.22 | B3: 0.7046
A4: 0.221 | B4: 0.7069
A5: 0.222 | B5: 0.7092
A6: 0.223 | B6: 0.7115
A7: 0.224 | B7: 0.7138
A8: 0.225 | B8: 0.7162
A9: 0.226 | B9: 0.7186
A10: 0.227 | B10: 0.721
A11: 0.228 | B11: 0.7234
A12: 0.229 | B12: 0.7259
A13: 0.23 | B13: 0.7284
A14: 0.231 | B14: 0.7309
A15: 0.232 | B15: 0.7339
A16: 0.233 | B16: 0.736
A17: 0.234 | B17: 0.7386
A18: 0.235 | B18: 0.7412
A19: 0.236 | B19: 0.7438
A20: 0.237 | B20: 0.7465
A21: 0.238 | B21: 0.7492
A22: 0.239 | B22: 0.7519
A23: 0.24 | B23: 0.7547
A24: 0.241 | B24: 0.7575
A25: 0.242 | B25: 0.7603
A26: 0.243 | B26: 0.7632
A27: 0.244 | B27: 0.7661
A28: 0.245 | B28: 0.769
A29: 0.246 | B29: 0.772
A30: 0.247 | B30: 0.775
A31: 0.248 | B31: 0.7781
A32: 0.249 | B32: 0.7812
A33: 0.25 | B33: 0.7843
A34: 0.251 | B34: 0.7875
A35: 0.252 | B35: 0.7907
A36: 0.253 | B36: 0.7939
A37: 0.254 | B37: 0.7972
A38: 0.255 | B38: 0.8006
A39: 0.256 | B39: 0.804
A40: 0.257 | B40: 0.8074
A41: 0.258 | B41: 0.8109
A42: 0.259 | B42: 0.8145
A43: 0.26 | B43: 0.8181
A44: 0.261 | B44: 0.8218
A45: 0.262 | B45: 0.8255
A46: 0.263 | B46: 0.8293
A47: 0.264 | B47: 0.8331
A48: 0.265 | B48: 0.837
A49: 0.266 | B49: 0.841
A50: 0.267 | B50: 0.845
A51: 0.268 | B51: 0.8492
A52: 0.269 | B52: 0.8533
A53: 0.27 | B53: 0.8576
A54: 0.271 | B54: 0.862
A55: 0.272 | B55: 0.8664
A56: 0.273 | B56: 0.8709
A57: 0.274 | B57: 0.8756
A58: 0.275 | B58: 0.8803
A59: 0.276 | B59: 0.8851
A60: 0.277 | B60: 0.89
A61: 0.278 | B61: 0.8951
A62: 0.279 | B62: 0.9002
A63: 0.28 | B63: 0.9055
A64: 0.281 | B64: 0.9109
A65: 0.282 | B65: 0.9165
A66: 0.283 | B66: 0.9222
A67: 0.284 | B67: 0.928
A68: 0.285 | B68: 0.9341
A69: 0.286 | B69: 0.9403
A70: 0.287 | B70: 0.9467
A71: 0.288 | B71: 0.9533
A72: 0.289 | B72: 0.9601
A73: 0.29 | B73: 0.9672
A74: 0.291 | B74: 0.9746
A75: 0.292 | B75: 0.9822
A76: 0.293 | B76: 0.9902
A77: 0.294 | B77: 0.9985

Sheet courbe envel
A1: 0 | B1: 0 | C1: 61.84210526
A2: 0.1 | B2: 6.034210526 | C2: 60.34210526
A3: 0.2 | B3: 11.76842105 | C3: 58.84210526
A4: 0.3 | B4: 17.20263158 | C4: 57.34210526
A5: 0.4 | B5: 22.33684211 | C5: 55.84210526
A6: 0.5 | B6: 27.17105263 | C6: 54.34210526
A7: 0.6 | B7: 31.70526316 | C7: 52.84210526
A8: 0.7 | B8: 35.93947368 | C8: 51.34210526
A9: 0.8 | B9: 39.87368421 | C9: 49.84210526
A10: 0.9 | B10: 43.50789474 | C10: 48.34210526
A11: 1 | B11: 46.84210526 | C11: 46.84210526
A12: 1.1 | B12: 49.87631579 | C12: 45.34210526
A13: 1.2 | B13: 52.61052632 | C13: 43.84210526
A14: 1.3 | B14: 55.04473684 | C14: 42.34210526
A15: 1.4 | B15: 57.17894737 | C15: 40.84210526
A16: 1.5 | B16: 59.01315789 | C16: 39.34210526
A17: 1.6 | B17: 60.54736842 | C17: 37.84210526
A18: 1.7 | B18: 61.78157895 | C18: 36.34210526
A19: 1.8 | B19: 62.71578947 | C19: 34.84210526
A20: 1.9 | B20: 63.35 | C20: 33.34210526
A21: 2 | B21: 63.68421053 | C21: 31.84210526
A22: 2.1 | B22: 63.71842105 | C22: 30.34210526
A23: 2.2 | B23: 63.45263158 | C23: 28.84210526
A24: 2.3 | B24: 62.88684211 | C24: 27.34210526
A25: 2.4 | B25: 62.02105263 | C25: 25.84210526
A26: 2.5 | B26: 60.85526316 | C26: 24.34210526
A27: 2.6 | B27: 59.38947368 | C27: 22.84210526
A28: 2.7 | B28: 57.62368421 | C28: 21.34210526
A29: 2.8 | B29: 55.55789474 | C29: 19.84210526
A30: 2.9 | B30: 53.19210526 | C30: 18.34210526
A31: 3 | B31: 50.52631579 | C31: 16.84210526
A32: 3.1 | B32: 47.56052632 | C32: 15.34210526
A33: 3.2 | B33: 44.29473684 | C33: 13.84210526
A34: 3.3 | B34: 40.72894737 | C34: 12.34210526
A35: 3.4 | B35: 36.86315789 | C35: 10.84210526
A36: 3.5 | B36: 32.69736842 | C36: 9.342105263
A37: 3.6 | B37: 28.23157895 | C37: 7.842105263
A38: 3.7 | B38: 23.46578947 | C38: 6.342105263
A39: 3.8 | B39: 18.4 | C39: 4.842105263
A40: 3.9 | B40: 13.03421053 | C40: 3.342105263
A41: 4 | B41: -12.63157895 | C41: -3.157894737
A42: 4.1 | B42: -17.04736842 | C42: -4.157894737
A43: 4.2 | B43: -21.66315789 | C43: -5.157894737
A44: 4.3 | B44: -26.47894737 | C44: -6.157894737
A45: 4.4 | B45: -32.24210526 | C45: -7.327751196
A46: 4.5 | B46: -39.72488038 | C46: -8.827751196
A47: 4.6 | B47: -47.5076555 | C47: -10.3277512
A48: 4.7 | B48: -55.59043062 | C48: -11.8277512
A49: 4.8 | B49: -63.97320574 | C49: -13.3277512
A50: 4.9 | B50: -72.65598086 | C50: -14.8277512
A51: 5 | B51: -81.63875598 | C51: -16.3277512
A52: 5.1 | B52: -81.63875598 | C52: 81.63875598
A53: 5.2 | B53: -73.62488038 | C53: 80.13875598
A54: 5.3 | B54: -65.91100478 | C54: 78.63875598
A55: 5.4 | B55: -58.49712919 | C55: 77.13875598
A56: 5.5 | B56: -51.38325359 | C56: 75.63875598
A57: 5.6 | B57: -44.56937799 | C57: 74.13875598
A58: 5.7 | B58: -38.05550239 | C58: 72.63875598
A59: 5.8 | B59: -33.38684211 | C59: 71.13875598
A60: 5.9 | B60: -29.55789474 | C60: 69.63875598
A61: 6 | B61: -25.92894737 | C61: 68.13875598
A62: 6.1 | B62: -22.5 | C62: 66.63875598
A63: 6.2 | B63: -19.27105263 | C63: 65.13875598
A64: 6.3 | B64: -16.24210526 | C64: 63.63875598
A65: 6.4 | B65: -13.41315789 | C65: 62.13875598
A66: 6.5 | B66: 14.41578947 | C66: 60.63875598
A67: 6.6 | B67: 17.89473684 | C67: 59.13875598
A68: 6.7 | B68: 21.07368421 | C68: 57.63875598
A69: 6.8 | B69: 23.95263158 | C69: 56.13875598
A70: 6.9 | B70: 26.53157895 | C70: 54.63875598
A71: 7 | B71: 28.81052632 | C71: 53.13875598
A72: 7.1 | B72: 30.78947368 | C72: 51.63875598
A73: 7.2 | B73: 32.46842105 | C73: 50.13875598
A74: 7.3 | B74: 33.84736842 | C74: 48.63875598
A75: 7.4 | B75: 34.92631579 | C75: 47.13875598
A76: 7.5 | B76: 35.70526316 | C76: 45.63875598
A77: 7.6 | B77: 36.18421053 | C77: 44.13875598
A78: 7.7 | B78: 36.36315789 | C78: 42.63875598
A79: 7.8 | B79: 36.24210526 | C79: 41.13875598
A80: 7.9 | B80: 35.82105263 | C80: 39.63875598
A81: 8 | B81: 35.1 | C81: 38.13875598
A82: 8.1 | B82: 34.07894737 | C82: 36.63875598
A83: 8.2 | B83: 32.75789474 | C83: 35.13875598
A84: 8.3 | B84: 31.13684211 | C84: 33.63875598
A85: 8.4 | B85: 29.21578947 | C85: 32.13875598
A86: 8.5 | B86: 26.99473684 | C86: 30.63875598
A87: 8.6 | B87: 24.47368421 | C87: 29.13875598
A88: 8.7 | B88: 21.65263158 | C88: 27.63875598
A89: 8.8 | B89: 18.53157895 | C89: 26.13875598
A90: 8.9 | B90: 15.11052632 | C90: 24.63875598
A91: 9 | B91: 11.38947368 | C91: 23.13875598
A92: 9.1 | B92: -12.63157895 | C92: 21.63875598
A93: 9.2 | B93: -15.40263158 | C93: 20.13875598
A94: 9.3 | B94: -18.37368421 | C94: 18.63875598
A95: 9.4 | B95: -21.54473684 | C95: 17.13875598
A96: 9.5 | B96: -25.95023923 | C96: 15.63875598
A97: 9.6 | B97: -31.88995215 | C97: 14.13875598
A98: 9.7 | B98: -38.12966507 | C98: 12.63875598
A99: 9.8 | B99: -44.66937799 | C99: 11.13875598
A100: 9.9 | B100: -51.50909091 | C100: 9.638755981
A101: 10 | B101: -58.64880383 | C101: 8.138755981
A102: 10.1 | B102: -66.08851675 | C102: 6.638755981
A103: 10.2 | B103: -66.08851675 | C103: 78.40909091
A104: 10.3 | B104: -58.39760766 | C104: 76.90909091
A105: 10.4 | B105: -51.00669856 | C105: 75.40909091
A106: 10.5 | B106: -43.91578947 | C106: 73.90909091
A107: 10.6 | B107: -37.12488038 | C107: 72.40909091
A108: 10.7 | B108: -30.63397129 | C108: 70.90909091
A109: 10.8 | B109: -24.4430622 | C109: 69.40909091
A110: 10.9 | B110: -19.24210526 | C110: 67.90909091
A111: 11 | B111: -15.74210526 | C111: 66.40909091
A112: 11.1 | B112: -12.44210526 | C112: 64.90909091
A113: 11.2 | B113: 10.65789474 | C113: 63.40909091
A114: 11.3 | B114: 15.00789474 | C114: 61.90909091
A115: 11.4 | B115: 19.05789474 | C115: 60.40909091
A116: 11.5 | B116: 22.80789474 | C116: 58.90909091
A117: 11.6 | B117: 26.25789474 | C117: 57.40909091
A118: 11.7 | B118: 29.40789474 | C118: 55.90909091
A119: 11.8 | B119: 32.25789474 | C119: 54.40909091
A120: 11.9 | B120: 34.80789474 | C120: 52.90909091
A121: 12 | B121: 37.05789474 | C121: 51.40909091
A122: 12.1 | B122: 39.00789474 | C122: 49.90909091
A123: 12.2 | B123: 40.65789474 | C123: 48.40909091
A124: 12.3 | B124: 42.00789474 | C124: 46.90909091
A125: 12.4 | B125: 43.05789474 | C125: 45.40909091
A126: 12.5 | B126: 43.80789474 | C126: 43.90909091
A127: 12.6 | B127: 44.25789474 | C127: 42.40909091
A128: 12.7 | B128: 44.40789474 | C128: 40.90909091
A129: 12.8 | B129: 44.25789474 | C129: 39.40909091
A130: 12.9 | B130: 43.80789474 | C130: 37.90909091
A131: 13 | B131: 43.05789474 | C131: 36.40909091
A132: 13.1 | B132: 42.00789474 | C132: 34.90909091
A133: 13.2 | B133: 40.65789474 | C133: 33.40909091
A134: 13.3 | B134: 39.00789474 | C134: 31.90909091
A135: 13.4 | B135: 37.05789474 | C135: 30.40909091
A136: 13.5 | B136: 34.80789474 | C136: 28.90909091
A137: 13.6 | B137: 32.25789474 | C137: 27.40909091
A138: 13.7 | B138: 29.40789474 | C138: 25.90909091
A139: 13.8 | B139: 26.25789474 | C139: 24.40909091
A140: 13.9 | B140: 22.80789474 | C140: 22.90909091
A141: 14 | B141: 19.05789474 | C141: 21.40909091
A142: 14.1 | B142: 15.00789474 | C142: 19.90909091
A143: 14.2 | B143: 10.65789474 | C143: 18.40909091
A144: 14.3 | B144: -12.44210526 | C144: 16.90909091
A145: 14.4 | B145: -15.74210526 | C145: 15.40909091
A146: 14.5 | B146: -19.24210526 | C146: 13.90909091
A147: 14.6 | B147: -24.4430622 | C147: 12.40909091
A148: 14.7 | B148: -30.63397129 | C148: 10.90909091
A149: 14.8 | B149: -37.12488038 | C149: 9.409090909
A150: 14.9 | B150: -43.91578947 | C150: 7.909090909
A151: 15 | B151: -51.00669856 | C151: 6.409090909
A152: 15.1 | B152: -58.39760766 | C152: 4.909090909
A153: 15.2 | B153: -66.08851675 | C153: 3.409090909
A154: 15.3 | B154: -66.08851675 | C154: 75.89712919
A155: 15.4 | B155: -58.64880383 | C155: 74.39712919
A156: 15.5 | B156: -51.50909091 | C156: 72.89712919
A157: 15.6 | B157: -44.66937799 | C157: 71.39712919
A158: 15.7 | B158: -38.12966507 | C158: 69.89712919
A159: 15.8 | B159: -31.88995215 | C159: 68.39712919
A160: 15.9 | B160: -25.95023923 | C160: 66.89712919
A161: 16 | B161: -21.54473684 | C161: 65.39712919
A162: 16.1 | B162: -18.37368421 | C162: 63.89712919
A163: 16.2 | B163: -15.40263158 | C163: 62.39712919
A164: 16.3 | B164: -12.63157895 | C164: 60.89712919
A165: 16.4 | B165: 11.38947368 | C165: 59.39712919
A166: 16.5 | B166: 15.11052632 | C166: 57.89712919
A167: 16.6 | B167: 18.53157895 | C167: 56.39712919
A168: 16.7 | B168: 21.65263158 | C168: 54.89712919
A169: 16.8 | B169: 24.47368421 | C169: 53.39712919
A170: 16.9 | B170: 26.99473684 | C170: 51.89712919
A171: 17 | B171: 29.21578947 | C171: 50.39712919
A172: 17.1 | B172: 31.13684211 | C172: 48.89712919
A173: 17.2 | B173: 32.75789474 | C173: 47.39712919
A174: 17.3 | B174: 34.07894737 | C174: 45.89712919
A175: 17.4 | B175: 35.1 | C175: 44.39712919
A176: 17.5 | B176: 35.82105263 | C176: 42.89712919
A177: 17.6 | B177: 36.24210526 | C177: 41.39712919
A178: 17.7 | B178: 36.36315789 | C178: 39.89712919
A179: 17.8 | B179: 36.18421053 | C179: 38.39712919
A180: 17.9 | B180: 35.70526316 | C180: 36.89712919
A181: 18 | B181: 34.92631579 | C181: 35.39712919
A182: 18.1 | B182: 33.84736842 | C182: 33.89712919
A183: 18.2 | B183: 32.46842105 | C183: 32.39712919
A184: 18.3 | B184: 30.78947368 | C184: 30.89712919
A185: 18.4 | B185: 28.81052632 | C185: 29.39712919
A186: 18.5 | B186: 26.53157895 | C186: 27.89712919
A187: 18.6 | B187: 23.95263158 | C187: 26.39712919
A188: 18.7 | B188: 21.07368421 | C188: 24.89712919
A189: 18.8 | B189: 17.89473684 | C189: 23.39712919
A190: 18.9 | B190: 14.41578947 | C190: 21.89712919
A191: 19 | B191: -13.41315789 | C191: 20.39712919
A192: 19.1 | B192: -16.24210526 | C192: 18.89712919
A193: 19.2 | B193: -19.27105263 | C193: 17.39712919
A194: 19.3 | B194: -22.5 | C194: 15.89712919
A195: 19.4 | B195: -25.92894737 | C195: 14.39712919
A196: 19.5 | B196: -29.55789474 | C196: 12.89712919
A197: 19.6 | B197: -33.38684211 | C197: 11.39712919
A198: 19.7 | B198: -38.05550239 | C198: 9.897129187
A199: 19.8 | B199: -44.56937799 | C199: 8.397129187
A200: 19.9 | B200: -51.38325359 | C200: 6.897129187
... 56 more rows

Sheet Dalles
A2: Pu | B2: 16 | C2: Kn/m2
A3: Nbre d'heure de feu | B3: 1.5
A4: Beton | B4: 25 | C4: Mpa
A5: Isolation Phonique | B5: Habitation
A7: Plancher Corps Creux
A8: Plaque | B8: Lx | C8: Ly | D8: alpha | E8: h fleche | F8: H0 resistance
A9: AB23 | B9: 3.85 | C9: 6.3 | D9: =ROUND(MIN(B9,C9)/MAX(B9,C9),2) -> 0.61 | E9: =IF(D9<0.5,MIN(B9:C9)/30,MIN(B9:C9)/40)*100 -> 9.625 | F9: =(SQRT($B$2/1000*B9^2/10/(1+2*D9^3)/(0.372*1*$B$4/1.5))+0.03)*100 -> 8.129184817
A10: AB46 | B10: 4.15 | C10: 3.75 | D10: =ROUND(MIN(B10,C10)/MAX(B10,C10),2) -> 0.9 | E10: =IF(D10<0.5,MIN(B10:C10)/30,MIN(B10:C10)/40)*100 -> 9.375 | F10: =(SQRT($B$2/1000*B10^2/10/(1+2*D10^3)/(0.372*1*$B$4/1.5))+0.03)*100 -> 7.252274617
A11: AB67 | B11: 4.05 | C11: 3.75 | D11: =ROUND(MIN(B11,C11)/MAX(B11,C11),2) -> 0.93 | E11: =IF(D11<0.5,MIN(B11:C11)/30,MIN(B11:C11)/40)*100 -> 9.375 | F11: =(SQRT($B$2/1000*B11^2/10/(1+2*D11^3)/(0.372*1*$B$4/1.5))+0.03)*100 -> 7.028152791
A12: CF23 | B12: 6.55 | C12: 6.3 | D12: =ROUND(MIN(B12,C12)/MAX(B12,C12),2) -> 0.96 | E12: =IF(D12<0.5,MIN(B12:C12)/30,MIN(B12:C12)/40)*100 -> 15.75 | F12: =(SQRT($B$2/1000*B12^2/10/(1+2*D12^3)/(0.372*1*$B$4/1.5))+0.03)*100 -> 9.322763787
C15: Hauteur min | E15: =ROUNDUP(MAX(E9:F12,LOOKUP(B3,'Ossatures Defaults'!$B$18:$G$18,'Ossatures Defaults'!$B$19:$G$19),LOOKUP(B5,'Ossatures Defaults'!$A$30:$A$31,'Ossatures Defaults'!$B$30:$B$31)),0) -> 16
A19: Plancher industriel
A20: Pu | B20: 20 | C20: Kn/m2
A21: Nbre d'heure de feu | B21: 1.5
A22: Beton | B22: 25 | C22: Mpa
A23: Isolation Phonique | B23: Habitation
A26: Plaque | B26: Lx | C26: Ly | D26: alpha | E26: h fleche | F26: H0 resistance
A27: BC01 | B27: 5 | C27: 6 | D27: =ROUND(MIN(B27,C27)/MAX(B27,C27),2) -> 0.83 | E27: =IF(D27<0.5,MIN(B27:C27)/30,MIN(B27:C27)/40)*100 -> 12.5 | F27: =(SQRT($B$2/1000*B27^2/10/(1+2*D27^3)/(0.372*1*$B$4/1.5))+0.03)*100 -> 8.486115044
F29: Min
C30: Hauteur min | E30: 15 | F30: =ROUNDUP(MAX(E27:F27,LOOKUP(B21,'Ossatures Defaults'!$B$18:$G$18,'Ossatures Defaults'!$B$19:$G$19),LOOKUP(B23,'Ossatures Defaults'!$A$30:$A$31,'Ossatures Defaults'!$B$30:$B$31)),0) -> 14
C33: Calcul a | D33: ELU | F33: mux | G33: =IF(D27<0.5,1/8,IF(D33="ELU",LOOKUP(D27,'Abaques mu'!$A$3:$A$53,'Abaques mu'!$B$3:$B$53),LOOKUP(D27,'Abaques mu'!$A$3:$A$53,'Abaques mu'!$D$3:$D$53))) -> 0.0528
F34: muy | G34: =IF(D27<0.5,0.25,IF(D33="ELU",LOOKUP(D27,'Abaques mu'!$C$3:$C$53),LOOKUP(D27,'Abaques mu'!$E$3:$E$53))) -> 0.0845
H36: As | I36: nbr | J36: Ha
F37: Mx | G37: =G33*B20*B27^2 -> 26.4 | H37: =G37/0.9/0.8/E30*100/435*10 -> 5.619412516 | I37: 6 | J37: =ROUNDUP(SQRT(H37*4/I37/PI())*10,0) -> 11
F38: My | G38: =MAX(G34*G37,G37/5) -> 5.28 | H38: =G38/0.9/0.8/E30*100/435*10 -> 1.123882503 | I38: 6 | J38: =ROUNDUP(SQRT(H38*4/I38/PI())*10,0) -> 5
F39: Vmax | G39: =B20*B27*C27/(B27+2*C27) -> 35.29411765
F40: Vly | G40: =B20*B27*C27/3/C27 -> 33.33333333
E43: resistance a l'effort tranchant | F43: Vmin | G43: =0.035*(MIN(1+SQRT(200/E30/10),2))^1.5*(B22/1.5)^0.5*1000 -> 404.1451884
F44: Vrdc | G44: =MAX(0.12*MIN(1+SQRT(200/E30/0.9/10),2)*(100*MIN(H37/E30/0.9/100,0.02)*B22)^(1/3),G43)*E30/0.9/100 -> 67.35753141
F45: Test | G45: =IF(MAX(G37,G38)<G44,"Ok","Conditions non verifier") -> Ok
E47: non fragilite | F47: as min | G47: =LOOKUP(B22,'Classes Beton'!$B$1:$O$1,'Classes Beton'!$B$4:$O$4)*0.26*E30*0.9/435/100*10000 -> 2.097931034
F48: Test | G48: =IF(MIN(H37,H38)>G47,"Ok","Conditions non verifier") -> Conditions non verifier
E50: p de poinconnement | G50: 10 | H50: =G50*1.5 -> 15
E51: Surface | F51: 10 | G51: 10 | H51: =F51+G51 -> 20
F52: Vrd,max | G52: =0.5*0.6*(1-$B$22/250)*$B$22/1.5 -> 4.5
F53: u0 | G53: =(F51+G51)*2*2/100 -> 0.8
F54: Ved,max | G54: =G50/1000/G53/0.9/E30*100*1.5 -> 0.1388888889
F55: ved= | G55: =H50/(G53+2*PI()*0.18)/0.9/E30/10 -> 0.05754150403
F57: d | G57: =E30*0.9 -> 13.5
F58: ro | G58: =SQRT(H37/G57*100/10000) -> 0.06451765487
F60: Vrd,c | G60: =MAX(0.18/B22*MIN(2,1+SQRT(200/(E30-3)*10))*(100*G58*B22)^(1/3)+0.1*G50/1000/((H51+4*G57)*2-H51*H51*PI()*4*G57^2)*100,0.035*0.1^(3/2)*SQRT(B22)+0.1*G50/1000/((H51+4*G57)*2-H51*H51*PI()*4*G57^2)*100) -> 0.07838532218
F61: test | G61: =IF(G55<G60,"Pas d'armatures de poinconnement","Poinconnement") -> Pas d'armatures de poinconnement

Sheet Charge
A1: G | B1: 1.35 | E1: Q | F1: 1.5
A2: Poids Beton | B2: 25 | C2: KN/m3 | E2: Surcharge | F2: 2.5 | G2: KN/m2
A3: Hauteur de la dalle | B3: 20 | C3: cm
A4: Cloison | B4: 1.5 | C4: KN/m2
A5: Poids Enduit | B5: 22 | C5: KN/m3
A6: Epaisseu Enduit | B6: 2 | C6: cm
A7: Carrelage | B7: 2 | C7: KN/m2
A8: Total G | B8: =B2*B3/100+B4+B6*B5/100+B7 -> 8.94 | C8: KN/m2 | E8: Total Q | F8: =F2 -> 2.5 | G8: KN/m2
E11: Pu | F11: =B8*B1+F8*F1 -> 15.819 | G11: KN/m2
A14: Poids Des Facades
A15: Hauteur (m) | B15: 2.5 | C15: =12*10/1000/0.4/0.2/0.1 -> 15
A16: Epaisseur (m) | B16: 0.2 | C16: =B15*0.03*22 -> 1.65
A17: Poids/ml | B17: =ROUNDUP(B16*B15*C15+C16+C17,1) -> 9.5 | C17: =0.15*0.1*18 -> 0.27

Sheet Dalle Pleine
A5: Classe Du Beton | B5: 25 | C5: =CONCATENATE("/",LOOKUP(B5,'Classes Beton'!B1:O1,'Classes Beton'!B2:O2)) -> /30
A6: Classe D'exposition | B6: XC2
A7: Abrasion | B7: Pas D'abrasion
A8: Surface | B8: --
A9: Controle De qualite | B9: Pas de controle
A10: Critere de l'element | B10: --
A12: G (Kn/m2)
A13: Q (Kn/m2)
A14: Faire Une Charge/decharge | B14: Oui
A18: Moment Max Sans Repartition | B18: Suivant X | C18: Suivant Y
A19: Travee
A20: Appuis

Sheet DV-IDENTITY-0 (hidden)
A1: =IF('Abaques mu'!1:1,"AAAAACsezwA=",0) -> 0 | B1: =AND('Abaques mu'!A1,"AAAAACsezwE=") ->  | C1: =AND('Abaques mu'!B1,"AAAAACsezwI=") ->  | D1: =AND('Abaques mu'!C1,"AAAAACsezwM=") ->  | E1: =AND('Abaques mu'!D1,"AAAAACsezwQ=") ->  | F1: =AND('Abaques mu'!E1,"AAAAACsezwU=") ->  | G1: =IF('Abaques mu'!2:2,"AAAAACsezwY=",0) -> 0 | H1: =AND('Abaques mu'!A2,"AAAAACsezwc=") ->  | I1: =AND('Abaques mu'!B2,"AAAAACsezwg=") ->  | J1: =AND('Abaques mu'!C2,"AAAAACsezwk=") ->  | K1: =AND('Abaques mu'!D2,"AAAAACsezwo=") ->  | L1: =AND('Abaques mu'!E2,"AAAAACsezws=") ->  | M1: =IF('Abaques mu'!3:3,"AAAAACsezww=",0) -> 0 | N1: =AND('Abaques mu'!A3,"AAAAACsezw0=") ->  | O1: =AND('Abaques mu'!B3,"AAAAACsezw4=") ->  | P1: =AND('Abaques mu'!C3,"AAAAACsezw8=") ->  | Q1: =AND('Abaques mu'!D3,"AAAAACsezxA=") ->  | R1: =AND('Abaques mu'!E3,"AAAAACsezxE=") ->  | S1: =IF('Abaques mu'!4:4,"AAAAACsezxI=",0) -> 0 | T1: =AND('Abaques mu'!A4,"AAAAACsezxM=") ->  | U1: =AND('Abaques mu'!B4,"AAAAACsezxQ=") ->  | V1: =AND('Abaques mu'!C4,"AAAAACsezxU=") ->  | W1: =AND('Abaques mu'!D4,"AAAAACsezxY=") ->  | X1: =AND('Abaques mu'!E4,"AAAAACsezxc=") ->  | Y1: =IF('Abaques mu'!5:5,"AAAAACsezxg=",0) -> 0 | Z1: =AND('Abaques mu'!A5,"AAAAACsezxk=") ->  | AA1: =AND('Abaques mu'!B5,"AAAAACsezxo=") ->  | AB1: =AND('Abaques mu'!C5,"AAAAACsezxs=") ->  | AC1: =AND('Abaques mu'!D5,"AAAAACsezxw=") ->  | AD1: =AND('Abaques mu'!E5,"AAAAACsezx0=") ->  | AE1: =IF('Abaques mu'!6:6,"AAAAACsezx4=",0) -> 0 | AF1: =AND('Abaques mu'!A6,"AAAAACsezx8=") ->  | AG1: =AND('Abaques mu'!B6,"AAAAACsezyA=") ->  | AH1: =AND('Abaques mu'!C6,"AAAAACsezyE=") ->  | AI1: =AND('Abaques mu'!D6,"AAAAACsezyI=") ->  | AJ1: =AND('Abaques mu'!E6,"AAAAACsezyM=") ->  | AK1: =IF('Abaques mu'!7:7,"AAAAACsezyQ=",0) -> 0 | AL1: =AND('Abaques mu'!A7,"AAAAACsezyU=") ->  | AM1: =AND('Abaques mu'!B7,"AAAAACsezyY=") ->  | AN1: =AND('Abaques mu'!C7,"AAAAACsezyc=") ->  | AO1: =AND('Abaques mu'!D7,"AAAAACsezyg=") ->  | AP1: =AND('Abaques mu'!E7,"AAAAACsezyk=") ->  | AQ1: =IF('Abaques mu'!8:8,"AAAAACsezyo=",0) -> 0 | AR1: =AND('Abaques mu'!A8,"AAAAACsezys=") ->  | AS1: =AND('Abaques mu'!B8,"AAAAACsezyw=") ->  | AT1: =AND('Abaques mu'!C8,"AAAAACsezy0=") ->  | AU1: =AND('Abaques mu'!D8,"AAAAACsezy4=") ->  | AV1: =AND('Abaques mu'!E8,"AAAAACsezy8=") ->  | AW1: =IF('Abaques mu'!9:9,"AAAAACsezzA=",0) -> 0 | AX1: =AND('Abaques mu'!A9,"AAAAACsezzE=") ->  | AY1: =AND('Abaques mu'!B9,"AAAAACsezzI=") ->  | AZ1: =AND('Abaques mu'!C9,"AAAAACsezzM=") ->  | BA1: =AND('Abaques mu'!D9,"AAAAACsezzQ=") ->  | BB1: =AND('Abaques mu'!E9,"AAAAACsezzU=") ->  | BC1: =IF('Abaques mu'!10:10,"AAAAACsezzY=",0) -> 0 | BD1: =AND('Abaques mu'!A10,"AAAAACsezzc=") ->  | BE1: =AND('Abaques mu'!B10,"AAAAACsezzg=") ->  | BF1: =AND('Abaques mu'!C10,"AAAAACsezzk=") ->  | BG1: =AND('Abaques mu'!D10,"AAAAACsezzo=") ->  | BH1: =AND('Abaques mu'!E10,"AAAAACsezzs=") ->  | BI1: =IF('Abaques mu'!11:11,"AAAAACsezzw=",0) -> 0 | BJ1: =AND('Abaques mu'!A11,"AAAAACsezz0=") ->  | BK1: =AND('Abaques mu'!B11,"AAAAACsezz4=") ->  | BL1: =AND('Abaques mu'!C11,"AAAAACsezz8=") ->  | BM1: =AND('Abaques mu'!D11,"AAAAACsez0A=") ->  | BN1: =AND('Abaques mu'!E11,"AAAAACsez0E=") ->  | BO1: =IF('Abaques mu'!12:12,"AAAAACsez0I=",0) -> 0 | BP1: =AND('Abaques mu'!A12,"AAAAACsez0M=") ->  | BQ1: =AND('Abaques mu'!B12,"AAAAACsez0Q=") ->  | BR1: =AND('Abaques mu'!C12,"AAAAACsez0U=") ->  | BS1: =AND('Abaques mu'!D12,"AAAAACsez0Y=") ->  | BT1: =AND('Abaques mu'!E12,"AAAAACsez0c=") ->  | BU1: =IF('Abaques mu'!13:13,"AAAAACsez0g=",0) -> 0 | BV1: =AND('Abaques mu'!A13,"AAAAACsez0k=") ->  | BW1: =AND('Abaques mu'!B13,"AAAAACsez0o=") ->  | BX1: =AND('Abaques mu'!C13,"AAAAACsez0s=") ->  | BY1: =AND('Abaques mu'!D13,"AAAAACsez0w=") ->  | BZ1: =AND('Abaques mu'!E13,"AAAAACsez00=") ->  | CA1: =IF('Abaques mu'!14:14,"AAAAACsez04=",0) -> 0 | CB1: =AND('Abaques mu'!A14,"AAAAACsez08=") ->  | CC1: =AND('Abaques mu'!B14,"AAAAACsez1A=") ->  | CD1: =AND('Abaques mu'!C14,"AAAAACsez1E=") ->  | CE1: =AND('Abaques mu'!D14,"AAAAACsez1I=") ->  | CF1: =AND('Abaques mu'!E14,"AAAAACsez1M=") ->  | CG1: =IF('Abaques mu'!15:15,"AAAAACsez1Q=",0) -> 0 | CH1: =AND('Abaques mu'!A15,"AAAAACsez1U=") ->  | CI1: =AND('Abaques mu'!B15,"AAAAACsez1Y=") ->  | CJ1: =AND('Abaques mu'!C15,"AAAAACsez1c=") ->  | CK1: =AND('Abaques mu'!D15,"AAAAACsez1g=") ->  | CL1: =AND('Abaques mu'!E15,"AAAAACsez1k=") ->  | CM1: =IF('Abaques mu'!16:16,"AAAAACsez1o=",0) -> 0 | CN1: =AND('Abaques mu'!A16,"AAAAACsez1s=") ->  | CO1: =AND('Abaques mu'!B16,"AAAAACsez1w=") ->  | CP1: =AND('Abaques mu'!C16,"AAAAACsez10=") ->  | CQ1: =AND('Abaques mu'!D16,"AAAAACsez14=") ->  | CR1: =AND('Abaques mu'!E16,"AAAAACsez18=") ->  | CS1: =IF('Abaques mu'!17:17,"AAAAACsez2A=",0) -> 0 | CT1: =AND('Abaques mu'!A17,"AAAAACsez2E=") ->  | CU1: =AND('Abaques mu'!B17,"AAAAACsez2I=") ->  | CV1: =AND('Abaques mu'!C17,"AAAAACsez2M=") ->  | CW1: =AND('Abaques mu'!D17,"AAAAACsez2Q=") ->  | CX1: =AND('Abaques mu'!E17,"AAAAACsez2U=") ->  | CY1: =IF('Abaques mu'!18:18,"AAAAACsez2Y=",0) -> 0 | CZ1: =AND('Abaques mu'!A18,"AAAAACsez2c=") ->  | DA1: =AND('Abaques mu'!B18,"AAAAACsez2g=") ->  | DB1: =AND('Abaques mu'!C18,"AAAAACsez2k=") ->  | DC1: =AND('Abaques mu'!D18,"AAAAACsez2o=") ->  | DD1: =AND('Abaques mu'!E18,"AAAAACsez2s=") ->  | DE1: =IF('Abaques mu'!19:19,"AAAAACsez2w=",0) -> 0 | DF1: =AND('Abaques mu'!A19,"AAAAACsez20=") ->  | DG1: =AND('Abaques mu'!B19,"AAAAACsez24=") ->  | DH1: =AND('Abaques mu'!C19,"AAAAACsez28=") ->  | DI1: =AND('Abaques mu'!D19,"AAAAACsez3A=") ->  | DJ1: =AND('Abaques mu'!E19,"AAAAACsez3E=") ->  | DK1: =IF('Abaques mu'!20:20,"AAAAACsez3I=",0) -> 0 | DL1: =AND('Abaques mu'!A20,"AAAAACsez3M=") ->  | DM1: =AND('Abaques mu'!B20,"AAAAACsez3Q=") ->  | DN1: =AND('Abaques mu'!C20,"AAAAACsez3U=") ->  | DO1: =AND('Abaques mu'!D20,"AAAAACsez3Y=") ->  | DP1: =AND('Abaques mu'!E20,"AAAAACsez3c=") ->  | DQ1: =IF('Abaques mu'!21:21,"AAAAACsez3g=",0) -> 0 | DR1: =AND('Abaques mu'!A21,"AAAAACsez3k=") ->  | DS1: =AND('Abaques mu'!B21,"AAAAACsez3o=") ->  | DT1: =AND('Abaques mu'!C21,"AAAAACsez3s=") ->  | DU1: =AND('Abaques mu'!D21,"AAAAACsez3w=") ->  | DV1: =AND('Abaques mu'!E21,"AAAAACsez30=") ->  | DW1: =IF('Abaques mu'!22:22,"AAAAACsez34=",0) -> 0 | DX1: =AND('Abaques mu'!A22,"AAAAACsez38=") ->  | DY1: =AND('Abaques mu'!B22,"AAAAACsez4A=") ->  | DZ1: =AND('Abaques mu'!C22,"AAAAACsez4E=") ->  | EA1: =AND('Abaques mu'!D22,"AAAAACsez4I=") ->  | EB1: =AND('Abaques mu'!E22,"AAAAACsez4M=") ->  | EC1: =IF('Abaques mu'!23:23,"AAAAACsez4Q=",0) -> 0 | ED1: =AND('Abaques mu'!A23,"AAAAACsez4U=") ->  | EE1: =AND('Abaques mu'!B23,"AAAAACsez4Y=") ->  | EF1: =AND('Abaques mu'!C23,"AAAAACsez4c=") ->  | EG1: =AND('Abaques mu'!D23,"AAAAACsez4g=") ->  | EH1: =AND('Abaques mu'!E23,"AAAAACsez4k=") ->  | EI1: =IF('Abaques mu'!24:24,"AAAAACsez4o=",0) -> 0 | EJ1: =AND('Abaques mu'!A24,"AAAAACsez4s=") ->  | EK1: =AND('Abaques mu'!B24,"AAAAACsez4w=") ->  | EL1: =AND('Abaques mu'!C24,"AAAAACsez40=") ->  | EM1: =AND('Abaques mu'!D24,"AAAAACsez44=") ->  | EN1: =AND('Abaques mu'!E24,"AAAAACsez48=") ->  | EO1: =IF('Abaques mu'!25:25,"AAAAACsez5A=",0) -> 0 | EP1: =AND('Abaques mu'!A25,"AAAAACsez5E=") ->  | EQ1: =AND('Abaques mu'!B25,"AAAAACsez5I=") ->  | ER1: =AND('Abaques mu'!C25,"AAAAACsez5M=") ->  | ES1: =AND('Abaques mu'!D25,"AAAAACsez5Q=") ->  | ET1: =AND('Abaques mu'!E25,"AAAAACsez5U=") ->  | EU1: =IF('Abaques mu'!26:26,"AAAAACsez5Y=",0) -> 0 | EV1: =AND('Abaques mu'!A26,"AAAAACsez5c=") ->  | EW1: =AND('Abaques mu'!B26,"AAAAACsez5g=") ->  | EX1: =AND('Abaques mu'!C26,"AAAAACsez5k=") ->  | EY1: =AND('Abaques mu'!D26,"AAAAACsez5o=") ->  | EZ1: =AND('Abaques mu'!E26,"AAAAACsez5s=") ->  | FA1: =IF('Abaques mu'!27:27,"AAAAACsez5w=",0) -> 0 | FB1: =AND('Abaques mu'!A27,"AAAAACsez50=") ->  | FC1: =AND('Abaques mu'!B27,"AAAAACsez54=") ->  | FD1: =AND('Abaques mu'!C27,"AAAAACsez58=") ->  | FE1: =AND('Abaques mu'!D27,"AAAAACsez6A=") ->  | FF1: =AND('Abaques mu'!E27,"AAAAACsez6E=") ->  | FG1: =IF('Abaques mu'!28:28,"AAAAACsez6I=",0) -> 0 | FH1: =AND('Abaques mu'!A28,"AAAAACsez6M=") ->  | FI1: =AND('Abaques mu'!B28,"AAAAACsez6Q=") ->  | FJ1: =AND('Abaques mu'!C28,"AAAAACsez6U=") ->  | FK1: =AND('Abaques mu'!D28,"AAAAACsez6Y=") ->  | FL1: =AND('Abaques mu'!E28,"AAAAACsez6c=") ->  | FM1: =IF('Abaques mu'!29:29,"AAAAACsez6g=",0) -> 0 | FN1: =AND('Abaques mu'!A29,"AAAAACsez6k=") ->  | FO1: =AND('Abaques mu'!B29,"AAAAACsez6o=") ->  | FP1: =AND('Abaques mu'!C29,"AAAAACsez6s=") ->  | FQ1: =AND('Abaques mu'!D29,"AAAAACsez6w=") ->  | FR1: =AND('Abaques mu'!E29,"AAAAACsez60=") ->  | FS1: =IF('Abaques mu'!30:30,"AAAAACsez64=",0) -> 0 | FT1: =AND('Abaques mu'!A30,"AAAAACsez68=") ->  | FU1: =AND('Abaques mu'!B30,"AAAAACsez7A=") ->  | FV1: =AND('Abaques mu'!C30,"AAAAACsez7E=") ->  | FW1: =AND('Abaques mu'!D30,"AAAAACsez7I=") ->  | FX1: =AND('Abaques mu'!E30,"AAAAACsez7M=") ->  | FY1: =IF('Abaques mu'!31:31,"AAAAACsez7Q=",0) -> 0 | FZ1: =AND('Abaques mu'!A31,"AAAAACsez7U=") ->  | GA1: =AND('Abaques mu'!B31,"AAAAACsez7Y=") ->  | GB1: =AND('Abaques mu'!C31,"AAAAACsez7c=") ->  | GC1: =AND('Abaques mu'!D31,"AAAAACsez7g=") ->  | GD1: =AND('Abaques mu'!E31,"AAAAACsez7k=") ->  | GE1: =IF('Abaques mu'!32:32,"AAAAACsez7o=",0) -> 0 | GF1: =AND('Abaques mu'!A32,"AAAAACsez7s=") ->  | GG1: =AND('Abaques mu'!B32,"AAAAACsez7w=") ->  | GH1: =AND('Abaques mu'!C32,"AAAAACsez70=") ->  | GI1: =AND('Abaques mu'!D32,"AAAAACsez74=") ->  | GJ1: =AND('Abaques mu'!E32,"AAAAACsez78=") ->  | GK1: =IF('Abaques mu'!33:33,"AAAAACsez8A=",0) -> 0 | GL1: =AND('Abaques mu'!A33,"AAAAACsez8E=") ->  | GM1: =AND('Abaques mu'!B33,"AAAAACsez8I=") ->  | GN1: =AND('Abaques mu'!C33,"AAAAACsez8M=") ->  | GO1: =AND('Abaques mu'!D33,"AAAAACsez8Q=") ->  | GP1: =AND('Abaques mu'!E33,"AAAAACsez8U=") ->  | GQ1: =IF('Abaques mu'!34:34,"AAAAACsez8Y=",0) -> 0 | GR1: =AND('Abaques mu'!A34,"AAAAACsez8c=") ->  | GS1: =AND('Abaques mu'!B34,"AAAAACsez8g=") ->  | GT1: =AND('Abaques mu'!C34,"AAAAACsez8k=") ->  | GU1: =AND('Abaques mu'!D34,"AAAAACsez8o=") ->  | GV1: =AND('Abaques mu'!E34,"AAAAACsez8s=") ->  | GW1: =IF('Abaques mu'!35:35,"AAAAACsez8w=",0) -> 0 | GX1: =AND('Abaques mu'!A35,"AAAAACsez80=") ->  | GY1: =AND('Abaques mu'!B35,"AAAAACsez84=") ->  | GZ1: =AND('Abaques mu'!C35,"AAAAACsez88=") ->  | HA1: =AND('Abaques mu'!D35,"AAAAACsez9A=") ->  | HB1: =AND('Abaques mu'!E35,"AAAAACsez9E=") ->  | HC1: =IF('Abaques mu'!36:36,"AAAAACsez9I=",0) -> 0 | HD1: =AND('Abaques mu'!A36,"AAAAACsez9M=") ->  | HE1: =AND('Abaques mu'!B36,"AAAAACsez9Q=") ->  | HF1: =AND('Abaques mu'!C36,"AAAAACsez9U=") ->  | HG1: =AND('Abaques mu'!D36,"AAAAACsez9Y=") ->  | HH1: =AND('Abaques mu'!E36,"AAAAACsez9c=") ->  | HI1: =IF('Abaques mu'!37:37,"AAAAACsez9g=",0) -> 0 | HJ1: =AND('Abaques mu'!A37,"AAAAACsez9k=") ->  | HK1: =AND('Abaques mu'!B37,"AAAAACsez9o=") ->  | HL1: =AND('Abaques mu'!C37,"AAAAACsez9s=") ->  | HM1: =AND('Abaques mu'!D37,"AAAAACsez9w=") ->  | HN1: =AND('Abaques mu'!E37,"AAAAACsez90=") ->  | HO1: =IF('Abaques mu'!38:38,"AAAAACsez94=",0) -> 0 | HP1: =AND('Abaques mu'!A38,"AAAAACsez98=") ->  | HQ1: =AND('Abaques mu'!B38,"AAAAACsez+A=") ->  | HR1: =AND('Abaques mu'!C38,"AAAAACsez+E=") ->  | HS1: =AND('Abaques mu'!D38,"AAAAACsez+I=") ->  | HT1: =AND('Abaques mu'!E38,"AAAAACsez+M=") ->  | HU1: =IF('Abaques mu'!39:39,"AAAAACsez+Q=",0) -> 0 | HV1: =AND('Abaques mu'!A39,"AAAAACsez+U=") ->  | HW1: =AND('Abaques mu'!B39,"AAAAACsez+Y=") ->  | HX1: =AND('Abaques mu'!C39,"AAAAACsez+c=") ->  | HY1: =AND('Abaques mu'!D39,"AAAAACsez+g=") ->  | HZ1: =AND('Abaques mu'!E39,"AAAAACsez+k=") ->  | IA1: =IF('Abaques mu'!40:40,"AAAAACsez+o=",0) -> 0 | IB1: =AND('Abaques mu'!A40,"AAAAACsez+s=") ->  | IC1: =AND('Abaques mu'!B40,"AAAAACsez+w=") ->  | ID1: =AND('Abaques mu'!C40,"AAAAACsez+0=") ->  | IE1: =AND('Abaques mu'!D40,"AAAAACsez+4=") ->  | IF1: =AND('Abaques mu'!E40,"AAAAACsez+8=") ->  | IG1: =IF('Abaques mu'!41:41,"AAAAACsez/A=",0) -> 0 | IH1: =AND('Abaques mu'!A41,"AAAAACsez/E=") ->  | II1: =AND('Abaques mu'!B41,"AAAAACsez/I=") ->  | IJ1: =AND('Abaques mu'!C41,"AAAAACsez/M=") ->  | IK1: =AND('Abaques mu'!D41,"AAAAACsez/Q=") ->  | IL1: =AND('Abaques mu'!E41,"AAAAACsez/U=") ->  | IM1: =IF('Abaques mu'!42:42,"AAAAACsez/Y=",0) -> 0 | IN1: =AND('Abaques mu'!A42,"AAAAACsez/c=") ->  | IO1: =AND('Abaques mu'!B42,"AAAAACsez/g=") ->  | IP1: =AND('Abaques mu'!C42,"AAAAACsez/k=") ->  | IQ1: =AND('Abaques mu'!D42,"AAAAACsez/o=") ->  | IR1: =AND('Abaques mu'!E42,"AAAAACsez/s=") ->  | IS1: =IF('Abaques mu'!43:43,"AAAAACsez/w=",0) -> 0 | IT1: =AND('Abaques mu'!A43,"AAAAACsez/0=") ->  | IU1: =AND('Abaques mu'!B43,"AAAAACsez/4=") ->  | IV1: =AND('Abaques mu'!C43,"AAAAACsez/8=") -> 
A2: =AND('Abaques mu'!D43,"AAAAAF73ywA=") ->  | B2: =AND('Abaques mu'!E43,"AAAAAF73ywE=") ->  | C2: =IF('Abaques mu'!44:44,"AAAAAF73ywI=",0) -> AAAAAF73ywI= | D2: =AND('Abaques mu'!A44,"AAAAAF73ywM=") ->  | E2: =AND('Abaques mu'!B44,"AAAAAF73ywQ=") ->  | F2: =AND('Abaques mu'!C44,"AAAAAF73ywU=") ->  | G2: =AND('Abaques mu'!D44,"AAAAAF73ywY=") ->  | H2: =AND('Abaques mu'!E44,"AAAAAF73ywc=") ->  | I2: =IF('Abaques mu'!45:45,"AAAAAF73ywg=",0) -> 0 | J2: =AND('Abaques mu'!A45,"AAAAAF73ywk=") ->  | K2: =AND('Abaques mu'!B45,"AAAAAF73ywo=") ->  | L2: =AND('Abaques mu'!C45,"AAAAAF73yws=") ->  | M2: =AND('Abaques mu'!D45,"AAAAAF73yww=") ->  | N2: =AND('Abaques mu'!E45,"AAAAAF73yw0=") ->  | O2: =IF('Abaques mu'!46:46,"AAAAAF73yw4=",0) -> 0 | P2: =AND('Abaques mu'!A46,"AAAAAF73yw8=") ->  | Q2: =AND('Abaques mu'!B46,"AAAAAF73yxA=") ->  | R2: =AND('Abaques mu'!C46,"AAAAAF73yxE=") ->  | S2: =AND('Abaques mu'!D46,"AAAAAF73yxI=") ->  | T2: =AND('Abaques mu'!E46,"AAAAAF73yxM=") ->  | U2: =IF('Abaques mu'!47:47,"AAAAAF73yxQ=",0) -> 0 | V2: =AND('Abaques mu'!A47,"AAAAAF73yxU=") ->  | W2: =AND('Abaques mu'!B47,"AAAAAF73yxY=") ->  | X2: =AND('Abaques mu'!C47,"AAAAAF73yxc=") ->  | Y2: =AND('Abaques mu'!D47,"AAAAAF73yxg=") ->  | Z2: =AND('Abaques mu'!E47,"AAAAAF73yxk=") ->  | AA2: =IF('Abaques mu'!48:48,"AAAAAF73yxo=",0) -> 0 | AB2: =AND('Abaques mu'!A48,"AAAAAF73yxs=") ->  | AC2: =AND('Abaques mu'!B48,"AAAAAF73yxw=") ->  | AD2: =AND('Abaques mu'!C48,"AAAAAF73yx0=") ->  | AE2: =AND('Abaques mu'!D48,"AAAAAF73yx4=") ->  | AF2: =AND('Abaques mu'!E48,"AAAAAF73yx8=") ->  | AG2: =IF('Abaques mu'!49:49,"AAAAAF73yyA=",0) -> 0 | AH2: =AND('Abaques mu'!A49,"AAAAAF73yyE=") ->  | AI2: =AND('Abaques mu'!B49,"AAAAAF73yyI=") ->  | AJ2: =AND('Abaques mu'!C49,"AAAAAF73yyM=") ->  | AK2: =AND('Abaques mu'!D49,"AAAAAF73yyQ=") ->  | AL2: =AND('Abaques mu'!E49,"AAAAAF73yyU=") ->  | AM2: =IF('Abaques mu'!50:50,"AAAAAF73yyY=",0) -> 0 | AN2: =AND('Abaques mu'!A50,"AAAAAF73yyc=") ->  | AO2: =AND('Abaques mu'!B50,"AAAAAF73yyg=") ->  | AP2: =AND('Abaques mu'!C50,"AAAAAF73yyk=") ->  | AQ2: =AND('Abaques mu'!D50,"AAAAAF73yyo=") ->  | AR2: =AND('Abaques mu'!E50,"AAAAAF73yys=") ->  | AS2: =IF('Abaques mu'!51:51,"AAAAAF73yyw=",0) -> 0 | AT2: =AND('Abaques mu'!A51,"AAAAAF73yy0=") ->  | AU2: =AND('Abaques mu'!B51,"AAAAAF73yy4=") ->  | AV2: =AND('Abaques mu'!C51,"AAAAAF73yy8=") ->  | AW2: =AND('Abaques mu'!D51,"AAAAAF73yzA=") ->  | AX2: =AND('Abaques mu'!E51,"AAAAAF73yzE=") ->  | AY2: =IF('Abaques mu'!52:52,"AAAAAF73yzI=",0) -> 0 | AZ2: =AND('Abaques mu'!A52,"AAAAAF73yzM=") ->  | BA2: =AND('Abaques mu'!B52,"AAAAAF73yzQ=") ->  | BB2: =AND('Abaques mu'!C52,"AAAAAF73yzU=") ->  | BC2: =AND('Abaques mu'!D52,"AAAAAF73yzY=") ->  | BD2: =AND('Abaques mu'!E52,"AAAAAF73yzc=") ->  | BE2: =IF('Abaques mu'!53:53,"AAAAAF73yzg=",0) -> 0 | BF2: =AND('Abaques mu'!A53,"AAAAAF73yzk=") ->  | BG2: =AND('Abaques mu'!B53,"AAAAAF73yzo=") ->  | BH2: =AND('Abaques mu'!C53,"AAAAAF73yzs=") ->  | BI2: =AND('Abaques mu'!D53,"AAAAAF73yzw=") ->  | BJ2: =AND('Abaques mu'!E53,"AAAAAF73yz0=") ->  | BK2: =IF('Abaques mu'!A:A,"AAAAAF73yz4=",0) ->  | BL2: =IF('Abaques mu'!B:B,"AAAAAF73yz8=",0) ->  | BM2: =IF('Abaques mu'!C:C,"AAAAAF73y0A=",0) ->  | BN2: =IF('Abaques mu'!D:D,"AAAAAF73y0E=",0) ->  | BO2: =IF('Abaques mu'!E:E,"AAAAAF73y0I=",0) ->  | BP2: =IF(Résultats!1:1,"AAAAAF73y0M=",0) -> 0 | BQ2: =AND(Résultats!A1,"AAAAAF73y0Q=") ->  | BR2: =AND(Résultats!B1,"AAAAAF73y0U=") ->  | BS2: =AND(Résultats!C1,"AAAAAF73y0Y=") ->  | BT2: =AND(Résultats!D1,"AAAAAF73y0c=") ->  | BU2: =AND(Résultats!E1,"AAAAAF73y0g=") ->  | BV2: =AND(Résultats!F1,"AAAAAF73y0k=") ->  | BW2: =AND(Résultats!G1,"AAAAAF73y0o=") ->  | BX2: =AND(Résultats!H1,"AAAAAF73y0s=") ->  | BY2: =AND(Résultats!I1,"AAAAAF73y0w=") ->  | BZ2: =AND(Résultats!J1,"AAAAAF73y00=") ->  | CA2: =AND(Résultats!K1,"AAAAAF73y04=") ->  | CB2: =IF(Résultats!2:2,"AAAAAF73y08=",0) -> 0 | CC2: =AND(Résultats!A2,"AAAAAF73y1A=") ->  | CD2: =AND(Résultats!B2,"AAAAAF73y1E=") ->  | CE2: =AND(Résultats!C2,"AAAAAF73y1I=") ->  | CF2: =AND(Résultats!D2,"AAAAAF73y1M=") ->  | CG2: =AND(Résultats!E2,"AAAAAF73y1Q=") ->  | CH2: =AND(Résultats!F2,"AAAAAF73y1U=") ->  | CI2: =AND(Résultats!G2,"AAAAAF73y1Y=") ->  | CJ2: =AND(Résultats!H2,"AAAAAF73y1c=") ->  | CK2: =AND(Résultats!I2,"AAAAAF73y1g=") ->  | CL2: =AND(Résultats!J2,"AAAAAF73y1k=") ->  | CM2: =AND(Résultats!K2,"AAAAAF73y1o=") ->  | CN2: =IF(Résultats!3:3,"AAAAAF73y1s=",0) -> 0 | CO2: =AND(Résultats!A3,"AAAAAF73y1w=") ->  | CP2: =AND(Résultats!B3,"AAAAAF73y10=") ->  | CQ2: =AND(Résultats!C3,"AAAAAF73y14=") ->  | CR2: =AND(Résultats!D3,"AAAAAF73y18=") ->  | CS2: =AND(Résultats!E3,"AAAAAF73y2A=") ->  | CT2: =AND(Résultats!F3,"AAAAAF73y2E=") ->  | CU2: =AND(Résultats!G3,"AAAAAF73y2I=") ->  | CV2: =AND(Résultats!H3,"AAAAAF73y2M=") ->  | CW2: =AND(Résultats!I3,"AAAAAF73y2Q=") ->  | CX2: =AND(Résultats!J3,"AAAAAF73y2U=") ->  | CY2: =AND(Résultats!K3,"AAAAAF73y2Y=") ->  | CZ2: =IF(Résultats!4:4,"AAAAAF73y2c=",0) -> 0 | DA2: =AND(Résultats!A4,"AAAAAF73y2g=") ->  | DB2: =AND(Résultats!B4,"AAAAAF73y2k=") ->  | DC2: =AND(Résultats!C4,"AAAAAF73y2o=") ->  | DD2: =AND(Résultats!D4,"AAAAAF73y2s=") ->  | DE2: =AND(Résultats!E4,"AAAAAF73y2w=") ->  | DF2: =AND(Résultats!F4,"AAAAAF73y20=") ->  | DG2: =AND(Résultats!G4,"AAAAAF73y24=") ->  | DH2: =AND(Résultats!H4,"AAAAAF73y28=") ->  | DI2: =AND(Résultats!I4,"AAAAAF73y3A=") ->  | DJ2: =AND(Résultats!J4,"AAAAAF73y3E=") ->  | DK2: =AND(Résultats!K4,"AAAAAF73y3I=") ->  | DL2: =IF(Résultats!5:5,"AAAAAF73y3M=",0) -> 0 | DM2: =AND(Résultats!A5,"AAAAAF73y3Q=") ->  | DN2: =AND(Résultats!B5,"AAAAAF73y3U=") ->  | DO2: =AND(Résultats!C5,"AAAAAF73y3Y=") ->  | DP2: =AND(Résultats!D5,"AAAAAF73y3c=") ->  | DQ2: =AND(Résultats!E5,"AAAAAF73y3g=") ->  | DR2: =AND(Résultats!F5,"AAAAAF73y3k=") ->  | DS2: =AND(Résultats!G5,"AAAAAF73y3o=") ->  | DT2: =AND(Résultats!H5,"AAAAAF73y3s=") ->  | DU2: =AND(Résultats!I5,"AAAAAF73y3w=") ->  | DV2: =AND(Résultats!J5,"AAAAAF73y30=") ->  | DW2: =AND(Résultats!K5,"AAAAAF73y34=") ->  | DX2: =IF(Résultats!6:6,"AAAAAF73y38=",0) -> 0 | DY2: =AND(Résultats!A6,"AAAAAF73y4A=") ->  | DZ2: =AND(Résultats!B6,"AAAAAF73y4E=") ->  | EA2: =AND(Résultats!C6,"AAAAAF73y4I=") ->  | EB2: =AND(Résultats!D6,"AAAAAF73y4M=") ->  | EC2: =AND(Résultats!E6,"AAAAAF73y4Q=") ->  | ED2: =AND(Résultats!F6,"AAAAAF73y4U=") ->  | EE2: =AND(Résultats!G6,"AAAAAF73y4Y=") ->  | EF2: =AND(Résultats!H6,"AAAAAF73y4c=") ->  | EG2: =AND(Résultats!I6,"AAAAAF73y4g=") ->  | EH2: =AND(Résultats!J6,"AAAAAF73y4k=") ->  | EI2: =AND(Résultats!K6,"AAAAAF73y4o=") ->  | EJ2: =IF(Résultats!7:7,"AAAAAF73y4s=",0) -> 0 | EK2: =AND(Résultats!A7,"AAAAAF73y4w=") ->  | EL2: =AND(Résultats!B7,"AAAAAF73y40=") ->  | EM2: =AND(Résultats!C7,"AAAAAF73y44=") ->  | EN2: =AND(Résultats!D7,"AAAAAF73y48=") ->  | EO2: =AND(Résultats!E7,"AAAAAF73y5A=") ->  | EP2: =AND(Résultats!F7,"AAAAAF73y5E=") ->  | EQ2: =AND(Résultats!G7,"AAAAAF73y5I=") ->  | ER2: =AND(Résultats!H7,"AAAAAF73y5M=") ->  | ES2: =AND(Résultats!I7,"AAAAAF73y5Q=") ->  | ET2: =AND(Résultats!J7,"AAAAAF73y5U=") ->  | EU2: =AND(Résultats!K7,"AAAAAF73y5Y=") ->  | EV2: =IF(Résultats!8:8,"AAAAAF73y5c=",0) -> 0 | EW2: =AND(Résultats!A8,"AAAAAF73y5g=") ->  | EX2: =AND(Résultats!B8,"AAAAAF73y5k=") ->  | EY2: =AND(Résultats!C8,"AAAAAF73y5o=") ->  | EZ2: =AND(Résultats!D8,"AAAAAF73y5s=") ->  | FA2: =AND(Résultats!E8,"AAAAAF73y5w=") ->  | FB2: =AND(Résultats!F8,"AAAAAF73y50=") ->  | FC2: =AND(Résultats!G8,"AAAAAF73y54=") ->  | FD2: =AND(Résultats!H8,"AAAAAF73y58=") ->  | FE2: =AND(Résultats!I8,"AAAAAF73y6A=") ->  | FF2: =AND(Résultats!J8,"AAAAAF73y6E=") ->  | FG2: =AND(Résultats!K8,"AAAAAF73y6I=") ->  | FH2: =IF(Résultats!9:9,"AAAAAF73y6M=",0) -> 0 | FI2: =AND(Résultats!A9,"AAAAAF73y6Q=") ->  | FJ2: =AND(Résultats!B9,"AAAAAF73y6U=") ->  | FK2: =AND(Résultats!C9,"AAAAAF73y6Y=") ->  | FL2: =AND(Résultats!D9,"AAAAAF73y6c=") ->  | FM2: =AND(Résultats!E9,"AAAAAF73y6g=") ->  | FN2: =AND(Résultats!F9,"AAAAAF73y6k=") ->  | FO2: =AND(Résultats!G9,"AAAAAF73y6o=") ->  | FP2: =AND(Résultats!H9,"AAAAAF73y6s=") ->  | FQ2: =AND(Résultats!I9,"AAAAAF73y6w=") ->  | FR2: =AND(Résultats!J9,"AAAAAF73y60=") ->  | FS2: =AND(Résultats!K9,"AAAAAF73y64=") ->  | FT2: =IF(Résultats!10:10,"AAAAAF73y68=",0) -> 0 | FU2: =AND(Résultats!A10,"AAAAAF73y7A=") ->  | FV2: =AND(Résultats!B10,"AAAAAF73y7E=") ->  | FW2: =AND(Résultats!C10,"AAAAAF73y7I=") ->  | FX2: =AND(Résultats!D10,"AAAAAF73y7M=") ->  | FY2: =AND(Résultats!E10,"AAAAAF73y7Q=") ->  | FZ2: =AND(Résultats!F10,"AAAAAF73y7U=") ->  | GA2: =AND(Résultats!G10,"AAAAAF73y7Y=") ->  | GB2: =AND(Résultats!H10,"AAAAAF73y7c=") ->  | GC2: =AND(Résultats!I10,"AAAAAF73y7g=") ->  | GD2: =AND(Résultats!J10,"AAAAAF73y7k=") ->  | GE2: =AND(Résultats!K10,"AAAAAF73y7o=") ->  | GF2: =IF(Résultats!11:11,"AAAAAF73y7s=",0) -> 0 | GG2: =AND(Résultats!A11,"AAAAAF73y7w=") ->  | GH2: =AND(Résultats!B11,"AAAAAF73y70=") ->  | GI2: =AND(Résultats!C11,"AAAAAF73y74=") ->  | GJ2: =AND(Résultats!D11,"AAAAAF73y78=") ->  | GK2: =AND(Résultats!E11,"AAAAAF73y8A=") ->  | GL2: =AND(Résultats!F11,"AAAAAF73y8E=") ->  | GM2: =AND(Résultats!G11,"AAAAAF73y8I=") ->  | GN2: =AND(Résultats!H11,"AAAAAF73y8M=") ->  | GO2: =AND(Résultats!I11,"AAAAAF73y8Q=") ->  | GP2: =AND(Résultats!J11,"AAAAAF73y8U=") ->  | GQ2: =AND(Résultats!K11,"AAAAAF73y8Y=") ->  | GR2: =IF(Résultats!12:12,"AAAAAF73y8c=",0) -> 0 | GS2: =AND(Résultats!A12,"AAAAAF73y8g=") ->  | GT2: =AND(Résultats!B12,"AAAAAF73y8k=") ->  | GU2: =AND(Résultats!C12,"AAAAAF73y8o=") ->  | GV2: =AND(Résultats!D12,"AAAAAF73y8s=") ->  | GW2: =AND(Résultats!E12,"AAAAAF73y8w=") ->  | GX2: =AND(Résultats!F12,"AAAAAF73y80=") ->  | GY2: =AND(Résultats!G12,"AAAAAF73y84=") ->  | GZ2: =AND(Résultats!H12,"AAAAAF73y88=") ->  | HA2: =AND(Résultats!I12,"AAAAAF73y9A=") ->  | HB2: =AND(Résultats!J12,"AAAAAF73y9E=") ->  | HC2: =AND(Résultats!K12,"AAAAAF73y9I=") ->  | HD2: =IF(Résultats!13:13,"AAAAAF73y9M=",0) -> 0 | HE2: =AND(Résultats!A13,"AAAAAF73y9Q=") ->  | HF2: =AND(Résultats!B13,"AAAAAF73y9U=") ->  | HG2: =AND(Résultats!C13,"AAAAAF73y9Y=") ->  | HH2: =AND(Résultats!D13,"AAAAAF73y9c=") ->  | HI2: =AND(Résultats!E13,"AAAAAF73y9g=") ->  | HJ2: =AND(Résultats!F13,"AAAAAF73y9k=") ->  | HK2: =AND(Résultats!G13,"AAAAAF73y9o=") ->  | HL2: =AND(Résultats!H13,"AAAAAF73y9s=") ->  | HM2: =AND(Résultats!I13,"AAAAAF73y9w=") ->  | HN2: =AND(Résultats!J13,"AAAAAF73y90=") ->  | HO2: =AND(Résultats!K13,"AAAAAF73y94=") ->  | HP2: =IF(Résultats!14:14,"AAAAAF73y98=",0) -> 0 | HQ2: =AND(Résultats!A14,"AAAAAF73y+A=") ->  | HR2: =AND(Résultats!B14,"AAAAAF73y+E=") ->  | HS2: =AND(Résultats!C14,"AAAAAF73y+I=") ->  | HT2: =AND(Résultats!D14,"AAAAAF73y+M=") ->  | HU2: =AND(Résultats!E14,"AAAAAF73y+Q=") ->  | HV2: =AND(Résultats!F14,"AAAAAF73y+U=") ->  | HW2: =AND(Résultats!G14,"AAAAAF73y+Y=") ->  | HX2: =AND(Résultats!H14,"AAAAAF73y+c=") ->  | HY2: =AND(Résultats!I14,"AAAAAF73y+g=") ->  | HZ2: =AND(Résultats!J14,"AAAAAF73y+k=") ->  | IA2: =AND(Résultats!K14,"AAAAAF73y+o=") ->  | IB2: =IF(Résultats!15:15,"AAAAAF73y+s=",0) -> 0 | IC2: =AND(Résultats!A15,"AAAAAF73y+w=") ->  | ID2: =AND(Résultats!B15,"AAAAAF73y+0=") ->  | IE2: =AND(Résultats!C15,"AAAAAF73y+4=") ->  | IF2: =AND(Résultats!D15,"AAAAAF73y+8=") ->  | IG2: =AND(Résultats!E15,"AAAAAF73y/A=") ->  | IH2: =AND(Résultats!F15,"AAAAAF73y/E=") ->  | II2: =AND(Résultats!G15,"AAAAAF73y/I=") ->  | IJ2: =AND(Résultats!H15,"AAAAAF73y/M=") ->  | IK2: =AND(Résultats!I15,"AAAAAF73y/Q=") ->  | IL2: =AND(Résultats!J15,"AAAAAF73y/U=") ->  | IM2: =AND(Résultats!K15,"AAAAAF73y/Y=") ->  | IN2: =IF(Résultats!16:16,"AAAAAF73y/c=",0) -> 0 | IO2: =AND(Résultats!A16,"AAAAAF73y/g=") ->  | IP2: =AND(Résultats!B16,"AAAAAF73y/k=") ->  | IQ2: =AND(Résultats!C16,"AAAAAF73y/o=") ->  | IR2: =AND(Résultats!D16,"AAAAAF73y/s=") ->  | IS2: =AND(Résultats!E16,"AAAAAF73y/w=") ->  | IT2: =AND(Résultats!F16,"AAAAAF73y/0=") ->  | IU2: =AND(Résultats!G16,"AAAAAF73y/4=") ->  | IV2: =AND(Résultats!H16,"AAAAAF73y/8=") -> 
A3: =AND(Résultats!I16,"AAAAAHd+/QA=") ->  | B3: =AND(Résultats!J16,"AAAAAHd+/QE=") ->  | C3: =AND(Résultats!K16,"AAAAAHd+/QI=") ->  | D3: =IF(Résultats!17:17,"AAAAAHd+/QM=",0) -> AAAAAHd+/QM= | E3: =AND(Résultats!A17,"AAAAAHd+/QQ=") ->  | F3: =AND(Résultats!B17,"AAAAAHd+/QU=") ->  | G3: =AND(Résultats!C17,"AAAAAHd+/QY=") ->  | H3: =AND(Résultats!D17,"AAAAAHd+/Qc=") ->  | I3: =AND(Résultats!E17,"AAAAAHd+/Qg=") ->  | J3: =AND(Résultats!F17,"AAAAAHd+/Qk=") ->  | K3: =AND(Résultats!G17,"AAAAAHd+/Qo=") ->  | L3: =AND(Résultats!H17,"AAAAAHd+/Qs=") ->  | M3: =AND(Résultats!I17,"AAAAAHd+/Qw=") ->  | N3: =AND(Résultats!J17,"AAAAAHd+/Q0=") ->  | O3: =AND(Résultats!K17,"AAAAAHd+/Q4=") ->  | P3: =IF(Résultats!18:18,"AAAAAHd+/Q8=",0) -> 0 | Q3: =AND(Résultats!A18,"AAAAAHd+/RA=") ->  | R3: =AND(Résultats!B18,"AAAAAHd+/RE=") ->  | S3: =AND(Résultats!C18,"AAAAAHd+/RI=") ->  | T3: =AND(Résultats!D18,"AAAAAHd+/RM=") ->  | U3: =AND(Résultats!E18,"AAAAAHd+/RQ=") ->  | V3: =AND(Résultats!F18,"AAAAAHd+/RU=") ->  | W3: =AND(Résultats!G18,"AAAAAHd+/RY=") ->  | X3: =AND(Résultats!H18,"AAAAAHd+/Rc=") ->  | Y3: =AND(Résultats!I18,"AAAAAHd+/Rg=") ->  | Z3: =AND(Résultats!J18,"AAAAAHd+/Rk=") ->  | AA3: =AND(Résultats!K18,"AAAAAHd+/Ro=") ->  | AB3: =IF(Résultats!19:19,"AAAAAHd+/Rs=",0) -> 0 | AC3: =AND(Résultats!A19,"AAAAAHd+/Rw=") ->  | AD3: =AND(Résultats!B19,"AAAAAHd+/R0=") ->  | AE3: =AND(Résultats!C19,"AAAAAHd+/R4=") ->  | AF3: =AND(Résultats!D19,"AAAAAHd+/R8=") ->  | AG3: =AND(Résultats!E19,"AAAAAHd+/SA=") ->  | AH3: =AND(Résultats!F19,"AAAAAHd+/SE=") ->  | AI3: =AND(Résultats!G19,"AAAAAHd+/SI=") ->  | AJ3: =AND(Résultats!H19,"AAAAAHd+/SM=") ->  | AK3: =AND(Résultats!I19,"AAAAAHd+/SQ=") ->  | AL3: =AND(Résultats!J19,"AAAAAHd+/SU=") ->  | AM3: =AND(Résultats!K19,"AAAAAHd+/SY=") ->  | AN3: =IF(Résultats!20:20,"AAAAAHd+/Sc=",0) -> 0 | AO3: =AND(Résultats!A20,"AAAAAHd+/Sg=") ->  | AP3: =AND(Résultats!B20,"AAAAAHd+/Sk=") ->  | AQ3: =AND(Résultats!C20,"AAAAAHd+/So=") ->  | AR3: =AND(Résultats!D20,"AAAAAHd+/Ss=") ->  | AS3: =AND(Résultats!E20,"AAAAAHd+/Sw=") ->  | AT3: =AND(Résultats!F20,"AAAAAHd+/S0=") ->  | AU3: =AND(Résultats!G20,"AAAAAHd+/S4=") ->  | AV3: =AND(Résultats!H20,"AAAAAHd+/S8=") ->  | AW3: =AND(Résultats!I20,"AAAAAHd+/TA=") ->  | AX3: =AND(Résultats!J20,"AAAAAHd+/TE=") ->  | AY3: =AND(Résultats!K20,"AAAAAHd+/TI=") ->  | AZ3: =IF(Résultats!21:21,"AAAAAHd+/TM=",0) -> 0 | BA3: =AND(Résultats!A21,"AAAAAHd+/TQ=") ->  | BB3: =AND(Résultats!B21,"AAAAAHd+/TU=") ->  | BC3: =AND(Résultats!C21,"AAAAAHd+/TY=") ->  | BD3: =AND(Résultats!D21,"AAAAAHd+/Tc=") ->  | BE3: =AND(Résultats!E21,"AAAAAHd+/Tg=") ->  | BF3: =AND(Résultats!F21,"AAAAAHd+/Tk=") ->  | BG3: =AND(Résultats!G21,"AAAAAHd+/To=") ->  | BH3: =AND(Résultats!H21,"AAAAAHd+/Ts=") ->  | BI3: =AND(Résultats!I21,"AAAAAHd+/Tw=") ->  | BJ3: =AND(Résultats!J21,"AAAAAHd+/T0=") ->  | BK3: =AND(Résultats!K21,"AAAAAHd+/T4=") ->  | BL3: =IF(Résultats!22:22,"AAAAAHd+/T8=",0) -> 0 | BM3: =AND(Résultats!A22,"AAAAAHd+/UA=") ->  | BN3: =AND(Résultats!B22,"AAAAAHd+/UE=") ->  | BO3: =AND(Résultats!C22,"AAAAAHd+/UI=") ->  | BP3: =AND(Résultats!D22,"AAAAAHd+/UM=") ->  | BQ3: =AND(Résultats!E22,"AAAAAHd+/UQ=") ->  | BR3: =AND(Résultats!F22,"AAAAAHd+/UU=") ->  | BS3: =AND(Résultats!G22,"AAAAAHd+/UY=") ->  | BT3: =AND(Résultats!H22,"AAAAAHd+/Uc=") ->  | BU3: =AND(Résultats!I22,"AAAAAHd+/Ug=") ->  | BV3: =AND(Résultats!J22,"AAAAAHd+/Uk=") ->  | BW3: =AND(Résultats!K22,"AAAAAHd+/Uo=") ->  | BX3: =IF(Résultats!23:23,"AAAAAHd+/Us=",0) -> 0 | BY3: =AND(Résultats!A23,"AAAAAHd+/Uw=") ->  | BZ3: =AND(Résultats!B23,"AAAAAHd+/U0=") ->  | CA3: =AND(Résultats!C23,"AAAAAHd+/U4=") ->  | CB3: =AND(Résultats!D23,"AAAAAHd+/U8=") ->  | CC3: =AND(Résultats!E23,"AAAAAHd+/VA=") ->  | CD3: =AND(Résultats!F23,"AAAAAHd+/VE=") ->  | CE3: =AND(Résultats!G23,"AAAAAHd+/VI=") ->  | CF3: =AND(Résultats!H23,"AAAAAHd+/VM=") ->  | CG3: =AND(Résultats!I23,"AAAAAHd+/VQ=") ->  | CH3: =AND(Résultats!J23,"AAAAAHd+/VU=") ->  | CI3: =AND(Résultats!K23,"AAAAAHd+/VY=") ->  | CJ3: =IF(Résultats!24:24,"AAAAAHd+/Vc=",0) -> 0 | CK3: =AND(Résultats!A24,"AAAAAHd+/Vg=") ->  | CL3: =AND(Résultats!B24,"AAAAAHd+/Vk=") ->  | CM3: =AND(Résultats!C24,"AAAAAHd+/Vo=") ->  | CN3: =AND(Résultats!D24,"AAAAAHd+/Vs=") ->  | CO3: =AND(Résultats!E24,"AAAAAHd+/Vw=") ->  | CP3: =AND(Résultats!F24,"AAAAAHd+/V0=") ->  | CQ3: =AND(Résultats!G24,"AAAAAHd+/V4=") ->  | CR3: =AND(Résultats!H24,"AAAAAHd+/V8=") ->  | CS3: =AND(Résultats!I24,"AAAAAHd+/WA=") ->  | CT3: =AND(Résultats!J24,"AAAAAHd+/WE=") ->  | CU3: =AND(Résultats!K24,"AAAAAHd+/WI=") ->  | CV3: =IF(Résultats!25:25,"AAAAAHd+/WM=",0) -> 0 | CW3: =AND(Résultats!A25,"AAAAAHd+/WQ=") ->  | CX3: =AND(Résultats!B25,"AAAAAHd+/WU=") ->  | CY3: =AND(Résultats!C25,"AAAAAHd+/WY=") ->  | CZ3: =AND(Résultats!D25,"AAAAAHd+/Wc=") ->  | DA3: =AND(Résultats!E25,"AAAAAHd+/Wg=") ->  | DB3: =AND(Résultats!F25,"AAAAAHd+/Wk=") ->  | DC3: =AND(Résultats!G25,"AAAAAHd+/Wo=") ->  | DD3: =AND(Résultats!H25,"AAAAAHd+/Ws=") ->  | DE3: =AND(Résultats!I25,"AAAAAHd+/Ww=") ->  | DF3: =AND(Résultats!J25,"AAAAAHd+/W0=") ->  | DG3: =AND(Résultats!K25,"AAAAAHd+/W4=") ->  | DH3: =IF(Résultats!26:26,"AAAAAHd+/W8=",0) -> 0 | DI3: =AND(Résultats!A26,"AAAAAHd+/XA=") ->  | DJ3: =AND(Résultats!B26,"AAAAAHd+/XE=") ->  | DK3: =AND(Résultats!C26,"AAAAAHd+/XI=") ->  | DL3: =AND(Résultats!D26,"AAAAAHd+/XM=") ->  | DM3: =AND(Résultats!E26,"AAAAAHd+/XQ=") ->  | DN3: =AND(Résultats!F26,"AAAAAHd+/XU=") ->  | DO3: =AND(Résultats!G26,"AAAAAHd+/XY=") ->  | DP3: =AND(Résultats!H26,"AAAAAHd+/Xc=") ->  | DQ3: =AND(Résultats!I26,"AAAAAHd+/Xg=") ->  | DR3: =AND(Résultats!J26,"AAAAAHd+/Xk=") ->  | DS3: =AND(Résultats!K26,"AAAAAHd+/Xo=") ->  | DT3: =IF(Résultats!27:27,"AAAAAHd+/Xs=",0) -> 0 | DU3: =AND(Résultats!A27,"AAAAAHd+/Xw=") ->  | DV3: =AND(Résultats!B27,"AAAAAHd+/X0=") ->  | DW3: =AND(Résultats!C27,"AAAAAHd+/X4=") ->  | DX3: =AND(Résultats!D27,"AAAAAHd+/X8=") ->  | DY3: =AND(Résultats!E27,"AAAAAHd+/YA=") ->  | DZ3: =AND(Résultats!F27,"AAAAAHd+/YE=") ->  | EA3: =AND(Résultats!G27,"AAAAAHd+/YI=") ->  | EB3: =AND(Résultats!H27,"AAAAAHd+/YM=") ->  | EC3: =AND(Résultats!I27,"AAAAAHd+/YQ=") ->  | ED3: =AND(Résultats!J27,"AAAAAHd+/YU=") ->  | EE3: =AND(Résultats!K27,"AAAAAHd+/YY=") ->  | EF3: =IF(Résultats!28:28,"AAAAAHd+/Yc=",0) -> 0 | EG3: =AND(Résultats!A28,"AAAAAHd+/Yg=") ->  | EH3: =AND(Résultats!B28,"AAAAAHd+/Yk=") ->  | EI3: =AND(Résultats!C28,"AAAAAHd+/Yo=") ->  | EJ3: =AND(Résultats!D28,"AAAAAHd+/Ys=") ->  | EK3: =AND(Résultats!E28,"AAAAAHd+/Yw=") ->  | EL3: =AND(Résultats!F28,"AAAAAHd+/Y0=") ->  | EM3: =AND(Résultats!G28,"AAAAAHd+/Y4=") ->  | EN3: =AND(Résultats!H28,"AAAAAHd+/Y8=") ->  | EO3: =AND(Résultats!I28,"AAAAAHd+/ZA=") ->  | EP3: =AND(Résultats!J28,"AAAAAHd+/ZE=") ->  | EQ3: =AND(Résultats!K28,"AAAAAHd+/ZI=") ->  | ER3: =IF(Résultats!29:29,"AAAAAHd+/ZM=",0) -> 0 | ES3: =AND(Résultats!A29,"AAAAAHd+/ZQ=") ->  | ET3: =AND(Résultats!B29,"AAAAAHd+/ZU=") ->  | EU3: =AND(Résultats!C29,"AAAAAHd+/ZY=") ->  | EV3: =AND(Résultats!D29,"AAAAAHd+/Zc=") ->  | EW3: =AND(Résultats!E29,"AAAAAHd+/Zg=") ->  | EX3: =AND(Résultats!F29,"AAAAAHd+/Zk=") ->  | EY3: =AND(Résultats!G29,"AAAAAHd+/Zo=") ->  | EZ3: =AND(Résultats!H29,"AAAAAHd+/Zs=") ->  | FA3: =AND(Résultats!I29,"AAAAAHd+/Zw=") ->  | FB3: =AND(Résultats!J29,"AAAAAHd+/Z0=") ->  | FC3: =AND(Résultats!K29,"AAAAAHd+/Z4=") ->  | FD3: =IF(Résultats!30:30,"AAAAAHd+/Z8=",0) -> 0 | FE3: =AND(Résultats!A30,"AAAAAHd+/aA=") ->  | FF3: =AND(Résultats!B30,"AAAAAHd+/aE=") ->  | FG3: =AND(Résultats!C30,"AAAAAHd+/aI=") ->  | FH3: =AND(Résultats!D30,"AAAAAHd+/aM=") ->  | FI3: =AND(Résultats!E30,"AAAAAHd+/aQ=") ->  | FJ3: =AND(Résultats!F30,"AAAAAHd+/aU=") ->  | FK3: =AND(Résultats!G30,"AAAAAHd+/aY=") ->  | FL3: =AND(Résultats!H30,"AAAAAHd+/ac=") ->  | FM3: =AND(Résultats!I30,"AAAAAHd+/ag=") ->  | FN3: =AND(Résultats!J30,"AAAAAHd+/ak=") ->  | FO3: =AND(Résultats!K30,"AAAAAHd+/ao=") ->  | FP3: =IF(Résultats!31:31,"AAAAAHd+/as=",0) -> 0 | FQ3: =AND(Résultats!A31,"AAAAAHd+/aw=") ->  | FR3: =AND(Résultats!B31,"AAAAAHd+/a0=") ->  | FS3: =AND(Résultats!C31,"AAAAAHd+/a4=") ->  | FT3: =AND(Résultats!D31,"AAAAAHd+/a8=") ->  | FU3: =AND(Résultats!E31,"AAAAAHd+/bA=") ->  | FV3: =AND(Résultats!F31,"AAAAAHd+/bE=") ->  | FW3: =AND(Résultats!G31,"AAAAAHd+/bI=") ->  | FX3: =AND(Résultats!H31,"AAAAAHd+/bM=") ->  | FY3: =AND(Résultats!I31,"AAAAAHd+/bQ=") ->  | FZ3: =AND(Résultats!J31,"AAAAAHd+/bU=") ->  | GA3: =AND(Résultats!K31,"AAAAAHd+/bY=") ->  | GB3: =IF(Résultats!32:32,"AAAAAHd+/bc=",0) -> 0 | GC3: =AND(Résultats!A32,"AAAAAHd+/bg=") ->  | GD3: =AND(Résultats!B32,"AAAAAHd+/bk=") ->  | GE3: =AND(Résultats!C32,"AAAAAHd+/bo=") ->  | GF3: =AND(Résultats!D32,"AAAAAHd+/bs=") ->  | GG3: =AND(Résultats!E32,"AAAAAHd+/bw=") ->  | GH3: =AND(Résultats!F32,"AAAAAHd+/b0=") ->  | GI3: =AND(Résultats!G32,"AAAAAHd+/b4=") ->  | GJ3: =AND(Résultats!H32,"AAAAAHd+/b8=") ->  | GK3: =AND(Résultats!I32,"AAAAAHd+/cA=") ->  | GL3: =AND(Résultats!J32,"AAAAAHd+/cE=") ->  | GM3: =AND(Résultats!K32,"AAAAAHd+/cI=") ->  | GN3: =IF(Résultats!A:A,"AAAAAHd+/cM=",0) -> 0 | GO3: =IF(Résultats!B:B,"AAAAAHd+/cQ=",0) -> 0 | GP3: =IF(Résultats!C:C,"AAAAAHd+/cU=",0) -> 0 | GQ3: =IF(Résultats!D:D,"AAAAAHd+/cY=",0) -> 0 | GR3: =IF(Résultats!E:E,"AAAAAHd+/cc=",0) -> 0 | GS3: =IF(Résultats!F:F,"AAAAAHd+/cg=",0) -> 0 | GT3: =IF(Résultats!G:G,"AAAAAHd+/ck=",0) -> 0 | GU3: =IF(Résultats!H:H,"AAAAAHd+/co=",0) -> 0 | GV3: =IF(Résultats!I:I,"AAAAAHd+/cs=",0) -> 0 | GW3: =IF(Résultats!J:J,"AAAAAHd+/cw=",0) -> 0 | GX3: =IF(Résultats!K:K,"AAAAAHd+/c0=",0) -> 0 | GY3: =IF(Calcul!1:1,"AAAAAHd+/c4=",0) -> 0 | GZ3: =AND(Calcul!A1,"AAAAAHd+/c8=") ->  | HA3: =AND(Calcul!B1,"AAAAAHd+/dA=") ->  | HB3: =AND(Calcul!C1,"AAAAAHd+/dE=") ->  | HC3: =AND(Calcul!D1,"AAAAAHd+/dI=") ->  | HD3: =AND(Calcul!E1,"AAAAAHd+/dM=") ->  | HE3: =AND(Calcul!F1,"AAAAAHd+/dQ=") ->  | HF3: =AND(Calcul!G1,"AAAAAHd+/dU=") ->  | HG3: =AND(Calcul!H1,"AAAAAHd+/dY=") ->  | HH3: =AND(Calcul!I1,"AAAAAHd+/dc=") ->  | HI3: =AND(Calcul!J1,"AAAAAHd+/dg=") ->  | HJ3: =AND(Calcul!K1,"AAAAAHd+/dk=") ->  | HK3: =AND(Calcul!L1,"AAAAAHd+/do=") ->  | HL3: =IF(Calcul!2:2,"AAAAAHd+/ds=",0) -> 0 | HM3: =AND(Calcul!A2,"AAAAAHd+/dw=") ->  | HN3: =AND(Calcul!B2,"AAAAAHd+/d0=") ->  | HO3: =AND(Calcul!C2,"AAAAAHd+/d4=") ->  | HP3: =AND(Calcul!D2,"AAAAAHd+/d8=") ->  | HQ3: =AND(Calcul!E2,"AAAAAHd+/eA=") ->  | HR3: =AND(Calcul!F2,"AAAAAHd+/eE=") ->  | HS3: =AND(Calcul!G2,"AAAAAHd+/eI=") ->  | HT3: =AND(Calcul!H2,"AAAAAHd+/eM=") ->  | HU3: =AND(Calcul!I2,"AAAAAHd+/eQ=") ->  | HV3: =AND(Calcul!J2,"AAAAAHd+/eU=") ->  | HW3: =AND(Calcul!K2,"AAAAAHd+/eY=") ->  | HX3: =AND(Calcul!L2,"AAAAAHd+/ec=") ->  | HY3: =IF(Calcul!3:3,"AAAAAHd+/eg=",0) -> 0 | HZ3: =AND(Calcul!A3,"AAAAAHd+/ek=") ->  | IA3: =AND(Calcul!B3,"AAAAAHd+/eo=") ->  | IB3: =AND(Calcul!C3,"AAAAAHd+/es=") ->  | IC3: =AND(Calcul!D3,"AAAAAHd+/ew=") ->  | ID3: =AND(Calcul!E3,"AAAAAHd+/e0=") ->  | IE3: =AND(Calcul!F3,"AAAAAHd+/e4=") ->  | IF3: =AND(Calcul!G3,"AAAAAHd+/e8=") ->  | IG3: =AND(Calcul!H3,"AAAAAHd+/fA=") ->  | IH3: =AND(Calcul!I3,"AAAAAHd+/fE=") ->  | II3: =AND(Calcul!J3,"AAAAAHd+/fI=") ->  | IJ3: =AND(Calcul!K3,"AAAAAHd+/fM=") ->  | IK3: =AND(Calcul!L3,"AAAAAHd+/fQ=") ->  | IL3: =IF(Calcul!4:4,"AAAAAHd+/fU=",0) -> 0 | IM3: =AND(Calcul!A4,"AAAAAHd+/fY=") ->  | IN3: =AND(Calcul!B4,"AAAAAHd+/fc=") ->  | IO3: =AND(Calcul!C4,"AAAAAHd+/fg=") ->  | IP3: =AND(Calcul!D4,"AAAAAHd+/fk=") ->  | IQ3: =AND(Calcul!E4,"AAAAAHd+/fo=") ->  | IR3: =AND(Calcul!F4,"AAAAAHd+/fs=") ->  | IS3: =AND(Calcul!G4,"AAAAAHd+/fw=") ->  | IT3: =AND(Calcul!H4,"AAAAAHd+/f0=") ->  | IU3: =AND(Calcul!I4,"AAAAAHd+/f4=") ->  | IV3: =AND(Calcul!J4,"AAAAAHd+/f8=") -> 
A4: =AND(Calcul!K4,"AAAAAHeP/gA=") ->  | B4: =AND(Calcul!L4,"AAAAAHeP/gE=") ->  | C4: =IF(Calcul!5:5,"AAAAAHeP/gI=",0) ->  | D4: =AND(Calcul!A5,"AAAAAHeP/gM=") ->  | E4: =AND(Calcul!B5,"AAAAAHeP/gQ=") ->  | F4: =AND(Calcul!C5,"AAAAAHeP/gU=") ->  | G4: =AND(Calcul!D5,"AAAAAHeP/gY=") ->  | H4: =AND(Calcul!E5,"AAAAAHeP/gc=") ->  | I4: =AND(Calcul!F5,"AAAAAHeP/gg=") ->  | J4: =AND(Calcul!G5,"AAAAAHeP/gk=") ->  | K4: =AND(Calcul!H5,"AAAAAHeP/go=") ->  | L4: =AND(Calcul!I5,"AAAAAHeP/gs=") ->  | M4: =AND(Calcul!J5,"AAAAAHeP/gw=") ->  | N4: =AND(Calcul!K5,"AAAAAHeP/g0=") ->  | O4: =AND(Calcul!L5,"AAAAAHeP/g4=") ->  | P4: =IF(Calcul!6:6,"AAAAAHeP/g8=",0) -> 0 | Q4: =AND(Calcul!A6,"AAAAAHeP/hA=") ->  | R4: =AND(Calcul!B6,"AAAAAHeP/hE=") ->  | S4: =AND(Calcul!C6,"AAAAAHeP/hI=") ->  | T4: =AND(Calcul!D6,"AAAAAHeP/hM=") ->  | U4: =AND(Calcul!E6,"AAAAAHeP/hQ=") ->  | V4: =AND(Calcul!F6,"AAAAAHeP/hU=") ->  | W4: =AND(Calcul!G6,"AAAAAHeP/hY=") ->  | X4: =AND(Calcul!H6,"AAAAAHeP/hc=") ->  | Y4: =AND(Calcul!I6,"AAAAAHeP/hg=") ->  | Z4: =AND(Calcul!J6,"AAAAAHeP/hk=") ->  | AA4: =AND(Calcul!K6,"AAAAAHeP/ho=") ->  | AB4: =AND(Calcul!L6,"AAAAAHeP/hs=") ->  | AC4: =IF(Calcul!7:7,"AAAAAHeP/hw=",0) -> 0 | AD4: =AND(Calcul!A7,"AAAAAHeP/h0=") ->  | AE4: =AND(Calcul!B7,"AAAAAHeP/h4=") ->  | AF4: =AND(Calcul!C7,"AAAAAHeP/h8=") ->  | AG4: =AND(Calcul!D7,"AAAAAHeP/iA=") ->  | AH4: =AND(Calcul!E7,"AAAAAHeP/iE=") ->  | AI4: =AND(Calcul!F7,"AAAAAHeP/iI=") ->  | AJ4: =AND(Calcul!G7,"AAAAAHeP/iM=") ->  | AK4: =AND(Calcul!H7,"AAAAAHeP/iQ=") ->  | AL4: =AND(Calcul!I7,"AAAAAHeP/iU=") ->  | AM4: =AND(Calcul!J7,"AAAAAHeP/iY=") ->  | AN4: =AND(Calcul!K7,"AAAAAHeP/ic=") ->  | AO4: =AND(Calcul!L7,"AAAAAHeP/ig=") ->  | AP4: =IF(Calcul!8:8,"AAAAAHeP/ik=",0) -> 0 | AQ4: =AND(Calcul!A8,"AAAAAHeP/io=") ->  | AR4: =AND(Calcul!B8,"AAAAAHeP/is=") ->  | AS4: =AND(Calcul!C8,"AAAAAHeP/iw=") ->  | AT4: =AND(Calcul!D8,"AAAAAHeP/i0=") ->  | AU4: =AND(Calcul!E8,"AAAAAHeP/i4=") ->  | AV4: =AND(Calcul!F8,"AAAAAHeP/i8=") ->  | AW4: =AND(Calcul!G8,"AAAAAHeP/jA=") ->  | AX4: =AND(Calcul!H8,"AAAAAHeP/jE=") ->  | AY4: =AND(Calcul!I8,"AAAAAHeP/jI=") ->  | AZ4: =AND(Calcul!J8,"AAAAAHeP/jM=") ->  | BA4: =AND(Calcul!K8,"AAAAAHeP/jQ=") ->  | BB4: =AND(Calcul!L8,"AAAAAHeP/jU=") ->  | BC4: =IF(Calcul!9:9,"AAAAAHeP/jY=",0) -> 0 | BD4: =AND(Calcul!A9,"AAAAAHeP/jc=") ->  | BE4: =AND(Calcul!B9,"AAAAAHeP/jg=") ->  | BF4: =AND(Calcul!C9,"AAAAAHeP/jk=") ->  | BG4: =AND(Calcul!D9,"AAAAAHeP/jo=") ->  | BH4: =AND(Calcul!E9,"AAAAAHeP/js=") ->  | BI4: =AND(Calcul!F9,"AAAAAHeP/jw=") ->  | BJ4: =AND(Calcul!G9,"AAAAAHeP/j0=") ->  | BK4: =AND(Calcul!H9,"AAAAAHeP/j4=") ->  | BL4: =AND(Calcul!I9,"AAAAAHeP/j8=") ->  | BM4: =AND(Calcul!J9,"AAAAAHeP/kA=") ->  | BN4: =AND(Calcul!K9,"AAAAAHeP/kE=") ->  | BO4: =AND(Calcul!L9,"AAAAAHeP/kI=") ->  | BP4: =IF(Calcul!10:10,"AAAAAHeP/kM=",0) -> 0 | BQ4: =AND(Calcul!A10,"AAAAAHeP/kQ=") ->  | BR4: =AND(Calcul!B10,"AAAAAHeP/kU=") ->  | BS4: =AND(Calcul!C10,"AAAAAHeP/kY=") ->  | BT4: =AND(Calcul!D10,"AAAAAHeP/kc=") ->  | BU4: =AND(Calcul!E10,"AAAAAHeP/kg=") ->  | BV4: =AND(Calcul!F10,"AAAAAHeP/kk=") ->  | BW4: =AND(Calcul!G10,"AAAAAHeP/ko=") ->  | BX4: =AND(Calcul!H10,"AAAAAHeP/ks=") ->  | BY4: =AND(Calcul!I10,"AAAAAHeP/kw=") ->  | BZ4: =AND(Calcul!J10,"AAAAAHeP/k0=") ->  | CA4: =AND(Calcul!K10,"AAAAAHeP/k4=") ->  | CB4: =AND(Calcul!L10,"AAAAAHeP/k8=") ->  | CC4: =IF(Calcul!11:11,"AAAAAHeP/lA=",0) -> 0 | CD4: =AND(Calcul!A11,"AAAAAHeP/lE=") ->  | CE4: =AND(Calcul!B11,"AAAAAHeP/lI=") ->  | CF4: =AND(Calcul!C11,"AAAAAHeP/lM=") ->  | CG4: =AND(Calcul!D11,"AAAAAHeP/lQ=") ->  | CH4: =AND(Calcul!E11,"AAAAAHeP/lU=") ->  | CI4: =AND(Calcul!F11,"AAAAAHeP/lY=") ->  | CJ4: =AND(Calcul!G11,"AAAAAHeP/lc=") ->  | CK4: =AND(Calcul!H11,"AAAAAHeP/lg=") ->  | CL4: =AND(Calcul!I11,"AAAAAHeP/lk=") ->  | CM4: =AND(Calcul!J11,"AAAAAHeP/lo=") ->  | CN4: =AND(Calcul!K11,"AAAAAHeP/ls=") ->  | CO4: =AND(Calcul!L11,"AAAAAHeP/lw=") ->  | CP4: =IF(Calcul!12:12,"AAAAAHeP/l0=",0) -> 0 | CQ4: =AND(Calcul!A12,"AAAAAHeP/l4=") ->  | CR4: =AND(Calcul!B12,"AAAAAHeP/l8=") ->  | CS4: =AND(Calcul!C12,"AAAAAHeP/mA=") ->  | CT4: =AND(Calcul!D12,"AAAAAHeP/mE=") ->  | CU4: =AND(Calcul!E12,"AAAAAHeP/mI=") ->  | CV4: =IF(Calcul!13:13,"AAAAAHeP/mM=",0) -> 0 | CW4: =AND(Calcul!A13,"AAAAAHeP/mQ=") ->  | CX4: =AND(Calcul!B13,"AAAAAHeP/mU=") ->  | CY4: =AND(Calcul!C13,"AAAAAHeP/mY=") ->  | CZ4: =AND(Calcul!D13,"AAAAAHeP/mc=") ->  | DA4: =AND(Calcul!E13,"AAAAAHeP/mg=") ->  | DB4: =IF(Calcul!14:14,"AAAAAHeP/mk=",0) -> 0 | DC4: =AND(Calcul!A14,"AAAAAHeP/mo=") ->  | DD4: =AND(Calcul!B14,"AAAAAHeP/ms=") ->  | DE4: =AND(Calcul!C14,"AAAAAHeP/mw=") ->  | DF4: =AND(Calcul!D14,"AAAAAHeP/m0=") ->  | DG4: =AND(Calcul!E14,"AAAAAHeP/m4=") ->  | DH4: =IF(Calcul!15:15,"AAAAAHeP/m8=",0) -> 0 | DI4: =AND(Calcul!A15,"AAAAAHeP/nA=") ->  | DJ4: =AND(Calcul!B15,"AAAAAHeP/nE=") ->  | DK4: =AND(Calcul!C15,"AAAAAHeP/nI=") ->  | DL4: =AND(Calcul!D15,"AAAAAHeP/nM=") ->  | DM4: =AND(Calcul!E15,"AAAAAHeP/nQ=") ->  | DN4: =IF(Calcul!16:16,"AAAAAHeP/nU=",0) -> 0 | DO4: =AND(Calcul!A16,"AAAAAHeP/nY=") ->  | DP4: =AND(Calcul!B16,"AAAAAHeP/nc=") ->  | DQ4: =AND(Calcul!C16,"AAAAAHeP/ng=") ->  | DR4: =AND(Calcul!D16,"AAAAAHeP/nk=") ->  | DS4: =AND(Calcul!E16,"AAAAAHeP/no=") ->  | DT4: =IF(Calcul!17:17,"AAAAAHeP/ns=",0) -> 0 | DU4: =AND(Calcul!A17,"AAAAAHeP/nw=") ->  | DV4: =AND(Calcul!B17,"AAAAAHeP/n0=") ->  | DW4: =AND(Calcul!C17,"AAAAAHeP/n4=") ->  | DX4: =AND(Calcul!D17,"AAAAAHeP/n8=") ->  | DY4: =AND(Calcul!E17,"AAAAAHeP/oA=") ->  | DZ4: =IF(Calcul!18:18,"AAAAAHeP/oE=",0) -> 0 | EA4: =AND(Calcul!A18,"AAAAAHeP/oI=") ->  | EB4: =AND(Calcul!B18,"AAAAAHeP/oM=") ->  | EC4: =AND(Calcul!C18,"AAAAAHeP/oQ=") ->  | ED4: =AND(Calcul!D18,"AAAAAHeP/oU=") ->  | EE4: =AND(Calcul!E18,"AAAAAHeP/oY=") ->  | EF4: =IF(Calcul!19:19,"AAAAAHeP/oc=",0) -> 0 | EG4: =AND(Calcul!A19,"AAAAAHeP/og=") ->  | EH4: =AND(Calcul!B19,"AAAAAHeP/ok=") ->  | EI4: =AND(Calcul!C19,"AAAAAHeP/oo=") ->  | EJ4: =AND(Calcul!D19,"AAAAAHeP/os=") ->  | EK4: =AND(Calcul!E19,"AAAAAHeP/ow=") ->  | EL4: =IF(Calcul!20:20,"AAAAAHeP/o0=",0) -> 0 | EM4: =AND(Calcul!A20,"AAAAAHeP/o4=") ->  | EN4: =AND(Calcul!B20,"AAAAAHeP/o8=") ->  | EO4: =AND(Calcul!C20,"AAAAAHeP/pA=") ->  | EP4: =AND(Calcul!D20,"AAAAAHeP/pE=") ->  | EQ4: =AND(Calcul!E20,"AAAAAHeP/pI=") ->  | ER4: =IF(Calcul!21:21,"AAAAAHeP/pM=",0) -> 0 | ES4: =AND(Calcul!A21,"AAAAAHeP/pQ=") ->  | ET4: =AND(Calcul!B21,"AAAAAHeP/pU=") ->  | EU4: =AND(Calcul!C21,"AAAAAHeP/pY=") ->  | EV4: =AND(Calcul!D21,"AAAAAHeP/pc=") ->  | EW4: =AND(Calcul!E21,"AAAAAHeP/pg=") ->  | EX4: =IF(Calcul!A:A,"AAAAAHeP/pk=",0) ->  | EY4: =IF(Calcul!B:B,"AAAAAHeP/po=",0) -> AAAAAHeP/po= | EZ4: =IF(Calcul!C:C,"AAAAAHeP/ps=",0) ->  | FA4: =IF(Calcul!D:D,"AAAAAHeP/pw=",0) -> 0 | FB4: =IF(Calcul!E:E,"AAAAAHeP/p0=",0) ->  | FC4: =IF(Calcul!F:F,"AAAAAHeP/p4=",0) -> AAAAAHeP/p4= | FD4: =IF(Calcul!G:G,"AAAAAHeP/p8=",0) ->  | FE4: =IF(Calcul!H:H,"AAAAAHeP/qA=",0) ->  | FF4: =IF(Calcul!I:I,"AAAAAHeP/qE=",0) -> 0 | FG4: =IF(Calcul!J:J,"AAAAAHeP/qI=",0) -> 0 | FH4: =IF(Calcul!K:K,"AAAAAHeP/qM=",0) -> AAAAAHeP/qM= | FI4: =IF(Calcul!L:L,"AAAAAHeP/qQ=",0) ->  | FJ4: =IF(Main!1:1,"AAAAAHeP/qU=",0) -> 0 | FK4: =AND(Main!A1,"AAAAAHeP/qY=") ->  | FL4: =IF(Main!A:A,"AAAAAHeP/qc=",0) -> 0 | FM4: =IF('Ossatures Defaults'!1:1,"AAAAAHeP/qg=",0) -> 0 | FN4: =AND('Ossatures Defaults'!A1,"AAAAAHeP/qk=") ->  | FO4: =AND('Ossatures Defaults'!B1,"AAAAAHeP/qo=") ->  | FP4: =AND('Ossatures Defaults'!C1,"AAAAAHeP/qs=") ->  | FQ4: =AND('Ossatures Defaults'!D1,"AAAAAHeP/qw=") ->  | FR4: =AND('Ossatures Defaults'!E1,"AAAAAHeP/q0=") ->  | FS4: =AND('Ossatures Defaults'!F1,"AAAAAHeP/q4=") ->  | FT4: =AND('Ossatures Defaults'!G1,"AAAAAHeP/q8=") ->  | FU4: =AND('Ossatures Defaults'!H1,"AAAAAHeP/rA=") ->  | FV4: =AND('Ossatures Defaults'!I1,"AAAAAHeP/rE=") ->  | FW4: =AND('Ossatures Defaults'!J1,"AAAAAHeP/rI=") ->  | FX4: =AND('Ossatures Defaults'!K1,"AAAAAHeP/rM=") ->  | FY4: =AND('Ossatures Defaults'!L1,"AAAAAHeP/rQ=") ->  | FZ4: =AND('Ossatures Defaults'!M1,"AAAAAHeP/rU=") ->  | GA4: =AND('Ossatures Defaults'!N1,"AAAAAHeP/rY=") ->  | GB4: =AND('Ossatures Defaults'!O1,"AAAAAHeP/rc=") ->  | GC4: =AND('Ossatures Defaults'!P1,"AAAAAHeP/rg=") ->  | GD4: =IF('Ossatures Defaults'!2:2,"AAAAAHeP/rk=",0) -> 0 | GE4: =AND('Ossatures Defaults'!A2,"AAAAAHeP/ro=") ->  | GF4: =AND('Ossatures Defaults'!B2,"AAAAAHeP/rs=") ->  | GG4: =AND('Ossatures Defaults'!C2,"AAAAAHeP/rw=") ->  | GH4: =AND('Ossatures Defaults'!D2,"AAAAAHeP/r0=") ->  | GI4: =AND('Ossatures Defaults'!E2,"AAAAAHeP/r4=") ->  | GJ4: =AND('Ossatures Defaults'!F2,"AAAAAHeP/r8=") ->  | GK4: =AND('Ossatures Defaults'!G2,"AAAAAHeP/sA=") ->  | GL4: =AND('Ossatures Defaults'!H2,"AAAAAHeP/sE=") ->  | GM4: =AND('Ossatures Defaults'!I2,"AAAAAHeP/sI=") ->  | GN4: =AND('Ossatures Defaults'!J2,"AAAAAHeP/sM=") ->  | GO4: =AND('Ossatures Defaults'!K2,"AAAAAHeP/sQ=") ->  | GP4: =AND('Ossatures Defaults'!L2,"AAAAAHeP/sU=") ->  | GQ4: =AND('Ossatures Defaults'!M2,"AAAAAHeP/sY=") ->  | GR4: =AND('Ossatures Defaults'!N2,"AAAAAHeP/sc=") ->  | GS4: =AND('Ossatures Defaults'!O2,"AAAAAHeP/sg=") ->  | GT4: =AND('Ossatures Defaults'!P2,"AAAAAHeP/sk=") ->  | GU4: =IF('Ossatures Defaults'!3:3,"AAAAAHeP/so=",0) -> 0 | GV4: =AND('Ossatures Defaults'!A3,"AAAAAHeP/ss=") ->  | GW4: =AND('Ossatures Defaults'!B3,"AAAAAHeP/sw=") ->  | GX4: =AND('Ossatures Defaults'!C3,"AAAAAHeP/s0=") ->  | GY4: =AND('Ossatures Defaults'!D3,"AAAAAHeP/s4=") ->  | GZ4: =AND('Ossatures Defaults'!E3,"AAAAAHeP/s8=") ->  | HA4: =AND('Ossatures Defaults'!F3,"AAAAAHeP/tA=") ->  | HB4: =AND('Ossatures Defaults'!G3,"AAAAAHeP/tE=") ->  | HC4: =AND('Ossatures Defaults'!H3,"AAAAAHeP/tI=") ->  | HD4: =AND('Ossatures Defaults'!I3,"AAAAAHeP/tM=") ->  | HE4: =AND('Ossatures Defaults'!J3,"AAAAAHeP/tQ=") ->  | HF4: =AND('Ossatures Defaults'!K3,"AAAAAHeP/tU=") ->  | HG4: =AND('Ossatures Defaults'!L3,"AAAAAHeP/tY=") ->  | HH4: =AND('Ossatures Defaults'!M3,"AAAAAHeP/tc=") ->  | HI4: =AND('Ossatures Defaults'!N3,"AAAAAHeP/tg=") ->  | HJ4: =AND('Ossatures Defaults'!O3,"AAAAAHeP/tk=") ->  | HK4: =AND('Ossatures Defaults'!P3,"AAAAAHeP/to=") ->  | HL4: =IF('Ossatures Defaults'!4:4,"AAAAAHeP/ts=",0) -> 0 | HM4: =AND('Ossatures Defaults'!A4,"AAAAAHeP/tw=") ->  | HN4: =AND('Ossatures Defaults'!B4,"AAAAAHeP/t0=") ->  | HO4: =AND('Ossatures Defaults'!C4,"AAAAAHeP/t4=") ->  | HP4: =AND('Ossatures Defaults'!D4,"AAAAAHeP/t8=") ->  | HQ4: =AND('Ossatures Defaults'!E4,"AAAAAHeP/uA=") ->  | HR4: =AND('Ossatures Defaults'!F4,"AAAAAHeP/uE=") ->  | HS4: =AND('Ossatures Defaults'!G4,"AAAAAHeP/uI=") ->  | HT4: =AND('Ossatures Defaults'!H4,"AAAAAHeP/uM=") ->  | HU4: =AND('Ossatures Defaults'!I4,"AAAAAHeP/uQ=") ->  | HV4: =AND('Ossatures Defaults'!J4,"AAAAAHeP/uU=") ->  | HW4: =AND('Ossatures Defaults'!K4,"AAAAAHeP/uY=") ->  | HX4: =AND('Ossatures Defaults'!L4,"AAAAAHeP/uc=") ->  | HY4: =AND('Ossatures Defaults'!M4,"AAAAAHeP/ug=") ->  | HZ4: =AND('Ossatures Defaults'!N4,"AAAAAHeP/uk=") ->  | IA4: =AND('Ossatures Defaults'!O4,"AAAAAHeP/uo=") ->  | IB4: =AND('Ossatures Defaults'!P4,"AAAAAHeP/us=") ->  | IC4: =IF('Ossatures Defaults'!5:5,"AAAAAHeP/uw=",0) -> 0 | ID4: =AND('Ossatures Defaults'!A5,"AAAAAHeP/u0=") ->  | IE4: =AND('Ossatures Defaults'!B5,"AAAAAHeP/u4=") ->  | IF4: =AND('Ossatures Defaults'!C5,"AAAAAHeP/u8=") ->  | IG4: =AND('Ossatures Defaults'!D5,"AAAAAHeP/vA=") ->  | IH4: =AND('Ossatures Defaults'!E5,"AAAAAHeP/vE=") ->  | II4: =AND('Ossatures Defaults'!F5,"AAAAAHeP/vI=") ->  | IJ4: =AND('Ossatures Defaults'!G5,"AAAAAHeP/vM=") ->  | IK4: =AND('Ossatures Defaults'!H5,"AAAAAHeP/vQ=") ->  | IL4: =AND('Ossatures Defaults'!I5,"AAAAAHeP/vU=") ->  | IM4: =AND('Ossatures Defaults'!J5,"AAAAAHeP/vY=") ->  | IN4: =AND('Ossatures Defaults'!K5,"AAAAAHeP/vc=") ->  | IO4: =AND('Ossatures Defaults'!L5,"AAAAAHeP/vg=") ->  | IP4: =AND('Ossatures Defaults'!M5,"AAAAAHeP/vk=") ->  | IQ4: =AND('Ossatures Defaults'!N5,"AAAAAHeP/vo=") ->  | IR4: =AND('Ossatures Defaults'!O5,"AAAAAHeP/vs=") ->  | IS4: =AND('Ossatures Defaults'!P5,"AAAAAHeP/vw=") ->  | IT4: =IF('Ossatures Defaults'!6:6,"AAAAAHeP/v0=",0) -> 0 | IU4: =AND('Ossatures Defaults'!A6,"AAAAAHeP/v4=") ->  | IV4: =AND('Ossatures Defaults'!B6,"AAAAAHeP/v8=") -> 
A5: =AND('Ossatures Defaults'!C6,"AAAAAHb6fwA=") ->  | B5: =AND('Ossatures Defaults'!D6,"AAAAAHb6fwE=") ->  | C5: =AND('Ossatures Defaults'!E6,"AAAAAHb6fwI=") ->  | D5: =AND('Ossatures Defaults'!F6,"AAAAAHb6fwM=") ->  | E5: =AND('Ossatures Defaults'!G6,"AAAAAHb6fwQ=") ->  | F5: =AND('Ossatures Defaults'!H6,"AAAAAHb6fwU=") ->  | G5: =AND('Ossatures Defaults'!I6,"AAAAAHb6fwY=") ->  | H5: =AND('Ossatures Defaults'!J6,"AAAAAHb6fwc=") ->  | I5: =AND('Ossatures Defaults'!K6,"AAAAAHb6fwg=") ->  | J5: =AND('Ossatures Defaults'!L6,"AAAAAHb6fwk=") ->  | K5: =AND('Ossatures Defaults'!M6,"AAAAAHb6fwo=") ->  | L5: =AND('Ossatures Defaults'!N6,"AAAAAHb6fws=") ->  | M5: =AND('Ossatures Defaults'!O6,"AAAAAHb6fww=") ->  | N5: =AND('Ossatures Defaults'!P6,"AAAAAHb6fw0=") ->  | O5: =IF('Ossatures Defaults'!7:7,"AAAAAHb6fw4=",0) -> 0 | P5: =AND('Ossatures Defaults'!A7,"AAAAAHb6fw8=") ->  | Q5: =AND('Ossatures Defaults'!B7,"AAAAAHb6fxA=") ->  | R5: =AND('Ossatures Defaults'!C7,"AAAAAHb6fxE=") ->  | S5: =AND('Ossatures Defaults'!D7,"AAAAAHb6fxI=") ->  | T5: =AND('Ossatures Defaults'!E7,"AAAAAHb6fxM=") ->  | U5: =AND('Ossatures Defaults'!F7,"AAAAAHb6fxQ=") ->  | V5: =AND('Ossatures Defaults'!G7,"AAAAAHb6fxU=") ->  | W5: =AND('Ossatures Defaults'!H7,"AAAAAHb6fxY=") ->  | X5: =AND('Ossatures Defaults'!I7,"AAAAAHb6fxc=") ->  | Y5: =AND('Ossatures Defaults'!J7,"AAAAAHb6fxg=") ->  | Z5: =AND('Ossatures Defaults'!K7,"AAAAAHb6fxk=") ->  | AA5: =AND('Ossatures Defaults'!L7,"AAAAAHb6fxo=") ->  | AB5: =AND('Ossatures Defaults'!M7,"AAAAAHb6fxs=") ->  | AC5: =AND('Ossatures Defaults'!N7,"AAAAAHb6fxw=") ->  | AD5: =AND('Ossatures Defaults'!O7,"AAAAAHb6fx0=") ->  | AE5: =AND('Ossatures Defaults'!P7,"AAAAAHb6fx4=") ->  | AF5: =IF('Ossatures Defaults'!8:8,"AAAAAHb6fx8=",0) -> 0 | AG5: =AND('Ossatures Defaults'!A8,"AAAAAHb6fyA=") ->  | AH5: =AND('Ossatures Defaults'!B8,"AAAAAHb6fyE=") ->  | AI5: =AND('Ossatures Defaults'!C8,"AAAAAHb6fyI=") ->  | AJ5: =AND('Ossatures Defaults'!D8,"AAAAAHb6fyM=") ->  | AK5: =AND('Ossatures Defaults'!E8,"AAAAAHb6fyQ=") ->  | AL5: =AND('Ossatures Defaults'!F8,"AAAAAHb6fyU=") ->  | AM5: =AND('Ossatures Defaults'!G8,"AAAAAHb6fyY=") ->  | AN5: =AND('Ossatures Defaults'!H8,"AAAAAHb6fyc=") ->  | AO5: =AND('Ossatures Defaults'!I8,"AAAAAHb6fyg=") ->  | AP5: =AND('Ossatures Defaults'!J8,"AAAAAHb6fyk=") ->  | AQ5: =AND('Ossatures Defaults'!K8,"AAAAAHb6fyo=") ->  | AR5: =AND('Ossatures Defaults'!L8,"AAAAAHb6fys=") ->  | AS5: =AND('Ossatures Defaults'!M8,"AAAAAHb6fyw=") ->  | AT5: =AND('Ossatures Defaults'!N8,"AAAAAHb6fy0=") ->  | AU5: =AND('Ossatures Defaults'!O8,"AAAAAHb6fy4=") ->  | AV5: =AND('Ossatures Defaults'!P8,"AAAAAHb6fy8=") ->  | AW5: =IF('Ossatures Defaults'!9:9,"AAAAAHb6fzA=",0) -> 0 | AX5: =AND('Ossatures Defaults'!A9,"AAAAAHb6fzE=") ->  | AY5: =AND('Ossatures Defaults'!B9,"AAAAAHb6fzI=") ->  | AZ5: =AND('Ossatures Defaults'!C9,"AAAAAHb6fzM=") ->  | BA5: =AND('Ossatures Defaults'!D9,"AAAAAHb6fzQ=") ->  | BB5: =AND('Ossatures Defaults'!E9,"AAAAAHb6fzU=") ->  | BC5: =AND('Ossatures Defaults'!F9,"AAAAAHb6fzY=") ->  | BD5: =AND('Ossatures Defaults'!G9,"AAAAAHb6fzc=") ->  | BE5: =AND('Ossatures Defaults'!H9,"AAAAAHb6fzg=") ->  | BF5: =AND('Ossatures Defaults'!I9,"AAAAAHb6fzk=") ->  | BG5: =AND('Ossatures Defaults'!J9,"AAAAAHb6fzo=") ->  | BH5: =AND('Ossatures Defaults'!K9,"AAAAAHb6fzs=") ->  | BI5: =AND('Ossatures Defaults'!L9,"AAAAAHb6fzw=") ->  | BJ5: =AND('Ossatures Defaults'!M9,"AAAAAHb6fz0=") ->  | BK5: =AND('Ossatures Defaults'!N9,"AAAAAHb6fz4=") ->  | BL5: =AND('Ossatures Defaults'!O9,"AAAAAHb6fz8=") ->  | BM5: =AND('Ossatures Defaults'!P9,"AAAAAHb6f0A=") ->  | BN5: =IF('Ossatures Defaults'!10:10,"AAAAAHb6f0E=",0) -> 0 | BO5: =AND('Ossatures Defaults'!A10,"AAAAAHb6f0I=") ->  | BP5: =AND('Ossatures Defaults'!B10,"AAAAAHb6f0M=") ->  | BQ5: =AND('Ossatures Defaults'!C10,"AAAAAHb6f0Q=") ->  | BR5: =AND('Ossatures Defaults'!D10,"AAAAAHb6f0U=") ->  | BS5: =AND('Ossatures Defaults'!E10,"AAAAAHb6f0Y=") ->  | BT5: =AND('Ossatures Defaults'!F10,"AAAAAHb6f0c=") ->  | BU5: =AND('Ossatures Defaults'!G10,"AAAAAHb6f0g=") ->  | BV5: =AND('Ossatures Defaults'!H10,"AAAAAHb6f0k=") ->  | BW5: =AND('Ossatures Defaults'!I10,"AAAAAHb6f0o=") ->  | BX5: =AND('Ossatures Defaults'!J10,"AAAAAHb6f0s=") ->  | BY5: =AND('Ossatures Defaults'!K10,"AAAAAHb6f0w=") ->  | BZ5: =AND('Ossatures Defaults'!L10,"AAAAAHb6f00=") ->  | CA5: =AND('Ossatures Defaults'!M10,"AAAAAHb6f04=") ->  | CB5: =AND('Ossatures Defaults'!N10,"AAAAAHb6f08=") ->  | CC5: =AND('Ossatures Defaults'!O10,"AAAAAHb6f1A=") ->  | CD5: =AND('Ossatures Defaults'!P10,"AAAAAHb6f1E=") ->  | CE5: =IF('Ossatures Defaults'!11:11,"AAAAAHb6f1I=",0) -> 0 | CF5: =AND('Ossatures Defaults'!A11,"AAAAAHb6f1M=") ->  | CG5: =AND('Ossatures Defaults'!B11,"AAAAAHb6f1Q=") ->  | CH5: =AND('Ossatures Defaults'!C11,"AAAAAHb6f1U=") ->  | CI5: =AND('Ossatures Defaults'!D11,"AAAAAHb6f1Y=") ->  | CJ5: =AND('Ossatures Defaults'!E11,"AAAAAHb6f1c=") ->  | CK5: =AND('Ossatures Defaults'!F11,"AAAAAHb6f1g=") ->  | CL5: =AND('Ossatures Defaults'!G11,"AAAAAHb6f1k=") ->  | CM5: =AND('Ossatures Defaults'!H11,"AAAAAHb6f1o=") ->  | CN5: =AND('Ossatures Defaults'!I11,"AAAAAHb6f1s=") ->  | CO5: =AND('Ossatures Defaults'!J11,"AAAAAHb6f1w=") ->  | CP5: =AND('Ossatures Defaults'!K11,"AAAAAHb6f10=") ->  | CQ5: =AND('Ossatures Defaults'!L11,"AAAAAHb6f14=") ->  | CR5: =AND('Ossatures Defaults'!M11,"AAAAAHb6f18=") ->  | CS5: =AND('Ossatures Defaults'!N11,"AAAAAHb6f2A=") ->  | CT5: =AND('Ossatures Defaults'!O11,"AAAAAHb6f2E=") ->  | CU5: =AND('Ossatures Defaults'!P11,"AAAAAHb6f2I=") ->  | CV5: =IF('Ossatures Defaults'!12:12,"AAAAAHb6f2M=",0) -> 0 | CW5: =AND('Ossatures Defaults'!A12,"AAAAAHb6f2Q=") ->  | CX5: =AND('Ossatures Defaults'!B12,"AAAAAHb6f2U=") ->  | CY5: =AND('Ossatures Defaults'!C12,"AAAAAHb6f2Y=") ->  | CZ5: =AND('Ossatures Defaults'!D12,"AAAAAHb6f2c=") ->  | DA5: =AND('Ossatures Defaults'!E12,"AAAAAHb6f2g=") ->  | DB5: =AND('Ossatures Defaults'!F12,"AAAAAHb6f2k=") ->  | DC5: =AND('Ossatures Defaults'!G12,"AAAAAHb6f2o=") ->  | DD5: =AND('Ossatures Defaults'!H12,"AAAAAHb6f2s=") ->  | DE5: =AND('Ossatures Defaults'!I12,"AAAAAHb6f2w=") ->  | DF5: =AND('Ossatures Defaults'!J12,"AAAAAHb6f20=") ->  | DG5: =AND('Ossatures Defaults'!K12,"AAAAAHb6f24=") ->  | DH5: =AND('Ossatures Defaults'!L12,"AAAAAHb6f28=") ->  | DI5: =AND('Ossatures Defaults'!M12,"AAAAAHb6f3A=") ->  | DJ5: =AND('Ossatures Defaults'!N12,"AAAAAHb6f3E=") ->  | DK5: =AND('Ossatures Defaults'!O12,"AAAAAHb6f3I=") ->  | DL5: =AND('Ossatures Defaults'!P12,"AAAAAHb6f3M=") ->  | DM5: =IF('Ossatures Defaults'!13:13,"AAAAAHb6f3Q=",0) -> 0 | DN5: =AND('Ossatures Defaults'!A13,"AAAAAHb6f3U=") ->  | DO5: =AND('Ossatures Defaults'!B13,"AAAAAHb6f3Y=") ->  | DP5: =AND('Ossatures Defaults'!C13,"AAAAAHb6f3c=") ->  | DQ5: =AND('Ossatures Defaults'!D13,"AAAAAHb6f3g=") ->  | DR5: =AND('Ossatures Defaults'!E13,"AAAAAHb6f3k=") ->  | DS5: =AND('Ossatures Defaults'!F13,"AAAAAHb6f3o=") ->  | DT5: =AND('Ossatures Defaults'!G13,"AAAAAHb6f3s=") ->  | DU5: =AND('Ossatures Defaults'!H13,"AAAAAHb6f3w=") ->  | DV5: =AND('Ossatures Defaults'!I13,"AAAAAHb6f30=") ->  | DW5: =AND('Ossatures Defaults'!J13,"AAAAAHb6f34=") ->  | DX5: =AND('Ossatures Defaults'!K13,"AAAAAHb6f38=") ->  | DY5: =AND('Ossatures Defaults'!L13,"AAAAAHb6f4A=") ->  | DZ5: =AND('Ossatures Defaults'!M13,"AAAAAHb6f4E=") ->  | EA5: =AND('Ossatures Defaults'!N13,"AAAAAHb6f4I=") ->  | EB5: =AND('Ossatures Defaults'!O13,"AAAAAHb6f4M=") ->  | EC5: =AND('Ossatures Defaults'!P13,"AAAAAHb6f4Q=") ->  | ED5: =IF('Ossatures Defaults'!14:14,"AAAAAHb6f4U=",0) -> 0 | EE5: =AND('Ossatures Defaults'!A14,"AAAAAHb6f4Y=") ->  | EF5: =AND('Ossatures Defaults'!B14,"AAAAAHb6f4c=") ->  | EG5: =AND('Ossatures Defaults'!C14,"AAAAAHb6f4g=") ->  | EH5: =AND('Ossatures Defaults'!D14,"AAAAAHb6f4k=") ->  | EI5: =AND('Ossatures Defaults'!E14,"AAAAAHb6f4o=") ->  | EJ5: =AND('Ossatures Defaults'!F14,"AAAAAHb6f4s=") ->  | EK5: =AND('Ossatures Defaults'!G14,"AAAAAHb6f4w=") ->  | EL5: =AND('Ossatures Defaults'!H14,"AAAAAHb6f40=") ->  | EM5: =AND('Ossatures Defaults'!I14,"AAAAAHb6f44=") ->  | EN5: =AND('Ossatures Defaults'!J14,"AAAAAHb6f48=") ->  | EO5: =AND('Ossatures Defaults'!K14,"AAAAAHb6f5A=") ->  | EP5: =AND('Ossatures Defaults'!L14,"AAAAAHb6f5E=") ->  | EQ5: =AND('Ossatures Defaults'!M14,"AAAAAHb6f5I=") ->  | ER5: =AND('Ossatures Defaults'!N14,"AAAAAHb6f5M=") ->  | ES5: =AND('Ossatures Defaults'!O14,"AAAAAHb6f5Q=") ->  | ET5: =AND('Ossatures Defaults'!P14,"AAAAAHb6f5U=") ->  | EU5: =IF('Ossatures Defaults'!15:15,"AAAAAHb6f5Y=",0) -> 0 | EV5: =AND('Ossatures Defaults'!A15,"AAAAAHb6f5c=") ->  | EW5: =AND('Ossatures Defaults'!B15,"AAAAAHb6f5g=") ->  | EX5: =AND('Ossatures Defaults'!C15,"AAAAAHb6f5k=") ->  | EY5: =AND('Ossatures Defaults'!D15,"AAAAAHb6f5o=") ->  | EZ5: =AND('Ossatures Defaults'!E15,"AAAAAHb6f5s=") ->  | FA5: =AND('Ossatures Defaults'!F15,"AAAAAHb6f5w=") ->  | FB5: =AND('Ossatures Defaults'!G15,"AAAAAHb6f50=") ->  | FC5: =AND('Ossatures Defaults'!H15,"AAAAAHb6f54=") ->  | FD5: =AND('Ossatures Defaults'!I15,"AAAAAHb6f58=") ->  | FE5: =AND('Ossatures Defaults'!J15,"AAAAAHb6f6A=") ->  | FF5: =AND('Ossatures Defaults'!K15,"AAAAAHb6f6E=") ->  | FG5: =AND('Ossatures Defaults'!L15,"AAAAAHb6f6I=") ->  | FH5: =AND('Ossatures Defaults'!M15,"AAAAAHb6f6M=") ->  | FI5: =AND('Ossatures Defaults'!N15,"AAAAAHb6f6Q=") ->  | FJ5: =AND('Ossatures Defaults'!O15,"AAAAAHb6f6U=") ->  | FK5: =AND('Ossatures Defaults'!P15,"AAAAAHb6f6Y=") ->  | FL5: =IF('Ossatures Defaults'!16:16,"AAAAAHb6f6c=",0) -> 0 | FM5: =AND('Ossatures Defaults'!A16,"AAAAAHb6f6g=") ->  | FN5: =AND('Ossatures Defaults'!B16,"AAAAAHb6f6k=") ->  | FO5: =AND('Ossatures Defaults'!C16,"AAAAAHb6f6o=") ->  | FP5: =AND('Ossatures Defaults'!D16,"AAAAAHb6f6s=") ->  | FQ5: =AND('Ossatures Defaults'!E16,"AAAAAHb6f6w=") ->  | FR5: =AND('Ossatures Defaults'!F16,"AAAAAHb6f60=") ->  | FS5: =AND('Ossatures Defaults'!G16,"AAAAAHb6f64=") ->  | FT5: =AND('Ossatures Defaults'!H16,"AAAAAHb6f68=") ->  | FU5: =AND('Ossatures Defaults'!I16,"AAAAAHb6f7A=") ->  | FV5: =AND('Ossatures Defaults'!J16,"AAAAAHb6f7E=") ->  | FW5: =AND('Ossatures Defaults'!K16,"AAAAAHb6f7I=") ->  | FX5: =AND('Ossatures Defaults'!L16,"AAAAAHb6f7M=") ->  | FY5: =AND('Ossatures Defaults'!M16,"AAAAAHb6f7Q=") ->  | FZ5: =AND('Ossatures Defaults'!N16,"AAAAAHb6f7U=") ->  | GA5: =AND('Ossatures Defaults'!O16,"AAAAAHb6f7Y=") ->  | GB5: =AND('Ossatures Defaults'!P16,"AAAAAHb6f7c=") ->  | GC5: =IF('Ossatures Defaults'!17:17,"AAAAAHb6f7g=",0) -> 0 | GD5: =AND('Ossatures Defaults'!A17,"AAAAAHb6f7k=") ->  | GE5: =AND('Ossatures Defaults'!B17,"AAAAAHb6f7o=") ->  | GF5: =AND('Ossatures Defaults'!C17,"AAAAAHb6f7s=") ->  | GG5: =AND('Ossatures Defaults'!D17,"AAAAAHb6f7w=") ->  | GH5: =AND('Ossatures Defaults'!E17,"AAAAAHb6f70=") ->  | GI5: =AND('Ossatures Defaults'!F17,"AAAAAHb6f74=") ->  | GJ5: =AND('Ossatures Defaults'!G17,"AAAAAHb6f78=") ->  | GK5: =AND('Ossatures Defaults'!H17,"AAAAAHb6f8A=") ->  | GL5: =AND('Ossatures Defaults'!I17,"AAAAAHb6f8E=") ->  | GM5: =AND('Ossatures Defaults'!J17,"AAAAAHb6f8I=") ->  | GN5: =AND('Ossatures Defaults'!K17,"AAAAAHb6f8M=") ->  | GO5: =AND('Ossatures Defaults'!L17,"AAAAAHb6f8Q=") ->  | GP5: =AND('Ossatures Defaults'!M17,"AAAAAHb6f8U=") ->  | GQ5: =AND('Ossatures Defaults'!N17,"AAAAAHb6f8Y=") ->  | GR5: =AND('Ossatures Defaults'!O17,"AAAAAHb6f8c=") ->  | GS5: =AND('Ossatures Defaults'!P17,"AAAAAHb6f8g=") ->  | GT5: =IF('Ossatures Defaults'!18:18,"AAAAAHb6f8k=",0) -> 0 | GU5: =AND('Ossatures Defaults'!A18,"AAAAAHb6f8o=") ->  | GV5: =AND('Ossatures Defaults'!B18,"AAAAAHb6f8s=") ->  | GW5: =AND('Ossatures Defaults'!C18,"AAAAAHb6f8w=") ->  | GX5: =AND('Ossatures Defaults'!D18,"AAAAAHb6f80=") ->  | GY5: =AND('Ossatures Defaults'!E18,"AAAAAHb6f84=") ->  | GZ5: =AND('Ossatures Defaults'!F18,"AAAAAHb6f88=") ->  | HA5: =AND('Ossatures Defaults'!G18,"AAAAAHb6f9A=") ->  | HB5: =AND('Ossatures Defaults'!H18,"AAAAAHb6f9E=") ->  | HC5: =AND('Ossatures Defaults'!I18,"AAAAAHb6f9I=") ->  | HD5: =AND('Ossatures Defaults'!J18,"AAAAAHb6f9M=") ->  | HE5: =AND('Ossatures Defaults'!K18,"AAAAAHb6f9Q=") ->  | HF5: =AND('Ossatures Defaults'!L18,"AAAAAHb6f9U=") ->  | HG5: =AND('Ossatures Defaults'!M18,"AAAAAHb6f9Y=") ->  | HH5: =AND('Ossatures Defaults'!N18,"AAAAAHb6f9c=") ->  | HI5: =AND('Ossatures Defaults'!O18,"AAAAAHb6f9g=") ->  | HJ5: =AND('Ossatures Defaults'!P18,"AAAAAHb6f9k=") ->  | HK5: =IF('Ossatures Defaults'!19:19,"AAAAAHb6f9o=",0) -> 0 | HL5: =AND('Ossatures Defaults'!A19,"AAAAAHb6f9s=") ->  | HM5: =AND('Ossatures Defaults'!B19,"AAAAAHb6f9w=") ->  | HN5: =AND('Ossatures Defaults'!C19,"AAAAAHb6f90=") ->  | HO5: =AND('Ossatures Defaults'!D19,"AAAAAHb6f94=") ->  | HP5: =AND('Ossatures Defaults'!E19,"AAAAAHb6f98=") ->  | HQ5: =AND('Ossatures Defaults'!F19,"AAAAAHb6f+A=") ->  | HR5: =AND('Ossatures Defaults'!G19,"AAAAAHb6f+E=") ->  | HS5: =AND('Ossatures Defaults'!H19,"AAAAAHb6f+I=") ->  | HT5: =AND('Ossatures Defaults'!I19,"AAAAAHb6f+M=") ->  | HU5: =AND('Ossatures Defaults'!J19,"AAAAAHb6f+Q=") ->  | HV5: =AND('Ossatures Defaults'!K19,"AAAAAHb6f+U=") ->  | HW5: =AND('Ossatures Defaults'!L19,"AAAAAHb6f+Y=") ->  | HX5: =AND('Ossatures Defaults'!M19,"AAAAAHb6f+c=") ->  | HY5: =AND('Ossatures Defaults'!N19,"AAAAAHb6f+g=") ->  | HZ5: =AND('Ossatures Defaults'!O19,"AAAAAHb6f+k=") ->  | IA5: =AND('Ossatures Defaults'!P19,"AAAAAHb6f+o=") ->  | IB5: =IF('Ossatures Defaults'!20:20,"AAAAAHb6f+s=",0) -> 0 | IC5: =AND('Ossatures Defaults'!A20,"AAAAAHb6f+w=") ->  | ID5: =AND('Ossatures Defaults'!B20,"AAAAAHb6f+0=") ->  | IE5: =AND('Ossatures Defaults'!C20,"AAAAAHb6f+4=") ->  | IF5: =AND('Ossatures Defaults'!D20,"AAAAAHb6f+8=") ->  | IG5: =AND('Ossatures Defaults'!E20,"AAAAAHb6f/A=") ->  | IH5: =AND('Ossatures Defaults'!F20,"AAAAAHb6f/E=") ->  | II5: =AND('Ossatures Defaults'!G20,"AAAAAHb6f/I=") ->  | IJ5: =AND('Ossatures Defaults'!H20,"AAAAAHb6f/M=") ->  | IK5: =AND('Ossatures Defaults'!I20,"AAAAAHb6f/Q=") ->  | IL5: =AND('Ossatures Defaults'!J20,"AAAAAHb6f/U=") ->  | IM5: =AND('Ossatures Defaults'!K20,"AAAAAHb6f/Y=") ->  | IN5: =AND('Ossatures Defaults'!L20,"AAAAAHb6f/c=") ->  | IO5: =AND('Ossatures Defaults'!M20,"AAAAAHb6f/g=") ->  | IP5: =AND('Ossatures Defaults'!N20,"AAAAAHb6f/k=") ->  | IQ5: =AND('Ossatures Defaults'!O20,"AAAAAHb6f/o=") ->  | IR5: =AND('Ossatures Defaults'!P20,"AAAAAHb6f/s=") ->  | IS5: =IF('Ossatures Defaults'!21:21,"AAAAAHb6f/w=",0) -> 0 | IT5: =AND('Ossatures Defaults'!A21,"AAAAAHb6f/0=") ->  | IU5: =AND('Ossatures Defaults'!B21,"AAAAAHb6f/4=") ->  | IV5: =AND('Ossatures Defaults'!C21,"AAAAAHb6f/8=") -> 
A6: =AND('Ossatures Defaults'!D21,"AAAAAHXfXQA=") ->  | B6: =AND('Ossatures Defaults'!E21,"AAAAAHXfXQE=") ->  | C6: =AND('Ossatures Defaults'!F21,"AAAAAHXfXQI=") ->  | D6: =AND('Ossatures Defaults'!G21,"AAAAAHXfXQM=") ->  | E6: =AND('Ossatures Defaults'!H21,"AAAAAHXfXQQ=") ->  | F6: =AND('Ossatures Defaults'!I21,"AAAAAHXfXQU=") ->  | G6: =AND('Ossatures Defaults'!J21,"AAAAAHXfXQY=") ->  | H6: =AND('Ossatures Defaults'!K21,"AAAAAHXfXQc=") ->  | I6: =AND('Ossatures Defaults'!L21,"AAAAAHXfXQg=") ->  | J6: =AND('Ossatures Defaults'!M21,"AAAAAHXfXQk=") ->  | K6: =AND('Ossatures Defaults'!N21,"AAAAAHXfXQo=") ->  | L6: =AND('Ossatures Defaults'!O21,"AAAAAHXfXQs=") ->  | M6: =AND('Ossatures Defaults'!P21,"AAAAAHXfXQw=") ->  | N6: =IF('Ossatures Defaults'!22:22,"AAAAAHXfXQ0=",0) -> 0 | O6: =AND('Ossatures Defaults'!A22,"AAAAAHXfXQ4=") ->  | P6: =AND('Ossatures Defaults'!B22,"AAAAAHXfXQ8=") ->  | Q6: =IF('Ossatures Defaults'!23:23,"AAAAAHXfXRA=",0) -> 0 | R6: =AND('Ossatures Defaults'!A23,"AAAAAHXfXRE=") ->  | S6: =AND('Ossatures Defaults'!B23,"AAAAAHXfXRI=") ->  | T6: =IF('Ossatures Defaults'!24:24,"AAAAAHXfXRM=",0) -> 0 | U6: =AND('Ossatures Defaults'!A24,"AAAAAHXfXRQ=") ->  | V6: =AND('Ossatures Defaults'!B24,"AAAAAHXfXRU=") ->  | W6: =IF('Ossatures Defaults'!25:25,"AAAAAHXfXRY=",0) -> 0 | X6: =AND('Ossatures Defaults'!A25,"AAAAAHXfXRc=") ->  | Y6: =AND('Ossatures Defaults'!B25,"AAAAAHXfXRg=") ->  | Z6: =IF('Ossatures Defaults'!26:26,"AAAAAHXfXRk=",0) -> 0 | AA6: =AND('Ossatures Defaults'!A26,"AAAAAHXfXRo=") ->  | AB6: =AND('Ossatures Defaults'!B26,"AAAAAHXfXRs=") ->  | AC6: =IF('Ossatures Defaults'!27:27,"AAAAAHXfXRw=",0) -> 0 | AD6: =AND('Ossatures Defaults'!A27,"AAAAAHXfXR0=") ->  | AE6: =AND('Ossatures Defaults'!B27,"AAAAAHXfXR4=") ->  | AF6: =IF('Ossatures Defaults'!28:28,"AAAAAHXfXR8=",0) -> 0 | AG6: =AND('Ossatures Defaults'!A28,"AAAAAHXfXSA=") ->  | AH6: =AND('Ossatures Defaults'!B28,"AAAAAHXfXSE=") ->  | AI6: =IF('Ossatures Defaults'!29:29,"AAAAAHXfXSI=",0) -> 0 | AJ6: =AND('Ossatures Defaults'!A29,"AAAAAHXfXSM=") ->  | AK6: =AND('Ossatures Defaults'!B29,"AAAAAHXfXSQ=") ->  | AL6: =IF('Ossatures Defaults'!30:30,"AAAAAHXfXSU=",0) -> 0 | AM6: =AND('Ossatures Defaults'!A30,"AAAAAHXfXSY=") ->  | AN6: =AND('Ossatures Defaults'!B30,"AAAAAHXfXSc=") ->  | AO6: =IF('Ossatures Defaults'!31:31,"AAAAAHXfXSg=",0) -> 0 | AP6: =AND('Ossatures Defaults'!A31,"AAAAAHXfXSk=") ->  | AQ6: =AND('Ossatures Defaults'!B31,"AAAAAHXfXSo=") ->  | AR6: =IF('Ossatures Defaults'!A:A,"AAAAAHXfXSs=",0) ->  | AS6: =IF('Ossatures Defaults'!B:B,"AAAAAHXfXSw=",0) -> AAAAAHXfXSw= | AT6: =IF('Ossatures Defaults'!C:C,"AAAAAHXfXS0=",0) -> 0 | AU6: =IF('Ossatures Defaults'!D:D,"AAAAAHXfXS4=",0) -> 0 | AV6: =IF('Ossatures Defaults'!E:E,"AAAAAHXfXS8=",0) -> 0 | AW6: =IF('Ossatures Defaults'!F:F,"AAAAAHXfXTA=",0) -> 0 | AX6: =IF('Ossatures Defaults'!G:G,"AAAAAHXfXTE=",0) -> 0 | AY6: =IF('Ossatures Defaults'!H:H,"AAAAAHXfXTI=",0) -> 0 | AZ6: =IF('Ossatures Defaults'!I:I,"AAAAAHXfXTM=",0) -> 0 | BA6: =IF('Ossatures Defaults'!J:J,"AAAAAHXfXTQ=",0) -> 0 | BB6: =IF('Ossatures Defaults'!K:K,"AAAAAHXfXTU=",0) -> 0 | BC6: =IF('Ossatures Defaults'!L:L,"AAAAAHXfXTY=",0) -> 0 | BD6: =IF('Ossatures Defaults'!M:M,"AAAAAHXfXTc=",0) -> 0 | BE6: =IF('Ossatures Defaults'!N:N,"AAAAAHXfXTg=",0) -> 0 | BF6: =IF('Ossatures Defaults'!O:O,"AAAAAHXfXTk=",0) -> 0 | BG6: =IF('Ossatures Defaults'!P:P,"AAAAAHXfXTo=",0) -> 0 | BH6: =IF('Classes exposition'!1:1,"AAAAAHXfXTs=",0) -> 0 | BI6: =AND('Classes exposition'!A1,"AAAAAHXfXTw=") ->  | BJ6: =AND('Classes exposition'!B1,"AAAAAHXfXT0=") ->  | BK6: =AND('Classes exposition'!C1,"AAAAAHXfXT4=") ->  | BL6: =AND('Classes exposition'!D1,"AAAAAHXfXT8=") ->  | BM6: =AND('Classes exposition'!E1,"AAAAAHXfXUA=") ->  | BN6: =AND('Classes exposition'!F1,"AAAAAHXfXUE=") ->  | BO6: =AND('Classes exposition'!G1,"AAAAAHXfXUI=") ->  | BP6: =AND('Classes exposition'!H1,"AAAAAHXfXUM=") ->  | BQ6: =AND('Classes exposition'!I1,"AAAAAHXfXUQ=") ->  | BR6: =AND('Classes exposition'!J1,"AAAAAHXfXUU=") ->  | BS6: =AND('Classes exposition'!K1,"AAAAAHXfXUY=") ->  | BT6: =AND('Classes exposition'!L1,"AAAAAHXfXUc=") ->  | BU6: =IF('Classes exposition'!2:2,"AAAAAHXfXUg=",0) -> 0 | BV6: =AND('Classes exposition'!A2,"AAAAAHXfXUk=") ->  | BW6: =AND('Classes exposition'!B2,"AAAAAHXfXUo=") ->  | BX6: =AND('Classes exposition'!C2,"AAAAAHXfXUs=") ->  | BY6: =AND('Classes exposition'!D2,"AAAAAHXfXUw=") ->  | BZ6: =AND('Classes exposition'!E2,"AAAAAHXfXU0=") ->  | CA6: =AND('Classes exposition'!F2,"AAAAAHXfXU4=") ->  | CB6: =AND('Classes exposition'!G2,"AAAAAHXfXU8=") ->  | CC6: =AND('Classes exposition'!H2,"AAAAAHXfXVA=") ->  | CD6: =AND('Classes exposition'!I2,"AAAAAHXfXVE=") ->  | CE6: =AND('Classes exposition'!J2,"AAAAAHXfXVI=") ->  | CF6: =AND('Classes exposition'!K2,"AAAAAHXfXVM=") ->  | CG6: =AND('Classes exposition'!L2,"AAAAAHXfXVQ=") ->  | CH6: =IF('Classes exposition'!3:3,"AAAAAHXfXVU=",0) -> 0 | CI6: =AND('Classes exposition'!A3,"AAAAAHXfXVY=") ->  | CJ6: =AND('Classes exposition'!B3,"AAAAAHXfXVc=") ->  | CK6: =AND('Classes exposition'!C3,"AAAAAHXfXVg=") ->  | CL6: =AND('Classes exposition'!D3,"AAAAAHXfXVk=") ->  | CM6: =AND('Classes exposition'!E3,"AAAAAHXfXVo=") ->  | CN6: =AND('Classes exposition'!F3,"AAAAAHXfXVs=") ->  | CO6: =AND('Classes exposition'!G3,"AAAAAHXfXVw=") ->  | CP6: =AND('Classes exposition'!H3,"AAAAAHXfXV0=") ->  | CQ6: =AND('Classes exposition'!I3,"AAAAAHXfXV4=") ->  | CR6: =AND('Classes exposition'!J3,"AAAAAHXfXV8=") ->  | CS6: =AND('Classes exposition'!K3,"AAAAAHXfXWA=") ->  | CT6: =AND('Classes exposition'!L3,"AAAAAHXfXWE=") ->  | CU6: =IF('Classes exposition'!4:4,"AAAAAHXfXWI=",0) -> 0 | CV6: =AND('Classes exposition'!A4,"AAAAAHXfXWM=") ->  | CW6: =AND('Classes exposition'!B4,"AAAAAHXfXWQ=") ->  | CX6: =AND('Classes exposition'!C4,"AAAAAHXfXWU=") ->  | CY6: =AND('Classes exposition'!D4,"AAAAAHXfXWY=") ->  | CZ6: =AND('Classes exposition'!E4,"AAAAAHXfXWc=") ->  | DA6: =AND('Classes exposition'!F4,"AAAAAHXfXWg=") ->  | DB6: =AND('Classes exposition'!G4,"AAAAAHXfXWk=") ->  | DC6: =AND('Classes exposition'!H4,"AAAAAHXfXWo=") ->  | DD6: =AND('Classes exposition'!I4,"AAAAAHXfXWs=") ->  | DE6: =AND('Classes exposition'!J4,"AAAAAHXfXWw=") ->  | DF6: =AND('Classes exposition'!K4,"AAAAAHXfXW0=") ->  | DG6: =AND('Classes exposition'!L4,"AAAAAHXfXW4=") ->  | DH6: =IF('Classes exposition'!5:5,"AAAAAHXfXW8=",0) -> 0 | DI6: =AND('Classes exposition'!A5,"AAAAAHXfXXA=") ->  | DJ6: =AND('Classes exposition'!B5,"AAAAAHXfXXE=") ->  | DK6: =AND('Classes exposition'!C5,"AAAAAHXfXXI=") ->  | DL6: =AND('Classes exposition'!D5,"AAAAAHXfXXM=") ->  | DM6: =AND('Classes exposition'!E5,"AAAAAHXfXXQ=") ->  | DN6: =AND('Classes exposition'!F5,"AAAAAHXfXXU=") ->  | DO6: =AND('Classes exposition'!G5,"AAAAAHXfXXY=") ->  | DP6: =AND('Classes exposition'!H5,"AAAAAHXfXXc=") ->  | DQ6: =AND('Classes exposition'!I5,"AAAAAHXfXXg=") ->  | DR6: =AND('Classes exposition'!J5,"AAAAAHXfXXk=") ->  | DS6: =AND('Classes exposition'!K5,"AAAAAHXfXXo=") ->  | DT6: =AND('Classes exposition'!L5,"AAAAAHXfXXs=") ->  | DU6: =IF('Classes exposition'!6:6,"AAAAAHXfXXw=",0) -> 0 | DV6: =AND('Classes exposition'!A6,"AAAAAHXfXX0=") ->  | DW6: =AND('Classes exposition'!B6,"AAAAAHXfXX4=") ->  | DX6: =AND('Classes exposition'!C6,"AAAAAHXfXX8=") ->  | DY6: =AND('Classes exposition'!D6,"AAAAAHXfXYA=") ->  | DZ6: =AND('Classes exposition'!E6,"AAAAAHXfXYE=") ->  | EA6: =AND('Classes exposition'!F6,"AAAAAHXfXYI=") ->  | EB6: =AND('Classes exposition'!G6,"AAAAAHXfXYM=") ->  | EC6: =AND('Classes exposition'!H6,"AAAAAHXfXYQ=") ->  | ED6: =AND('Classes exposition'!I6,"AAAAAHXfXYU=") ->  | EE6: =AND('Classes exposition'!J6,"AAAAAHXfXYY=") ->  | EF6: =AND('Classes exposition'!K6,"AAAAAHXfXYc=") ->  | EG6: =AND('Classes exposition'!L6,"AAAAAHXfXYg=") ->  | EH6: =IF('Classes exposition'!7:7,"AAAAAHXfXYk=",0) -> 0 | EI6: =AND('Classes exposition'!A7,"AAAAAHXfXYo=") ->  | EJ6: =AND('Classes exposition'!B7,"AAAAAHXfXYs=") ->  | EK6: =AND('Classes exposition'!C7,"AAAAAHXfXYw=") ->  | EL6: =AND('Classes exposition'!D7,"AAAAAHXfXY0=") ->  | EM6: =AND('Classes exposition'!E7,"AAAAAHXfXY4=") ->  | EN6: =AND('Classes exposition'!F7,"AAAAAHXfXY8=") ->  | EO6: =AND('Classes exposition'!G7,"AAAAAHXfXZA=") ->  | EP6: =AND('Classes exposition'!H7,"AAAAAHXfXZE=") ->  | EQ6: =AND('Classes exposition'!I7,"AAAAAHXfXZI=") ->  | ER6: =AND('Classes exposition'!J7,"AAAAAHXfXZM=") ->  | ES6: =AND('Classes exposition'!K7,"AAAAAHXfXZQ=") ->  | ET6: =AND('Classes exposition'!L7,"AAAAAHXfXZU=") ->  | EU6: =IF('Classes exposition'!8:8,"AAAAAHXfXZY=",0) -> 0 | EV6: =AND('Classes exposition'!A8,"AAAAAHXfXZc=") ->  | EW6: =AND('Classes exposition'!B8,"AAAAAHXfXZg=") ->  | EX6: =AND('Classes exposition'!C8,"AAAAAHXfXZk=") ->  | EY6: =AND('Classes exposition'!D8,"AAAAAHXfXZo=") ->  | EZ6: =AND('Classes exposition'!E8,"AAAAAHXfXZs=") ->  | FA6: =AND('Classes exposition'!F8,"AAAAAHXfXZw=") ->  | FB6: =AND('Classes exposition'!G8,"AAAAAHXfXZ0=") ->  | FC6: =AND('Classes exposition'!H8,"AAAAAHXfXZ4=") ->  | FD6: =AND('Classes exposition'!I8,"AAAAAHXfXZ8=") ->  | FE6: =AND('Classes exposition'!J8,"AAAAAHXfXaA=") ->  | FF6: =AND('Classes exposition'!K8,"AAAAAHXfXaE=") ->  | FG6: =AND('Classes exposition'!L8,"AAAAAHXfXaI=") ->  | FH6: =IF('Classes exposition'!9:9,"AAAAAHXfXaM=",0) -> 0 | FI6: =AND('Classes exposition'!A9,"AAAAAHXfXaQ=") ->  | FJ6: =AND('Classes exposition'!B9,"AAAAAHXfXaU=") ->  | FK6: =AND('Classes exposition'!C9,"AAAAAHXfXaY=") ->  | FL6: =AND('Classes exposition'!D9,"AAAAAHXfXac=") ->  | FM6: =AND('Classes exposition'!E9,"AAAAAHXfXag=") ->  | FN6: =AND('Classes exposition'!F9,"AAAAAHXfXak=") ->  | FO6: =AND('Classes exposition'!G9,"AAAAAHXfXao=") ->  | FP6: =AND('Classes exposition'!H9,"AAAAAHXfXas=") ->  | FQ6: =AND('Classes exposition'!I9,"AAAAAHXfXaw=") ->  | FR6: =AND('Classes exposition'!J9,"AAAAAHXfXa0=") ->  | FS6: =AND('Classes exposition'!K9,"AAAAAHXfXa4=") ->  | FT6: =AND('Classes exposition'!L9,"AAAAAHXfXa8=") ->  | FU6: =IF('Classes exposition'!10:10,"AAAAAHXfXbA=",0) -> 0 | FV6: =AND('Classes exposition'!A10,"AAAAAHXfXbE=") ->  | FW6: =AND('Classes exposition'!B10,"AAAAAHXfXbI=") ->  | FX6: =AND('Classes exposition'!C10,"AAAAAHXfXbM=") ->  | FY6: =AND('Classes exposition'!D10,"AAAAAHXfXbQ=") ->  | FZ6: =AND('Classes exposition'!E10,"AAAAAHXfXbU=") ->  | GA6: =AND('Classes exposition'!F10,"AAAAAHXfXbY=") ->  | GB6: =AND('Classes exposition'!G10,"AAAAAHXfXbc=") ->  | GC6: =AND('Classes exposition'!H10,"AAAAAHXfXbg=") ->  | GD6: =AND('Classes exposition'!I10,"AAAAAHXfXbk=") ->  | GE6: =AND('Classes exposition'!J10,"AAAAAHXfXbo=") ->  | GF6: =AND('Classes exposition'!K10,"AAAAAHXfXbs=") ->  | GG6: =AND('Classes exposition'!L10,"AAAAAHXfXbw=") ->  | GH6: =IF('Classes exposition'!11:11,"AAAAAHXfXb0=",0) -> 0 | GI6: =AND('Classes exposition'!A11,"AAAAAHXfXb4=") ->  | GJ6: =AND('Classes exposition'!B11,"AAAAAHXfXb8=") ->  | GK6: =AND('Classes exposition'!C11,"AAAAAHXfXcA=") ->  | GL6: =AND('Classes exposition'!D11,"AAAAAHXfXcE=") ->  | GM6: =AND('Classes exposition'!E11,"AAAAAHXfXcI=") ->  | GN6: =AND('Classes exposition'!F11,"AAAAAHXfXcM=") ->  | GO6: =AND('Classes exposition'!G11,"AAAAAHXfXcQ=") ->  | GP6: =AND('Classes exposition'!H11,"AAAAAHXfXcU=") ->  | GQ6: =AND('Classes exposition'!I11,"AAAAAHXfXcY=") ->  | GR6: =AND('Classes exposition'!J11,"AAAAAHXfXcc=") ->  | GS6: =AND('Classes exposition'!K11,"AAAAAHXfXcg=") ->  | GT6: =AND('Classes exposition'!L11,"AAAAAHXfXck=") ->  | GU6: =IF('Classes exposition'!12:12,"AAAAAHXfXco=",0) -> 0 | GV6: =AND('Classes exposition'!A12,"AAAAAHXfXcs=") ->  | GW6: =AND('Classes exposition'!B12,"AAAAAHXfXcw=") ->  | GX6: =AND('Classes exposition'!C12,"AAAAAHXfXc0=") ->  | GY6: =AND('Classes exposition'!D12,"AAAAAHXfXc4=") ->  | GZ6: =AND('Classes exposition'!E12,"AAAAAHXfXc8=") ->  | HA6: =AND('Classes exposition'!F12,"AAAAAHXfXdA=") ->  | HB6: =AND('Classes exposition'!G12,"AAAAAHXfXdE=") ->  | HC6: =AND('Classes exposition'!H12,"AAAAAHXfXdI=") ->  | HD6: =AND('Classes exposition'!I12,"AAAAAHXfXdM=") ->  | HE6: =AND('Classes exposition'!J12,"AAAAAHXfXdQ=") ->  | HF6: =AND('Classes exposition'!K12,"AAAAAHXfXdU=") ->  | HG6: =AND('Classes exposition'!L12,"AAAAAHXfXdY=") ->  | HH6: =IF('Classes exposition'!13:13,"AAAAAHXfXdc=",0) -> 0 | HI6: =AND('Classes exposition'!A13,"AAAAAHXfXdg=") ->  | HJ6: =AND('Classes exposition'!B13,"AAAAAHXfXdk=") ->  | HK6: =AND('Classes exposition'!C13,"AAAAAHXfXdo=") ->  | HL6: =AND('Classes exposition'!D13,"AAAAAHXfXds=") ->  | HM6: =AND('Classes exposition'!E13,"AAAAAHXfXdw=") ->  | HN6: =AND('Classes exposition'!F13,"AAAAAHXfXd0=") ->  | HO6: =AND('Classes exposition'!G13,"AAAAAHXfXd4=") ->  | HP6: =AND('Classes exposition'!H13,"AAAAAHXfXd8=") ->  | HQ6: =AND('Classes exposition'!I13,"AAAAAHXfXeA=") ->  | HR6: =AND('Classes exposition'!J13,"AAAAAHXfXeE=") ->  | HS6: =AND('Classes exposition'!K13,"AAAAAHXfXeI=") ->  | HT6: =AND('Classes exposition'!L13,"AAAAAHXfXeM=") ->  | HU6: =IF('Classes exposition'!14:14,"AAAAAHXfXeQ=",0) -> 0 | HV6: =AND('Classes exposition'!A14,"AAAAAHXfXeU=") ->  | HW6: =AND('Classes exposition'!B14,"AAAAAHXfXeY=") ->  | HX6: =AND('Classes exposition'!C14,"AAAAAHXfXec=") ->  | HY6: =AND('Classes exposition'!D14,"AAAAAHXfXeg=") ->  | HZ6: =AND('Classes exposition'!E14,"AAAAAHXfXek=") ->  | IA6: =AND('Classes exposition'!F14,"AAAAAHXfXeo=") ->  | IB6: =AND('Classes exposition'!G14,"AAAAAHXfXes=") ->  | IC6: =AND('Classes exposition'!H14,"AAAAAHXfXew=") ->  | ID6: =AND('Classes exposition'!I14,"AAAAAHXfXe0=") ->  | IE6: =AND('Classes exposition'!J14,"AAAAAHXfXe4=") ->  | IF6: =AND('Classes exposition'!K14,"AAAAAHXfXe8=") ->  | IG6: =AND('Classes exposition'!L14,"AAAAAHXfXfA=") ->  | IH6: =IF('Classes exposition'!15:15,"AAAAAHXfXfE=",0) -> 0 | II6: =AND('Classes exposition'!A15,"AAAAAHXfXfI=") ->  | IJ6: =AND('Classes exposition'!B15,"AAAAAHXfXfM=") ->  | IK6: =AND('Classes exposition'!C15,"AAAAAHXfXfQ=") ->  | IL6: =AND('Classes exposition'!D15,"AAAAAHXfXfU=") ->  | IM6: =AND('Classes exposition'!E15,"AAAAAHXfXfY=") ->  | IN6: =AND('Classes exposition'!F15,"AAAAAHXfXfc=") ->  | IO6: =AND('Classes exposition'!G15,"AAAAAHXfXfg=") ->  | IP6: =AND('Classes exposition'!H15,"AAAAAHXfXfk=") ->  | IQ6: =AND('Classes exposition'!I15,"AAAAAHXfXfo=") ->  | IR6: =AND('Classes exposition'!J15,"AAAAAHXfXfs=") ->  | IS6: =AND('Classes exposition'!K15,"AAAAAHXfXfw=") ->  | IT6: =AND('Classes exposition'!L15,"AAAAAHXfXf0=") ->  | IU6: =IF('Classes exposition'!16:16,"AAAAAHXfXf4=",0) -> 0 | IV6: =AND('Classes exposition'!A16,"AAAAAHXfXf8=") -> 
A7: =AND('Classes exposition'!B16,"AAAAADh39wA=") ->  | B7: =AND('Classes exposition'!C16,"AAAAADh39wE=") ->  | C7: =AND('Classes exposition'!D16,"AAAAADh39wI=") ->  | D7: =AND('Classes exposition'!E16,"AAAAADh39wM=") ->  | E7: =AND('Classes exposition'!F16,"AAAAADh39wQ=") ->  | F7: =AND('Classes exposition'!G16,"AAAAADh39wU=") ->  | G7: =AND('Classes exposition'!H16,"AAAAADh39wY=") ->  | H7: =AND('Classes exposition'!I16,"AAAAADh39wc=") ->  | I7: =AND('Classes exposition'!J16,"AAAAADh39wg=") ->  | J7: =AND('Classes exposition'!K16,"AAAAADh39wk=") ->  | K7: =AND('Classes exposition'!L16,"AAAAADh39wo=") ->  | L7: =IF('Classes exposition'!17:17,"AAAAADh39ws=",0) -> 0 | M7: =AND('Classes exposition'!A17,"AAAAADh39ww=") ->  | N7: =AND('Classes exposition'!B17,"AAAAADh39w0=") ->  | O7: =AND('Classes exposition'!C17,"AAAAADh39w4=") ->  | P7: =AND('Classes exposition'!D17,"AAAAADh39w8=") ->  | Q7: =AND('Classes exposition'!E17,"AAAAADh39xA=") ->  | R7: =AND('Classes exposition'!F17,"AAAAADh39xE=") ->  | S7: =AND('Classes exposition'!G17,"AAAAADh39xI=") ->  | T7: =AND('Classes exposition'!H17,"AAAAADh39xM=") ->  | U7: =AND('Classes exposition'!I17,"AAAAADh39xQ=") ->  | V7: =AND('Classes exposition'!J17,"AAAAADh39xU=") ->  | W7: =AND('Classes exposition'!K17,"AAAAADh39xY=") ->  | X7: =AND('Classes exposition'!L17,"AAAAADh39xc=") ->  | Y7: =IF('Classes exposition'!18:18,"AAAAADh39xg=",0) -> 0 | Z7: =AND('Classes exposition'!A18,"AAAAADh39xk=") ->  | AA7: =AND('Classes exposition'!B18,"AAAAADh39xo=") ->  | AB7: =AND('Classes exposition'!C18,"AAAAADh39xs=") ->  | AC7: =AND('Classes exposition'!D18,"AAAAADh39xw=") ->  | AD7: =AND('Classes exposition'!E18,"AAAAADh39x0=") ->  | AE7: =AND('Classes exposition'!F18,"AAAAADh39x4=") ->  | AF7: =AND('Classes exposition'!G18,"AAAAADh39x8=") ->  | AG7: =AND('Classes exposition'!H18,"AAAAADh39yA=") ->  | AH7: =AND('Classes exposition'!I18,"AAAAADh39yE=") ->  | AI7: =AND('Classes exposition'!J18,"AAAAADh39yI=") ->  | AJ7: =AND('Classes exposition'!K18,"AAAAADh39yM=") ->  | AK7: =AND('Classes exposition'!L18,"AAAAADh39yQ=") ->  | AL7: =IF('Classes exposition'!19:19,"AAAAADh39yU=",0) -> 0 | AM7: =AND('Classes exposition'!A19,"AAAAADh39yY=") ->  | AN7: =AND('Classes exposition'!B19,"AAAAADh39yc=") ->  | AO7: =AND('Classes exposition'!C19,"AAAAADh39yg=") ->  | AP7: =AND('Classes exposition'!D19,"AAAAADh39yk=") ->  | AQ7: =AND('Classes exposition'!E19,"AAAAADh39yo=") ->  | AR7: =AND('Classes exposition'!F19,"AAAAADh39ys=") ->  | AS7: =AND('Classes exposition'!G19,"AAAAADh39yw=") ->  | AT7: =AND('Classes exposition'!H19,"AAAAADh39y0=") ->  | AU7: =AND('Classes exposition'!I19,"AAAAADh39y4=") ->  | AV7: =AND('Classes exposition'!J19,"AAAAADh39y8=") ->  | AW7: =AND('Classes exposition'!K19,"AAAAADh39zA=") ->  | AX7: =AND('Classes exposition'!L19,"AAAAADh39zE=") ->  | AY7: =IF('Classes exposition'!20:20,"AAAAADh39zI=",0) -> 0 | AZ7: =AND('Classes exposition'!A20,"AAAAADh39zM=") ->  | BA7: =AND('Classes exposition'!B20,"AAAAADh39zQ=") ->  | BB7: =AND('Classes exposition'!C20,"AAAAADh39zU=") ->  | BC7: =AND('Classes exposition'!D20,"AAAAADh39zY=") ->  | BD7: =AND('Classes exposition'!E20,"AAAAADh39zc=") ->  | BE7: =AND('Classes exposition'!F20,"AAAAADh39zg=") ->  | BF7: =AND('Classes exposition'!G20,"AAAAADh39zk=") ->  | BG7: =AND('Classes exposition'!H20,"AAAAADh39zo=") ->  | BH7: =AND('Classes exposition'!I20,"AAAAADh39zs=") ->  | BI7: =AND('Classes exposition'!J20,"AAAAADh39zw=") ->  | BJ7: =AND('Classes exposition'!K20,"AAAAADh39z0=") ->  | BK7: =AND('Classes exposition'!L20,"AAAAADh39z4=") ->  | BL7: =IF('Classes exposition'!21:21,"AAAAADh39z8=",0) -> 0 | BM7: =AND('Classes exposition'!A21,"AAAAADh390A=") ->  | BN7: =AND('Classes exposition'!B21,"AAAAADh390E=") ->  | BO7: =AND('Classes exposition'!C21,"AAAAADh390I=") ->  | BP7: =AND('Classes exposition'!D21,"AAAAADh390M=") ->  | BQ7: =AND('Classes exposition'!E21,"AAAAADh390Q=") ->  | BR7: =AND('Classes exposition'!F21,"AAAAADh390U=") ->  | BS7: =AND('Classes exposition'!G21,"AAAAADh390Y=") ->  | BT7: =AND('Classes exposition'!H21,"AAAAADh390c=") ->  | BU7: =AND('Classes exposition'!I21,"AAAAADh390g=") ->  | BV7: =AND('Classes exposition'!J21,"AAAAADh390k=") ->  | BW7: =AND('Classes exposition'!K21,"AAAAADh390o=") ->  | BX7: =AND('Classes exposition'!L21,"AAAAADh390s=") ->  | BY7: =IF('Classes exposition'!22:22,"AAAAADh390w=",0) -> 0 | BZ7: =AND('Classes exposition'!A22,"AAAAADh3900=") ->  | CA7: =AND('Classes exposition'!B22,"AAAAADh3904=") ->  | CB7: =AND('Classes exposition'!C22,"AAAAADh3908=") ->  | CC7: =AND('Classes exposition'!D22,"AAAAADh391A=") ->  | CD7: =AND('Classes exposition'!E22,"AAAAADh391E=") ->  | CE7: =AND('Classes exposition'!F22,"AAAAADh391I=") ->  | CF7: =AND('Classes exposition'!G22,"AAAAADh391M=") ->  | CG7: =AND('Classes exposition'!H22,"AAAAADh391Q=") ->  | CH7: =AND('Classes exposition'!I22,"AAAAADh391U=") ->  | CI7: =AND('Classes exposition'!J22,"AAAAADh391Y=") ->  | CJ7: =AND('Classes exposition'!K22,"AAAAADh391c=") ->  | CK7: =AND('Classes exposition'!L22,"AAAAADh391g=") ->  | CL7: =IF('Classes exposition'!23:23,"AAAAADh391k=",0) -> 0 | CM7: =AND('Classes exposition'!A23,"AAAAADh391o=") ->  | CN7: =AND('Classes exposition'!B23,"AAAAADh391s=") ->  | CO7: =AND('Classes exposition'!C23,"AAAAADh391w=") ->  | CP7: =AND('Classes exposition'!D23,"AAAAADh3910=") ->  | CQ7: =AND('Classes exposition'!E23,"AAAAADh3914=") ->  | CR7: =AND('Classes exposition'!F23,"AAAAADh3918=") ->  | CS7: =AND('Classes exposition'!G23,"AAAAADh392A=") ->  | CT7: =AND('Classes exposition'!H23,"AAAAADh392E=") ->  | CU7: =AND('Classes exposition'!I23,"AAAAADh392I=") ->  | CV7: =AND('Classes exposition'!J23,"AAAAADh392M=") ->  | CW7: =AND('Classes exposition'!K23,"AAAAADh392Q=") ->  | CX7: =AND('Classes exposition'!L23,"AAAAADh392U=") ->  | CY7: =IF('Classes exposition'!24:24,"AAAAADh392Y=",0) -> 0 | CZ7: =AND('Classes exposition'!A24,"AAAAADh392c=") ->  | DA7: =AND('Classes exposition'!B24,"AAAAADh392g=") ->  | DB7: =AND('Classes exposition'!C24,"AAAAADh392k=") ->  | DC7: =AND('Classes exposition'!D24,"AAAAADh392o=") ->  | DD7: =AND('Classes exposition'!E24,"AAAAADh392s=") ->  | DE7: =AND('Classes exposition'!F24,"AAAAADh392w=") ->  | DF7: =AND('Classes exposition'!G24,"AAAAADh3920=") ->  | DG7: =AND('Classes exposition'!H24,"AAAAADh3924=") ->  | DH7: =AND('Classes exposition'!I24,"AAAAADh3928=") ->  | DI7: =AND('Classes exposition'!J24,"AAAAADh393A=") ->  | DJ7: =AND('Classes exposition'!K24,"AAAAADh393E=") ->  | DK7: =AND('Classes exposition'!L24,"AAAAADh393I=") ->  | DL7: =IF('Classes exposition'!25:25,"AAAAADh393M=",0) -> 0 | DM7: =AND('Classes exposition'!A25,"AAAAADh393Q=") ->  | DN7: =AND('Classes exposition'!B25,"AAAAADh393U=") ->  | DO7: =AND('Classes exposition'!C25,"AAAAADh393Y=") ->  | DP7: =AND('Classes exposition'!D25,"AAAAADh393c=") ->  | DQ7: =AND('Classes exposition'!E25,"AAAAADh393g=") ->  | DR7: =AND('Classes exposition'!F25,"AAAAADh393k=") ->  | DS7: =AND('Classes exposition'!G25,"AAAAADh393o=") ->  | DT7: =AND('Classes exposition'!H25,"AAAAADh393s=") ->  | DU7: =AND('Classes exposition'!I25,"AAAAADh393w=") ->  | DV7: =AND('Classes exposition'!J25,"AAAAADh3930=") ->  | DW7: =AND('Classes exposition'!K25,"AAAAADh3934=") ->  | DX7: =AND('Classes exposition'!L25,"AAAAADh3938=") ->  | DY7: =IF('Classes exposition'!26:26,"AAAAADh394A=",0) -> 0 | DZ7: =AND('Classes exposition'!A26,"AAAAADh394E=") ->  | EA7: =AND('Classes exposition'!B26,"AAAAADh394I=") ->  | EB7: =AND('Classes exposition'!C26,"AAAAADh394M=") ->  | EC7: =AND('Classes exposition'!D26,"AAAAADh394Q=") ->  | ED7: =AND('Classes exposition'!E26,"AAAAADh394U=") ->  | EE7: =AND('Classes exposition'!F26,"AAAAADh394Y=") ->  | EF7: =AND('Classes exposition'!G26,"AAAAADh394c=") ->  | EG7: =AND('Classes exposition'!H26,"AAAAADh394g=") ->  | EH7: =AND('Classes exposition'!I26,"AAAAADh394k=") ->  | EI7: =AND('Classes exposition'!J26,"AAAAADh394o=") ->  | EJ7: =AND('Classes exposition'!K26,"AAAAADh394s=") ->  | EK7: =AND('Classes exposition'!L26,"AAAAADh394w=") ->  | EL7: =IF('Classes exposition'!27:27,"AAAAADh3940=",0) -> 0 | EM7: =AND('Classes exposition'!A27,"AAAAADh3944=") ->  | EN7: =AND('Classes exposition'!B27,"AAAAADh3948=") ->  | EO7: =AND('Classes exposition'!C27,"AAAAADh395A=") ->  | EP7: =AND('Classes exposition'!D27,"AAAAADh395E=") ->  | EQ7: =AND('Classes exposition'!E27,"AAAAADh395I=") ->  | ER7: =AND('Classes exposition'!F27,"AAAAADh395M=") ->  | ES7: =AND('Classes exposition'!G27,"AAAAADh395Q=") ->  | ET7: =AND('Classes exposition'!H27,"AAAAADh395U=") ->  | EU7: =AND('Classes exposition'!I27,"AAAAADh395Y=") ->  | EV7: =AND('Classes exposition'!J27,"AAAAADh395c=") ->  | EW7: =AND('Classes exposition'!K27,"AAAAADh395g=") ->  | EX7: =AND('Classes exposition'!L27,"AAAAADh395k=") ->  | EY7: =IF('Classes exposition'!28:28,"AAAAADh395o=",0) -> 0 | EZ7: =AND('Classes exposition'!A28,"AAAAADh395s=") ->  | FA7: =AND('Classes exposition'!B28,"AAAAADh395w=") ->  | FB7: =AND('Classes exposition'!C28,"AAAAADh3950=") ->  | FC7: =AND('Classes exposition'!D28,"AAAAADh3954=") ->  | FD7: =AND('Classes exposition'!E28,"AAAAADh3958=") ->  | FE7: =AND('Classes exposition'!F28,"AAAAADh396A=") ->  | FF7: =AND('Classes exposition'!G28,"AAAAADh396E=") ->  | FG7: =AND('Classes exposition'!H28,"AAAAADh396I=") ->  | FH7: =AND('Classes exposition'!I28,"AAAAADh396M=") ->  | FI7: =AND('Classes exposition'!J28,"AAAAADh396Q=") ->  | FJ7: =AND('Classes exposition'!K28,"AAAAADh396U=") ->  | FK7: =AND('Classes exposition'!L28,"AAAAADh396Y=") ->  | FL7: =IF('Classes exposition'!29:29,"AAAAADh396c=",0) -> 0 | FM7: =AND('Classes exposition'!A29,"AAAAADh396g=") ->  | FN7: =AND('Classes exposition'!B29,"AAAAADh396k=") ->  | FO7: =AND('Classes exposition'!C29,"AAAAADh396o=") ->  | FP7: =AND('Classes exposition'!D29,"AAAAADh396s=") ->  | FQ7: =AND('Classes exposition'!E29,"AAAAADh396w=") ->  | FR7: =AND('Classes exposition'!F29,"AAAAADh3960=") ->  | FS7: =AND('Classes exposition'!G29,"AAAAADh3964=") ->  | FT7: =AND('Classes exposition'!H29,"AAAAADh3968=") ->  | FU7: =AND('Classes exposition'!I29,"AAAAADh397A=") ->  | FV7: =AND('Classes exposition'!J29,"AAAAADh397E=") ->  | FW7: =AND('Classes exposition'!K29,"AAAAADh397I=") ->  | FX7: =AND('Classes exposition'!L29,"AAAAADh397M=") ->  | FY7: =IF('Classes exposition'!30:30,"AAAAADh397Q=",0) -> 0 | FZ7: =AND('Classes exposition'!A30,"AAAAADh397U=") ->  | GA7: =AND('Classes exposition'!B30,"AAAAADh397Y=") ->  | GB7: =AND('Classes exposition'!C30,"AAAAADh397c=") ->  | GC7: =AND('Classes exposition'!D30,"AAAAADh397g=") ->  | GD7: =AND('Classes exposition'!E30,"AAAAADh397k=") ->  | GE7: =AND('Classes exposition'!F30,"AAAAADh397o=") ->  | GF7: =AND('Classes exposition'!G30,"AAAAADh397s=") ->  | GG7: =AND('Classes exposition'!H30,"AAAAADh397w=") ->  | GH7: =AND('Classes exposition'!I30,"AAAAADh3970=") ->  | GI7: =AND('Classes exposition'!J30,"AAAAADh3974=") ->  | GJ7: =AND('Classes exposition'!K30,"AAAAADh3978=") ->  | GK7: =AND('Classes exposition'!L30,"AAAAADh398A=") ->  | GL7: =IF('Classes exposition'!31:31,"AAAAADh398E=",0) -> 0 | GM7: =AND('Classes exposition'!A31,"AAAAADh398I=") ->  | GN7: =AND('Classes exposition'!B31,"AAAAADh398M=") ->  | GO7: =AND('Classes exposition'!C31,"AAAAADh398Q=") ->  | GP7: =AND('Classes exposition'!D31,"AAAAADh398U=") ->  | GQ7: =AND('Classes exposition'!E31,"AAAAADh398Y=") ->  | GR7: =AND('Classes exposition'!F31,"AAAAADh398c=") ->  | GS7: =AND('Classes exposition'!G31,"AAAAADh398g=") ->  | GT7: =AND('Classes exposition'!H31,"AAAAADh398k=") ->  | GU7: =AND('Classes exposition'!I31,"AAAAADh398o=") ->  | GV7: =AND('Classes exposition'!J31,"AAAAADh398s=") ->  | GW7: =AND('Classes exposition'!K31,"AAAAADh398w=") ->  | GX7: =AND('Classes exposition'!L31,"AAAAADh3980=") ->  | GY7: =IF('Classes exposition'!32:32,"AAAAADh3984=",0) -> 0 | GZ7: =AND('Classes exposition'!A32,"AAAAADh3988=") ->  | HA7: =AND('Classes exposition'!B32,"AAAAADh399A=") ->  | HB7: =AND('Classes exposition'!C32,"AAAAADh399E=") ->  | HC7: =AND('Classes exposition'!D32,"AAAAADh399I=") ->  | HD7: =AND('Classes exposition'!E32,"AAAAADh399M=") ->  | HE7: =AND('Classes exposition'!F32,"AAAAADh399Q=") ->  | HF7: =AND('Classes exposition'!G32,"AAAAADh399U=") ->  | HG7: =AND('Classes exposition'!H32,"AAAAADh399Y=") ->  | HH7: =AND('Classes exposition'!I32,"AAAAADh399c=") ->  | HI7: =AND('Classes exposition'!J32,"AAAAADh399g=") ->  | HJ7: =AND('Classes exposition'!K32,"AAAAADh399k=") ->  | HK7: =AND('Classes exposition'!L32,"AAAAADh399o=") ->  | HL7: =IF('Classes exposition'!33:33,"AAAAADh399s=",0) -> 0 | HM7: =AND('Classes exposition'!A33,"AAAAADh399w=") ->  | HN7: =AND('Classes exposition'!B33,"AAAAADh3990=") ->  | HO7: =AND('Classes exposition'!C33,"AAAAADh3994=") ->  | HP7: =AND('Classes exposition'!D33,"AAAAADh3998=") ->  | HQ7: =AND('Classes exposition'!E33,"AAAAADh39+A=") ->  | HR7: =AND('Classes exposition'!F33,"AAAAADh39+E=") ->  | HS7: =AND('Classes exposition'!G33,"AAAAADh39+I=") ->  | HT7: =AND('Classes exposition'!H33,"AAAAADh39+M=") ->  | HU7: =AND('Classes exposition'!I33,"AAAAADh39+Q=") ->  | HV7: =AND('Classes exposition'!J33,"AAAAADh39+U=") ->  | HW7: =AND('Classes exposition'!K33,"AAAAADh39+Y=") ->  | HX7: =AND('Classes exposition'!L33,"AAAAADh39+c=") ->  | HY7: =IF('Classes exposition'!34:34,"AAAAADh39+g=",0) -> 0 | HZ7: =AND('Classes exposition'!A34,"AAAAADh39+k=") ->  | IA7: =AND('Classes exposition'!B34,"AAAAADh39+o=") ->  | IB7: =AND('Classes exposition'!C34,"AAAAADh39+s=") ->  | IC7: =AND('Classes exposition'!D34,"AAAAADh39+w=") ->  | ID7: =AND('Classes exposition'!E34,"AAAAADh39+0=") ->  | IE7: =AND('Classes exposition'!F34,"AAAAADh39+4=") ->  | IF7: =AND('Classes exposition'!G34,"AAAAADh39+8=") ->  | IG7: =AND('Classes exposition'!H34,"AAAAADh39/A=") ->  | IH7: =AND('Classes exposition'!I34,"AAAAADh39/E=") ->  | II7: =AND('Classes exposition'!J34,"AAAAADh39/I=") ->  | IJ7: =AND('Classes exposition'!K34,"AAAAADh39/M=") ->  | IK7: =AND('Classes exposition'!L34,"AAAAADh39/Q=") ->  | IL7: =IF('Classes exposition'!35:35,"AAAAADh39/U=",0) -> 0 | IM7: =AND('Classes exposition'!A35,"AAAAADh39/Y=") ->  | IN7: =AND('Classes exposition'!B35,"AAAAADh39/c=") ->  | IO7: =AND('Classes exposition'!C35,"AAAAADh39/g=") ->  | IP7: =AND('Classes exposition'!D35,"AAAAADh39/k=") ->  | IQ7: =AND('Classes exposition'!E35,"AAAAADh39/o=") ->  | IR7: =AND('Classes exposition'!F35,"AAAAADh39/s=") ->  | IS7: =AND('Classes exposition'!G35,"AAAAADh39/w=") ->  | IT7: =AND('Classes exposition'!H35,"AAAAADh39/0=") ->  | IU7: =AND('Classes exposition'!I35,"AAAAADh39/4=") ->  | IV7: =AND('Classes exposition'!J35,"AAAAADh39/8=") -> 
A8: =AND('Classes exposition'!K35,"AAAAADqc/QA=") ->  | B8: =AND('Classes exposition'!L35,"AAAAADqc/QE=") ->  | C8: =IF('Classes exposition'!36:36,"AAAAADqc/QI=",0) -> 0 | D8: =AND('Classes exposition'!A36,"AAAAADqc/QM=") ->  | E8: =AND('Classes exposition'!B36,"AAAAADqc/QQ=") ->  | F8: =AND('Classes exposition'!C36,"AAAAADqc/QU=") ->  | G8: =AND('Classes exposition'!D36,"AAAAADqc/QY=") ->  | H8: =AND('Classes exposition'!E36,"AAAAADqc/Qc=") ->  | I8: =AND('Classes exposition'!F36,"AAAAADqc/Qg=") ->  | J8: =AND('Classes exposition'!G36,"AAAAADqc/Qk=") ->  | K8: =AND('Classes exposition'!H36,"AAAAADqc/Qo=") ->  | L8: =AND('Classes exposition'!I36,"AAAAADqc/Qs=") ->  | M8: =AND('Classes exposition'!J36,"AAAAADqc/Qw=") ->  | N8: =AND('Classes exposition'!K36,"AAAAADqc/Q0=") ->  | O8: =AND('Classes exposition'!L36,"AAAAADqc/Q4=") ->  | P8: =IF('Classes exposition'!37:37,"AAAAADqc/Q8=",0) -> 0 | Q8: =AND('Classes exposition'!A37,"AAAAADqc/RA=") ->  | R8: =AND('Classes exposition'!B37,"AAAAADqc/RE=") ->  | S8: =AND('Classes exposition'!C37,"AAAAADqc/RI=") ->  | T8: =AND('Classes exposition'!D37,"AAAAADqc/RM=") ->  | U8: =AND('Classes exposition'!E37,"AAAAADqc/RQ=") ->  | V8: =AND('Classes exposition'!F37,"AAAAADqc/RU=") ->  | W8: =AND('Classes exposition'!G37,"AAAAADqc/RY=") ->  | X8: =AND('Classes exposition'!H37,"AAAAADqc/Rc=") ->  | Y8: =AND('Classes exposition'!I37,"AAAAADqc/Rg=") ->  | Z8: =AND('Classes exposition'!J37,"AAAAADqc/Rk=") ->  | AA8: =AND('Classes exposition'!K37,"AAAAADqc/Ro=") ->  | AB8: =AND('Classes exposition'!L37,"AAAAADqc/Rs=") ->  | AC8: =IF('Classes exposition'!38:38,"AAAAADqc/Rw=",0) -> 0 | AD8: =AND('Classes exposition'!A38,"AAAAADqc/R0=") ->  | AE8: =AND('Classes exposition'!B38,"AAAAADqc/R4=") ->  | AF8: =AND('Classes exposition'!C38,"AAAAADqc/R8=") ->  | AG8: =AND('Classes exposition'!D38,"AAAAADqc/SA=") ->  | AH8: =AND('Classes exposition'!E38,"AAAAADqc/SE=") ->  | AI8: =AND('Classes exposition'!F38,"AAAAADqc/SI=") ->  | AJ8: =AND('Classes exposition'!G38,"AAAAADqc/SM=") ->  | AK8: =AND('Classes exposition'!H38,"AAAAADqc/SQ=") ->  | AL8: =AND('Classes exposition'!I38,"AAAAADqc/SU=") ->  | AM8: =AND('Classes exposition'!J38,"AAAAADqc/SY=") ->  | AN8: =AND('Classes exposition'!K38,"AAAAADqc/Sc=") ->  | AO8: =AND('Classes exposition'!L38,"AAAAADqc/Sg=") ->  | AP8: =IF('Classes exposition'!39:39,"AAAAADqc/Sk=",0) -> 0 | AQ8: =AND('Classes exposition'!A39,"AAAAADqc/So=") ->  | AR8: =AND('Classes exposition'!B39,"AAAAADqc/Ss=") ->  | AS8: =AND('Classes exposition'!C39,"AAAAADqc/Sw=") ->  | AT8: =AND('Classes exposition'!D39,"AAAAADqc/S0=") ->  | AU8: =AND('Classes exposition'!E39,"AAAAADqc/S4=") ->  | AV8: =AND('Classes exposition'!F39,"AAAAADqc/S8=") ->  | AW8: =AND('Classes exposition'!G39,"AAAAADqc/TA=") ->  | AX8: =AND('Classes exposition'!H39,"AAAAADqc/TE=") ->  | AY8: =AND('Classes exposition'!I39,"AAAAADqc/TI=") ->  | AZ8: =AND('Classes exposition'!J39,"AAAAADqc/TM=") ->  | BA8: =AND('Classes exposition'!K39,"AAAAADqc/TQ=") ->  | BB8: =AND('Classes exposition'!L39,"AAAAADqc/TU=") ->  | BC8: =IF('Classes exposition'!40:40,"AAAAADqc/TY=",0) -> 0 | BD8: =AND('Classes exposition'!A40,"AAAAADqc/Tc=") ->  | BE8: =AND('Classes exposition'!B40,"AAAAADqc/Tg=") ->  | BF8: =AND('Classes exposition'!C40,"AAAAADqc/Tk=") ->  | BG8: =AND('Classes exposition'!D40,"AAAAADqc/To=") ->  | BH8: =AND('Classes exposition'!E40,"AAAAADqc/Ts=") ->  | BI8: =AND('Classes exposition'!F40,"AAAAADqc/Tw=") ->  | BJ8: =AND('Classes exposition'!G40,"AAAAADqc/T0=") ->  | BK8: =AND('Classes exposition'!H40,"AAAAADqc/T4=") ->  | BL8: =AND('Classes exposition'!I40,"AAAAADqc/T8=") ->  | BM8: =AND('Classes exposition'!J40,"AAAAADqc/UA=") ->  | BN8: =AND('Classes exposition'!K40,"AAAAADqc/UE=") ->  | BO8: =AND('Classes exposition'!L40,"AAAAADqc/UI=") ->  | BP8: =IF('Classes exposition'!41:41,"AAAAADqc/UM=",0) -> 0 | BQ8: =AND('Classes exposition'!A41,"AAAAADqc/UQ=") ->  | BR8: =AND('Classes exposition'!B41,"AAAAADqc/UU=") ->  | BS8: =IF('Classes exposition'!42:42,"AAAAADqc/UY=",0) -> 0 | BT8: =AND('Classes exposition'!A42,"AAAAADqc/Uc=") ->  | BU8: =AND('Classes exposition'!B42,"AAAAADqc/Ug=") ->  | BV8: =IF('Classes exposition'!43:43,"AAAAADqc/Uk=",0) -> 0 | BW8: =AND('Classes exposition'!A43,"AAAAADqc/Uo=") ->  | BX8: =AND('Classes exposition'!B43,"AAAAADqc/Us=") ->  | BY8: =IF('Classes exposition'!44:44,"AAAAADqc/Uw=",0) -> 0 | BZ8: =AND('Classes exposition'!A44,"AAAAADqc/U0=") ->  | CA8: =AND('Classes exposition'!B44,"AAAAADqc/U4=") ->  | CB8: =IF('Classes exposition'!45:45,"AAAAADqc/U8=",0) -> 0 | CC8: =AND('Classes exposition'!A45,"AAAAADqc/VA=") ->  | CD8: =AND('Classes exposition'!B45,"AAAAADqc/VE=") ->  | CE8: =IF('Classes exposition'!A:A,"AAAAADqc/VI=",0) ->  | CF8: =IF('Classes exposition'!B:B,"AAAAADqc/VM=",0) -> AAAAADqc/VM= | CG8: =IF('Classes exposition'!C:C,"AAAAADqc/VQ=",0) -> AAAAADqc/VQ= | CH8: =IF('Classes exposition'!D:D,"AAAAADqc/VU=",0) -> AAAAADqc/VU= | CI8: =IF('Classes exposition'!E:E,"AAAAADqc/VY=",0) -> 0 | CJ8: =IF('Classes exposition'!F:F,"AAAAADqc/Vc=",0) -> 0 | CK8: =IF('Classes exposition'!G:G,"AAAAADqc/Vg=",0) -> 0 | CL8: =IF('Classes exposition'!H:H,"AAAAADqc/Vk=",0) -> 0 | CM8: =IF('Classes exposition'!I:I,"AAAAADqc/Vo=",0) -> 0 | CN8: =IF('Classes exposition'!J:J,"AAAAADqc/Vs=",0) -> 0 | CO8: =IF('Classes exposition'!K:K,"AAAAADqc/Vw=",0) -> 0 | CP8: =IF('Classes exposition'!L:L,"AAAAADqc/V0=",0) -> 0 | CQ8: =IF('Classes Beton'!1:1,"AAAAADqc/V4=",0) -> 0 | CR8: =AND('Classes Beton'!A1,"AAAAADqc/V8=") ->  | CS8: =AND('Classes Beton'!B1,"AAAAADqc/WA=") ->  | CT8: =AND('Classes Beton'!C1,"AAAAADqc/WE=") ->  | CU8: =AND('Classes Beton'!D1,"AAAAADqc/WI=") ->  | CV8: =AND('Classes Beton'!E1,"AAAAADqc/WM=") ->  | CW8: =AND('Classes Beton'!F1,"AAAAADqc/WQ=") ->  | CX8: =AND('Classes Beton'!G1,"AAAAADqc/WU=") ->  | CY8: =AND('Classes Beton'!H1,"AAAAADqc/WY=") ->  | CZ8: =AND('Classes Beton'!I1,"AAAAADqc/Wc=") ->  | DA8: =AND('Classes Beton'!J1,"AAAAADqc/Wg=") ->  | DB8: =AND('Classes Beton'!K1,"AAAAADqc/Wk=") ->  | DC8: =AND('Classes Beton'!L1,"AAAAADqc/Wo=") ->  | DD8: =AND('Classes Beton'!M1,"AAAAADqc/Ws=") ->  | DE8: =AND('Classes Beton'!N1,"AAAAADqc/Ww=") ->  | DF8: =AND('Classes Beton'!O1,"AAAAADqc/W0=") ->  | DG8: =IF('Classes Beton'!2:2,"AAAAADqc/W4=",0) -> 0 | DH8: =AND('Classes Beton'!A2,"AAAAADqc/W8=") ->  | DI8: =AND('Classes Beton'!B2,"AAAAADqc/XA=") ->  | DJ8: =AND('Classes Beton'!C2,"AAAAADqc/XE=") ->  | DK8: =AND('Classes Beton'!D2,"AAAAADqc/XI=") ->  | DL8: =AND('Classes Beton'!E2,"AAAAADqc/XM=") ->  | DM8: =AND('Classes Beton'!F2,"AAAAADqc/XQ=") ->  | DN8: =AND('Classes Beton'!G2,"AAAAADqc/XU=") ->  | DO8: =AND('Classes Beton'!H2,"AAAAADqc/XY=") ->  | DP8: =AND('Classes Beton'!I2,"AAAAADqc/Xc=") ->  | DQ8: =AND('Classes Beton'!J2,"AAAAADqc/Xg=") ->  | DR8: =AND('Classes Beton'!K2,"AAAAADqc/Xk=") ->  | DS8: =AND('Classes Beton'!L2,"AAAAADqc/Xo=") ->  | DT8: =AND('Classes Beton'!M2,"AAAAADqc/Xs=") ->  | DU8: =AND('Classes Beton'!N2,"AAAAADqc/Xw=") ->  | DV8: =AND('Classes Beton'!O2,"AAAAADqc/X0=") ->  | DW8: =IF('Classes Beton'!3:3,"AAAAADqc/X4=",0) -> 0 | DX8: =AND('Classes Beton'!A3,"AAAAADqc/X8=") ->  | DY8: =AND('Classes Beton'!B3,"AAAAADqc/YA=") ->  | DZ8: =AND('Classes Beton'!C3,"AAAAADqc/YE=") ->  | EA8: =AND('Classes Beton'!D3,"AAAAADqc/YI=") ->  | EB8: =AND('Classes Beton'!E3,"AAAAADqc/YM=") ->  | EC8: =AND('Classes Beton'!F3,"AAAAADqc/YQ=") ->  | ED8: =AND('Classes Beton'!G3,"AAAAADqc/YU=") ->  | EE8: =AND('Classes Beton'!H3,"AAAAADqc/YY=") ->  | EF8: =AND('Classes Beton'!I3,"AAAAADqc/Yc=") ->  | EG8: =AND('Classes Beton'!J3,"AAAAADqc/Yg=") ->  | EH8: =AND('Classes Beton'!K3,"AAAAADqc/Yk=") ->  | EI8: =AND('Classes Beton'!L3,"AAAAADqc/Yo=") ->  | EJ8: =AND('Classes Beton'!M3,"AAAAADqc/Ys=") ->  | EK8: =AND('Classes Beton'!N3,"AAAAADqc/Yw=") ->  | EL8: =AND('Classes Beton'!O3,"AAAAADqc/Y0=") ->  | EM8: =IF('Classes Beton'!4:4,"AAAAADqc/Y4=",0) -> 0 | EN8: =AND('Classes Beton'!A4,"AAAAADqc/Y8=") ->  | EO8: =AND('Classes Beton'!B4,"AAAAADqc/ZA=") ->  | EP8: =AND('Classes Beton'!C4,"AAAAADqc/ZE=") ->  | EQ8: =AND('Classes Beton'!D4,"AAAAADqc/ZI=") ->  | ER8: =AND('Classes Beton'!E4,"AAAAADqc/ZM=") ->  | ES8: =AND('Classes Beton'!F4,"AAAAADqc/ZQ=") ->  | ET8: =AND('Classes Beton'!G4,"AAAAADqc/ZU=") ->  | EU8: =AND('Classes Beton'!H4,"AAAAADqc/ZY=") ->  | EV8: =AND('Classes Beton'!I4,"AAAAADqc/Zc=") ->  | EW8: =AND('Classes Beton'!J4,"AAAAADqc/Zg=") ->  | EX8: =AND('Classes Beton'!K4,"AAAAADqc/Zk=") ->  | EY8: =AND('Classes Beton'!L4,"AAAAADqc/Zo=") ->  | EZ8: =AND('Classes Beton'!M4,"AAAAADqc/Zs=") ->  | FA8: =AND('Classes Beton'!N4,"AAAAADqc/Zw=") ->  | FB8: =AND('Classes Beton'!O4,"AAAAADqc/Z0=") ->  | FC8: =IF('Classes Beton'!5:5,"AAAAADqc/Z4=",0) -> 0 | FD8: =AND('Classes Beton'!A5,"AAAAADqc/Z8=") ->  | FE8: =AND('Classes Beton'!B5,"AAAAADqc/aA=") ->  | FF8: =AND('Classes Beton'!C5,"AAAAADqc/aE=") ->  | FG8: =AND('Classes Beton'!D5,"AAAAADqc/aI=") ->  | FH8: =AND('Classes Beton'!E5,"AAAAADqc/aM=") ->  | FI8: =AND('Classes Beton'!F5,"AAAAADqc/aQ=") ->  | FJ8: =AND('Classes Beton'!G5,"AAAAADqc/aU=") ->  | FK8: =AND('Classes Beton'!H5,"AAAAADqc/aY=") ->  | FL8: =AND('Classes Beton'!I5,"AAAAADqc/ac=") ->  | FM8: =AND('Classes Beton'!J5,"AAAAADqc/ag=") ->  | FN8: =AND('Classes Beton'!K5,"AAAAADqc/ak=") ->  | FO8: =AND('Classes Beton'!L5,"AAAAADqc/ao=") ->  | FP8: =AND('Classes Beton'!M5,"AAAAADqc/as=") ->  | FQ8: =AND('Classes Beton'!N5,"AAAAADqc/aw=") ->  | FR8: =AND('Classes Beton'!O5,"AAAAADqc/a0=") ->  | FS8: =IF('Classes Beton'!6:6,"AAAAADqc/a4=",0) -> 0 | FT8: =AND('Classes Beton'!A6,"AAAAADqc/a8=") ->  | FU8: =AND('Classes Beton'!B6,"AAAAADqc/bA=") ->  | FV8: =AND('Classes Beton'!C6,"AAAAADqc/bE=") ->  | FW8: =AND('Classes Beton'!D6,"AAAAADqc/bI=") ->  | FX8: =AND('Classes Beton'!E6,"AAAAADqc/bM=") ->  | FY8: =AND('Classes Beton'!F6,"AAAAADqc/bQ=") ->  | FZ8: =AND('Classes Beton'!G6,"AAAAADqc/bU=") ->  | GA8: =AND('Classes Beton'!H6,"AAAAADqc/bY=") ->  | GB8: =AND('Classes Beton'!I6,"AAAAADqc/bc=") ->  | GC8: =AND('Classes Beton'!J6,"AAAAADqc/bg=") ->  | GD8: =AND('Classes Beton'!K6,"AAAAADqc/bk=") ->  | GE8: =AND('Classes Beton'!L6,"AAAAADqc/bo=") ->  | GF8: =AND('Classes Beton'!M6,"AAAAADqc/bs=") ->  | GG8: =AND('Classes Beton'!N6,"AAAAADqc/bw=") ->  | GH8: =AND('Classes Beton'!O6,"AAAAADqc/b0=") ->  | GI8: =IF('Classes Beton'!7:7,"AAAAADqc/b4=",0) -> 0 | GJ8: =AND('Classes Beton'!A7,"AAAAADqc/b8=") ->  | GK8: =AND('Classes Beton'!B7,"AAAAADqc/cA=") ->  | GL8: =AND('Classes Beton'!C7,"AAAAADqc/cE=") ->  | GM8: =AND('Classes Beton'!D7,"AAAAADqc/cI=") ->  | GN8: =AND('Classes Beton'!E7,"AAAAADqc/cM=") ->  | GO8: =AND('Classes Beton'!F7,"AAAAADqc/cQ=") ->  | GP8: =AND('Classes Beton'!G7,"AAAAADqc/cU=") ->  | GQ8: =AND('Classes Beton'!H7,"AAAAADqc/cY=") ->  | GR8: =AND('Classes Beton'!I7,"AAAAADqc/cc=") ->  | GS8: =AND('Classes Beton'!J7,"AAAAADqc/cg=") ->  | GT8: =AND('Classes Beton'!K7,"AAAAADqc/ck=") ->  | GU8: =AND('Classes Beton'!L7,"AAAAADqc/co=") ->  | GV8: =AND('Classes Beton'!M7,"AAAAADqc/cs=") ->  | GW8: =AND('Classes Beton'!N7,"AAAAADqc/cw=") ->  | GX8: =AND('Classes Beton'!O7,"AAAAADqc/c0=") ->  | GY8: =IF('Classes Beton'!8:8,"AAAAADqc/c4=",0) -> 0 | GZ8: =AND('Classes Beton'!A8,"AAAAADqc/c8=") ->  | HA8: =AND('Classes Beton'!B8,"AAAAADqc/dA=") ->  | HB8: =AND('Classes Beton'!C8,"AAAAADqc/dE=") ->  | HC8: =AND('Classes Beton'!D8,"AAAAADqc/dI=") ->  | HD8: =AND('Classes Beton'!E8,"AAAAADqc/dM=") ->  | HE8: =AND('Classes Beton'!F8,"AAAAADqc/dQ=") ->  | HF8: =AND('Classes Beton'!G8,"AAAAADqc/dU=") ->  | HG8: =AND('Classes Beton'!H8,"AAAAADqc/dY=") ->  | HH8: =AND('Classes Beton'!I8,"AAAAADqc/dc=") ->  | HI8: =AND('Classes Beton'!J8,"AAAAADqc/dg=") ->  | HJ8: =AND('Classes Beton'!K8,"AAAAADqc/dk=") ->  | HK8: =AND('Classes Beton'!L8,"AAAAADqc/do=") ->  | HL8: =AND('Classes Beton'!M8,"AAAAADqc/ds=") ->  | HM8: =AND('Classes Beton'!N8,"AAAAADqc/dw=") ->  | HN8: =AND('Classes Beton'!O8,"AAAAADqc/d0=") ->  | HO8: =IF('Classes Beton'!9:9,"AAAAADqc/d4=",0) -> 0 | HP8: =AND('Classes Beton'!A9,"AAAAADqc/d8=") ->  | HQ8: =AND('Classes Beton'!B9,"AAAAADqc/eA=") ->  | HR8: =AND('Classes Beton'!C9,"AAAAADqc/eE=") ->  | HS8: =AND('Classes Beton'!D9,"AAAAADqc/eI=") ->  | HT8: =AND('Classes Beton'!E9,"AAAAADqc/eM=") ->  | HU8: =AND('Classes Beton'!F9,"AAAAADqc/eQ=") ->  | HV8: =AND('Classes Beton'!G9,"AAAAADqc/eU=") ->  | HW8: =AND('Classes Beton'!H9,"AAAAADqc/eY=") ->  | HX8: =AND('Classes Beton'!I9,"AAAAADqc/ec=") ->  | HY8: =AND('Classes Beton'!J9,"AAAAADqc/eg=") ->  | HZ8: =AND('Classes Beton'!K9,"AAAAADqc/ek=") ->  | IA8: =AND('Classes Beton'!L9,"AAAAADqc/eo=") ->  | IB8: =AND('Classes Beton'!M9,"AAAAADqc/es=") ->  | IC8: =AND('Classes Beton'!N9,"AAAAADqc/ew=") ->  | ID8: =AND('Classes Beton'!O9,"AAAAADqc/e0=") ->  | IE8: =IF('Classes Beton'!10:10,"AAAAADqc/e4=",0) -> 0 | IF8: =AND('Classes Beton'!A10,"AAAAADqc/e8=") ->  | IG8: =AND('Classes Beton'!B10,"AAAAADqc/fA=") ->  | IH8: =AND('Classes Beton'!C10,"AAAAADqc/fE=") ->  | II8: =AND('Classes Beton'!D10,"AAAAADqc/fI=") ->  | IJ8: =AND('Classes Beton'!E10,"AAAAADqc/fM=") ->  | IK8: =AND('Classes Beton'!F10,"AAAAADqc/fQ=") ->  | IL8: =AND('Classes Beton'!G10,"AAAAADqc/fU=") ->  | IM8: =AND('Classes Beton'!H10,"AAAAADqc/fY=") ->  | IN8: =AND('Classes Beton'!I10,"AAAAADqc/fc=") ->  | IO8: =AND('Classes Beton'!J10,"AAAAADqc/fg=") ->  | IP8: =AND('Classes Beton'!K10,"AAAAADqc/fk=") ->  | IQ8: =AND('Classes Beton'!L10,"AAAAADqc/fo=") ->  | IR8: =AND('Classes Beton'!M10,"AAAAADqc/fs=") ->  | IS8: =AND('Classes Beton'!N10,"AAAAADqc/fw=") ->  | IT8: =AND('Classes Beton'!O10,"AAAAADqc/f0=") ->  | IU8: =IF('Classes Beton'!11:11,"AAAAADqc/f4=",0) -> 0 | IV8: =AND('Classes Beton'!A11,"AAAAADqc/f8=") -> 
A9: =AND('Classes Beton'!B11,"AAAAAD7vfgA=") ->  | B9: =AND('Classes Beton'!C11,"AAAAAD7vfgE=") ->  | C9: =AND('Classes Beton'!D11,"AAAAAD7vfgI=") ->  | D9: =AND('Classes Beton'!E11,"AAAAAD7vfgM=") ->  | E9: =AND('Classes Beton'!F11,"AAAAAD7vfgQ=") ->  | F9: =AND('Classes Beton'!G11,"AAAAAD7vfgU=") ->  | G9: =AND('Classes Beton'!H11,"AAAAAD7vfgY=") ->  | H9: =AND('Classes Beton'!I11,"AAAAAD7vfgc=") ->  | I9: =AND('Classes Beton'!J11,"AAAAAD7vfgg=") ->  | J9: =AND('Classes Beton'!K11,"AAAAAD7vfgk=") ->  | K9: =AND('Classes Beton'!L11,"AAAAAD7vfgo=") ->  | L9: =AND('Classes Beton'!M11,"AAAAAD7vfgs=") ->  | M9: =AND('Classes Beton'!N11,"AAAAAD7vfgw=") ->  | N9: =AND('Classes Beton'!O11,"AAAAAD7vfg0=") ->  | O9: =IF('Classes Beton'!12:12,"AAAAAD7vfg4=",0) -> AAAAAD7vfg4= | P9: =AND('Classes Beton'!A12,"AAAAAD7vfg8=") ->  | Q9: =AND('Classes Beton'!B12,"AAAAAD7vfhA=") ->  | R9: =AND('Classes Beton'!C12,"AAAAAD7vfhE=") ->  | S9: =AND('Classes Beton'!D12,"AAAAAD7vfhI=") ->  | T9: =AND('Classes Beton'!E12,"AAAAAD7vfhM=") ->  | U9: =AND('Classes Beton'!F12,"AAAAAD7vfhQ=") ->  | V9: =AND('Classes Beton'!G12,"AAAAAD7vfhU=") ->  | W9: =AND('Classes Beton'!H12,"AAAAAD7vfhY=") ->  | X9: =AND('Classes Beton'!I12,"AAAAAD7vfhc=") ->  | Y9: =AND('Classes Beton'!J12,"AAAAAD7vfhg=") ->  | Z9: =AND('Classes Beton'!K12,"AAAAAD7vfhk=") ->  | AA9: =AND('Classes Beton'!L12,"AAAAAD7vfho=") ->  | AB9: =AND('Classes Beton'!M12,"AAAAAD7vfhs=") ->  | AC9: =AND('Classes Beton'!N12,"AAAAAD7vfhw=") ->  | AD9: =AND('Classes Beton'!O12,"AAAAAD7vfh0=") ->  | AE9: =IF('Classes Beton'!13:13,"AAAAAD7vfh4=",0) -> 0 | AF9: =AND('Classes Beton'!A13,"AAAAAD7vfh8=") ->  | AG9: =AND('Classes Beton'!B13,"AAAAAD7vfiA=") ->  | AH9: =AND('Classes Beton'!C13,"AAAAAD7vfiE=") ->  | AI9: =AND('Classes Beton'!D13,"AAAAAD7vfiI=") ->  | AJ9: =AND('Classes Beton'!E13,"AAAAAD7vfiM=") ->  | AK9: =AND('Classes Beton'!F13,"AAAAAD7vfiQ=") ->  | AL9: =AND('Classes Beton'!G13,"AAAAAD7vfiU=") ->  | AM9: =AND('Classes Beton'!H13,"AAAAAD7vfiY=") ->  | AN9: =AND('Classes Beton'!I13,"AAAAAD7vfic=") ->  | AO9: =AND('Classes Beton'!J13,"AAAAAD7vfig=") ->  | AP9: =AND('Classes Beton'!K13,"AAAAAD7vfik=") ->  | AQ9: =AND('Classes Beton'!L13,"AAAAAD7vfio=") ->  | AR9: =AND('Classes Beton'!M13,"AAAAAD7vfis=") ->  | AS9: =AND('Classes Beton'!N13,"AAAAAD7vfiw=") ->  | AT9: =AND('Classes Beton'!O13,"AAAAAD7vfi0=") ->  | AU9: =IF('Classes Beton'!14:14,"AAAAAD7vfi4=",0) -> 0 | AV9: =AND('Classes Beton'!A14,"AAAAAD7vfi8=") ->  | AW9: =AND('Classes Beton'!B14,"AAAAAD7vfjA=") ->  | AX9: =AND('Classes Beton'!C14,"AAAAAD7vfjE=") ->  | AY9: =AND('Classes Beton'!D14,"AAAAAD7vfjI=") ->  | AZ9: =AND('Classes Beton'!E14,"AAAAAD7vfjM=") ->  | BA9: =AND('Classes Beton'!F14,"AAAAAD7vfjQ=") ->  | BB9: =AND('Classes Beton'!G14,"AAAAAD7vfjU=") ->  | BC9: =AND('Classes Beton'!H14,"AAAAAD7vfjY=") ->  | BD9: =AND('Classes Beton'!I14,"AAAAAD7vfjc=") ->  | BE9: =AND('Classes Beton'!J14,"AAAAAD7vfjg=") ->  | BF9: =AND('Classes Beton'!K14,"AAAAAD7vfjk=") ->  | BG9: =AND('Classes Beton'!L14,"AAAAAD7vfjo=") ->  | BH9: =AND('Classes Beton'!M14,"AAAAAD7vfjs=") ->  | BI9: =AND('Classes Beton'!N14,"AAAAAD7vfjw=") ->  | BJ9: =AND('Classes Beton'!O14,"AAAAAD7vfj0=") ->  | BK9: =IF('Classes Beton'!A:A,"AAAAAD7vfj4=",0) ->  | BL9: =IF('Classes Beton'!B:B,"AAAAAD7vfj8=",0) -> AAAAAD7vfj8= | BM9: =IF('Classes Beton'!C:C,"AAAAAD7vfkA=",0) -> AAAAAD7vfkA= | BN9: =IF('Classes Beton'!D:D,"AAAAAD7vfkE=",0) -> AAAAAD7vfkE= | BO9: =IF('Classes Beton'!E:E,"AAAAAD7vfkI=",0) -> AAAAAD7vfkI= | BP9: =IF('Classes Beton'!F:F,"AAAAAD7vfkM=",0) -> AAAAAD7vfkM= | BQ9: =IF('Classes Beton'!G:G,"AAAAAD7vfkQ=",0) -> AAAAAD7vfkQ= | BR9: =IF('Classes Beton'!H:H,"AAAAAD7vfkU=",0) -> AAAAAD7vfkU= | BS9: =IF('Classes Beton'!I:I,"AAAAAD7vfkY=",0) -> AAAAAD7vfkY= | BT9: =IF('Classes Beton'!J:J,"AAAAAD7vfkc=",0) -> AAAAAD7vfkc= | BU9: =IF('Classes Beton'!K:K,"AAAAAD7vfkg=",0) -> AAAAAD7vfkg= | BV9: =IF('Classes Beton'!L:L,"AAAAAD7vfkk=",0) -> AAAAAD7vfkk= | BW9: =IF('Classes Beton'!M:M,"AAAAAD7vfko=",0) -> AAAAAD7vfko= | BX9: =IF('Classes Beton'!N:N,"AAAAAD7vfks=",0) -> AAAAAD7vfks= | BY9: =IF('Classes Beton'!O:O,"AAAAAD7vfkw=",0) -> AAAAAD7vfkw= | BZ9: =IF('Section HA'!1:1,"AAAAAD7vfk0=",0) -> 0 | CA9: =AND('Section HA'!A1,"AAAAAD7vfk4=") ->  | CB9: =AND('Section HA'!B1,"AAAAAD7vfk8=") ->  | CC9: =AND('Section HA'!C1,"AAAAAD7vflA=") ->  | CD9: =AND('Section HA'!D1,"AAAAAD7vflE=") ->  | CE9: =AND('Section HA'!E1,"AAAAAD7vflI=") ->  | CF9: =AND('Section HA'!F1,"AAAAAD7vflM=") ->  | CG9: =AND('Section HA'!G1,"AAAAAD7vflQ=") ->  | CH9: =AND('Section HA'!H1,"AAAAAD7vflU=") ->  | CI9: =AND('Section HA'!I1,"AAAAAD7vflY=") ->  | CJ9: =AND('Section HA'!J1,"AAAAAD7vflc=") ->  | CK9: =AND('Section HA'!K1,"AAAAAD7vflg=") ->  | CL9: =AND('Section HA'!L1,"AAAAAD7vflk=") ->  | CM9: =AND('Section HA'!M1,"AAAAAD7vflo=") ->  | CN9: =AND('Section HA'!N1,"AAAAAD7vfls=") ->  | CO9: =AND('Section HA'!O1,"AAAAAD7vflw=") ->  | CP9: =AND('Section HA'!P1,"AAAAAD7vfl0=") ->  | CQ9: =AND('Section HA'!Q1,"AAAAAD7vfl4=") ->  | CR9: =AND('Section HA'!R1,"AAAAAD7vfl8=") ->  | CS9: =AND('Section HA'!S1,"AAAAAD7vfmA=") ->  | CT9: =IF('Section HA'!2:2,"AAAAAD7vfmE=",0) -> 0 | CU9: =AND('Section HA'!A2,"AAAAAD7vfmI=") ->  | CV9: =AND('Section HA'!B2,"AAAAAD7vfmM=") ->  | CW9: =AND('Section HA'!C2,"AAAAAD7vfmQ=") ->  | CX9: =AND('Section HA'!D2,"AAAAAD7vfmU=") ->  | CY9: =AND('Section HA'!E2,"AAAAAD7vfmY=") ->  | CZ9: =AND('Section HA'!F2,"AAAAAD7vfmc=") ->  | DA9: =AND('Section HA'!G2,"AAAAAD7vfmg=") ->  | DB9: =AND('Section HA'!H2,"AAAAAD7vfmk=") ->  | DC9: =AND('Section HA'!I2,"AAAAAD7vfmo=") ->  | DD9: =AND('Section HA'!J2,"AAAAAD7vfms=") ->  | DE9: =AND('Section HA'!K2,"AAAAAD7vfmw=") ->  | DF9: =AND('Section HA'!L2,"AAAAAD7vfm0=") ->  | DG9: =AND('Section HA'!M2,"AAAAAD7vfm4=") ->  | DH9: =AND('Section HA'!N2,"AAAAAD7vfm8=") ->  | DI9: =AND('Section HA'!O2,"AAAAAD7vfnA=") ->  | DJ9: =AND('Section HA'!P2,"AAAAAD7vfnE=") ->  | DK9: =AND('Section HA'!Q2,"AAAAAD7vfnI=") ->  | DL9: =AND('Section HA'!R2,"AAAAAD7vfnM=") ->  | DM9: =AND('Section HA'!S2,"AAAAAD7vfnQ=") ->  | DN9: =IF('Section HA'!3:3,"AAAAAD7vfnU=",0) -> 0 | DO9: =AND('Section HA'!A3,"AAAAAD7vfnY=") ->  | DP9: =AND('Section HA'!B3,"AAAAAD7vfnc=") ->  | DQ9: =AND('Section HA'!C3,"AAAAAD7vfng=") ->  | DR9: =AND('Section HA'!D3,"AAAAAD7vfnk=") ->  | DS9: =AND('Section HA'!E3,"AAAAAD7vfno=") ->  | DT9: =AND('Section HA'!F3,"AAAAAD7vfns=") ->  | DU9: =AND('Section HA'!G3,"AAAAAD7vfnw=") ->  | DV9: =AND('Section HA'!H3,"AAAAAD7vfn0=") ->  | DW9: =AND('Section HA'!I3,"AAAAAD7vfn4=") ->  | DX9: =AND('Section HA'!J3,"AAAAAD7vfn8=") ->  | DY9: =AND('Section HA'!K3,"AAAAAD7vfoA=") ->  | DZ9: =AND('Section HA'!L3,"AAAAAD7vfoE=") ->  | EA9: =AND('Section HA'!M3,"AAAAAD7vfoI=") ->  | EB9: =AND('Section HA'!N3,"AAAAAD7vfoM=") ->  | EC9: =AND('Section HA'!O3,"AAAAAD7vfoQ=") ->  | ED9: =AND('Section HA'!P3,"AAAAAD7vfoU=") ->  | EE9: =AND('Section HA'!Q3,"AAAAAD7vfoY=") ->  | EF9: =AND('Section HA'!R3,"AAAAAD7vfoc=") ->  | EG9: =AND('Section HA'!S3,"AAAAAD7vfog=") ->  | EH9: =IF('Section HA'!4:4,"AAAAAD7vfok=",0) -> 0 | EI9: =AND('Section HA'!A4,"AAAAAD7vfoo=") ->  | EJ9: =AND('Section HA'!B4,"AAAAAD7vfos=") ->  | EK9: =AND('Section HA'!C4,"AAAAAD7vfow=") ->  | EL9: =AND('Section HA'!D4,"AAAAAD7vfo0=") ->  | EM9: =AND('Section HA'!E4,"AAAAAD7vfo4=") ->  | EN9: =AND('Section HA'!F4,"AAAAAD7vfo8=") ->  | EO9: =AND('Section HA'!G4,"AAAAAD7vfpA=") ->  | EP9: =AND('Section HA'!H4,"AAAAAD7vfpE=") ->  | EQ9: =AND('Section HA'!I4,"AAAAAD7vfpI=") ->  | ER9: =AND('Section HA'!J4,"AAAAAD7vfpM=") ->  | ES9: =AND('Section HA'!K4,"AAAAAD7vfpQ=") ->  | ET9: =AND('Section HA'!L4,"AAAAAD7vfpU=") ->  | EU9: =AND('Section HA'!M4,"AAAAAD7vfpY=") ->  | EV9: =AND('Section HA'!N4,"AAAAAD7vfpc=") ->  | EW9: =AND('Section HA'!O4,"AAAAAD7vfpg=") ->  | EX9: =AND('Section HA'!P4,"AAAAAD7vfpk=") ->  | EY9: =AND('Section HA'!Q4,"AAAAAD7vfpo=") ->  | EZ9: =AND('Section HA'!R4,"AAAAAD7vfps=") ->  | FA9: =AND('Section HA'!S4,"AAAAAD7vfpw=") ->  | FB9: =IF('Section HA'!5:5,"AAAAAD7vfp0=",0) -> 0 | FC9: =AND('Section HA'!A5,"AAAAAD7vfp4=") ->  | FD9: =AND('Section HA'!B5,"AAAAAD7vfp8=") ->  | FE9: =AND('Section HA'!C5,"AAAAAD7vfqA=") ->  | FF9: =AND('Section HA'!D5,"AAAAAD7vfqE=") ->  | FG9: =AND('Section HA'!E5,"AAAAAD7vfqI=") ->  | FH9: =AND('Section HA'!F5,"AAAAAD7vfqM=") ->  | FI9: =AND('Section HA'!G5,"AAAAAD7vfqQ=") ->  | FJ9: =AND('Section HA'!H5,"AAAAAD7vfqU=") ->  | FK9: =AND('Section HA'!I5,"AAAAAD7vfqY=") ->  | FL9: =AND('Section HA'!J5,"AAAAAD7vfqc=") ->  | FM9: =AND('Section HA'!K5,"AAAAAD7vfqg=") ->  | FN9: =AND('Section HA'!L5,"AAAAAD7vfqk=") ->  | FO9: =AND('Section HA'!M5,"AAAAAD7vfqo=") ->  | FP9: =AND('Section HA'!N5,"AAAAAD7vfqs=") ->  | FQ9: =AND('Section HA'!O5,"AAAAAD7vfqw=") ->  | FR9: =AND('Section HA'!P5,"AAAAAD7vfq0=") ->  | FS9: =AND('Section HA'!Q5,"AAAAAD7vfq4=") ->  | FT9: =AND('Section HA'!R5,"AAAAAD7vfq8=") ->  | FU9: =AND('Section HA'!S5,"AAAAAD7vfrA=") ->  | FV9: =IF('Section HA'!6:6,"AAAAAD7vfrE=",0) -> 0 | FW9: =AND('Section HA'!A6,"AAAAAD7vfrI=") ->  | FX9: =AND('Section HA'!B6,"AAAAAD7vfrM=") ->  | FY9: =AND('Section HA'!C6,"AAAAAD7vfrQ=") ->  | FZ9: =AND('Section HA'!D6,"AAAAAD7vfrU=") ->  | GA9: =AND('Section HA'!E6,"AAAAAD7vfrY=") ->  | GB9: =AND('Section HA'!F6,"AAAAAD7vfrc=") ->  | GC9: =AND('Section HA'!G6,"AAAAAD7vfrg=") ->  | GD9: =AND('Section HA'!H6,"AAAAAD7vfrk=") ->  | GE9: =AND('Section HA'!I6,"AAAAAD7vfro=") ->  | GF9: =AND('Section HA'!J6,"AAAAAD7vfrs=") ->  | GG9: =AND('Section HA'!K6,"AAAAAD7vfrw=") ->  | GH9: =AND('Section HA'!L6,"AAAAAD7vfr0=") ->  | GI9: =AND('Section HA'!M6,"AAAAAD7vfr4=") ->  | GJ9: =AND('Section HA'!N6,"AAAAAD7vfr8=") ->  | GK9: =AND('Section HA'!O6,"AAAAAD7vfsA=") ->  | GL9: =AND('Section HA'!P6,"AAAAAD7vfsE=") ->  | GM9: =AND('Section HA'!Q6,"AAAAAD7vfsI=") ->  | GN9: =AND('Section HA'!R6,"AAAAAD7vfsM=") ->  | GO9: =AND('Section HA'!S6,"AAAAAD7vfsQ=") ->  | GP9: =IF('Section HA'!7:7,"AAAAAD7vfsU=",0) -> 0 | GQ9: =AND('Section HA'!A7,"AAAAAD7vfsY=") ->  | GR9: =AND('Section HA'!B7,"AAAAAD7vfsc=") ->  | GS9: =AND('Section HA'!C7,"AAAAAD7vfsg=") ->  | GT9: =AND('Section HA'!D7,"AAAAAD7vfsk=") ->  | GU9: =AND('Section HA'!E7,"AAAAAD7vfso=") ->  | GV9: =AND('Section HA'!F7,"AAAAAD7vfss=") ->  | GW9: =AND('Section HA'!G7,"AAAAAD7vfsw=") ->  | GX9: =AND('Section HA'!H7,"AAAAAD7vfs0=") ->  | GY9: =AND('Section HA'!I7,"AAAAAD7vfs4=") ->  | GZ9: =AND('Section HA'!J7,"AAAAAD7vfs8=") ->  | HA9: =AND('Section HA'!K7,"AAAAAD7vftA=") ->  | HB9: =AND('Section HA'!L7,"AAAAAD7vftE=") ->  | HC9: =AND('Section HA'!M7,"AAAAAD7vftI=") ->  | HD9: =AND('Section HA'!N7,"AAAAAD7vftM=") ->  | HE9: =AND('Section HA'!O7,"AAAAAD7vftQ=") ->  | HF9: =AND('Section HA'!P7,"AAAAAD7vftU=") ->  | HG9: =AND('Section HA'!Q7,"AAAAAD7vftY=") ->  | HH9: =AND('Section HA'!R7,"AAAAAD7vftc=") ->  | HI9: =AND('Section HA'!S7,"AAAAAD7vftg=") ->  | HJ9: =IF('Section HA'!8:8,"AAAAAD7vftk=",0) -> 0 | HK9: =AND('Section HA'!A8,"AAAAAD7vfto=") ->  | HL9: =AND('Section HA'!B8,"AAAAAD7vfts=") ->  | HM9: =AND('Section HA'!C8,"AAAAAD7vftw=") ->  | HN9: =AND('Section HA'!D8,"AAAAAD7vft0=") ->  | HO9: =AND('Section HA'!E8,"AAAAAD7vft4=") ->  | HP9: =AND('Section HA'!F8,"AAAAAD7vft8=") ->  | HQ9: =AND('Section HA'!G8,"AAAAAD7vfuA=") ->  | HR9: =AND('Section HA'!H8,"AAAAAD7vfuE=") ->  | HS9: =AND('Section HA'!I8,"AAAAAD7vfuI=") ->  | HT9: =AND('Section HA'!J8,"AAAAAD7vfuM=") ->  | HU9: =AND('Section HA'!K8,"AAAAAD7vfuQ=") ->  | HV9: =AND('Section HA'!L8,"AAAAAD7vfuU=") ->  | HW9: =AND('Section HA'!M8,"AAAAAD7vfuY=") ->  | HX9: =AND('Section HA'!N8,"AAAAAD7vfuc=") ->  | HY9: =AND('Section HA'!O8,"AAAAAD7vfug=") ->  | HZ9: =AND('Section HA'!P8,"AAAAAD7vfuk=") ->  | IA9: =AND('Section HA'!Q8,"AAAAAD7vfuo=") ->  | IB9: =AND('Section HA'!R8,"AAAAAD7vfus=") ->  | IC9: =AND('Section HA'!S8,"AAAAAD7vfuw=") ->  | ID9: =IF('Section HA'!9:9,"AAAAAD7vfu0=",0) -> 0 | IE9: =AND('Section HA'!A9,"AAAAAD7vfu4=") ->  | IF9: =AND('Section HA'!B9,"AAAAAD7vfu8=") ->  | IG9: =AND('Section HA'!C9,"AAAAAD7vfvA=") ->  | IH9: =AND('Section HA'!D9,"AAAAAD7vfvE=") ->  | II9: =AND('Section HA'!E9,"AAAAAD7vfvI=") ->  | IJ9: =AND('Section HA'!F9,"AAAAAD7vfvM=") ->  | IK9: =AND('Section HA'!G9,"AAAAAD7vfvQ=") ->  | IL9: =AND('Section HA'!H9,"AAAAAD7vfvU=") ->  | IM9: =AND('Section HA'!I9,"AAAAAD7vfvY=") ->  | IN9: =AND('Section HA'!J9,"AAAAAD7vfvc=") ->  | IO9: =AND('Section HA'!K9,"AAAAAD7vfvg=") ->  | IP9: =AND('Section HA'!L9,"AAAAAD7vfvk=") ->  | IQ9: =AND('Section HA'!M9,"AAAAAD7vfvo=") ->  | IR9: =AND('Section HA'!N9,"AAAAAD7vfvs=") ->  | IS9: =AND('Section HA'!O9,"AAAAAD7vfvw=") ->  | IT9: =AND('Section HA'!P9,"AAAAAD7vfv0=") ->  | IU9: =AND('Section HA'!Q9,"AAAAAD7vfv4=") ->  | IV9: =AND('Section HA'!R9,"AAAAAD7vfv8=") -> 
